Workbook

Sheet Read Me
J4: Demography
I9: =IF(Documentation!$H$171=TRUE,"Version:","Please check structural errors on Documentation sheet before proceeding") -> Version: | J9: 2019-10-03
B11: Purpose
C12: The tool helps generate tables and charts of population and employment data - both historical and projected. Users can apply population
C13: projections from UN data, or add their own projections. In the projection sheet, indicators and charts guide users in developing consistent
C14: projections not only in terms of population, but also in terms of working age population, dependent population, labor force, and employment.
C15: Where possible, the data and projections are split between male and female to highlight any gender gaps. Output charts include population
C16: pyramids.
B18: Data
C19: The tool uses value added, population, and employment data from the World Development Indicators (WDI) database. Users can also
C20: manually enter their own data.
C21: World DataBank: | E21: http://databank.worldbank.org/data/home.aspx | H21: ='Existing Data_DataBank'!A6 -> Accessed 03 Oct 2019
C23: In the Projection-feature, users can apply population projection data from the UN:
C24: UN Projected Data: | E24: http://esa.un.org/unpd/wpp/DVD/ | H24: ='Existing Data_ProjUN'!A6 -> File version: POP/DB/WPP/Rev.2019/POP/F07-2. Last accessed 24 Sep 2019.
B26: Step-by-Step
C27: Follow the Step-by-Step instructions from sheet to sheet:
D29: Select Country
D30: Select Data
D31: Select Period
D32: Select Projection Assumptions | F32: =Projection!$X$33 -> 
D33: Review Results
D34: Country Comparison
D35: Export Results
B37: Color coding
C38: 123-ABC | D38: Cells filled by the tool and can be modified by the user
D40: All other cells filled by the tool and CANNOT be modified by the user
D42: 123-ABC | E42: Do not modify | F42: 123-ABC | G42: Do not modify
D43: 123-ABC | E43: Do not modify | F43: 123-ABC | G43: Do not modify
D44: 123-ABC | E44: Do not modify | F44: 123-ABC | G44: Do not modify
D45: 123-ABC | E45: Do not modify | F45: 123-ABC | G45: Do not modify
D46: 123-ABC | E46: Do not modify | F46: 123-ABC | G46: Do not modify
B48: Password Protection
C49: To prevent the user from inadvertently overwriting formulas, a password is used protect all sheets.
C50: If it becomes necessary to revise the structure of the file, use these buttons:
C51: ="NB! The password is '"&Macro_Password&"' and must not be changed as it is included in macros." -> NB! The password is 'GROWTH' and must not be changed as it is included in macros.
B53: Contact Details
C54: Dino Merotto (dmerotto@worldbank.org)

Sheet Main Menu
A1: World Bank Group - Jobs Group | R1: Current selections: | S1: Last macro run selections:
A2: ="JobStructure Tool - "&'Read Me'!$J$4 -> JobStructure Tool - Demography | K2: =IF(Check_Main_Update=TRUE,"","Click button to update") ->  | O2: Equivalent in Tool: | P2: =IFERROR(INDEX('Manual Data'!$N$1:$N$6,MATCH(Country,'Manual Data'!$L$1:$L$6,0),1),"-") -> - | R2: =Country&Macro_Data_Value&Macro_Data_Population&Macro_Data_WAP&Macro_Data_LF&Macro_Data_Total_E&Macro_Data_Youth&Macro_Data_Fertility&Macro_Data_UrbanRural&Select_WAP&K12&Macro_FirstYear&Macro_LastYear&Macro_3_Period&I26&I27&J26&J27&K26&K27&E30&E31 -> NepalDataBankDataBankDataBankDataBankDataBankDataBankDataBankDataBank15-64100019982018Yes19982005200520102010201820252030 | S2: NepalDataBankDataBankDataBankDataBankDataBankDataBankDataBankDataBank15-64100019982018Yes19982005200520102010201820252030
A3: Main Menu | S3: =IF(Macro_Main_CurrentSelection=Macro_Main_LastSelection,TRUE,FALSE) -> TRUE
A4: =IF(Macro_Overall_Structural_Check=TRUE,"No errors in reported in structural check","Please check errors on Documentation sheet before proceeding") -> No errors in reported in structural check | O4: Data Options | P4: Dates | Q4: Currency
A5: Step 1 | B5: Select Country or Aggregate | C5: Nepal | G5: =INDEX(Documentation!$D$315:$D$634,MATCH(Country,Documentation!$C$315:$C$634,0),1) -> NPL | H5: UN Notation: | I5: =IF(INDEX(Documentation!$E$315:$E$634,MATCH(Country,Documentation!$C$315:$C$634,0),1)=0,"Not Available",INDEX(Documentation!$E$315:$E$634,MATCH(Country,Documentation!$C$315:$C$634,0),1)) -> Nepal | O5: Manual | P5: - | Q5: ='Manual Data'!$D$8 -> [add data]
C6: click here for the WDI list of country groups (aggregates) | H6: click here for the UN list of country groups (aggregates) | O6: DataBank | P6: ='Existing Data_DataBank'!A6 -> Accessed 03 Oct 2019 | Q6: ='Existing Data_DataBank'!$C$9 -> constant 2010 USD
Q7: =IF(Macro_Data_Value=List_DataSources_Manual,$Q$5,$Q$6) -> constant 2010 USD
A8: Step 2 | B8: A. Select Value Added Data | C8: DataBank | E8: ="Select: Manual or "&$O$6 -> Select: Manual or DataBank | H8: =IF(OR($C$8=$O$5,$C$12=$O$5,$C$13=$O$5,$C$14=$O$5,$C$15=$O$5,$C$17=$O$5,$C$18=$O$5),"Click to Add Manual Data","") ->  | J8: Go To 'Available Data' Sheet
C9: ='Available Data'!AF2 -> Note: Includes years with available Gross Domestic Product (GDP) data | L9: Help?
O10: Population Options | Q10: LF Selected
B11: B. Select Population and Employment Data | O11: 1,000 people | Q11: =Select_WAP -> 15-64 | R11: =IF($G$13=$Q$13,R13,R14) -> <15 and 65+
B12: Total Population | C12: DataBank | D12: ="Select: Manual or "&$O$6 -> Select: Manual or DataBank | J12: Unit for some Tables and Charts | K12: 1000 | L12: =IF(K12=1000,$O$11,$O$12) -> 1,000 people | O12: million people | Q12: LF Options | R12: Ages Not covered
B13: Working Age Population | C13: DataBank | D13: Select: Manual or DataBank | F13: defined as: | G13: 15-64 | H13: age group | J13: (some charts are always in millions) | O13: Gender disag. only if one source | Q13: 15-64 | R13: <15 and 65+
B14: Labor Force | C14: DataBank | D14: Select: Manual or DataBank | O14: =IF(COUNTIF(C12:C15,List_DataSources_Manual)=4,List_DataSources_Manual,IF(COUNTIF(C12:C15,List_DataSources_DataBank)=4,List_DataSources_DataBank,"No Data")) -> DataBank | Q14: 15+ | R14: <15
B15: Employment | C15: DataBank | D15: Select: Manual or DataBank | R15: 65+
B16: Youth Population (<15 yrs) | C16: DataBank | D16: Select: Manual or DataBank | O16: ="LOG factor for "&List_DataSources_DataBank -> LOG factor for DataBank | P16: ="LOG factor for "&List_DataSources_Manual -> LOG factor for Manual
B17: Fertility & Mortality Rates | C17: DataBank | D17: Select: Manual or DataBank | O17: =IF(ISERROR(FIND("million",'Existing Data_DataBank'!$BQ$9)),IF(ISERROR(FIND("thousand",'Existing Data_DataBank'!$BQ$9)),IF(ISERROR(FIND("000",'Existing Data_DataBank'!$BQ$9)),1,1000),1000),1000000) -> 1000000 | P17: =IF(ISERROR(FIND("million",'Manual Data'!$AM$12)),IF(ISERROR(FIND("thousand",'Manual Data'!$AM$12)),IF(ISERROR(FIND("000",'Manual Data'!$AM$12)),1,1000),1000),1000000) -> 1000000
B18: Urban/Rural Population | C18: DataBank | D18: Select: Manual or DataBank | O18: =IF(ISERROR(FIND("million",'Existing Data_DataBank'!$BR$9)),IF(ISERROR(FIND("thousand",'Existing Data_DataBank'!$BR$9)),IF(ISERROR(FIND("000",'Existing Data_DataBank'!$BR$9)),1,1000),1000),1000000) -> 1000 | P18: =IF(ISERROR(FIND("million",'Manual Data'!$AN$12)),IF(ISERROR(FIND("thousand",'Manual Data'!$AN$12)),IF(ISERROR(FIND("000",'Manual Data'!$AN$12)),1,1000),1000),1000000) -> 1000 | Q18: Number of people in data
B19: Wage Data | C19: DataBank | D19: Select: Manual or DataBank | L19: =IF(Input_Data_Check=TRUE,"Input data are consistent.","Please check data consistency on 'Input Data' sheet before proceeding") -> Input data are consistent. | M19: Check | O19: =O17/O18 -> 1000 | P19: =P17/P18 -> 1000 | Q19: =IF(Macro_Data_Value=List_DataSources_DataBank,O19,P19) -> 1000
A21: Step 3 | B21: Select Years | C21: Both Data Sets | H21: Available Data: | I21: Value Added | J21: Pop. & Empl. | K21: Combined | O21: Value Added | P21: Pop. & Empl. | Q21: Combined | R21: Notes
B22: First Year | C22: 1998 | D22: =IF(OR($Q$22=0,$Q$23=0,$Q$22=$Q$23),"("&$S$22&")","(between "&$Q$22&"-"&$Q$23-1&")"&" "&$S$22) -> (between 1960-2017) | H22: First Year | I22: =O22 -> 1960 | J22: =P22 -> 1991 | K22: 1960 | O22: =Calculations!CC8 -> 1960 | P22: =Calculations!CD8 -> 1991 | Q22: =Calculations!CE8 -> 1960 | R22: =IF(OR(O22=0,O23=0,O22=O23),"Please add Value Added data",".") -> . | S22: =IF(R22=".",IF(R23=".",IF(R24=".","",R24),R23),IF(R23=".",R22,IF(R24=".",R24,"Please add Value Added and pop. & empl. data"))) -> 
B23: Last Year | C23: 2018 | D23: =IF(OR($Q$22=0,$Q$23=0,$Q$22=$Q$23),"("&$S$22&")","(between "&$Q$22+1&"-"&$Q$23&")"&" "&$S$22) -> (between 1961-2018) | H23: Last Year | I23: =O23 -> 2018 | J23: 2018 | K23: 2018 | O23: =Calculations!CC9 -> 2018 | P23: =Calculations!CD9 -> 2018 | Q23: =Calculations!CE9 -> 2018 | R23: =IF(OR(P22=0,P23=0,P22=P23),"Please add pop. and empl. data",".") -> . | S23: =IF(OR($C$22<$Q$22,$C$22>$Q$23,$C$22>=$C$23,$C$23<$Q$22,$C$23>$Q$23,$C$23<=$C$22),TRUE,FALSE) -> FALSE
R24: =IF(OR(Q22=0,Q23=0,Q22=P23),"Please add data",".") -> .
B25: Period Break-down? | C25: Yes | G25: Period break-down (optional) | H25: Total Period | I25: =IF(AND(I26="",I27=""),"(Add years)",P25) -> Period 1 | J25: =IF(AND(J26="",J27=""),"(Add years)",Q25) -> Period 2 | K25: =IF(AND(K26="",K27=""),"(Add years)",R25) -> Period 3 | O25: First/Last | P25: Period 1 | Q25: Period 2 | R25: Period 3 | S25: Periods
G26: Start | H26: =Macro_FirstYear -> 1998 | I26: 1998 | J26: 2005 | K26: 2010 | L26: (year or blank) | O26: ='Main Menu'!$S$23 -> FALSE | P26: =IF(AND(I26="",I27=""),FALSE,IF(AND(I26>=$H26,I26<=$H27,I26<I27),FALSE,TRUE)) -> FALSE | Q26: =IF(AND(J26="",J27=""),FALSE,IF(AND(J26>=$H26,J26<=$H27,J26<J27),FALSE,TRUE)) -> FALSE | R26: =IF(AND(K26="",K27=""),FALSE,IF(AND(K26>=$H26,K26<=$H27,K26<K27),FALSE,TRUE)) -> FALSE | S26: =IF(COUNTIF(P26:R26,TRUE)>0,TRUE,FALSE) -> FALSE
G27: End | H27: =Macro_LastYear -> 2018 | I27: 2005 | J27: 2010 | K27: 2018 | L27: (year or blank) | P27: =IF(AND(I26="",I27=""),FALSE,IF(AND(I27>=$H26,I27<=$H27,I27>I26),FALSE,TRUE)) -> FALSE | Q27: =IF(AND(J26="",J27=""),FALSE,IF(AND(J27>=$H26,J27<=$H27,J27>J26),FALSE,TRUE)) -> FALSE | R27: =IF(AND(K26="",K27=""),FALSE,IF(AND(K27>=$H26,K27<=$H27,K27>K26),FALSE,TRUE)) -> FALSE | S27: =IF(COUNTIF(P27:R27,TRUE)>0,TRUE,FALSE) -> FALSE
P28: =IF(COUNTIF(P26:P27,TRUE)>0,TRUE,FALSE) -> FALSE | Q28: =IF(COUNTIF(Q26:Q27,TRUE)>0,TRUE,FALSE) -> FALSE | R28: FALSE | S28: =IF(COUNTIF(P28:R28,TRUE)>0,TRUE,FALSE) -> FALSE
O29: Projection turned on? | Q29: Combined | R29: UN Population
A30: Step 4 | B30: Projection Assumptions | D30: Projection Year 1 | E30: 2025 | F30: =IF(AND(R30=0,R31=0),"No Available Data","(select 5-year periods "&Q30&" and "&Q31&")") -> (select 5-year periods >=2020 and <=2100) | I30: Go To "Projection" Sheet | O30: =IF(ISNUMBER(E30)=FALSE,FALSE,IF(E30<=$C$23,FALSE,TRUE)) -> TRUE | Q30: =IF($C$23>$R$30,">="&$R$30+5,">="&$R$30) -> >=2020 | R30: ='Existing Data_ProjUN'!BD10 -> 2020 | S30: =SUM(R30:R31)<>0 -> TRUE
D31: Projection Year 2 | E31: 2030 | F31: =Projection!$X$33 ->  | O31: =IF(ISNUMBER(E31)=FALSE,FALSE,IF(E31<=$C$23,FALSE,TRUE)) -> TRUE | Q31: ="<="&$R$31 -> <=2100 | R31: ='Existing Data_ProjUN'!BD11 -> 2100
O32: =IF(AND(O30=FALSE,O31=FALSE),FALSE,TRUE) -> TRUE
A33: Step 5 | B33: Main Results | C33: Click to see more Tables | G33: Click to see more Charts
P36: Period Check
P37: =I27-I26 -> 7 | Q37: =J27-J26 -> 5 | R37: =K27-K26 -> 8
O44: To align chart axes for better comparison:
O45: =Macro_Pyramid_Xaxis_Min -> -1668.788
O46: =Macro_Pyramid_Xaxis_Max -> 1701.082
C111: Click to see more Tables | G111: Click to see more Charts

Sheet Available Data
A1: ='Main Menu'!$A$1 -> World Bank Group - Jobs Group | BL1: For Note
A2: ='Main Menu'!$A$2 -> JobStructure Tool - Demography | AF2: =IF(Select_ValueAdded=ValueAdded_2,"Note: Includes years with available "&$BN$4&" data",IF($BM$2="-","No WDI Data","Note: "&$BN$2&$BN$3&" data available are shown. Years with only "&$BN$4&" data are excluded.")) -> Note: Includes years with available Gross Domestic Product (GDP) data | BL2: =Country -> Nepal | BM2: =IF(ISERROR(INDEX(Documentation!$C$315:$L$634,MATCH($BL$2,Documentation!$C$315:$C$634,0),MATCH(Documentation!$G$315,Documentation!$C$315:$L$315,0))),"-",INDEX(Documentation!$C$315:$L$634,MATCH($BL$2,Documentation!$C$315:$C$634,0),MATCH(Documentation!$G$315,Documentation!$C$315:$L$315,0))) -> VAB | BN2: =IF(BM2=0,"In WDI, years with ",IF(BM2="VAB","In WDI, "&Country&" reports Value Added at Basic prices (VAB). Therefore only years with ","In WDI, "&Country&" reports Value added at producer prices (VAP). Therefore only years with ")) -> In WDI, Nepal reports Value Added at Basic prices (VAB). Therefore only years with
A3: ='Main Menu'!$C$5 -> Nepal | BL3: Value: | BM3: =IF(BM2="VAB","GVA","GDP") -> GVA | BN3: =IF(BM3="GVA","Gross Value Added (GVA)","Gross Domestic Product (GDP)") -> Gross Value Added (GVA)
A4: Available Data | BL4: Excluded data: | BM4: =IF(BM2="VAP","GVA","GDP") -> GDP | BN4: =IF(BM4="GVA","Gross Value Added (GVA)","Gross Domestic Product (GDP)") -> Gross Domestic Product (GDP)
A5: =IF(Macro_Overall_Structural_Check=TRUE,"No errors in reported in structural check","Please check errors on Documentation sheet before proceeding") -> No errors in reported in structural check | BM5: ='Main Menu'!$Q$10 -> LF Selected | BP5: For chart on Main Menu
A6: Step 2 | B6: View Available Data | AF6: Existing DataBank Data | BM6: ='Main Menu'!$Q$11 -> 15-64 | BN6: ='Main Menu'!$R$11 -> <15 and 65+ | BP6: ="Employment with Working Age and Dependent Populations, "&CHAR(13)&$A$3 -> Employment with Working Age and Dependent Populations, Nepal
A7: Help sources? | B7: ="Note: If a mix of '"&$BL$9&"' and '"&$BL$10&"' Data are selected, population ratios are used to prorate: WAP/population, LF/WAP, E/LF, and D<15/population. Gender disaggregated data are not prorated." -> Note: If a mix of 'Manual' and 'DataBank' Data are selected, population ratios are used to prorate: WAP/population, LF/WAP, E/LF, and D<15/population. Gender disaggregated data are not prorated. | BM7: ='Main Menu'!$Q$12 -> LF Options | BN7: ='Main Menu'!$R$12 -> Ages Not covered | BP7: =Calculations!B8 -> million constant 2010 USD
B8: ="(view existing "&Macro_Data_DataBank&" data over to the right)" -> (view existing DataBank data over to the right) | BL8: ='Main Menu'!$O$4 -> Data Options | BM8: ='Main Menu'!$Q$13 -> 15-64 | BN8: ='Main Menu'!$R$13 -> <15 and 65+ | BP8: =Calculations!C8 -> 1,000 people
A9: Description | B9: =IF(B$11=$BL$9,'Manual Data'!AM13,AH9) -> Total Value Added | C9: =IF(C$11=$BL$9,'Manual Data'!AN13,AI9) -> Population, total | D9: =IF(D$11=$BL$9,'Manual Data'!AO13,AJ9) -> Population, total male | E9: =IF(E$11=$BL$9,'Manual Data'!AP13,AK9) -> Population, total female | F9: =IF(F$11=$BL$9,'Manual Data'!AQ13,AL9) -> Population 15-64 | G9: =IF(G$11=$BL$9,'Manual Data'!AR13,AM9) -> Population 15-64 male | H9: =IF(H$11=$BL$9,'Manual Data'!AS13,AN9) -> Population 15-64 female | I9: =IF(I$11=$BL$9,'Manual Data'!AT13,AO9) -> Labor force 15-64 | J9: =IF(J$11=$BL$9,'Manual Data'!AU13,AP9) -> Labor force 15-64 male | K9: =IF(K$11=$BL$9,'Manual Data'!AV13,AQ9) -> Labor force 15-64 female | L9: =IF(L$11=$BL$9,'Manual Data'!AW13,AR9) -> Employment 15-64 | M9: =IF(M$11=$BL$9,'Manual Data'!AX13,AS9) -> Employment 15-64 male | N9: =IF(N$11=$BL$9,'Manual Data'!AY13,AT9) -> Employment 15-64 female | O9: =IF(O$11=$BL$9,'Manual Data'!AZ13,AU9) -> Youth Dependents | P9: =IF(P$11=$BL$9,'Manual Data'!BA13,AV9) -> Youth Dependents male | Q9: =IF(Q$11=$BL$9,'Manual Data'!BB13,AW9) -> Youth Dependents female | R9: =IF(R$11=$BL$9,'Manual Data'!BC13,AX9) -> Fertility rate, total | S9: =IF(S$11=$BL$9,'Manual Data'!BD13,AY9) -> Mortality rate, infant | T9: =IF(T$11=$BL$9,'Manual Data'!BE13,AZ9) -> Mortality rate, under-5 | U9: =IF(U$11=$BL$9,'Manual Data'!BF13,BA9) -> Rural population | V9: =IF(V$11=$BL$9,'Manual Data'!BG13,BB9) -> Urban population | W9: =IF(W$11=$BL$9,'Manual Data'!BH13,BC9) -> Population in largest city | X9: =IF(X$11=$BL$9,'Manual Data'!BI13,BD9) -> Population Cities >1 million | Y9: =IF(Y$11=$BL$9,'Manual Data'!BJ13,BE9) -> Population in other urban areas | Z9: =IF(Z$11=$BL$9,'Manual Data'!BK13,BF9) -> Paid employees | AA9: =IF(AA$11=$BL$9,'Manual Data'!BL13,BG9) -> Self-employed | AB9: =IF(AB$11=$BL$9,'Manual Data'!BM13,BH9) -> Self-employed employers | AC9: =IF(AC$11=$BL$9,'Manual Data'!BN13,BI9) -> Self-employed unpaid family workers | AD9: =IF(AD$11=$BL$9,'Manual Data'!BO13,BJ9) -> Other self-employed | AF9: Description | AG9: Value Added Source | AH9: ='Existing Data_DataBank'!BQ12 -> Total Value Added | AI9: ='Existing Data_DataBank'!BR12 -> Population, total | AJ9: ='Existing Data_DataBank'!BS12 -> Population, total male | AK9: ='Existing Data_DataBank'!BT12 -> Population, total female | AL9: ='Existing Data_DataBank'!BU12 -> Population 15-64 | AM9: ='Existing Data_DataBank'!BV12 -> Population 15-64 male | AN9: ='Existing Data_DataBank'!BW12 -> Population 15-64 female | AO9: ='Existing Data_DataBank'!BX12 -> Labor force 15-64 | AP9: ='Existing Data_DataBank'!BY12 -> Labor force 15-64 male | AQ9: ='Existing Data_DataBank'!BZ12 -> Labor force 15-64 female | AR9: ='Existing Data_DataBank'!CA12 -> Employment 15-64 | AS9: ='Existing Data_DataBank'!CB12 -> Employment 15-64 male | AT9: ='Existing Data_DataBank'!CC12 -> Employment 15-64 female | AU9: ='Existing Data_DataBank'!CD12 -> Youth Dependents | AV9: ='Existing Data_DataBank'!CE12 -> Youth Dependents male | AW9: ='Existing Data_DataBank'!CF12 -> Youth Dependents female | AX9: ='Existing Data_DataBank'!CG12 -> Fertility rate, total | AY9: ='Existing Data_DataBank'!CH12 -> Mortality rate, infant | AZ9: ='Existing Data_DataBank'!CI12 -> Mortality rate, under-5 | BA9: ='Existing Data_DataBank'!CJ12 -> Rural population | BB9: ='Existing Data_DataBank'!CK12 -> Urban population | BC9: ='Existing Data_DataBank'!CL12 -> Population in largest city | BD9: ='Existing Data_DataBank'!CM12 -> Population Cities >1 million | BE9: ='Existing Data_DataBank'!CN12 -> Population in other urban areas | BF9: ='Existing Data_DataBank'!CO12 -> Paid employees | BG9: ='Existing Data_DataBank'!CP12 -> Self-employed | BH9: ='Existing Data_DataBank'!CQ12 -> Self-employed employers | BI9: ='Existing Data_DataBank'!CR12 -> Self-employed unpaid family workers | BJ9: ='Existing Data_DataBank'!CS12 -> Other self-employed | BL9: ='Main Menu'!$O$5 -> Manual | BM9: ='Main Menu'!$Q$14 -> 15+ | BN9: ='Main Menu'!$R$14 -> <15
A10: Unit | B10: =IF(B$11=$BL$9,'Manual Data'!AM12,AH10) -> million constant 2010 USD | C10: =IF(C$11=$BL$9,'Manual Data'!AN12,AI10) -> 1,000 people | D10: =IF(D$11=$BL$9,'Manual Data'!AO12,AJ10) -> 1,000 people | E10: =IF(E$11=$BL$9,'Manual Data'!AP12,AK10) -> 1,000 people | F10: =IF(F$11=$BL$9,'Manual Data'!AQ12,AL10) -> 1,000 people | G10: =IF(G$11=$BL$9,'Manual Data'!AR12,AM10) -> 1,000 people | H10: =IF(H$11=$BL$9,'Manual Data'!AS12,AN10) -> 1,000 people | I10: =IF(I$11=$BL$9,'Manual Data'!AT12,AO10) -> 1,000 people | J10: =IF(J$11=$BL$9,'Manual Data'!AU12,AP10) -> 1,000 people | K10: =IF(K$11=$BL$9,'Manual Data'!AV12,AQ10) -> 1,000 people | L10: =IF(L$11=$BL$9,'Manual Data'!AW12,AR10) -> 1,000 people | M10: =IF(M$11=$BL$9,'Manual Data'!AX12,AS10) -> 1,000 people | N10: =IF(N$11=$BL$9,'Manual Data'!AY12,AT10) -> 1,000 people | O10: =IF(O$11=$BL$9,'Manual Data'!AZ12,AU10) -> 1,000 people | P10: =IF(P$11=$BL$9,'Manual Data'!BA12,AV10) -> 1,000 people | Q10: =IF(Q$11=$BL$9,'Manual Data'!BB12,AW10) -> 1,000 people | R10: =IF(R$11=$BL$9,'Manual Data'!BC12,AX10) -> births per woman | S10: =IF(S$11=$BL$9,'Manual Data'!BD12,AY10) -> per 1,000 live births | T10: =IF(T$11=$BL$9,'Manual Data'!BE12,AZ10) -> per 1,000 live births | U10: =IF(U$11=$BL$9,'Manual Data'!BF12,BA10) -> 1,000 people | V10: =IF(V$11=$BL$9,'Manual Data'!BG12,BB10) -> 1,000 people | W10: =IF(W$11=$BL$9,'Manual Data'!BH12,BC10) -> 1,000 people | X10: =IF(X$11=$BL$9,'Manual Data'!BI12,BD10) -> 1,000 people | Y10: =IF(Y$11=$BL$9,'Manual Data'!BJ12,BE10) -> 1,000 people | Z10: =IF(Z$11=$BL$9,'Manual Data'!BK12,BF10) -> 1,000 people | AA10: =IF(AA$11=$BL$9,'Manual Data'!BL12,BG10) -> 1,000 people | AB10: =IF(AB$11=$BL$9,'Manual Data'!BM12,BH10) -> 1,000 people | AC10: =IF(AC$11=$BL$9,'Manual Data'!BN12,BI10) -> 1,000 people | AD10: =IF(AD$11=$BL$9,'Manual Data'!BO12,BJ10) -> 1,000 people | AF10: Unit | AH10: ='Existing Data_DataBank'!BQ9 -> million constant 2010 USD | AI10: ='Existing Data_DataBank'!BR9 -> 1,000 people | AJ10: ='Existing Data_DataBank'!BS9 -> 1,000 people | AK10: ='Existing Data_DataBank'!BT9 -> 1,000 people | AL10: ='Existing Data_DataBank'!BU9 -> 1,000 people | AM10: ='Existing Data_DataBank'!BV9 -> 1,000 people | AN10: ='Existing Data_DataBank'!BW9 -> 1,000 people | AO10: ='Existing Data_DataBank'!BX9 -> 1,000 people | AP10: ='Existing Data_DataBank'!BY9 -> 1,000 people | AQ10: ='Existing Data_DataBank'!BZ9 -> 1,000 people | AR10: ='Existing Data_DataBank'!CA9 -> 1,000 people | AS10: ='Existing Data_DataBank'!CB9 -> 1,000 people | AT10: ='Existing Data_DataBank'!CC9 -> 1,000 people | AU10: ='Existing Data_DataBank'!CD9 -> 1,000 people | AV10: ='Existing Data_DataBank'!CE9 -> 1,000 people | AW10: ='Existing Data_DataBank'!CF9 -> 1,000 people | AX10: ='Existing Data_DataBank'!CG9 -> births per woman | AY10: ='Existing Data_DataBank'!CH9 -> per 1,000 live births | AZ10: ='Existing Data_DataBank'!CI9 -> per 1,000 live births | BA10: ='Existing Data_DataBank'!CJ9 -> 1,000 people | BB10: ='Existing Data_DataBank'!CK9 -> 1,000 people | BC10: ='Existing Data_DataBank'!CL9 -> 1,000 people | BD10: ='Existing Data_DataBank'!CM9 -> 1,000 people | BE10: ='Existing Data_DataBank'!CN9 -> 1,000 people | BF10: ='Existing Data_DataBank'!CO9 -> 1,000 people | BG10: ='Existing Data_DataBank'!CP9 -> 1,000 people | BH10: ='Existing Data_DataBank'!CQ9 -> 1,000 people | BI10: ='Existing Data_DataBank'!CR9 -> 1,000 people | BJ10: ='Existing Data_DataBank'!CS9 -> 1,000 people | BL10: ='Main Menu'!$O$6 -> DataBank | BN10: ='Main Menu'!$R$15 -> 65+
A11: Source | B11: =Macro_Data_Value -> DataBank | C11: =Macro_Data_Population -> DataBank | D11: =Macro_Data_Population -> DataBank | E11: =Macro_Data_Population -> DataBank | F11: =Macro_Data_WAP -> DataBank | G11: =IF(C11=F11,F11,"No Data") -> DataBank | H11: =G11 -> DataBank | I11: =Macro_Data_LF -> DataBank | J11: =IF(AND(C11=F11,F11=I11),I11,"No Data") -> DataBank | K11: =J11 -> DataBank | L11: =Macro_Data_Total_E -> DataBank | M11: =IF(AND(C11=F11,F11=I11,I11=L11),L11,"No Data") -> DataBank | N11: =M11 -> DataBank | O11: =Macro_Data_Youth -> DataBank | P11: =IF(C11=O11,O11,"No Data") -> DataBank | Q11: =P11 -> DataBank | R11: =Macro_Data_Fertility -> DataBank | S11: =Macro_Data_Fertility -> DataBank | T11: =Macro_Data_Fertility -> DataBank | U11: =Macro_Data_UrbanRural -> DataBank | V11: =Macro_Data_UrbanRural -> DataBank | W11: =Macro_Data_UrbanRural -> DataBank | X11: =Macro_Data_UrbanRural -> DataBank | Y11: =Macro_Data_UrbanRural -> DataBank | Z11: =Macro_Data_Wage -> DataBank | AA11: =Macro_Data_Wage -> DataBank | AB11: =Macro_Data_Wage -> DataBank | AC11: =Macro_Data_Wage -> DataBank | AD11: =Macro_Data_Wage -> DataBank | AF11: Source | AG11: Help? | AH11: ='Main Menu'!$O$6 -> DataBank
A12: Year | B12: =IF(B$11=$BL$9,'Manual Data'!AM14,AH12) -> VA | C12: =IF(C$11=$BL$9,'Manual Data'!AN14,AI12) -> POP | D12: =IF(D$11=$BL$9,'Manual Data'!AO14,AJ12) -> POP M | E12: =IF(E$11=$BL$9,'Manual Data'!AP14,AK12) -> POP F | F12: =IF(F$11=$BL$9,'Manual Data'!AQ14,AL12) -> WAP 15-64 | G12: =IF(G$11=$BL$9,'Manual Data'!AR14,AM12) -> WAP 15-64 M | H12: =IF(H$11=$BL$9,'Manual Data'!AS14,AN12) -> WAP 15-64 F | I12: =IF(I$11=$BL$9,'Manual Data'!AT14,AO12) -> LF 15-64 | J12: =IF(J$11=$BL$9,'Manual Data'!AU14,AP12) -> LF 15-64 M | K12: =IF(K$11=$BL$9,'Manual Data'!AV14,AQ12) -> LF 15-64 F | L12: =IF(L$11=$BL$9,'Manual Data'!AW14,AR12) -> E 15-64 | M12: =IF(M$11=$BL$9,'Manual Data'!AX14,AS12) -> E 15-64 M | N12: =IF(N$11=$BL$9,'Manual Data'!AY14,AT12) -> E 15-64 F | O12: =IF(O$11=$BL$9,'Manual Data'!AZ14,AU12) -> D <15 | P12: =IF(P$11=$BL$9,'Manual Data'!BA14,AV12) -> D <15 M | Q12: =IF(Q$11=$BL$9,'Manual Data'!BB14,AW12) -> D <15 F | R12: =IF(R$11=$BL$9,'Manual Data'!BC14,AX12) -> Fertility Rate | S12: =IF(S$11=$BL$9,'Manual Data'!BD14,AY12) -> Mortality Rate Infant | T12: =IF(T$11=$BL$9,'Manual Data'!BE14,AZ12) -> Mortality Rate <age 5 | U12: =IF(U$11=$BL$9,'Manual Data'!BF14,BA12) -> Rural POP | V12: =IF(V$11=$BL$9,'Manual Data'!BG14,BB12) -> Urban POP | W12: =IF(W$11=$BL$9,'Manual Data'!BH14,BC12) -> Largest City POP | X12: =IF(X$11=$BL$9,'Manual Data'!BI14,BD12) -> Other City >1M POP | Y12: =IF(Y$11=$BL$9,'Manual Data'!BJ14,BE12) -> Other Urban POP | Z12: =IF(Z$11=$BL$9,'Manual Data'!BK14,BF12) -> Paid employees | AA12: =IF(AA$11=$BL$9,'Manual Data'!BL14,BG12) -> Self-employed | AB12: =IF(AB$11=$BL$9,'Manual Data'!BM14,BH12) -> Employers | AC12: =IF(AC$11=$BL$9,'Manual Data'!BN14,BI12) -> Unpaid family workers | AD12: =IF(AD$11=$BL$9,'Manual Data'!BO14,BJ12) -> Other self-employed | AF12: Year | AG12: Source | AH12: ='Existing Data_DataBank'!BQ13 -> VA | AI12: ='Existing Data_DataBank'!BR13 -> POP | AJ12: ='Existing Data_DataBank'!BS13 -> POP M | AK12: ='Existing Data_DataBank'!BT13 -> POP F | AL12: ='Existing Data_DataBank'!BU13 -> WAP 15-64 | AM12: ='Existing Data_DataBank'!BV13 -> WAP 15-64 M | AN12: ='Existing Data_DataBank'!BW13 -> WAP 15-64 F | AO12: ='Existing Data_DataBank'!BX13 -> LF 15-64 | AP12: ='Existing Data_DataBank'!BY13 -> LF 15-64 M | AQ12: ='Existing Data_DataBank'!BZ13 -> LF 15-64 F | AR12: ='Existing Data_DataBank'!CA13 -> E 15-64 | AS12: ='Existing Data_DataBank'!CB13 -> E 15-64 M | AT12: ='Existing Data_DataBank'!CC13 -> E 15-64 F | AU12: ='Existing Data_DataBank'!CD13 -> D <15 | AV12: ='Existing Data_DataBank'!CE13 -> D <15 M | AW12: ='Existing Data_DataBank'!CF13 -> D <15 F | AX12: ='Existing Data_DataBank'!CG13 -> Fertility Rate | AY12: ='Existing Data_DataBank'!CH13 -> Mortality Rate Infant | AZ12: ='Existing Data_DataBank'!CI13 -> Mortality Rate <age 5 | BA12: ='Existing Data_DataBank'!CJ13 -> Rural POP | BB12: ='Existing Data_DataBank'!CK13 -> Urban POP | BC12: ='Existing Data_DataBank'!CL13 -> Largest City POP | BD12: ='Existing Data_DataBank'!CM13 -> Other City >1M POP | BE12: ='Existing Data_DataBank'!CN13 -> Other Urban POP | BF12: ='Existing Data_DataBank'!CO13 -> Paid employees | BG12: ='Existing Data_DataBank'!CP13 -> Self-employed | BH12: ='Existing Data_DataBank'!CQ13 -> Employers | BI12: ='Existing Data_DataBank'!CR13 -> Unpaid family workers | BJ12: ='Existing Data_DataBank'!CS13 -> Other self-employed | BP12: Year | BQ12: ="Dependents "&$BN$6 -> Dependents <15 and 65+ | BR12: ="Outside Labor Force "&$BM$6 -> Outside Labor Force 15-64 | BS12: ="Unemployment "&$BM$6 -> Unemployment 15-64 | BT12: ="Employment "&$BM$6 -> Employment 15-64 | BU12: Population | BV12: Total Value Added (RHS)
A13: 1960 | B13: =IF(B$11=$BL$9,'Manual Data'!AM15,AH13) -> 2687.564645 | C13: =IF(C$11=$BL$9,'Manual Data'!AN15,AI13) -> 10105.05 | D13: =IF(D$11=$BL$9,'Manual Data'!AO15,AJ13) -> 5038.372014 | E13: =IF(E$11=$BL$9,'Manual Data'!AP15,AK13) -> 5066.677986 | F13: =IF(F$11=$BL$9,IF(ISERROR('Manual Data'!AQ15/'Manual Data'!$AN15*$C13),".",'Manual Data'!AQ15/'Manual Data'!$AN15*$C13),IF(ISERROR(AL13/$AI13*$C13),".",AL13/$AI13*$C13)) -> 5764.39 | G13: =IF(G$11="No Data",".",IF(G$11=$BL$9,'Manual Data'!AR15,AM13)) -> 2830.062199 | H13: =IF(H$11="No Data",".",IF(H$11=$BL$9,'Manual Data'!AS15,AN13)) -> 2934.327801 | I13: =IF(I$11=$BL$9,IF(ISERROR('Manual Data'!AT15/'Manual Data'!AQ15*F13),".",'Manual Data'!AT15/'Manual Data'!AQ15*F13),IF(ISERROR(AO13/AL13*F13),".",AO13/AL13*F13)) -> . | J13: =IF(J$11="No Data",".",IF(J$11=$BL$9,'Manual Data'!AU15,AP13)) -> . | K13: =IF(K$11="No Data",".",IF(K$11=$BL$9,'Manual Data'!AV15,AQ13)) -> . | L13: =IF(L$11=$BL$9,IF(ISERROR('Manual Data'!AW15/'Manual Data'!AT15*I13),".",'Manual Data'!AW15/'Manual Data'!AT15*I13),IF(ISERROR(AR13/AO13*I13),".",AR13/AO13*I13)) -> . | M13: =IF(M$11="No Data",".",IF(M$11=$BL$9,'Manual Data'!AX15,AS13)) -> . | N13: =IF(N$11="No Data",".",IF(N$11=$BL$9,'Manual Data'!AY15,AT13)) -> . | O13: =IF(O$11=$BL$9,IF(ISERROR('Manual Data'!AZ15/'Manual Data'!$AN15*$C13),".",'Manual Data'!AZ15/'Manual Data'!$AN15*$C13),IF(ISERROR(AU13/$AI13*$C13),".",AU13/$AI13*$C13)) -> 4083.848 | P13: =IF(P$11="No Data",".",IF(P$11=$BL$9,'Manual Data'!BA15,AV13)) -> 2091.70293 | Q13: =IF(Q$11="No Data",".",IF(Q$11=$BL$9,'Manual Data'!BB15,AW13)) -> 1992.14507 | R13: =IF(R$11=$BL$9,'Manual Data'!BC15,AX13) -> 5.959 | S13: =IF(S$11=$BL$9,'Manual Data'!BD15,AY13) -> 216.1 | T13: =IF(T$11=$BL$9,'Manual Data'!BE15,AZ13) -> 322.1 | U13: =IF(U$11=$BL$9,'Manual Data'!BF15,BA13) -> 9753.39426 | V13: =IF(V$11=$BL$9,'Manual Data'!BG15,BB13) -> 351.65574 | W13: =IF(W$11=$BL$9,'Manual Data'!BH15,BC13) -> 119.1769119 | X13: =IF(X$11=$BL$9,'Manual Data'!BI15,BD13) -> 8.81145779e-05 | Y13: =IF(Y$11=$BL$9,'Manual Data'!BJ15,BE13) -> 232.47874 | Z13: =IF(Z$11=$BL$9,'Manual Data'!BK15,BF13) -> . | AA13: =IF(AA$11=$BL$9,'Manual Data'!BL15,BG13) -> . | AB13: =IF(AB$11=$BL$9,'Manual Data'!BM15,BH13) -> . | AC13: =IF(AC$11=$BL$9,'Manual Data'!BN15,BI13) -> . | AD13: =IF(AD$11=$BL$9,'Manual Data'!BO15,BJ13) -> . | AF13: ='Existing Data_DataBank'!BP14 -> 1960 | AG13: ='Existing Data_DataBank'!CT14 -> GDP | AH13: ='Existing Data_DataBank'!BQ14 -> 2687.564645 | AI13: ='Existing Data_DataBank'!BR14 -> 10105.05 | AJ13: ='Existing Data_DataBank'!BS14 -> 5038.372014 | AK13: ='Existing Data_DataBank'!BT14 -> 5066.677986 | AL13: ='Existing Data_DataBank'!BU14 -> 5764.39 | AM13: ='Existing Data_DataBank'!BV14 -> 2830.062199 | AN13: ='Existing Data_DataBank'!BW14 -> 2934.327801 | AO13: ='Existing Data_DataBank'!BX14 -> . | AP13: ='Existing Data_DataBank'!BY14 -> . | AQ13: ='Existing Data_DataBank'!BZ14 -> . | AR13: ='Existing Data_DataBank'!CA14 -> . | AS13: ='Existing Data_DataBank'!CB14 -> . | AT13: ='Existing Data_DataBank'!CC14 -> . | AU13: ='Existing Data_DataBank'!CD14 -> 4083.848 | AV13: ='Existing Data_DataBank'!CE14 -> 2091.70293 | AW13: ='Existing Data_DataBank'!CF14 -> 1992.14507 | AX13: ='Existing Data_DataBank'!CG14 -> 5.959 | AY13: ='Existing Data_DataBank'!CH14 -> 216.1 | AZ13: ='Existing Data_DataBank'!CI14 -> 322.1 | BA13: ='Existing Data_DataBank'!CJ14 -> 9753.39426 | BB13: ='Existing Data_DataBank'!CK14 -> 351.65574 | BC13: ='Existing Data_DataBank'!CL14 -> 119.1769119 | BD13: ='Existing Data_DataBank'!CM14 -> 8.81145779e-05 | BE13: ='Existing Data_DataBank'!CN14 -> 232.47874 | BF13: ='Existing Data_DataBank'!CO14 -> . | BG13: ='Existing Data_DataBank'!CP14 -> . | BH13: ='Existing Data_DataBank'!CQ14 -> . | BI13: ='Existing Data_DataBank'!CR14 -> . | BJ13: ='Existing Data_DataBank'!CS14 -> . | BP13: =A13 -> 1960 | BQ13: =IFERROR(C13-F13,NA()) -> 4340.66 | BR13: =IFERROR(F13-I13,NA()) ->  | BS13: =IFERROR(I13-L13,NA()) ->  | BT13: =IF(ISNUMBER(L13)=TRUE,L13,NA()) ->  | BU13: =IF(ISNUMBER(C13)=TRUE,C13,NA()) -> 10105.05 | BV13: =IF(ISNUMBER(B13)=TRUE,B13,NA()) -> 2687.564645
A14: =A13+1 -> 1961 | B14: =IF(B$11=$BL$9,'Manual Data'!AM16,AH14) -> 2738.850526 | C14: =IF(C$11=$BL$9,'Manual Data'!AN16,AI14) -> 10267.264 | D14: =IF(D$11=$BL$9,'Manual Data'!AO16,AJ14) -> 5120.962995 | E14: =IF(E$11=$BL$9,'Manual Data'!AP16,AK14) -> 5146.301005 | F14: =IF(F$11=$BL$9,IF(ISERROR('Manual Data'!AQ16/'Manual Data'!$AN16*$C14),".",'Manual Data'!AQ16/'Manual Data'!$AN16*$C14),IF(ISERROR(AL14/$AI14*$C14),".",AL14/$AI14*$C14)) -> 5829.235 | G14: =IF(G$11="No Data",".",IF(G$11=$BL$9,'Manual Data'!AR16,AM14)) -> 2863.255115 | H14: =IF(H$11="No Data",".",IF(H$11=$BL$9,'Manual Data'!AS16,AN14)) -> 2965.979885 | I14: =IF(I$11=$BL$9,IF(ISERROR('Manual Data'!AT16/'Manual Data'!AQ16*F14),".",'Manual Data'!AT16/'Manual Data'!AQ16*F14),IF(ISERROR(AO14/AL14*F14),".",AO14/AL14*F14)) -> . | J14: =IF(J$11="No Data",".",IF(J$11=$BL$9,'Manual Data'!AU16,AP14)) -> . | K14: =IF(K$11="No Data",".",IF(K$11=$BL$9,'Manual Data'!AV16,AQ14)) -> . | L14: =IF(L$11=$BL$9,IF(ISERROR('Manual Data'!AW16/'Manual Data'!AT16*I14),".",'Manual Data'!AW16/'Manual Data'!AT16*I14),IF(ISERROR(AR14/AO14*I14),".",AR14/AO14*I14)) -> . | M14: =IF(M$11="No Data",".",IF(M$11=$BL$9,'Manual Data'!AX16,AS14)) -> . | N14: =IF(N$11="No Data",".",IF(N$11=$BL$9,'Manual Data'!AY16,AT14)) -> . | O14: =IF(O$11=$BL$9,IF(ISERROR('Manual Data'!AZ16/'Manual Data'!$AN16*$C14),".",'Manual Data'!AZ16/'Manual Data'!$AN16*$C14),IF(ISERROR(AU14/$AI14*$C14),".",AU14/$AI14*$C14)) -> 4170.988 | P14: =IF(P$11="No Data",".",IF(P$11=$BL$9,'Manual Data'!BA16,AV14)) -> 2136.537832 | Q14: =IF(Q$11="No Data",".",IF(Q$11=$BL$9,'Manual Data'!BB16,AW14)) -> 2034.450168 | R14: =IF(R$11=$BL$9,'Manual Data'!BC16,AX14) -> 5.96 | S14: =IF(S$11=$BL$9,'Manual Data'!BD16,AY14) -> 213.3 | T14: =IF(T$11=$BL$9,'Manual Data'!BE16,AZ14) -> 318.2 | U14: =IF(U$11=$BL$9,'Manual Data'!BF16,BA14) -> 9900.620003 | V14: =IF(V$11=$BL$9,'Manual Data'!BG16,BB14) -> 366.6439974 | W14: =IF(W$11=$BL$9,'Manual Data'!BH16,BC14) -> 121.0839992 | X14: =IF(X$11=$BL$9,'Manual Data'!BI16,BD14) -> 8.454387571e-07 | Y14: =IF(Y$11=$BL$9,'Manual Data'!BJ16,BE14) -> 245.5599974 | Z14: =IF(Z$11=$BL$9,'Manual Data'!BK16,BF14) -> . | AA14: =IF(AA$11=$BL$9,'Manual Data'!BL16,BG14) -> . | AB14: =IF(AB$11=$BL$9,'Manual Data'!BM16,BH14) -> . | AC14: =IF(AC$11=$BL$9,'Manual Data'!BN16,BI14) -> . | AD14: =IF(AD$11=$BL$9,'Manual Data'!BO16,BJ14) -> . | AF14: ='Existing Data_DataBank'!BP15 -> 1961 | AG14: ='Existing Data_DataBank'!CT15 -> GDP | AH14: ='Existing Data_DataBank'!BQ15 -> 2738.850526 | AI14: ='Existing Data_DataBank'!BR15 -> 10267.264 | AJ14: ='Existing Data_DataBank'!BS15 -> 5120.962995 | AK14: ='Existing Data_DataBank'!BT15 -> 5146.301005 | AL14: ='Existing Data_DataBank'!BU15 -> 5829.235 | AM14: ='Existing Data_DataBank'!BV15 -> 2863.255115 | AN14: ='Existing Data_DataBank'!BW15 -> 2965.979885 | AO14: ='Existing Data_DataBank'!BX15 -> . | AP14: ='Existing Data_DataBank'!BY15 -> . | AQ14: ='Existing Data_DataBank'!BZ15 -> . | AR14: ='Existing Data_DataBank'!CA15 -> . | AS14: ='Existing Data_DataBank'!CB15 -> . | AT14: ='Existing Data_DataBank'!CC15 -> . | AU14: ='Existing Data_DataBank'!CD15 -> 4170.988 | AV14: ='Existing Data_DataBank'!CE15 -> 2136.537832 | AW14: ='Existing Data_DataBank'!CF15 -> 2034.450168 | AX14: ='Existing Data_DataBank'!CG15 -> 5.96 | AY14: ='Existing Data_DataBank'!CH15 -> 213.3 | AZ14: ='Existing Data_DataBank'!CI15 -> 318.2 | BA14: ='Existing Data_DataBank'!CJ15 -> 9900.620003 | BB14: ='Existing Data_DataBank'!CK15 -> 366.6439974 | BC14: ='Existing Data_DataBank'!CL15 -> 121.0839992 | BD14: ='Existing Data_DataBank'!CM15 -> 8.454387571e-07 | BE14: ='Existing Data_DataBank'!CN15 -> 245.5599974 | BF14: ='Existing Data_DataBank'!CO15 -> . | BG14: ='Existing Data_DataBank'!CP15 -> . | BH14: ='Existing Data_DataBank'!CQ15 -> . | BI14: ='Existing Data_DataBank'!CR15 -> . | BJ14: ='Existing Data_DataBank'!CS15 -> . | BP14: =A14 -> 1961 | BQ14: =IFERROR(C14-F14,NA()) -> 4438.029 | BR14: =IFERROR(F14-I14,NA()) ->  | BS14: =IFERROR(I14-L14,NA()) ->  | BT14: =IF(ISNUMBER(L14)=TRUE,L14,NA()) ->  | BU14: =IF(ISNUMBER(C14)=TRUE,C14,NA()) -> 10267.264 | BV14: =IF(ISNUMBER(B14)=TRUE,B14,NA()) -> 2738.850526
A15: 1962 | B15: =IF(B$11=$BL$9,'Manual Data'!AM17,AH15) -> 2791.171336 | C15: =IF(C$11=$BL$9,'Manual Data'!AN17,AI15) -> 10433.145 | D15: =IF(D$11=$BL$9,'Manual Data'!AO17,AJ15) -> 5204.106002 | E15: =IF(E$11=$BL$9,'Manual Data'!AP17,AK15) -> 5229.038998 | F15: =IF(F$11=$BL$9,IF(ISERROR('Manual Data'!AQ17/'Manual Data'!$AN17*$C15),".",'Manual Data'!AQ17/'Manual Data'!$AN17*$C15),IF(ISERROR(AL15/$AI15*$C15),".",AL15/$AI15*$C15)) -> 5884.168 | G15: =IF(G$11="No Data",".",IF(G$11=$BL$9,'Manual Data'!AR17,AM15)) -> 2890.722446 | H15: =IF(H$11="No Data",".",IF(H$11=$BL$9,'Manual Data'!AS17,AN15)) -> 2993.445554 | I15: =IF(I$11=$BL$9,IF(ISERROR('Manual Data'!AT17/'Manual Data'!AQ17*F15),".",'Manual Data'!AT17/'Manual Data'!AQ17*F15),IF(ISERROR(AO15/AL15*F15),".",AO15/AL15*F15)) -> . | J15: =IF(J$11="No Data",".",IF(J$11=$BL$9,'Manual Data'!AU17,AP15)) -> . | K15: =IF(K$11="No Data",".",IF(K$11=$BL$9,'Manual Data'!AV17,AQ15)) -> . | L15: =IF(L$11=$BL$9,IF(ISERROR('Manual Data'!AW17/'Manual Data'!AT17*I15),".",'Manual Data'!AW17/'Manual Data'!AT17*I15),IF(ISERROR(AR15/AO15*I15),".",AR15/AO15*I15)) -> . | M15: =IF(M$11="No Data",".",IF(M$11=$BL$9,'Manual Data'!AX17,AS15)) -> . | N15: =IF(N$11="No Data",".",IF(N$11=$BL$9,'Manual Data'!AY17,AT15)) -> . | O15: =IF(O$11=$BL$9,IF(ISERROR('Manual Data'!AZ17/'Manual Data'!$AN17*$C15),".",'Manual Data'!AZ17/'Manual Data'!$AN17*$C15),IF(ISERROR(AU15/$AI15*$C15),".",AU15/$AI15*$C15)) -> 4273.254 | P15: =IF(P$11="No Data",".",IF(P$11=$BL$9,'Manual Data'!BA17,AV15)) -> 2188.48658 | Q15: =IF(Q$11="No Data",".",IF(Q$11=$BL$9,'Manual Data'!BB17,AW15)) -> 2084.76742 | R15: =IF(R$11=$BL$9,'Manual Data'!BC17,AX15) -> 5.962 | S15: =IF(S$11=$BL$9,'Manual Data'!BD17,AY15) -> 210.2 | T15: =IF(T$11=$BL$9,'Manual Data'!BE17,AZ15) -> 313.7 | U15: =IF(U$11=$BL$9,'Manual Data'!BF17,BA15) -> 10056.2998 | V15: =IF(V$11=$BL$9,'Manual Data'!BG17,BB15) -> 376.8451974 | W15: =IF(W$11=$BL$9,'Manual Data'!BH17,BC15) -> 123.7450648 | X15: =IF(X$11=$BL$9,'Manual Data'!BI17,BD15) -> 0 | Y15: =IF(Y$11=$BL$9,'Manual Data'!BJ17,BE15) -> 253.1001326 | Z15: =IF(Z$11=$BL$9,'Manual Data'!BK17,BF15) -> . | AA15: =IF(AA$11=$BL$9,'Manual Data'!BL17,BG15) -> . | AB15: =IF(AB$11=$BL$9,'Manual Data'!BM17,BH15) -> . | AC15: =IF(AC$11=$BL$9,'Manual Data'!BN17,BI15) -> . | AD15: =IF(AD$11=$BL$9,'Manual Data'!BO17,BJ15) -> . | AF15: ='Existing Data_DataBank'!BP16 -> 1962 | AG15: ='Existing Data_DataBank'!CT16 -> GDP | AH15: ='Existing Data_DataBank'!BQ16 -> 2791.171336 | AI15: ='Existing Data_DataBank'!BR16 -> 10433.145 | AJ15: ='Existing Data_DataBank'!BS16 -> 5204.106002 | AK15: ='Existing Data_DataBank'!BT16 -> 5229.038998 | AL15: ='Existing Data_DataBank'!BU16 -> 5884.168 | AM15: ='Existing Data_DataBank'!BV16 -> 2890.722446 | AN15: ='Existing Data_DataBank'!BW16 -> 2993.445554 | AO15: ='Existing Data_DataBank'!BX16 -> . | AP15: ='Existing Data_DataBank'!BY16 -> . | AQ15: ='Existing Data_DataBank'!BZ16 -> . | AR15: ='Existing Data_DataBank'!CA16 -> . | AS15: ='Existing Data_DataBank'!CB16 -> . | AT15: ='Existing Data_DataBank'!CC16 -> . | AU15: ='Existing Data_DataBank'!CD16 -> 4273.254 | AV15: ='Existing Data_DataBank'!CE16 -> 2188.48658 | AW15: ='Existing Data_DataBank'!CF16 -> 2084.76742 | AX15: ='Existing Data_DataBank'!CG16 -> 5.962 | AY15: ='Existing Data_DataBank'!CH16 -> 210.2 | AZ15: ='Existing Data_DataBank'!CI16 -> 313.7 | BA15: ='Existing Data_DataBank'!CJ16 -> 10056.2998 | BB15: ='Existing Data_DataBank'!CK16 -> 376.8451974 | BC15: ='Existing Data_DataBank'!CL16 -> 123.7450648 | BD15: ='Existing Data_DataBank'!CM16 -> 0 | BE15: ='Existing Data_DataBank'!CN16 -> 253.1001326 | BF15: ='Existing Data_DataBank'!CO16 -> . | BG15: ='Existing Data_DataBank'!CP16 -> . | BH15: ='Existing Data_DataBank'!CQ16 -> . | BI15: ='Existing Data_DataBank'!CR16 -> . | BJ15: ='Existing Data_DataBank'!CS16 -> . | BP15: 1962 | BQ15: 4548.977 | BU15: 10433.145 | BV15: 2791.171336
A16: 1963 | B16: =IF(B$11=$BL$9,'Manual Data'!AM18,AH16) -> 2844.067149 | C16: =IF(C$11=$BL$9,'Manual Data'!AN18,AI16) -> 10604.621 | D16: =IF(D$11=$BL$9,'Manual Data'!AO18,AJ16) -> 5288.990499 | E16: =IF(E$11=$BL$9,'Manual Data'!AP18,AK16) -> 5315.630501 | F16: =IF(F$11=$BL$9,IF(ISERROR('Manual Data'!AQ18/'Manual Data'!$AN18*$C16),".",'Manual Data'!AQ18/'Manual Data'!$AN18*$C16),IF(ISERROR(AL16/$AI16*$C16),".",AL16/$AI16*$C16)) -> 5939.741 | G16: =IF(G$11="No Data",".",IF(G$11=$BL$9,'Manual Data'!AR18,AM16)) -> 2917.940275 | H16: =IF(H$11="No Data",".",IF(H$11=$BL$9,'Manual Data'!AS18,AN16)) -> 3021.800725 | I16: =IF(I$11=$BL$9,IF(ISERROR('Manual Data'!AT18/'Manual Data'!AQ18*F16),".",'Manual Data'!AT18/'Manual Data'!AQ18*F16),IF(ISERROR(AO16/AL16*F16),".",AO16/AL16*F16)) -> . | J16: =IF(J$11="No Data",".",IF(J$11=$BL$9,'Manual Data'!AU18,AP16)) -> . | K16: =IF(K$11="No Data",".",IF(K$11=$BL$9,'Manual Data'!AV18,AQ16)) -> . | L16: =IF(L$11=$BL$9,IF(ISERROR('Manual Data'!AW18/'Manual Data'!AT18*I16),".",'Manual Data'!AW18/'Manual Data'!AT18*I16),IF(ISERROR(AR16/AO16*I16),".",AR16/AO16*I16)) -> . | M16: =IF(M$11="No Data",".",IF(M$11=$BL$9,'Manual Data'!AX18,AS16)) -> . | N16: =IF(N$11="No Data",".",IF(N$11=$BL$9,'Manual Data'!AY18,AT16)) -> . | O16: =IF(O$11=$BL$9,IF(ISERROR('Manual Data'!AZ18/'Manual Data'!$AN18*$C16),".",'Manual Data'!AZ18/'Manual Data'!$AN18*$C16),IF(ISERROR(AU16/$AI16*$C16),".",AU16/$AI16*$C16)) -> 4381.549 | P16: =IF(P$11="No Data",".",IF(P$11=$BL$9,'Manual Data'!BA18,AV16)) -> 2243.051212 | Q16: =IF(Q$11="No Data",".",IF(Q$11=$BL$9,'Manual Data'!BB18,AW16)) -> 2138.497788 | R16: =IF(R$11=$BL$9,'Manual Data'!BC18,AX16) -> 5.964 | S16: =IF(S$11=$BL$9,'Manual Data'!BD18,AY16) -> 206.4 | T16: =IF(T$11=$BL$9,'Manual Data'!BE18,AZ16) -> 308.3 | U16: =IF(U$11=$BL$9,'Manual Data'!BF18,BA16) -> 10217.23419 | V16: =IF(V$11=$BL$9,'Manual Data'!BG18,BB16) -> 387.3868051 | W16: =IF(W$11=$BL$9,'Manual Data'!BH18,BC16) -> 126.4639364 | X16: =IF(X$11=$BL$9,'Manual Data'!BI18,BD16) -> 6.361607301e-05 | Y16: =IF(Y$11=$BL$9,'Manual Data'!BJ18,BE16) -> 260.9228051 | Z16: =IF(Z$11=$BL$9,'Manual Data'!BK18,BF16) -> . | AA16: =IF(AA$11=$BL$9,'Manual Data'!BL18,BG16) -> . | AB16: =IF(AB$11=$BL$9,'Manual Data'!BM18,BH16) -> . | AC16: =IF(AC$11=$BL$9,'Manual Data'!BN18,BI16) -> . | AD16: =IF(AD$11=$BL$9,'Manual Data'!BO18,BJ16) -> . | AF16: ='Existing Data_DataBank'!BP17 -> 1963 | AG16: ='Existing Data_DataBank'!CT17 -> GDP | AH16: ='Existing Data_DataBank'!BQ17 -> 2844.067149 | AI16: ='Existing Data_DataBank'!BR17 -> 10604.621 | AJ16: ='Existing Data_DataBank'!BS17 -> 5288.990499 | AK16: ='Existing Data_DataBank'!BT17 -> 5315.630501 | AL16: ='Existing Data_DataBank'!BU17 -> 5939.741 | AM16: ='Existing Data_DataBank'!BV17 -> 2917.940275 | AN16: ='Existing Data_DataBank'!BW17 -> 3021.800725 | AO16: ='Existing Data_DataBank'!BX17 -> . | AP16: ='Existing Data_DataBank'!BY17 -> . | AQ16: ='Existing Data_DataBank'!BZ17 -> . | AR16: ='Existing Data_DataBank'!CA17 -> . | AS16: ='Existing Data_DataBank'!CB17 -> . | AT16: ='Existing Data_DataBank'!CC17 -> . | AU16: ='Existing Data_DataBank'!CD17 -> 4381.549 | AV16: ='Existing Data_DataBank'!CE17 -> 2243.051212 | AW16: ='Existing Data_DataBank'!CF17 -> 2138.497788 | AX16: ='Existing Data_DataBank'!CG17 -> 5.964 | AY16: ='Existing Data_DataBank'!CH17 -> 206.4 | AZ16: ='Existing Data_DataBank'!CI17 -> 308.3 | BA16: ='Existing Data_DataBank'!CJ17 -> 10217.23419 | BB16: ='Existing Data_DataBank'!CK17 -> 387.3868051 | BC16: ='Existing Data_DataBank'!CL17 -> 126.4639364 | BD16: ='Existing Data_DataBank'!CM17 -> 6.361607301e-05 | BE16: ='Existing Data_DataBank'!CN17 -> 260.9228051 | BF16: ='Existing Data_DataBank'!CO17 -> . | BG16: ='Existing Data_DataBank'!CP17 -> . | BH16: ='Existing Data_DataBank'!CQ17 -> . | BI16: ='Existing Data_DataBank'!CR17 -> . | BJ16: ='Existing Data_DataBank'!CS17 -> . | BP16: 1963 | BQ16: 4664.88 | BU16: 10604.621 | BV16: 2844.067149
A17: 1964 | B17: =IF(B$11=$BL$9,'Manual Data'!AM19,AH17) -> 3058.295044 | C17: =IF(C$11=$BL$9,'Manual Data'!AN19,AI17) -> 10783.967 | D17: =IF(D$11=$BL$9,'Manual Data'!AO19,AJ17) -> 5377.150488 | E17: =IF(E$11=$BL$9,'Manual Data'!AP19,AK17) -> 5406.816512 | F17: =IF(F$11=$BL$9,IF(ISERROR('Manual Data'!AQ19/'Manual Data'!$AN19*$C17),".",'Manual Data'!AQ19/'Manual Data'!$AN19*$C17),IF(ISERROR(AL17/$AI17*$C17),".",AL17/$AI17*$C17)) -> 6013.667 | G17: =IF(G$11="No Data",".",IF(G$11=$BL$9,'Manual Data'!AR19,AM17)) -> 2953.951465 | H17: =IF(H$11="No Data",".",IF(H$11=$BL$9,'Manual Data'!AS19,AN17)) -> 3059.715535 | I17: =IF(I$11=$BL$9,IF(ISERROR('Manual Data'!AT19/'Manual Data'!AQ19*F17),".",'Manual Data'!AT19/'Manual Data'!AQ19*F17),IF(ISERROR(AO17/AL17*F17),".",AO17/AL17*F17)) -> . | J17: =IF(J$11="No Data",".",IF(J$11=$BL$9,'Manual Data'!AU19,AP17)) -> . | K17: =IF(K$11="No Data",".",IF(K$11=$BL$9,'Manual Data'!AV19,AQ17)) -> . | L17: =IF(L$11=$BL$9,IF(ISERROR('Manual Data'!AW19/'Manual Data'!AT19*I17),".",'Manual Data'!AW19/'Manual Data'!AT19*I17),IF(ISERROR(AR17/AO17*I17),".",AR17/AO17*I17)) -> . | M17: =IF(M$11="No Data",".",IF(M$11=$BL$9,'Manual Data'!AX19,AS17)) -> . | N17: =IF(N$11="No Data",".",IF(N$11=$BL$9,'Manual Data'!AY19,AT17)) -> . | O17: =IF(O$11=$BL$9,IF(ISERROR('Manual Data'!AZ19/'Manual Data'!$AN19*$C17),".",'Manual Data'!AZ19/'Manual Data'!$AN19*$C17),IF(ISERROR(AU17/$AI17*$C17),".",AU17/$AI17*$C17)) -> 4479.644 | P17: =IF(P$11="No Data",".",IF(P$11=$BL$9,'Manual Data'!BA19,AV17)) -> 2292.356913 | Q17: =IF(Q$11="No Data",".",IF(Q$11=$BL$9,'Manual Data'!BB19,AW17)) -> 2187.287087 | R17: =IF(R$11=$BL$9,'Manual Data'!BC19,AX17) -> 5.965 | S17: =IF(S$11=$BL$9,'Manual Data'!BD19,AY17) -> 202.3 | T17: =IF(T$11=$BL$9,'Manual Data'!BE19,AZ17) -> 302.3 | U17: =IF(U$11=$BL$9,'Manual Data'!BF19,BA17) -> 10385.49942 | V17: =IF(V$11=$BL$9,'Manual Data'!BG19,BB17) -> 398.4675806 | W17: =IF(W$11=$BL$9,'Manual Data'!BH19,BC17) -> 129.246864 | X17: =IF(X$11=$BL$9,'Manual Data'!BI19,BD17) -> 0.0001360202813 | Y17: =IF(Y$11=$BL$9,'Manual Data'!BJ19,BE17) -> 269.2205806 | Z17: =IF(Z$11=$BL$9,'Manual Data'!BK19,BF17) -> . | AA17: =IF(AA$11=$BL$9,'Manual Data'!BL19,BG17) -> . | AB17: =IF(AB$11=$BL$9,'Manual Data'!BM19,BH17) -> . | AC17: =IF(AC$11=$BL$9,'Manual Data'!BN19,BI17) -> . | AD17: =IF(AD$11=$BL$9,'Manual Data'!BO19,BJ17) -> . | AF17: ='Existing Data_DataBank'!BP18 -> 1964 | AG17: ='Existing Data_DataBank'!CT18 -> GDP | AH17: ='Existing Data_DataBank'!BQ18 -> 3058.295044 | AI17: ='Existing Data_DataBank'!BR18 -> 10783.967 | AJ17: ='Existing Data_DataBank'!BS18 -> 5377.150488 | AK17: ='Existing Data_DataBank'!BT18 -> 5406.816512 | AL17: ='Existing Data_DataBank'!BU18 -> 6013.667 | AM17: ='Existing Data_DataBank'!BV18 -> 2953.951465 | AN17: ='Existing Data_DataBank'!BW18 -> 3059.715535 | AO17: ='Existing Data_DataBank'!BX18 -> . | AP17: ='Existing Data_DataBank'!BY18 -> . | AQ17: ='Existing Data_DataBank'!BZ18 -> . | AR17: ='Existing Data_DataBank'!CA18 -> . | AS17: ='Existing Data_DataBank'!CB18 -> . | AT17: ='Existing Data_DataBank'!CC18 -> . | AU17: ='Existing Data_DataBank'!CD18 -> 4479.644 | AV17: ='Existing Data_DataBank'!CE18 -> 2292.356913 | AW17: ='Existing Data_DataBank'!CF18 -> 2187.287087 | AX17: ='Existing Data_DataBank'!CG18 -> 5.965 | AY17: ='Existing Data_DataBank'!CH18 -> 202.3 | AZ17: ='Existing Data_DataBank'!CI18 -> 302.3 | BA17: ='Existing Data_DataBank'!CJ18 -> 10385.49942 | BB17: ='Existing Data_DataBank'!CK18 -> 398.4675806 | BC17: ='Existing Data_DataBank'!CL18 -> 129.246864 | BD17: ='Existing Data_DataBank'!CM18 -> 0.0001360202813 | BE17: ='Existing Data_DataBank'!CN18 -> 269.2205806 | BF17: ='Existing Data_DataBank'!CO18 -> . | BG17: ='Existing Data_DataBank'!CP18 -> . | BH17: ='Existing Data_DataBank'!CQ18 -> . | BI17: ='Existing Data_DataBank'!CR18 -> . | BJ17: ='Existing Data_DataBank'!CS18 -> . | BP17: 1964 | BQ17: 4770.3 | BU17: 10783.967 | BV17: 3058.295044
A18: 1965 | B18: =IF(B$11=$BL$9,'Manual Data'!AM20,AH18) -> 3021.497974 | C18: =IF(C$11=$BL$9,'Manual Data'!AN20,AI18) -> 10972.912 | D18: =IF(D$11=$BL$9,'Manual Data'!AO20,AJ18) -> 5469.795 | E18: =IF(E$11=$BL$9,'Manual Data'!AP20,AK18) -> 5503.117 | F18: =IF(F$11=$BL$9,IF(ISERROR('Manual Data'!AQ20/'Manual Data'!$AN20*$C18),".",'Manual Data'!AQ20/'Manual Data'!$AN20*$C18),IF(ISERROR(AL18/$AI18*$C18),".",AL18/$AI18*$C18)) -> 6114.353 | G18: =IF(G$11="No Data",".",IF(G$11=$BL$9,'Manual Data'!AR20,AM18)) -> 3003.142 | H18: =IF(H$11="No Data",".",IF(H$11=$BL$9,'Manual Data'!AS20,AN18)) -> 3111.211 | I18: =IF(I$11=$BL$9,IF(ISERROR('Manual Data'!AT20/'Manual Data'!AQ20*F18),".",'Manual Data'!AT20/'Manual Data'!AQ20*F18),IF(ISERROR(AO18/AL18*F18),".",AO18/AL18*F18)) -> . | J18: =IF(J$11="No Data",".",IF(J$11=$BL$9,'Manual Data'!AU20,AP18)) -> . | K18: =IF(K$11="No Data",".",IF(K$11=$BL$9,'Manual Data'!AV20,AQ18)) -> . | L18: =IF(L$11=$BL$9,IF(ISERROR('Manual Data'!AW20/'Manual Data'!AT20*I18),".",'Manual Data'!AW20/'Manual Data'!AT20*I18),IF(ISERROR(AR18/AO18*I18),".",AR18/AO18*I18)) -> . | M18: =IF(M$11="No Data",".",IF(M$11=$BL$9,'Manual Data'!AX20,AS18)) -> . | N18: =IF(N$11="No Data",".",IF(N$11=$BL$9,'Manual Data'!AY20,AT18)) -> . | O18: =IF(O$11=$BL$9,IF(ISERROR('Manual Data'!AZ20/'Manual Data'!$AN20*$C18),".",'Manual Data'!AZ20/'Manual Data'!$AN20*$C18),IF(ISERROR(AU18/$AI18*$C18),".",AU18/$AI18*$C18)) -> 4560.503 | P18: =IF(P$11="No Data",".",IF(P$11=$BL$9,'Manual Data'!BA20,AV18)) -> 2333.06 | Q18: =IF(Q$11="No Data",".",IF(Q$11=$BL$9,'Manual Data'!BB20,AW18)) -> 2227.443 | R18: =IF(R$11=$BL$9,'Manual Data'!BC20,AX18) -> 5.966 | S18: =IF(S$11=$BL$9,'Manual Data'!BD20,AY18) -> 197.9 | T18: =IF(T$11=$BL$9,'Manual Data'!BE20,AZ18) -> 296 | U18: =IF(U$11=$BL$9,'Manual Data'!BF20,BA18) -> 10562.85428 | V18: =IF(V$11=$BL$9,'Manual Data'!BG20,BB18) -> 410.0577214 | W18: =IF(W$11=$BL$9,'Manual Data'!BH20,BC18) -> 132.0829103 | X18: =IF(X$11=$BL$9,'Manual Data'!BI20,BD18) -> 8.972643013e-05 | Y18: =IF(Y$11=$BL$9,'Manual Data'!BJ20,BE18) -> 277.9747214 | Z18: =IF(Z$11=$BL$9,'Manual Data'!BK20,BF18) -> . | AA18: =IF(AA$11=$BL$9,'Manual Data'!BL20,BG18) -> . | AB18: =IF(AB$11=$BL$9,'Manual Data'!BM20,BH18) -> . | AC18: =IF(AC$11=$BL$9,'Manual Data'!BN20,BI18) -> . | AD18: =IF(AD$11=$BL$9,'Manual Data'!BO20,BJ18) -> . | AF18: ='Existing Data_DataBank'!BP19 -> 1965 | AG18: ='Existing Data_DataBank'!CT19 -> GDP | AH18: ='Existing Data_DataBank'!BQ19 -> 3021.497974 | AI18: ='Existing Data_DataBank'!BR19 -> 10972.912 | AJ18: ='Existing Data_DataBank'!BS19 -> 5469.795 | AK18: ='Existing Data_DataBank'!BT19 -> 5503.117 | AL18: ='Existing Data_DataBank'!BU19 -> 6114.353 | AM18: ='Existing Data_DataBank'!BV19 -> 3003.142 | AN18: ='Existing Data_DataBank'!BW19 -> 3111.211 | AO18: ='Existing Data_DataBank'!BX19 -> . | AP18: ='Existing Data_DataBank'!BY19 -> . | AQ18: ='Existing Data_DataBank'!BZ19 -> . | AR18: ='Existing Data_DataBank'!CA19 -> . | AS18: ='Existing Data_DataBank'!CB19 -> . | AT18: ='Existing Data_DataBank'!CC19 -> . | AU18: ='Existing Data_DataBank'!CD19 -> 4560.503 | AV18: ='Existing Data_DataBank'!CE19 -> 2333.06 | AW18: ='Existing Data_DataBank'!CF19 -> 2227.443 | AX18: ='Existing Data_DataBank'!CG19 -> 5.966 | AY18: ='Existing Data_DataBank'!CH19 -> 197.9 | AZ18: ='Existing Data_DataBank'!CI19 -> 296 | BA18: ='Existing Data_DataBank'!CJ19 -> 10562.85428 | BB18: ='Existing Data_DataBank'!CK19 -> 410.0577214 | BC18: ='Existing Data_DataBank'!CL19 -> 132.0829103 | BD18: ='Existing Data_DataBank'!CM19 -> 8.972643013e-05 | BE18: ='Existing Data_DataBank'!CN19 -> 277.9747214 | BF18: ='Existing Data_DataBank'!CO19 -> . | BG18: ='Existing Data_DataBank'!CP19 -> . | BH18: ='Existing Data_DataBank'!CQ19 -> . | BI18: ='Existing Data_DataBank'!CR19 -> . | BJ18: ='Existing Data_DataBank'!CS19 -> . | BP18: 1965 | BQ18: 4858.559 | BU18: 10972.912 | BV18: 3021.497974
A19: 1966 | B19: =IF(B$11=$BL$9,'Manual Data'!AM21,AH19) -> 3234.230864 | C19: =IF(C$11=$BL$9,'Manual Data'!AN21,AI19) -> 11172.529 | D19: =IF(D$11=$BL$9,'Manual Data'!AO21,AJ19) -> 5567.422502 | E19: =IF(E$11=$BL$9,'Manual Data'!AP21,AK19) -> 5605.106498 | F19: =IF(F$11=$BL$9,IF(ISERROR('Manual Data'!AQ21/'Manual Data'!$AN21*$C19),".",'Manual Data'!AQ21/'Manual Data'!$AN21*$C19),IF(ISERROR(AL19/$AI19*$C19),".",AL19/$AI19*$C19)) -> 6206.914 | G19: =IF(G$11="No Data",".",IF(G$11=$BL$9,'Manual Data'!AR21,AM19)) -> 3047.938727 | H19: =IF(H$11="No Data",".",IF(H$11=$BL$9,'Manual Data'!AS21,AN19)) -> 3158.975273 | I19: =IF(I$11=$BL$9,IF(ISERROR('Manual Data'!AT21/'Manual Data'!AQ21*F19),".",'Manual Data'!AT21/'Manual Data'!AQ21*F19),IF(ISERROR(AO19/AL19*F19),".",AO19/AL19*F19)) -> . | J19: =IF(J$11="No Data",".",IF(J$11=$BL$9,'Manual Data'!AU21,AP19)) -> . | K19: =IF(K$11="No Data",".",IF(K$11=$BL$9,'Manual Data'!AV21,AQ19)) -> . | L19: =IF(L$11=$BL$9,IF(ISERROR('Manual Data'!AW21/'Manual Data'!AT21*I19),".",'Manual Data'!AW21/'Manual Data'!AT21*I19),IF(ISERROR(AR19/AO19*I19),".",AR19/AO19*I19)) -> . | M19: =IF(M$11="No Data",".",IF(M$11=$BL$9,'Manual Data'!AX21,AS19)) -> . | N19: =IF(N$11="No Data",".",IF(N$11=$BL$9,'Manual Data'!AY21,AT19)) -> . | O19: =IF(O$11=$BL$9,IF(ISERROR('Manual Data'!AZ21/'Manual Data'!$AN21*$C19),".",'Manual Data'!AZ21/'Manual Data'!$AN21*$C19),IF(ISERROR(AU19/$AI19*$C19),".",AU19/$AI19*$C19)) -> 4655.584 | P19: =IF(P$11="No Data",".",IF(P$11=$BL$9,'Manual Data'!BA21,AV19)) -> 2380.643787 | Q19: =IF(Q$11="No Data",".",IF(Q$11=$BL$9,'Manual Data'!BB21,AW19)) -> 2274.940213 | R19: =IF(R$11=$BL$9,'Manual Data'!BC21,AX19) -> 5.963 | S19: =IF(S$11=$BL$9,'Manual Data'!BD21,AY19) -> 193.5 | T19: =IF(T$11=$BL$9,'Manual Data'!BE21,AZ19) -> 289.5 | U19: =IF(U$11=$BL$9,'Manual Data'!BF21,BA19) -> 10750.2074 | V19: =IF(V$11=$BL$9,'Manual Data'!BG21,BB19) -> 422.3215962 | W19: =IF(W$11=$BL$9,'Manual Data'!BH21,BC19) -> 134.9848709 | X19: =IF(X$11=$BL$9,'Manual Data'!BI21,BD19) -> 0.0001290648913 | Y19: =IF(Y$11=$BL$9,'Manual Data'!BJ21,BE19) -> 287.3365962 | Z19: =IF(Z$11=$BL$9,'Manual Data'!BK21,BF19) -> . | AA19: =IF(AA$11=$BL$9,'Manual Data'!BL21,BG19) -> . | AB19: =IF(AB$11=$BL$9,'Manual Data'!BM21,BH19) -> . | AC19: =IF(AC$11=$BL$9,'Manual Data'!BN21,BI19) -> . | AD19: =IF(AD$11=$BL$9,'Manual Data'!BO21,BJ19) -> . | AF19: ='Existing Data_DataBank'!BP20 -> 1966 | AG19: ='Existing Data_DataBank'!CT20 -> GDP | AH19: ='Existing Data_DataBank'!BQ20 -> 3234.230864 | AI19: ='Existing Data_DataBank'!BR20 -> 11172.529 | AJ19: ='Existing Data_DataBank'!BS20 -> 5567.422502 | AK19: ='Existing Data_DataBank'!BT20 -> 5605.106498 | AL19: ='Existing Data_DataBank'!BU20 -> 6206.914 | AM19: ='Existing Data_DataBank'!BV20 -> 3047.938727 | AN19: ='Existing Data_DataBank'!BW20 -> 3158.975273 | AO19: ='Existing Data_DataBank'!BX20 -> . | AP19: ='Existing Data_DataBank'!BY20 -> . | AQ19: ='Existing Data_DataBank'!BZ20 -> . | AR19: ='Existing Data_DataBank'!CA20 -> . | AS19: ='Existing Data_DataBank'!CB20 -> . | AT19: ='Existing Data_DataBank'!CC20 -> . | AU19: ='Existing Data_DataBank'!CD20 -> 4655.584 | AV19: ='Existing Data_DataBank'!CE20 -> 2380.643787 | AW19: ='Existing Data_DataBank'!CF20 -> 2274.940213 | AX19: ='Existing Data_DataBank'!CG20 -> 5.963 | AY19: ='Existing Data_DataBank'!CH20 -> 193.5 | AZ19: ='Existing Data_DataBank'!CI20 -> 289.5 | BA19: ='Existing Data_DataBank'!CJ20 -> 10750.2074 | BB19: ='Existing Data_DataBank'!CK20 -> 422.3215962 | BC19: ='Existing Data_DataBank'!CL20 -> 134.9848709 | BD19: ='Existing Data_DataBank'!CM20 -> 0.0001290648913 | BE19: ='Existing Data_DataBank'!CN20 -> 287.3365962 | BF19: ='Existing Data_DataBank'!CO20 -> . | BG19: ='Existing Data_DataBank'!CP20 -> . | BH19: ='Existing Data_DataBank'!CQ20 -> . | BI19: ='Existing Data_DataBank'!CR20 -> . | BJ19: ='Existing Data_DataBank'!CS20 -> . | BP19: 1966 | BQ19: 4965.615 | BU19: 11172.529 | BV19: 3234.230864
A20: 1967 | B20: =IF(B$11=$BL$9,'Manual Data'!AM22,AH20) -> 3183.405007 | C20: =IF(C$11=$BL$9,'Manual Data'!AN22,AI20) -> 11382.967 | D20: =IF(D$11=$BL$9,'Manual Data'!AO22,AJ20) -> 5670.154996 | E20: =IF(E$11=$BL$9,'Manual Data'!AP22,AK20) -> 5712.812004 | F20: =IF(F$11=$BL$9,IF(ISERROR('Manual Data'!AQ22/'Manual Data'!$AN22*$C20),".",'Manual Data'!AQ22/'Manual Data'!$AN22*$C20),IF(ISERROR(AL20/$AI20*$C20),".",AL20/$AI20*$C20)) -> 6327.057 | G20: =IF(G$11="No Data",".",IF(G$11=$BL$9,'Manual Data'!AR22,AM20)) -> 3106.091546 | H20: =IF(H$11="No Data",".",IF(H$11=$BL$9,'Manual Data'!AS22,AN20)) -> 3220.965454 | I20: =IF(I$11=$BL$9,IF(ISERROR('Manual Data'!AT22/'Manual Data'!AQ22*F20),".",'Manual Data'!AT22/'Manual Data'!AQ22*F20),IF(ISERROR(AO20/AL20*F20),".",AO20/AL20*F20)) -> . | J20: =IF(J$11="No Data",".",IF(J$11=$BL$9,'Manual Data'!AU22,AP20)) -> . | K20: =IF(K$11="No Data",".",IF(K$11=$BL$9,'Manual Data'!AV22,AQ20)) -> . | L20: =IF(L$11=$BL$9,IF(ISERROR('Manual Data'!AW22/'Manual Data'!AT22*I20),".",'Manual Data'!AW22/'Manual Data'!AT22*I20),IF(ISERROR(AR20/AO20*I20),".",AR20/AO20*I20)) -> . | M20: =IF(M$11="No Data",".",IF(M$11=$BL$9,'Manual Data'!AX22,AS20)) -> . | N20: =IF(N$11="No Data",".",IF(N$11=$BL$9,'Manual Data'!AY22,AT20)) -> . | O20: =IF(O$11=$BL$9,IF(ISERROR('Manual Data'!AZ22/'Manual Data'!$AN22*$C20),".",'Manual Data'!AZ22/'Manual Data'!$AN22*$C20),IF(ISERROR(AU20/$AI20*$C20),".",AU20/$AI20*$C20)) -> 4733.94 | P20: =IF(P$11="No Data",".",IF(P$11=$BL$9,'Manual Data'!BA22,AV20)) -> 2420.104425 | Q20: =IF(Q$11="No Data",".",IF(Q$11=$BL$9,'Manual Data'!BB22,AW20)) -> 2313.835575 | R20: =IF(R$11=$BL$9,'Manual Data'!BC22,AX20) -> 5.958 | S20: =IF(S$11=$BL$9,'Manual Data'!BD22,AY20) -> 189.1 | T20: =IF(T$11=$BL$9,'Manual Data'!BE22,AZ20) -> 283.1 | U20: =IF(U$11=$BL$9,'Manual Data'!BF22,BA20) -> 10947.79617 | V20: =IF(V$11=$BL$9,'Manual Data'!BG22,BB20) -> 435.1708284 | W20: =IF(W$11=$BL$9,'Manual Data'!BH22,BC20) -> 137.9509456 | X20: =IF(X$11=$BL$9,'Manual Data'!BI22,BD20) -> 5.4394737e-05 | Y20: =IF(Y$11=$BL$9,'Manual Data'!BJ22,BE20) -> 297.2198284 | Z20: =IF(Z$11=$BL$9,'Manual Data'!BK22,BF20) -> . | AA20: =IF(AA$11=$BL$9,'Manual Data'!BL22,BG20) -> . | AB20: =IF(AB$11=$BL$9,'Manual Data'!BM22,BH20) -> . | AC20: =IF(AC$11=$BL$9,'Manual Data'!BN22,BI20) -> . | AD20: =IF(AD$11=$BL$9,'Manual Data'!BO22,BJ20) -> . | AF20: ='Existing Data_DataBank'!BP21 -> 1967 | AG20: ='Existing Data_DataBank'!CT21 -> GDP | AH20: ='Existing Data_DataBank'!BQ21 -> 3183.405007 | AI20: ='Existing Data_DataBank'!BR21 -> 11382.967 | AJ20: ='Existing Data_DataBank'!BS21 -> 5670.154996 | AK20: ='Existing Data_DataBank'!BT21 -> 5712.812004 | AL20: ='Existing Data_DataBank'!BU21 -> 6327.057 | AM20: ='Existing Data_DataBank'!BV21 -> 3106.091546 | AN20: ='Existing Data_DataBank'!BW21 -> 3220.965454 | AO20: ='Existing Data_DataBank'!BX21 -> . | AP20: ='Existing Data_DataBank'!BY21 -> . | AQ20: ='Existing Data_DataBank'!BZ21 -> . | AR20: ='Existing Data_DataBank'!CA21 -> . | AS20: ='Existing Data_DataBank'!CB21 -> . | AT20: ='Existing Data_DataBank'!CC21 -> . | AU20: ='Existing Data_DataBank'!CD21 -> 4733.94 | AV20: ='Existing Data_DataBank'!CE21 -> 2420.104425 | AW20: ='Existing Data_DataBank'!CF21 -> 2313.835575 | AX20: ='Existing Data_DataBank'!CG21 -> 5.958 | AY20: ='Existing Data_DataBank'!CH21 -> 189.1 | AZ20: ='Existing Data_DataBank'!CI21 -> 283.1 | BA20: ='Existing Data_DataBank'!CJ21 -> 10947.79617 | BB20: ='Existing Data_DataBank'!CK21 -> 435.1708284 | BC20: ='Existing Data_DataBank'!CL21 -> 137.9509456 | BD20: ='Existing Data_DataBank'!CM21 -> 5.4394737e-05 | BE20: ='Existing Data_DataBank'!CN21 -> 297.2198284 | BF20: ='Existing Data_DataBank'!CO21 -> . | BG20: ='Existing Data_DataBank'!CP21 -> . | BH20: ='Existing Data_DataBank'!CQ21 -> . | BI20: ='Existing Data_DataBank'!CR21 -> . | BJ20: ='Existing Data_DataBank'!CS21 -> . | BP20: 1967 | BQ20: 5055.91 | BU20: 11382.967 | BV20: 3183.405007
A21: 1968 | B21: =IF(B$11=$BL$9,'Manual Data'!AM23,AH21) -> 3204.908381 | C21: =IF(C$11=$BL$9,'Manual Data'!AN23,AI21) -> 11603.928 | D21: =IF(D$11=$BL$9,'Manual Data'!AO23,AJ21) -> 5778.449486 | E21: =IF(E$11=$BL$9,'Manual Data'!AP23,AK21) -> 5825.478514 | F21: =IF(F$11=$BL$9,IF(ISERROR('Manual Data'!AQ23/'Manual Data'!$AN23*$C21),".",'Manual Data'!AQ23/'Manual Data'!$AN23*$C21),IF(ISERROR(AL21/$AI21*$C21),".",AL21/$AI21*$C21)) -> 6468.125 | G21: =IF(G$11="No Data",".",IF(G$11=$BL$9,'Manual Data'!AR23,AM21)) -> 3174.780915 | H21: =IF(H$11="No Data",".",IF(H$11=$BL$9,'Manual Data'!AS23,AN21)) -> 3293.344085 | I21: =IF(I$11=$BL$9,IF(ISERROR('Manual Data'!AT23/'Manual Data'!AQ23*F21),".",'Manual Data'!AT23/'Manual Data'!AQ23*F21),IF(ISERROR(AO21/AL21*F21),".",AO21/AL21*F21)) -> . | J21: =IF(J$11="No Data",".",IF(J$11=$BL$9,'Manual Data'!AU23,AP21)) -> . | K21: =IF(K$11="No Data",".",IF(K$11=$BL$9,'Manual Data'!AV23,AQ21)) -> . | L21: =IF(L$11=$BL$9,IF(ISERROR('Manual Data'!AW23/'Manual Data'!AT23*I21),".",'Manual Data'!AW23/'Manual Data'!AT23*I21),IF(ISERROR(AR21/AO21*I21),".",AR21/AO21*I21)) -> . | M21: =IF(M$11="No Data",".",IF(M$11=$BL$9,'Manual Data'!AX23,AS21)) -> . | N21: =IF(N$11="No Data",".",IF(N$11=$BL$9,'Manual Data'!AY23,AT21)) -> . | O21: =IF(O$11=$BL$9,IF(ISERROR('Manual Data'!AZ23/'Manual Data'!$AN23*$C21),".",'Manual Data'!AZ23/'Manual Data'!$AN23*$C21),IF(ISERROR(AU21/$AI21*$C21),".",AU21/$AI21*$C21)) -> 4802.174 | P21: =IF(P$11="No Data",".",IF(P$11=$BL$9,'Manual Data'!BA23,AV21)) -> 2454.846481 | Q21: =IF(Q$11="No Data",".",IF(Q$11=$BL$9,'Manual Data'!BB23,AW21)) -> 2347.327519 | R21: =IF(R$11=$BL$9,'Manual Data'!BC23,AX21) -> 5.948 | S21: =IF(S$11=$BL$9,'Manual Data'!BD23,AY21) -> 184.8 | T21: =IF(T$11=$BL$9,'Manual Data'!BE23,AZ21) -> 276.8 | U21: =IF(U$11=$BL$9,'Manual Data'!BF23,BA21) -> 11155.2041 | V21: =IF(V$11=$BL$9,'Manual Data'!BG23,BB21) -> 448.7238958 | W21: =IF(W$11=$BL$9,'Manual Data'!BH23,BC21) -> 140.9869672 | X21: =IF(X$11=$BL$9,'Manual Data'!BI23,BD21) -> 3.275172462e-05 | Y21: =IF(Y$11=$BL$9,'Manual Data'!BJ23,BE21) -> 307.7368958 | Z21: =IF(Z$11=$BL$9,'Manual Data'!BK23,BF21) -> . | AA21: =IF(AA$11=$BL$9,'Manual Data'!BL23,BG21) -> . | AB21: =IF(AB$11=$BL$9,'Manual Data'!BM23,BH21) -> . | AC21: =IF(AC$11=$BL$9,'Manual Data'!BN23,BI21) -> . | AD21: =IF(AD$11=$BL$9,'Manual Data'!BO23,BJ21) -> . | AF21: ='Existing Data_DataBank'!BP22 -> 1968 | AG21: ='Existing Data_DataBank'!CT22 -> GDP | AH21: ='Existing Data_DataBank'!BQ22 -> 3204.908381 | AI21: ='Existing Data_DataBank'!BR22 -> 11603.928 | AJ21: ='Existing Data_DataBank'!BS22 -> 5778.449486 | AK21: ='Existing Data_DataBank'!BT22 -> 5825.478514 | AL21: ='Existing Data_DataBank'!BU22 -> 6468.125 | AM21: ='Existing Data_DataBank'!BV22 -> 3174.780915 | AN21: ='Existing Data_DataBank'!BW22 -> 3293.344085 | AO21: ='Existing Data_DataBank'!BX22 -> . | AP21: ='Existing Data_DataBank'!BY22 -> . | AQ21: ='Existing Data_DataBank'!BZ22 -> . | AR21: ='Existing Data_DataBank'!CA22 -> . | AS21: ='Existing Data_DataBank'!CB22 -> . | AT21: ='Existing Data_DataBank'!CC22 -> . | AU21: ='Existing Data_DataBank'!CD22 -> 4802.174 | AV21: ='Existing Data_DataBank'!CE22 -> 2454.846481 | AW21: ='Existing Data_DataBank'!CF22 -> 2347.327519 | AX21: ='Existing Data_DataBank'!CG22 -> 5.948 | AY21: ='Existing Data_DataBank'!CH22 -> 184.8 | AZ21: ='Existing Data_DataBank'!CI22 -> 276.8 | BA21: ='Existing Data_DataBank'!CJ22 -> 11155.2041 | BB21: ='Existing Data_DataBank'!CK22 -> 448.7238958 | BC21: ='Existing Data_DataBank'!CL22 -> 140.9869672 | BD21: ='Existing Data_DataBank'!CM22 -> 3.275172462e-05 | BE21: ='Existing Data_DataBank'!CN22 -> 307.7368958 | BF21: ='Existing Data_DataBank'!CO22 -> . | BG21: ='Existing Data_DataBank'!CP22 -> . | BH21: ='Existing Data_DataBank'!CQ22 -> . | BI21: ='Existing Data_DataBank'!CR22 -> . | BJ21: ='Existing Data_DataBank'!CS22 -> . | BP21: 1968 | BQ21: 5135.803 | BU21: 11603.928 | BV21: 3204.908381
A22: 1969 | B22: =IF(B$11=$BL$9,'Manual Data'!AM24,AH22) -> 3347.956954 | C22: =IF(C$11=$BL$9,'Manual Data'!AN24,AI22) -> 11834.654 | D22: =IF(D$11=$BL$9,'Manual Data'!AO24,AJ22) -> 5892.681506 | E22: =IF(E$11=$BL$9,'Manual Data'!AP24,AK22) -> 5941.972494 | F22: =IF(F$11=$BL$9,IF(ISERROR('Manual Data'!AQ24/'Manual Data'!$AN24*$C22),".",'Manual Data'!AQ24/'Manual Data'!$AN24*$C22),IF(ISERROR(AL22/$AI22*$C22),".",AL22/$AI22*$C22)) -> 6618.531 | G22: =IF(G$11="No Data",".",IF(G$11=$BL$9,'Manual Data'!AR24,AM22)) -> 3248.761176 | H22: =IF(H$11="No Data",".",IF(H$11=$BL$9,'Manual Data'!AS24,AN22)) -> 3369.769824 | I22: =IF(I$11=$BL$9,IF(ISERROR('Manual Data'!AT24/'Manual Data'!AQ24*F22),".",'Manual Data'!AT24/'Manual Data'!AQ24*F22),IF(ISERROR(AO22/AL22*F22),".",AO22/AL22*F22)) -> . | J22: =IF(J$11="No Data",".",IF(J$11=$BL$9,'Manual Data'!AU24,AP22)) -> . | K22: =IF(K$11="No Data",".",IF(K$11=$BL$9,'Manual Data'!AV24,AQ22)) -> . | L22: =IF(L$11=$BL$9,IF(ISERROR('Manual Data'!AW24/'Manual Data'!AT24*I22),".",'Manual Data'!AW24/'Manual Data'!AT24*I22),IF(ISERROR(AR22/AO22*I22),".",AR22/AO22*I22)) -> . | M22: =IF(M$11="No Data",".",IF(M$11=$BL$9,'Manual Data'!AX24,AS22)) -> . | N22: =IF(N$11="No Data",".",IF(N$11=$BL$9,'Manual Data'!AY24,AT22)) -> . | O22: =IF(O$11=$BL$9,IF(ISERROR('Manual Data'!AZ24/'Manual Data'!$AN24*$C22),".",'Manual Data'!AZ24/'Manual Data'!$AN24*$C22),IF(ISERROR(AU22/$AI22*$C22),".",AU22/$AI22*$C22)) -> 4871.487 | P22: =IF(P$11="No Data",".",IF(P$11=$BL$9,'Manual Data'!BA24,AV22)) -> 2490.661369 | Q22: =IF(Q$11="No Data",".",IF(Q$11=$BL$9,'Manual Data'!BB24,AW22)) -> 2380.825631 | R22: =IF(R$11=$BL$9,'Manual Data'!BC24,AX22) -> 5.934 | S22: =IF(S$11=$BL$9,'Manual Data'!BD24,AY22) -> 180.7 | T22: =IF(T$11=$BL$9,'Manual Data'!BE24,AZ22) -> 270.7 | U22: =IF(U$11=$BL$9,'Manual Data'!BF24,BA22) -> 11371.80068 | V22: =IF(V$11=$BL$9,'Manual Data'!BG24,BB22) -> 462.8533179 | W22: =IF(W$11=$BL$9,'Manual Data'!BH24,BC22) -> 144.081099 | X22: =IF(X$11=$BL$9,'Manual Data'!BI24,BD22) -> 0 | Y22: =IF(Y$11=$BL$9,'Manual Data'!BJ24,BE22) -> 318.772219 | Z22: =IF(Z$11=$BL$9,'Manual Data'!BK24,BF22) -> . | AA22: =IF(AA$11=$BL$9,'Manual Data'!BL24,BG22) -> . | AB22: =IF(AB$11=$BL$9,'Manual Data'!BM24,BH22) -> . | AC22: =IF(AC$11=$BL$9,'Manual Data'!BN24,BI22) -> . | AD22: =IF(AD$11=$BL$9,'Manual Data'!BO24,BJ22) -> . | AF22: ='Existing Data_DataBank'!BP23 -> 1969 | AG22: ='Existing Data_DataBank'!CT23 -> GDP | AH22: ='Existing Data_DataBank'!BQ23 -> 3347.956954 | AI22: ='Existing Data_DataBank'!BR23 -> 11834.654 | AJ22: ='Existing Data_DataBank'!BS23 -> 5892.681506 | AK22: ='Existing Data_DataBank'!BT23 -> 5941.972494 | AL22: ='Existing Data_DataBank'!BU23 -> 6618.531 | AM22: ='Existing Data_DataBank'!BV23 -> 3248.761176 | AN22: ='Existing Data_DataBank'!BW23 -> 3369.769824 | AO22: ='Existing Data_DataBank'!BX23 -> . | AP22: ='Existing Data_DataBank'!BY23 -> . | AQ22: ='Existing Data_DataBank'!BZ23 -> . | AR22: ='Existing Data_DataBank'!CA23 -> . | AS22: ='Existing Data_DataBank'!CB23 -> . | AT22: ='Existing Data_DataBank'!CC23 -> . | AU22: ='Existing Data_DataBank'!CD23 -> 4871.487 | AV22: ='Existing Data_DataBank'!CE23 -> 2490.661369 | AW22: ='Existing Data_DataBank'!CF23 -> 2380.825631 | AX22: ='Existing Data_DataBank'!CG23 -> 5.934 | AY22: ='Existing Data_DataBank'!CH23 -> 180.7 | AZ22: ='Existing Data_DataBank'!CI23 -> 270.7 | BA22: ='Existing Data_DataBank'!CJ23 -> 11371.80068 | BB22: ='Existing Data_DataBank'!CK23 -> 462.8533179 | BC22: ='Existing Data_DataBank'!CL23 -> 144.081099 | BD22: ='Existing Data_DataBank'!CM23 -> 0 | BE22: ='Existing Data_DataBank'!CN23 -> 318.772219 | BF22: ='Existing Data_DataBank'!CO23 -> . | BG22: ='Existing Data_DataBank'!CP23 -> . | BH22: ='Existing Data_DataBank'!CQ23 -> . | BI22: ='Existing Data_DataBank'!CR23 -> . | BJ22: ='Existing Data_DataBank'!CS23 -> . | BP22: 1969 | BQ22: 5216.123 | BU22: 11834.654 | BV22: 3347.956954
A23: 1970 | B23: =IF(B$11=$BL$9,'Manual Data'!AM25,AH23) -> 3434.200062 | C23: =IF(C$11=$BL$9,'Manual Data'!AN25,AI23) -> 12074.626 | D23: =IF(D$11=$BL$9,'Manual Data'!AO25,AJ23) -> 6013.118004 | E23: =IF(E$11=$BL$9,'Manual Data'!AP25,AK23) -> 6061.507996 | F23: =IF(F$11=$BL$9,IF(ISERROR('Manual Data'!AQ25/'Manual Data'!$AN25*$C23),".",'Manual Data'!AQ25/'Manual Data'!$AN25*$C23),IF(ISERROR(AL23/$AI23*$C23),".",AL23/$AI23*$C23)) -> 6771.899 | G23: =IF(G$11="No Data",".",IF(G$11=$BL$9,'Manual Data'!AR25,AM23)) -> 3325.205449 | H23: =IF(H$11="No Data",".",IF(H$11=$BL$9,'Manual Data'!AS25,AN23)) -> 3446.693551 | I23: =IF(I$11=$BL$9,IF(ISERROR('Manual Data'!AT25/'Manual Data'!AQ25*F23),".",'Manual Data'!AT25/'Manual Data'!AQ25*F23),IF(ISERROR(AO23/AL23*F23),".",AO23/AL23*F23)) -> . | J23: =IF(J$11="No Data",".",IF(J$11=$BL$9,'Manual Data'!AU25,AP23)) -> . | K23: =IF(K$11="No Data",".",IF(K$11=$BL$9,'Manual Data'!AV25,AQ23)) -> . | L23: =IF(L$11=$BL$9,IF(ISERROR('Manual Data'!AW25/'Manual Data'!AT25*I23),".",'Manual Data'!AW25/'Manual Data'!AT25*I23),IF(ISERROR(AR23/AO23*I23),".",AR23/AO23*I23)) -> . | M23: =IF(M$11="No Data",".",IF(M$11=$BL$9,'Manual Data'!AX25,AS23)) -> . | N23: =IF(N$11="No Data",".",IF(N$11=$BL$9,'Manual Data'!AY25,AT23)) -> . | O23: =IF(O$11=$BL$9,IF(ISERROR('Manual Data'!AZ25/'Manual Data'!$AN25*$C23),".",'Manual Data'!AZ25/'Manual Data'!$AN25*$C23),IF(ISERROR(AU23/$AI23*$C23),".",AU23/$AI23*$C23)) -> 4947.896 | P23: =IF(P$11="No Data",".",IF(P$11=$BL$9,'Manual Data'!BA25,AV23)) -> 2530.729581 | Q23: =IF(Q$11="No Data",".",IF(Q$11=$BL$9,'Manual Data'!BB25,AW23)) -> 2417.166419 | R23: =IF(R$11=$BL$9,'Manual Data'!BC25,AX23) -> 5.918 | S23: =IF(S$11=$BL$9,'Manual Data'!BD25,AY23) -> 176.8 | T23: =IF(T$11=$BL$9,'Manual Data'!BE25,AZ23) -> 265 | U23: =IF(U$11=$BL$9,'Manual Data'!BF25,BA23) -> 11596.9538 | V23: =IF(V$11=$BL$9,'Manual Data'!BG25,BB23) -> 477.6722046 | W23: =IF(W$11=$BL$9,'Manual Data'!BH25,BC23) -> 147.2470631 | X23: =IF(X$11=$BL$9,'Manual Data'!BI25,BD23) -> 0 | Y23: =IF(Y$11=$BL$9,'Manual Data'!BJ25,BE23) -> 330.4251415 | Z23: =IF(Z$11=$BL$9,'Manual Data'!BK25,BF23) -> . | AA23: =IF(AA$11=$BL$9,'Manual Data'!BL25,BG23) -> . | AB23: =IF(AB$11=$BL$9,'Manual Data'!BM25,BH23) -> . | AC23: =IF(AC$11=$BL$9,'Manual Data'!BN25,BI23) -> . | AD23: =IF(AD$11=$BL$9,'Manual Data'!BO25,BJ23) -> . | AF23: ='Existing Data_DataBank'!BP24 -> 1970 | AG23: ='Existing Data_DataBank'!CT24 -> GDP | AH23: ='Existing Data_DataBank'!BQ24 -> 3434.200062 | AI23: ='Existing Data_DataBank'!BR24 -> 12074.626 | AJ23: ='Existing Data_DataBank'!BS24 -> 6013.118004 | AK23: ='Existing Data_DataBank'!BT24 -> 6061.507996 | AL23: ='Existing Data_DataBank'!BU24 -> 6771.899 | AM23: ='Existing Data_DataBank'!BV24 -> 3325.205449 | AN23: ='Existing Data_DataBank'!BW24 -> 3446.693551 | AO23: ='Existing Data_DataBank'!BX24 -> . | AP23: ='Existing Data_DataBank'!BY24 -> . | AQ23: ='Existing Data_DataBank'!BZ24 -> . | AR23: ='Existing Data_DataBank'!CA24 -> . | AS23: ='Existing Data_DataBank'!CB24 -> . | AT23: ='Existing Data_DataBank'!CC24 -> . | AU23: ='Existing Data_DataBank'!CD24 -> 4947.896 | AV23: ='Existing Data_DataBank'!CE24 -> 2530.729581 | AW23: ='Existing Data_DataBank'!CF24 -> 2417.166419 | AX23: ='Existing Data_DataBank'!CG24 -> 5.918 | AY23: ='Existing Data_DataBank'!CH24 -> 176.8 | AZ23: ='Existing Data_DataBank'!CI24 -> 265 | BA23: ='Existing Data_DataBank'!CJ24 -> 11596.9538 | BB23: ='Existing Data_DataBank'!CK24 -> 477.6722046 | BC23: ='Existing Data_DataBank'!CL24 -> 147.2470631 | BD23: ='Existing Data_DataBank'!CM24 -> 0 | BE23: ='Existing Data_DataBank'!CN24 -> 330.4251415 | BF23: ='Existing Data_DataBank'!CO24 -> . | BG23: ='Existing Data_DataBank'!CP24 -> . | BH23: ='Existing Data_DataBank'!CQ24 -> . | BI23: ='Existing Data_DataBank'!CR24 -> . | BJ23: ='Existing Data_DataBank'!CS24 -> . | BP23: 1970 | BQ23: 5302.727 | BU23: 12074.626 | BV23: 3434.200062
A24: 1971 | B24: =IF(B$11=$BL$9,'Manual Data'!AM26,AH24) -> 3393.148208 | C24: =IF(C$11=$BL$9,'Manual Data'!AN26,AI24) -> 12323.982 | D24: =IF(D$11=$BL$9,'Manual Data'!AO26,AJ24) -> 6140.017004 | E24: =IF(E$11=$BL$9,'Manual Data'!AP26,AK24) -> 6183.964996 | F24: =IF(F$11=$BL$9,IF(ISERROR('Manual Data'!AQ26/'Manual Data'!$AN26*$C24),".",'Manual Data'!AQ26/'Manual Data'!$AN26*$C24),IF(ISERROR(AL24/$AI24*$C24),".",AL24/$AI24*$C24)) -> 6902.369 | G24: =IF(G$11="No Data",".",IF(G$11=$BL$9,'Manual Data'!AR26,AM24)) -> 3393.674449 | H24: =IF(H$11="No Data",".",IF(H$11=$BL$9,'Manual Data'!AS26,AN24)) -> 3508.694551 | I24: =IF(I$11=$BL$9,IF(ISERROR('Manual Data'!AT26/'Manual Data'!AQ26*F24),".",'Manual Data'!AT26/'Manual Data'!AQ26*F24),IF(ISERROR(AO24/AL24*F24),".",AO24/AL24*F24)) -> . | J24: =IF(J$11="No Data",".",IF(J$11=$BL$9,'Manual Data'!AU26,AP24)) -> . | K24: =IF(K$11="No Data",".",IF(K$11=$BL$9,'Manual Data'!AV26,AQ24)) -> . | L24: =IF(L$11=$BL$9,IF(ISERROR('Manual Data'!AW26/'Manual Data'!AT26*I24),".",'Manual Data'!AW26/'Manual Data'!AT26*I24),IF(ISERROR(AR24/AO24*I24),".",AR24/AO24*I24)) -> . | M24: =IF(M$11="No Data",".",IF(M$11=$BL$9,'Manual Data'!AX26,AS24)) -> . | N24: =IF(N$11="No Data",".",IF(N$11=$BL$9,'Manual Data'!AY26,AT24)) -> . | O24: =IF(O$11=$BL$9,IF(ISERROR('Manual Data'!AZ26/'Manual Data'!$AN26*$C24),".",'Manual Data'!AZ26/'Manual Data'!$AN26*$C24),IF(ISERROR(AU24/$AI24*$C24),".",AU24/$AI24*$C24)) -> 5051.808 | P24: =IF(P$11="No Data",".",IF(P$11=$BL$9,'Manual Data'!BA26,AV24)) -> 2582.739581 | Q24: =IF(Q$11="No Data",".",IF(Q$11=$BL$9,'Manual Data'!BB26,AW24)) -> 2469.068419 | R24: =IF(R$11=$BL$9,'Manual Data'!BC26,AX24) -> 5.901 | S24: =IF(S$11=$BL$9,'Manual Data'!BD26,AY24) -> 173 | T24: =IF(T$11=$BL$9,'Manual Data'!BE26,AZ24) -> 259.4 | U24: =IF(U$11=$BL$9,'Manual Data'!BF26,BA24) -> 11830.40652 | V24: =IF(V$11=$BL$9,'Manual Data'!BG26,BB24) -> 493.5754791 | W24: =IF(W$11=$BL$9,'Manual Data'!BH26,BC24) -> 150.5681462 | X24: =IF(X$11=$BL$9,'Manual Data'!BI26,BD24) -> 0 | Y24: =IF(Y$11=$BL$9,'Manual Data'!BJ26,BE24) -> 343.0073329 | Z24: =IF(Z$11=$BL$9,'Manual Data'!BK26,BF24) -> . | AA24: =IF(AA$11=$BL$9,'Manual Data'!BL26,BG24) -> . | AB24: =IF(AB$11=$BL$9,'Manual Data'!BM26,BH24) -> . | AC24: =IF(AC$11=$BL$9,'Manual Data'!BN26,BI24) -> . | AD24: =IF(AD$11=$BL$9,'Manual Data'!BO26,BJ24) -> . | AF24: ='Existing Data_DataBank'!BP25 -> 1971 | AG24: ='Existing Data_DataBank'!CT25 -> GDP | AH24: ='Existing Data_DataBank'!BQ25 -> 3393.148208 | AI24: ='Existing Data_DataBank'!BR25 -> 12323.982 | AJ24: ='Existing Data_DataBank'!BS25 -> 6140.017004 | AK24: ='Existing Data_DataBank'!BT25 -> 6183.964996 | AL24: ='Existing Data_DataBank'!BU25 -> 6902.369 | AM24: ='Existing Data_DataBank'!BV25 -> 3393.674449 | AN24: ='Existing Data_DataBank'!BW25 -> 3508.694551 | AO24: ='Existing Data_DataBank'!BX25 -> . | AP24: ='Existing Data_DataBank'!BY25 -> . | AQ24: ='Existing Data_DataBank'!BZ25 -> . | AR24: ='Existing Data_DataBank'!CA25 -> . | AS24: ='Existing Data_DataBank'!CB25 -> . | AT24: ='Existing Data_DataBank'!CC25 -> . | AU24: ='Existing Data_DataBank'!CD25 -> 5051.808 | AV24: ='Existing Data_DataBank'!CE25 -> 2582.739581 | AW24: ='Existing Data_DataBank'!CF25 -> 2469.068419 | AX24: ='Existing Data_DataBank'!CG25 -> 5.901 | AY24: ='Existing Data_DataBank'!CH25 -> 173 | AZ24: ='Existing Data_DataBank'!CI25 -> 259.4 | BA24: ='Existing Data_DataBank'!CJ25 -> 11830.40652 | BB24: ='Existing Data_DataBank'!CK25 -> 493.5754791 | BC24: ='Existing Data_DataBank'!CL25 -> 150.5681462 | BD24: ='Existing Data_DataBank'!CM25 -> 0 | BE24: ='Existing Data_DataBank'!CN25 -> 343.0073329 | BF24: ='Existing Data_DataBank'!CO25 -> . | BG24: ='Existing Data_DataBank'!CP25 -> . | BH24: ='Existing Data_DataBank'!CQ25 -> . | BI24: ='Existing Data_DataBank'!CR25 -> . | BJ24: ='Existing Data_DataBank'!CS25 -> . | BP24: 1971 | BQ24: 5421.613 | BU24: 12323.982 | BV24: 3393.148208
A25: 1972 | B25: =IF(B$11=$BL$9,'Manual Data'!AM27,AH25) -> 3498.939795 | C25: =IF(C$11=$BL$9,'Manual Data'!AN27,AI25) -> 12583.14 | D25: =IF(D$11=$BL$9,'Manual Data'!AO27,AJ25) -> 6273.385003 | E25: =IF(E$11=$BL$9,'Manual Data'!AP27,AK25) -> 6309.754997 | F25: =IF(F$11=$BL$9,IF(ISERROR('Manual Data'!AQ27/'Manual Data'!$AN27*$C25),".",'Manual Data'!AQ27/'Manual Data'!$AN27*$C25),IF(ISERROR(AL25/$AI25*$C25),".",AL25/$AI25*$C25)) -> 7042.692 | G25: =IF(G$11="No Data",".",IF(G$11=$BL$9,'Manual Data'!AR27,AM25)) -> 3467.918449 | H25: =IF(H$11="No Data",".",IF(H$11=$BL$9,'Manual Data'!AS27,AN25)) -> 3574.773551 | I25: =IF(I$11=$BL$9,IF(ISERROR('Manual Data'!AT27/'Manual Data'!AQ27*F25),".",'Manual Data'!AT27/'Manual Data'!AQ27*F25),IF(ISERROR(AO25/AL25*F25),".",AO25/AL25*F25)) -> . | J25: =IF(J$11="No Data",".",IF(J$11=$BL$9,'Manual Data'!AU27,AP25)) -> . | K25: =IF(K$11="No Data",".",IF(K$11=$BL$9,'Manual Data'!AV27,AQ25)) -> . | L25: =IF(L$11=$BL$9,IF(ISERROR('Manual Data'!AW27/'Manual Data'!AT27*I25),".",'Manual Data'!AW27/'Manual Data'!AT27*I25),IF(ISERROR(AR25/AO25*I25),".",AR25/AO25*I25)) -> . | M25: =IF(M$11="No Data",".",IF(M$11=$BL$9,'Manual Data'!AX27,AS25)) -> . | N25: =IF(N$11="No Data",".",IF(N$11=$BL$9,'Manual Data'!AY27,AT25)) -> . | O25: =IF(O$11=$BL$9,IF(ISERROR('Manual Data'!AZ27/'Manual Data'!$AN27*$C25),".",'Manual Data'!AZ27/'Manual Data'!$AN27*$C25),IF(ISERROR(AU25/$AI25*$C25),".",AU25/$AI25*$C25)) -> 5156.259 | P25: =IF(P$11="No Data",".",IF(P$11=$BL$9,'Manual Data'!BA27,AV25)) -> 2635.777581 | Q25: =IF(Q$11="No Data",".",IF(Q$11=$BL$9,'Manual Data'!BB27,AW25)) -> 2520.481419 | R25: =IF(R$11=$BL$9,'Manual Data'!BC27,AX25) -> 5.884 | S25: =IF(S$11=$BL$9,'Manual Data'!BD27,AY25) -> 169.3 | T25: =IF(T$11=$BL$9,'Manual Data'!BE27,AZ25) -> 253.9 | U25: =IF(U$11=$BL$9,'Manual Data'!BF27,BA25) -> 12054.89978 | V25: =IF(V$11=$BL$9,'Manual Data'!BG27,BB25) -> 528.2402172 | W25: =IF(W$11=$BL$9,'Manual Data'!BH27,BC25) -> 157.4600647 | X25: =IF(X$11=$BL$9,'Manual Data'!BI27,BD25) -> 0 | Y25: =IF(Y$11=$BL$9,'Manual Data'!BJ27,BE25) -> 370.7801525 | Z25: =IF(Z$11=$BL$9,'Manual Data'!BK27,BF25) -> . | AA25: =IF(AA$11=$BL$9,'Manual Data'!BL27,BG25) -> . | AB25: =IF(AB$11=$BL$9,'Manual Data'!BM27,BH25) -> . | AC25: =IF(AC$11=$BL$9,'Manual Data'!BN27,BI25) -> . | AD25: =IF(AD$11=$BL$9,'Manual Data'!BO27,BJ25) -> . | AF25: ='Existing Data_DataBank'!BP26 -> 1972 | AG25: ='Existing Data_DataBank'!CT26 -> GDP | AH25: ='Existing Data_DataBank'!BQ26 -> 3498.939795 | AI25: ='Existing Data_DataBank'!BR26 -> 12583.14 | AJ25: ='Existing Data_DataBank'!BS26 -> 6273.385003 | AK25: ='Existing Data_DataBank'!BT26 -> 6309.754997 | AL25: ='Existing Data_DataBank'!BU26 -> 7042.692 | AM25: ='Existing Data_DataBank'!BV26 -> 3467.918449 | AN25: ='Existing Data_DataBank'!BW26 -> 3574.773551 | AO25: ='Existing Data_DataBank'!BX26 -> . | AP25: ='Existing Data_DataBank'!BY26 -> . | AQ25: ='Existing Data_DataBank'!BZ26 -> . | AR25: ='Existing Data_DataBank'!CA26 -> . | AS25: ='Existing Data_DataBank'!CB26 -> . | AT25: ='Existing Data_DataBank'!CC26 -> . | AU25: ='Existing Data_DataBank'!CD26 -> 5156.259 | AV25: ='Existing Data_DataBank'!CE26 -> 2635.777581 | AW25: ='Existing Data_DataBank'!CF26 -> 2520.481419 | AX25: ='Existing Data_DataBank'!CG26 -> 5.884 | AY25: ='Existing Data_DataBank'!CH26 -> 169.3 | AZ25: ='Existing Data_DataBank'!CI26 -> 253.9 | BA25: ='Existing Data_DataBank'!CJ26 -> 12054.89978 | BB25: ='Existing Data_DataBank'!CK26 -> 528.2402172 | BC25: ='Existing Data_DataBank'!CL26 -> 157.4600647 | BD25: ='Existing Data_DataBank'!CM26 -> 0 | BE25: ='Existing Data_DataBank'!CN26 -> 370.7801525 | BF25: ='Existing Data_DataBank'!CO26 -> . | BG25: ='Existing Data_DataBank'!CP26 -> . | BH25: ='Existing Data_DataBank'!CQ26 -> . | BI25: ='Existing Data_DataBank'!CR26 -> . | BJ25: ='Existing Data_DataBank'!CS26 -> . | BP25: 1972 | BQ25: 5540.448 | BU25: 12583.14 | BV25: 3498.939795
A26: 1973 | B26: =IF(B$11=$BL$9,'Manual Data'!AM28,AH26) -> 3482.266078 | C26: =IF(C$11=$BL$9,'Manual Data'!AN28,AI26) -> 12852.206 | D26: =IF(D$11=$BL$9,'Manual Data'!AO28,AJ26) -> 6412.810499 | E26: =IF(E$11=$BL$9,'Manual Data'!AP28,AK26) -> 6439.395501 | F26: =IF(F$11=$BL$9,IF(ISERROR('Manual Data'!AQ28/'Manual Data'!$AN28*$C26),".",'Manual Data'!AQ28/'Manual Data'!$AN28*$C26),IF(ISERROR(AL26/$AI26*$C26),".",AL26/$AI26*$C26)) -> 7190.722 | G26: =IF(G$11="No Data",".",IF(G$11=$BL$9,'Manual Data'!AR28,AM26)) -> 3546.671276 | H26: =IF(H$11="No Data",".",IF(H$11=$BL$9,'Manual Data'!AS28,AN26)) -> 3644.050724 | I26: =IF(I$11=$BL$9,IF(ISERROR('Manual Data'!AT28/'Manual Data'!AQ28*F26),".",'Manual Data'!AT28/'Manual Data'!AQ28*F26),IF(ISERROR(AO26/AL26*F26),".",AO26/AL26*F26)) -> . | J26: =IF(J$11="No Data",".",IF(J$11=$BL$9,'Manual Data'!AU28,AP26)) -> . | K26: =IF(K$11="No Data",".",IF(K$11=$BL$9,'Manual Data'!AV28,AQ26)) -> . | L26: =IF(L$11=$BL$9,IF(ISERROR('Manual Data'!AW28/'Manual Data'!AT28*I26),".",'Manual Data'!AW28/'Manual Data'!AT28*I26),IF(ISERROR(AR26/AO26*I26),".",AR26/AO26*I26)) -> . | M26: =IF(M$11="No Data",".",IF(M$11=$BL$9,'Manual Data'!AX28,AS26)) -> . | N26: =IF(N$11="No Data",".",IF(N$11=$BL$9,'Manual Data'!AY28,AT26)) -> . | O26: =IF(O$11=$BL$9,IF(ISERROR('Manual Data'!AZ28/'Manual Data'!$AN28*$C26),".",'Manual Data'!AZ28/'Manual Data'!$AN28*$C26),IF(ISERROR(AU26/$AI26*$C26),".",AU26/$AI26*$C26)) -> 5263.681 | P26: =IF(P$11="No Data",".",IF(P$11=$BL$9,'Manual Data'!BA28,AV26)) -> 2690.837209 | Q26: =IF(Q$11="No Data",".",IF(Q$11=$BL$9,'Manual Data'!BB28,AW26)) -> 2572.843791 | R26: =IF(R$11=$BL$9,'Manual Data'!BC28,AX26) -> 5.868 | S26: =IF(S$11=$BL$9,'Manual Data'!BD28,AY26) -> 165.8 | T26: =IF(T$11=$BL$9,'Manual Data'!BE28,AZ26) -> 248.6 | U26: =IF(U$11=$BL$9,'Manual Data'!BF28,BA26) -> 12286.83746 | V26: =IF(V$11=$BL$9,'Manual Data'!BG28,BB26) -> 565.3685419 | W26: =IF(W$11=$BL$9,'Manual Data'!BH28,BC26) -> 164.6468666 | X26: =IF(X$11=$BL$9,'Manual Data'!BI28,BD26) -> 0.0001333964275 | Y26: =IF(Y$11=$BL$9,'Manual Data'!BJ28,BE26) -> 400.7215419 | Z26: =IF(Z$11=$BL$9,'Manual Data'!BK28,BF26) -> . | AA26: =IF(AA$11=$BL$9,'Manual Data'!BL28,BG26) -> . | AB26: =IF(AB$11=$BL$9,'Manual Data'!BM28,BH26) -> . | AC26: =IF(AC$11=$BL$9,'Manual Data'!BN28,BI26) -> . | AD26: =IF(AD$11=$BL$9,'Manual Data'!BO28,BJ26) -> . | AF26: ='Existing Data_DataBank'!BP27 -> 1973 | AG26: ='Existing Data_DataBank'!CT27 -> GDP | AH26: ='Existing Data_DataBank'!BQ27 -> 3482.266078 | AI26: ='Existing Data_DataBank'!BR27 -> 12852.206 | AJ26: ='Existing Data_DataBank'!BS27 -> 6412.810499 | AK26: ='Existing Data_DataBank'!BT27 -> 6439.395501 | AL26: ='Existing Data_DataBank'!BU27 -> 7190.722 | AM26: ='Existing Data_DataBank'!BV27 -> 3546.671276 | AN26: ='Existing Data_DataBank'!BW27 -> 3644.050724 | AO26: ='Existing Data_DataBank'!BX27 -> . | AP26: ='Existing Data_DataBank'!BY27 -> . | AQ26: ='Existing Data_DataBank'!BZ27 -> . | AR26: ='Existing Data_DataBank'!CA27 -> . | AS26: ='Existing Data_DataBank'!CB27 -> . | AT26: ='Existing Data_DataBank'!CC27 -> . | AU26: ='Existing Data_DataBank'!CD27 -> 5263.681 | AV26: ='Existing Data_DataBank'!CE27 -> 2690.837209 | AW26: ='Existing Data_DataBank'!CF27 -> 2572.843791 | AX26: ='Existing Data_DataBank'!CG27 -> 5.868 | AY26: ='Existing Data_DataBank'!CH27 -> 165.8 | AZ26: ='Existing Data_DataBank'!CI27 -> 248.6 | BA26: ='Existing Data_DataBank'!CJ27 -> 12286.83746 | BB26: ='Existing Data_DataBank'!CK27 -> 565.3685419 | BC26: ='Existing Data_DataBank'!CL27 -> 164.6468666 | BD26: ='Existing Data_DataBank'!CM27 -> 0.0001333964275 | BE26: ='Existing Data_DataBank'!CN27 -> 400.7215419 | BF26: ='Existing Data_DataBank'!CO27 -> . | BG26: ='Existing Data_DataBank'!CP27 -> . | BH26: ='Existing Data_DataBank'!CQ27 -> . | BI26: ='Existing Data_DataBank'!CR27 -> . | BJ26: ='Existing Data_DataBank'!CS27 -> . | BP26: 1973 | BQ26: 5661.484 | BU26: 12852.206 | BV26: 3482.266078
A27: 1974 | B27: =IF(B$11=$BL$9,'Manual Data'!AM29,AH27) -> 3702.818547 | C27: =IF(C$11=$BL$9,'Manual Data'!AN29,AI27) -> 13131.26 | D27: =IF(D$11=$BL$9,'Manual Data'!AO29,AJ27) -> 6557.67 | E27: =IF(E$11=$BL$9,'Manual Data'!AP29,AK27) -> 6573.59 | F27: =IF(F$11=$BL$9,IF(ISERROR('Manual Data'!AQ29/'Manual Data'!$AN29*$C27),".",'Manual Data'!AQ29/'Manual Data'!$AN29*$C27),IF(ISERROR(AL27/$AI27*$C27),".",AL27/$AI27*$C27)) -> 7345.955 | G27: =IF(G$11="No Data",".",IF(G$11=$BL$9,'Manual Data'!AR29,AM27)) -> 3629.294 | H27: =IF(H$11="No Data",".",IF(H$11=$BL$9,'Manual Data'!AS29,AN27)) -> 3716.661 | I27: =IF(I$11=$BL$9,IF(ISERROR('Manual Data'!AT29/'Manual Data'!AQ29*F27),".",'Manual Data'!AT29/'Manual Data'!AQ29*F27),IF(ISERROR(AO27/AL27*F27),".",AO27/AL27*F27)) -> . | J27: =IF(J$11="No Data",".",IF(J$11=$BL$9,'Manual Data'!AU29,AP27)) -> . | K27: =IF(K$11="No Data",".",IF(K$11=$BL$9,'Manual Data'!AV29,AQ27)) -> . | L27: =IF(L$11=$BL$9,IF(ISERROR('Manual Data'!AW29/'Manual Data'!AT29*I27),".",'Manual Data'!AW29/'Manual Data'!AT29*I27),IF(ISERROR(AR27/AO27*I27),".",AR27/AO27*I27)) -> . | M27: =IF(M$11="No Data",".",IF(M$11=$BL$9,'Manual Data'!AX29,AS27)) -> . | N27: =IF(N$11="No Data",".",IF(N$11=$BL$9,'Manual Data'!AY29,AT27)) -> . | O27: =IF(O$11=$BL$9,IF(ISERROR('Manual Data'!AZ29/'Manual Data'!$AN29*$C27),".",'Manual Data'!AZ29/'Manual Data'!$AN29*$C27),IF(ISERROR(AU27/$AI27*$C27),".",AU27/$AI27*$C27)) -> 5374.845 | P27: =IF(P$11="No Data",".",IF(P$11=$BL$9,'Manual Data'!BA29,AV27)) -> 2748.044 | Q27: =IF(Q$11="No Data",".",IF(Q$11=$BL$9,'Manual Data'!BB29,AW27)) -> 2626.801 | R27: =IF(R$11=$BL$9,'Manual Data'!BC29,AX27) -> 5.853 | S27: =IF(S$11=$BL$9,'Manual Data'!BD29,AY27) -> 162.3 | T27: =IF(T$11=$BL$9,'Manual Data'!BE29,AZ27) -> 243.4 | U27: =IF(U$11=$BL$9,'Manual Data'!BF29,BA27) -> 12525.90891 | V27: =IF(V$11=$BL$9,'Manual Data'!BG29,BB27) -> 605.351086 | W27: =IF(W$11=$BL$9,'Manual Data'!BH29,BC27) -> 172.1730245 | X27: =IF(X$11=$BL$9,'Manual Data'!BI29,BD27) -> 0 | Y27: =IF(Y$11=$BL$9,'Manual Data'!BJ29,BE27) -> 433.1780615 | Z27: =IF(Z$11=$BL$9,'Manual Data'!BK29,BF27) -> . | AA27: =IF(AA$11=$BL$9,'Manual Data'!BL29,BG27) -> . | AB27: =IF(AB$11=$BL$9,'Manual Data'!BM29,BH27) -> . | AC27: =IF(AC$11=$BL$9,'Manual Data'!BN29,BI27) -> . | AD27: =IF(AD$11=$BL$9,'Manual Data'!BO29,BJ27) -> . | AF27: ='Existing Data_DataBank'!BP28 -> 1974 | AG27: ='Existing Data_DataBank'!CT28 -> GDP | AH27: ='Existing Data_DataBank'!BQ28 -> 3702.818547 | AI27: ='Existing Data_DataBank'!BR28 -> 13131.26 | AJ27: ='Existing Data_DataBank'!BS28 -> 6557.67 | AK27: ='Existing Data_DataBank'!BT28 -> 6573.59 | AL27: ='Existing Data_DataBank'!BU28 -> 7345.955 | AM27: ='Existing Data_DataBank'!BV28 -> 3629.294 | AN27: ='Existing Data_DataBank'!BW28 -> 3716.661 | AO27: ='Existing Data_DataBank'!BX28 -> . | AP27: ='Existing Data_DataBank'!BY28 -> . | AQ27: ='Existing Data_DataBank'!BZ28 -> . | AR27: ='Existing Data_DataBank'!CA28 -> . | AS27: ='Existing Data_DataBank'!CB28 -> . | AT27: ='Existing Data_DataBank'!CC28 -> . | AU27: ='Existing Data_DataBank'!CD28 -> 5374.845 | AV27: ='Existing Data_DataBank'!CE28 -> 2748.044 | AW27: ='Existing Data_DataBank'!CF28 -> 2626.801 | AX27: ='Existing Data_DataBank'!CG28 -> 5.853 | AY27: ='Existing Data_DataBank'!CH28 -> 162.3 | AZ27: ='Existing Data_DataBank'!CI28 -> 243.4 | BA27: ='Existing Data_DataBank'!CJ28 -> 12525.90891 | BB27: ='Existing Data_DataBank'!CK28 -> 605.351086 | BC27: ='Existing Data_DataBank'!CL28 -> 172.1730245 | BD27: ='Existing Data_DataBank'!CM28 -> 0 | BE27: ='Existing Data_DataBank'!CN28 -> 433.1780615 | BF27: ='Existing Data_DataBank'!CO28 -> . | BG27: ='Existing Data_DataBank'!CP28 -> . | BH27: ='Existing Data_DataBank'!CQ28 -> . | BI27: ='Existing Data_DataBank'!CR28 -> . | BJ27: ='Existing Data_DataBank'!CS28 -> . | BP27: 1974 | BQ27: 5785.305 | BU27: 13131.26 | BV27: 3702.818547
A28: 1975 | B28: =IF(B$11=$BL$9,'Manual Data'!AM30,AH28) -> 3756.749014 | C28: =IF(C$11=$BL$9,'Manual Data'!AN30,AI28) -> 13420.369 | D28: =IF(D$11=$BL$9,'Manual Data'!AO30,AJ28) -> 6707.461 | E28: =IF(E$11=$BL$9,'Manual Data'!AP30,AK28) -> 6712.908 | F28: =IF(F$11=$BL$9,IF(ISERROR('Manual Data'!AQ30/'Manual Data'!$AN30*$C28),".",'Manual Data'!AQ30/'Manual Data'!$AN30*$C28),IF(ISERROR(AL28/$AI28*$C28),".",AL28/$AI28*$C28)) -> 7508.36 | G28: =IF(G$11="No Data",".",IF(G$11=$BL$9,'Manual Data'!AR30,AM28)) -> 3715.473554 | H28: =IF(H$11="No Data",".",IF(H$11=$BL$9,'Manual Data'!AS30,AN28)) -> 3792.886446 | I28: =IF(I$11=$BL$9,IF(ISERROR('Manual Data'!AT30/'Manual Data'!AQ30*F28),".",'Manual Data'!AT30/'Manual Data'!AQ30*F28),IF(ISERROR(AO28/AL28*F28),".",AO28/AL28*F28)) -> . | J28: =IF(J$11="No Data",".",IF(J$11=$BL$9,'Manual Data'!AU30,AP28)) -> . | K28: =IF(K$11="No Data",".",IF(K$11=$BL$9,'Manual Data'!AV30,AQ28)) -> . | L28: =IF(L$11=$BL$9,IF(ISERROR('Manual Data'!AW30/'Manual Data'!AT30*I28),".",'Manual Data'!AW30/'Manual Data'!AT30*I28),IF(ISERROR(AR28/AO28*I28),".",AR28/AO28*I28)) -> . | M28: =IF(M$11="No Data",".",IF(M$11=$BL$9,'Manual Data'!AX30,AS28)) -> . | N28: =IF(N$11="No Data",".",IF(N$11=$BL$9,'Manual Data'!AY30,AT28)) -> . | O28: =IF(O$11=$BL$9,IF(ISERROR('Manual Data'!AZ30/'Manual Data'!$AN30*$C28),".",'Manual Data'!AZ30/'Manual Data'!$AN30*$C28),IF(ISERROR(AU28/$AI28*$C28),".",AU28/$AI28*$C28)) -> 5489.905 | P28: =IF(P$11="No Data",".",IF(P$11=$BL$9,'Manual Data'!BA30,AV28)) -> 2807.272418 | Q28: =IF(Q$11="No Data",".",IF(Q$11=$BL$9,'Manual Data'!BB30,AW28)) -> 2682.632582 | R28: =IF(R$11=$BL$9,'Manual Data'!BC30,AX28) -> 5.838 | S28: =IF(S$11=$BL$9,'Manual Data'!BD30,AY28) -> 158.7 | T28: =IF(T$11=$BL$9,'Manual Data'!BE30,AZ28) -> 238 | U28: =IF(U$11=$BL$9,'Manual Data'!BF30,BA28) -> 12772.16518 | V28: =IF(V$11=$BL$9,'Manual Data'!BG30,BB28) -> 648.2038227 | W28: =IF(W$11=$BL$9,'Manual Data'!BH30,BC28) -> 180.0429508 | X28: =IF(X$11=$BL$9,'Manual Data'!BI30,BD28) -> 4.924626183e-05 | Y28: =IF(Y$11=$BL$9,'Manual Data'!BJ30,BE28) -> 468.1608227 | Z28: =IF(Z$11=$BL$9,'Manual Data'!BK30,BF28) -> . | AA28: =IF(AA$11=$BL$9,'Manual Data'!BL30,BG28) -> . | AB28: =IF(AB$11=$BL$9,'Manual Data'!BM30,BH28) -> . | AC28: =IF(AC$11=$BL$9,'Manual Data'!BN30,BI28) -> . | AD28: =IF(AD$11=$BL$9,'Manual Data'!BO30,BJ28) -> . | AF28: ='Existing Data_DataBank'!BP29 -> 1975 | AG28: ='Existing Data_DataBank'!CT29 -> GDP | AH28: ='Existing Data_DataBank'!BQ29 -> 3756.749014 | AI28: ='Existing Data_DataBank'!BR29 -> 13420.369 | AJ28: ='Existing Data_DataBank'!BS29 -> 6707.461 | AK28: ='Existing Data_DataBank'!BT29 -> 6712.908 | AL28: ='Existing Data_DataBank'!BU29 -> 7508.36 | AM28: ='Existing Data_DataBank'!BV29 -> 3715.473554 | AN28: ='Existing Data_DataBank'!BW29 -> 3792.886446 | AO28: ='Existing Data_DataBank'!BX29 -> . | AP28: ='Existing Data_DataBank'!BY29 -> . | AQ28: ='Existing Data_DataBank'!BZ29 -> . | AR28: ='Existing Data_DataBank'!CA29 -> . | AS28: ='Existing Data_DataBank'!CB29 -> . | AT28: ='Existing Data_DataBank'!CC29 -> . | AU28: ='Existing Data_DataBank'!CD29 -> 5489.905 | AV28: ='Existing Data_DataBank'!CE29 -> 2807.272418 | AW28: ='Existing Data_DataBank'!CF29 -> 2682.632582 | AX28: ='Existing Data_DataBank'!CG29 -> 5.838 | AY28: ='Existing Data_DataBank'!CH29 -> 158.7 | AZ28: ='Existing Data_DataBank'!CI29 -> 238 | BA28: ='Existing Data_DataBank'!CJ29 -> 12772.16518 | BB28: ='Existing Data_DataBank'!CK29 -> 648.2038227 | BC28: ='Existing Data_DataBank'!CL29 -> 180.0429508 | BD28: ='Existing Data_DataBank'!CM29 -> 4.924626183e-05 | BE28: ='Existing Data_DataBank'!CN29 -> 468.1608227 | BF28: ='Existing Data_DataBank'!CO29 -> . | BG28: ='Existing Data_DataBank'!CP29 -> . | BH28: ='Existing Data_DataBank'!CQ29 -> . | BI28: ='Existing Data_DataBank'!CR29 -> . | BJ28: ='Existing Data_DataBank'!CS29 -> . | BP28: 1975 | BQ28: 5912.009 | BU28: 13420.369 | BV28: 3756.749014
A29: 1976 | B29: =IF(B$11=$BL$9,'Manual Data'!AM31,AH29) -> 3921.990979 | C29: =IF(C$11=$BL$9,'Manual Data'!AN31,AI29) -> 13719.471 | D29: =IF(D$11=$BL$9,'Manual Data'!AO31,AJ29) -> 6861.953501 | E29: =IF(E$11=$BL$9,'Manual Data'!AP31,AK29) -> 6857.517499 | F29: =IF(F$11=$BL$9,IF(ISERROR('Manual Data'!AQ31/'Manual Data'!$AN31*$C29),".",'Manual Data'!AQ31/'Manual Data'!$AN31*$C29),IF(ISERROR(AL29/$AI29*$C29),".",AL29/$AI29*$C29)) -> 7649.044 | G29: =IF(G$11="No Data",".",IF(G$11=$BL$9,'Manual Data'!AR31,AM29)) -> 3790.435381 | H29: =IF(H$11="No Data",".",IF(H$11=$BL$9,'Manual Data'!AS31,AN29)) -> 3858.608619 | I29: =IF(I$11=$BL$9,IF(ISERROR('Manual Data'!AT31/'Manual Data'!AQ31*F29),".",'Manual Data'!AT31/'Manual Data'!AQ31*F29),IF(ISERROR(AO29/AL29*F29),".",AO29/AL29*F29)) -> . | J29: =IF(J$11="No Data",".",IF(J$11=$BL$9,'Manual Data'!AU31,AP29)) -> . | K29: =IF(K$11="No Data",".",IF(K$11=$BL$9,'Manual Data'!AV31,AQ29)) -> . | L29: =IF(L$11=$BL$9,IF(ISERROR('Manual Data'!AW31/'Manual Data'!AT31*I29),".",'Manual Data'!AW31/'Manual Data'!AT31*I29),IF(ISERROR(AR29/AO29*I29),".",AR29/AO29*I29)) -> . | M29: =IF(M$11="No Data",".",IF(M$11=$BL$9,'Manual Data'!AX31,AS29)) -> . | N29: =IF(N$11="No Data",".",IF(N$11=$BL$9,'Manual Data'!AY31,AT29)) -> . | O29: =IF(O$11=$BL$9,IF(ISERROR('Manual Data'!AZ31/'Manual Data'!$AN31*$C29),".",'Manual Data'!AZ31/'Manual Data'!$AN31*$C29),IF(ISERROR(AU29/$AI29*$C29),".",AU29/$AI29*$C29)) -> 5631.952 | P29: =IF(P$11="No Data",".",IF(P$11=$BL$9,'Manual Data'!BA31,AV29)) -> 2879.96005 | Q29: =IF(Q$11="No Data",".",IF(Q$11=$BL$9,'Manual Data'!BB31,AW29)) -> 2751.99195 | R29: =IF(R$11=$BL$9,'Manual Data'!BC31,AX29) -> 5.822 | S29: =IF(S$11=$BL$9,'Manual Data'!BD31,AY29) -> 155.1 | T29: =IF(T$11=$BL$9,'Manual Data'!BE31,AZ29) -> 232.5 | U29: =IF(U$11=$BL$9,'Manual Data'!BF31,BA29) -> 13025.12857 | V29: =IF(V$11=$BL$9,'Manual Data'!BG31,BB29) -> 694.3424273 | W29: =IF(W$11=$BL$9,'Manual Data'!BH31,BC29) -> 188.2841159 | X29: =IF(X$11=$BL$9,'Manual Data'!BI31,BD29) -> 0 | Y29: =IF(Y$11=$BL$9,'Manual Data'!BJ31,BE29) -> 506.0583114 | Z29: =IF(Z$11=$BL$9,'Manual Data'!BK31,BF29) -> . | AA29: =IF(AA$11=$BL$9,'Manual Data'!BL31,BG29) -> . | AB29: =IF(AB$11=$BL$9,'Manual Data'!BM31,BH29) -> . | AC29: =IF(AC$11=$BL$9,'Manual Data'!BN31,BI29) -> . | AD29: =IF(AD$11=$BL$9,'Manual Data'!BO31,BJ29) -> . | AF29: ='Existing Data_DataBank'!BP30 -> 1976 | AG29: ='Existing Data_DataBank'!CT30 -> GDP | AH29: ='Existing Data_DataBank'!BQ30 -> 3921.990979 | AI29: ='Existing Data_DataBank'!BR30 -> 13719.471 | AJ29: ='Existing Data_DataBank'!BS30 -> 6861.953501 | AK29: ='Existing Data_DataBank'!BT30 -> 6857.517499 | AL29: ='Existing Data_DataBank'!BU30 -> 7649.044 | AM29: ='Existing Data_DataBank'!BV30 -> 3790.435381 | AN29: ='Existing Data_DataBank'!BW30 -> 3858.608619 | AO29: ='Existing Data_DataBank'!BX30 -> . | AP29: ='Existing Data_DataBank'!BY30 -> . | AQ29: ='Existing Data_DataBank'!BZ30 -> . | AR29: ='Existing Data_DataBank'!CA30 -> . | AS29: ='Existing Data_DataBank'!CB30 -> . | AT29: ='Existing Data_DataBank'!CC30 -> . | AU29: ='Existing Data_DataBank'!CD30 -> 5631.952 | AV29: ='Existing Data_DataBank'!CE30 -> 2879.96005 | AW29: ='Existing Data_DataBank'!CF30 -> 2751.99195 | AX29: ='Existing Data_DataBank'!CG30 -> 5.822 | AY29: ='Existing Data_DataBank'!CH30 -> 155.1 | AZ29: ='Existing Data_DataBank'!CI30 -> 232.5 | BA29: ='Existing Data_DataBank'!CJ30 -> 13025.12857 | BB29: ='Existing Data_DataBank'!CK30 -> 694.3424273 | BC29: ='Existing Data_DataBank'!CL30 -> 188.2841159 | BD29: ='Existing Data_DataBank'!CM30 -> 0 | BE29: ='Existing Data_DataBank'!CN30 -> 506.0583114 | BF29: ='Existing Data_DataBank'!CO30 -> . | BG29: ='Existing Data_DataBank'!CP30 -> . | BH29: ='Existing Data_DataBank'!CQ30 -> . | BI29: ='Existing Data_DataBank'!CR30 -> . | BJ29: ='Existing Data_DataBank'!CS30 -> . | BP29: 1976 | BQ29: 6070.427 | BU29: 13719.471 | BV29: 3921.990979
A30: 1977 | B30: =IF(B$11=$BL$9,'Manual Data'!AM32,AH30) -> 4040.316405 | C30: =IF(C$11=$BL$9,'Manual Data'!AN32,AI30) -> 14028.536 | D30: =IF(D$11=$BL$9,'Manual Data'!AO32,AJ30) -> 7021.0815 | E30: =IF(E$11=$BL$9,'Manual Data'!AP32,AK30) -> 7007.4545 | F30: =IF(F$11=$BL$9,IF(ISERROR('Manual Data'!AQ32/'Manual Data'!$AN32*$C30),".",'Manual Data'!AQ32/'Manual Data'!$AN32*$C30),IF(ISERROR(AL30/$AI30*$C30),".",AL30/$AI30*$C30)) -> 7798.54 | G30: =IF(G$11="No Data",".",IF(G$11=$BL$9,'Manual Data'!AR32,AM30)) -> 3869.418276 | H30: =IF(H$11="No Data",".",IF(H$11=$BL$9,'Manual Data'!AS32,AN30)) -> 3929.121724 | I30: =IF(I$11=$BL$9,IF(ISERROR('Manual Data'!AT32/'Manual Data'!AQ32*F30),".",'Manual Data'!AT32/'Manual Data'!AQ32*F30),IF(ISERROR(AO30/AL30*F30),".",AO30/AL30*F30)) -> . | J30: =IF(J$11="No Data",".",IF(J$11=$BL$9,'Manual Data'!AU32,AP30)) -> . | K30: =IF(K$11="No Data",".",IF(K$11=$BL$9,'Manual Data'!AV32,AQ30)) -> . | L30: =IF(L$11=$BL$9,IF(ISERROR('Manual Data'!AW32/'Manual Data'!AT32*I30),".",'Manual Data'!AW32/'Manual Data'!AT32*I30),IF(ISERROR(AR30/AO30*I30),".",AR30/AO30*I30)) -> . | M30: =IF(M$11="No Data",".",IF(M$11=$BL$9,'Manual Data'!AX32,AS30)) -> . | N30: =IF(N$11="No Data",".",IF(N$11=$BL$9,'Manual Data'!AY32,AT30)) -> . | O30: =IF(O$11=$BL$9,IF(ISERROR('Manual Data'!AZ32/'Manual Data'!$AN32*$C30),".",'Manual Data'!AZ32/'Manual Data'!$AN32*$C30),IF(ISERROR(AU30/$AI30*$C30),".",AU30/$AI30*$C30)) -> 5776.162 | P30: =IF(P$11="No Data",".",IF(P$11=$BL$9,'Manual Data'!BA32,AV30)) -> 2953.883211 | Q30: =IF(Q$11="No Data",".",IF(Q$11=$BL$9,'Manual Data'!BB32,AW30)) -> 2822.278789 | R30: =IF(R$11=$BL$9,'Manual Data'!BC32,AX30) -> 5.804 | S30: =IF(S$11=$BL$9,'Manual Data'!BD32,AY30) -> 151.4 | T30: =IF(T$11=$BL$9,'Manual Data'!BE32,AZ30) -> 226.9 | U30: =IF(U$11=$BL$9,'Manual Data'!BF32,BA30) -> 13284.74302 | V30: =IF(V$11=$BL$9,'Manual Data'!BG32,BB30) -> 743.7929787 | W30: =IF(W$11=$BL$9,'Manual Data'!BH32,BC30) -> 196.8779944 | X30: =IF(X$11=$BL$9,'Manual Data'!BI32,BD30) -> 5.632701359e-06 | Y30: =IF(Y$11=$BL$9,'Manual Data'!BJ32,BE30) -> 546.9149787 | Z30: =IF(Z$11=$BL$9,'Manual Data'!BK32,BF30) -> . | AA30: =IF(AA$11=$BL$9,'Manual Data'!BL32,BG30) -> . | AB30: =IF(AB$11=$BL$9,'Manual Data'!BM32,BH30) -> . | AC30: =IF(AC$11=$BL$9,'Manual Data'!BN32,BI30) -> . | AD30: =IF(AD$11=$BL$9,'Manual Data'!BO32,BJ30) -> . | AF30: ='Existing Data_DataBank'!BP31 -> 1977 | AG30: ='Existing Data_DataBank'!CT31 -> GDP | AH30: ='Existing Data_DataBank'!BQ31 -> 4040.316405 | AI30: ='Existing Data_DataBank'!BR31 -> 14028.536 | AJ30: ='Existing Data_DataBank'!BS31 -> 7021.0815 | AK30: ='Existing Data_DataBank'!BT31 -> 7007.4545 | AL30: ='Existing Data_DataBank'!BU31 -> 7798.54 | AM30: ='Existing Data_DataBank'!BV31 -> 3869.418276 | AN30: ='Existing Data_DataBank'!BW31 -> 3929.121724 | AO30: ='Existing Data_DataBank'!BX31 -> . | AP30: ='Existing Data_DataBank'!BY31 -> . | AQ30: ='Existing Data_DataBank'!BZ31 -> . | AR30: ='Existing Data_DataBank'!CA31 -> . | AS30: ='Existing Data_DataBank'!CB31 -> . | AT30: ='Existing Data_DataBank'!CC31 -> . | AU30: ='Existing Data_DataBank'!CD31 -> 5776.162 | AV30: ='Existing Data_DataBank'!CE31 -> 2953.883211 | AW30: ='Existing Data_DataBank'!CF31 -> 2822.278789 | AX30: ='Existing Data_DataBank'!CG31 -> 5.804 | AY30: ='Existing Data_DataBank'!CH31 -> 151.4 | AZ30: ='Existing Data_DataBank'!CI31 -> 226.9 | BA30: ='Existing Data_DataBank'!CJ31 -> 13284.74302 | BB30: ='Existing Data_DataBank'!CK31 -> 743.7929787 | BC30: ='Existing Data_DataBank'!CL31 -> 196.8779944 | BD30: ='Existing Data_DataBank'!CM31 -> 5.632701359e-06 | BE30: ='Existing Data_DataBank'!CN31 -> 546.9149787 | BF30: ='Existing Data_DataBank'!CO31 -> . | BG30: ='Existing Data_DataBank'!CP31 -> . | BH30: ='Existing Data_DataBank'!CQ31 -> . | BI30: ='Existing Data_DataBank'!CR31 -> . | BJ30: ='Existing Data_DataBank'!CS31 -> . | BP30: 1977 | BQ30: 6229.996 | BU30: 14028.536 | BV30: 4040.316405
A31: 1978 | B31: =IF(B$11=$BL$9,'Manual Data'!AM33,AH31) -> 4218.322297 | C31: =IF(C$11=$BL$9,'Manual Data'!AN33,AI31) -> 14347.641 | D31: =IF(D$11=$BL$9,'Manual Data'!AO33,AJ31) -> 7184.663991 | E31: =IF(E$11=$BL$9,'Manual Data'!AP33,AK31) -> 7162.977009 | F31: =IF(F$11=$BL$9,IF(ISERROR('Manual Data'!AQ33/'Manual Data'!$AN33*$C31),".",'Manual Data'!AQ33/'Manual Data'!$AN33*$C31),IF(ISERROR(AL31/$AI31*$C31),".",AL31/$AI31*$C31)) -> 7956.866 | G31: =IF(G$11="No Data",".",IF(G$11=$BL$9,'Manual Data'!AR33,AM31)) -> 3952.403694 | H31: =IF(H$11="No Data",".",IF(H$11=$BL$9,'Manual Data'!AS33,AN31)) -> 4004.462306 | I31: =IF(I$11=$BL$9,IF(ISERROR('Manual Data'!AT33/'Manual Data'!AQ33*F31),".",'Manual Data'!AT33/'Manual Data'!AQ33*F31),IF(ISERROR(AO31/AL31*F31),".",AO31/AL31*F31)) -> . | J31: =IF(J$11="No Data",".",IF(J$11=$BL$9,'Manual Data'!AU33,AP31)) -> . | K31: =IF(K$11="No Data",".",IF(K$11=$BL$9,'Manual Data'!AV33,AQ31)) -> . | L31: =IF(L$11=$BL$9,IF(ISERROR('Manual Data'!AW33/'Manual Data'!AT33*I31),".",'Manual Data'!AW33/'Manual Data'!AT33*I31),IF(ISERROR(AR31/AO31*I31),".",AR31/AO31*I31)) -> . | M31: =IF(M$11="No Data",".",IF(M$11=$BL$9,'Manual Data'!AX33,AS31)) -> . | N31: =IF(N$11="No Data",".",IF(N$11=$BL$9,'Manual Data'!AY33,AT31)) -> . | O31: =IF(O$11=$BL$9,IF(ISERROR('Manual Data'!AZ33/'Manual Data'!$AN33*$C31),".",'Manual Data'!AZ33/'Manual Data'!$AN33*$C31),IF(ISERROR(AU31/$AI31*$C31),".",AU31/$AI31*$C31)) -> 5922.597 | P31: =IF(P$11="No Data",".",IF(P$11=$BL$9,'Manual Data'!BA33,AV31)) -> 3028.861467 | Q31: =IF(Q$11="No Data",".",IF(Q$11=$BL$9,'Manual Data'!BB33,AW31)) -> 2893.735533 | R31: =IF(R$11=$BL$9,'Manual Data'!BC33,AX31) -> 5.783 | S31: =IF(S$11=$BL$9,'Manual Data'!BD33,AY31) -> 147.6 | T31: =IF(T$11=$BL$9,'Manual Data'!BE33,AZ31) -> 221 | U31: =IF(U$11=$BL$9,'Manual Data'!BF33,BA31) -> 13550.9165 | V31: =IF(V$11=$BL$9,'Manual Data'!BG33,BB31) -> 796.7245047 | W31: =IF(W$11=$BL$9,'Manual Data'!BH33,BC31) -> 205.877872 | X31: =IF(X$11=$BL$9,'Manual Data'!BI33,BD31) -> 0.0001279804161 | Y31: =IF(Y$11=$BL$9,'Manual Data'!BJ33,BE31) -> 590.8465047 | Z31: =IF(Z$11=$BL$9,'Manual Data'!BK33,BF31) -> . | AA31: =IF(AA$11=$BL$9,'Manual Data'!BL33,BG31) -> . | AB31: =IF(AB$11=$BL$9,'Manual Data'!BM33,BH31) -> . | AC31: =IF(AC$11=$BL$9,'Manual Data'!BN33,BI31) -> . | AD31: =IF(AD$11=$BL$9,'Manual Data'!BO33,BJ31) -> . | AF31: ='Existing Data_DataBank'!BP32 -> 1978 | AG31: ='Existing Data_DataBank'!CT32 -> GDP | AH31: ='Existing Data_DataBank'!BQ32 -> 4218.322297 | AI31: ='Existing Data_DataBank'!BR32 -> 14347.641 | AJ31: ='Existing Data_DataBank'!BS32 -> 7184.663991 | AK31: ='Existing Data_DataBank'!BT32 -> 7162.977009 | AL31: ='Existing Data_DataBank'!BU32 -> 7956.866 | AM31: ='Existing Data_DataBank'!BV32 -> 3952.403694 | AN31: ='Existing Data_DataBank'!BW32 -> 4004.462306 | AO31: ='Existing Data_DataBank'!BX32 -> . | AP31: ='Existing Data_DataBank'!BY32 -> . | AQ31: ='Existing Data_DataBank'!BZ32 -> . | AR31: ='Existing Data_DataBank'!CA32 -> . | AS31: ='Existing Data_DataBank'!CB32 -> . | AT31: ='Existing Data_DataBank'!CC32 -> . | AU31: ='Existing Data_DataBank'!CD32 -> 5922.597 | AV31: ='Existing Data_DataBank'!CE32 -> 3028.861467 | AW31: ='Existing Data_DataBank'!CF32 -> 2893.735533 | AX31: ='Existing Data_DataBank'!CG32 -> 5.783 | AY31: ='Existing Data_DataBank'!CH32 -> 147.6 | AZ31: ='Existing Data_DataBank'!CI32 -> 221 | BA31: ='Existing Data_DataBank'!CJ32 -> 13550.9165 | BB31: ='Existing Data_DataBank'!CK32 -> 796.7245047 | BC31: ='Existing Data_DataBank'!CL32 -> 205.877872 | BD31: ='Existing Data_DataBank'!CM32 -> 0.0001279804161 | BE31: ='Existing Data_DataBank'!CN32 -> 590.8465047 | BF31: ='Existing Data_DataBank'!CO32 -> . | BG31: ='Existing Data_DataBank'!CP32 -> . | BH31: ='Existing Data_DataBank'!CQ32 -> . | BI31: ='Existing Data_DataBank'!CR32 -> . | BJ31: ='Existing Data_DataBank'!CS32 -> . | BP31: 1978 | BQ31: 6390.775 | BU31: 14347.641 | BV31: 4218.322297
A32: 1979 | B32: =IF(B$11=$BL$9,'Manual Data'!AM34,AH32) -> 4318.249197 | C32: =IF(C$11=$BL$9,'Manual Data'!AN34,AI32) -> 14676.929 | D32: =IF(D$11=$BL$9,'Manual Data'!AO34,AJ32) -> 7352.552497 | E32: =IF(E$11=$BL$9,'Manual Data'!AP34,AK32) -> 7324.376503 | F32: =IF(F$11=$BL$9,IF(ISERROR('Manual Data'!AQ34/'Manual Data'!$AN34*$C32),".",'Manual Data'!AQ34/'Manual Data'!$AN34*$C32),IF(ISERROR(AL32/$AI32*$C32),".",AL32/$AI32*$C32)) -> 8125.181 | G32: =IF(G$11="No Data",".",IF(G$11=$BL$9,'Manual Data'!AR34,AM32)) -> 4039.939174 | H32: =IF(H$11="No Data",".",IF(H$11=$BL$9,'Manual Data'!AS34,AN32)) -> 4085.241826 | I32: =IF(I$11=$BL$9,IF(ISERROR('Manual Data'!AT34/'Manual Data'!AQ34*F32),".",'Manual Data'!AT34/'Manual Data'!AQ34*F32),IF(ISERROR(AO32/AL32*F32),".",AO32/AL32*F32)) -> . | J32: =IF(J$11="No Data",".",IF(J$11=$BL$9,'Manual Data'!AU34,AP32)) -> . | K32: =IF(K$11="No Data",".",IF(K$11=$BL$9,'Manual Data'!AV34,AQ32)) -> . | L32: =IF(L$11=$BL$9,IF(ISERROR('Manual Data'!AW34/'Manual Data'!AT34*I32),".",'Manual Data'!AW34/'Manual Data'!AT34*I32),IF(ISERROR(AR32/AO32*I32),".",AR32/AO32*I32)) -> . | M32: =IF(M$11="No Data",".",IF(M$11=$BL$9,'Manual Data'!AX34,AS32)) -> . | N32: =IF(N$11="No Data",".",IF(N$11=$BL$9,'Manual Data'!AY34,AT32)) -> . | O32: =IF(O$11=$BL$9,IF(ISERROR('Manual Data'!AZ34/'Manual Data'!$AN34*$C32),".",'Manual Data'!AZ34/'Manual Data'!$AN34*$C32),IF(ISERROR(AU32/$AI32*$C32),".",AU32/$AI32*$C32)) -> 6070.213 | P32: =IF(P$11="No Data",".",IF(P$11=$BL$9,'Manual Data'!BA34,AV32)) -> 3104.156366 | Q32: =IF(Q$11="No Data",".",IF(Q$11=$BL$9,'Manual Data'!BB34,AW32)) -> 2966.056634 | R32: =IF(R$11=$BL$9,'Manual Data'!BC34,AX32) -> 5.756 | S32: =IF(S$11=$BL$9,'Manual Data'!BD34,AY32) -> 143.7 | T32: =IF(T$11=$BL$9,'Manual Data'!BE34,AZ32) -> 214.8 | U32: =IF(U$11=$BL$9,'Manual Data'!BF34,BA32) -> 13823.31881 | V32: =IF(V$11=$BL$9,'Manual Data'!BG34,BB32) -> 853.6101906 | W32: =IF(W$11=$BL$9,'Manual Data'!BH34,BC32) -> 215.2880481 | X32: =IF(X$11=$BL$9,'Manual Data'!BI34,BD32) -> 0 | Y32: =IF(Y$11=$BL$9,'Manual Data'!BJ34,BE32) -> 638.3221426 | Z32: =IF(Z$11=$BL$9,'Manual Data'!BK34,BF32) -> . | AA32: =IF(AA$11=$BL$9,'Manual Data'!BL34,BG32) -> . | AB32: =IF(AB$11=$BL$9,'Manual Data'!BM34,BH32) -> . | AC32: =IF(AC$11=$BL$9,'Manual Data'!BN34,BI32) -> . | AD32: =IF(AD$11=$BL$9,'Manual Data'!BO34,BJ32) -> . | AF32: ='Existing Data_DataBank'!BP33 -> 1979 | AG32: ='Existing Data_DataBank'!CT33 -> GDP | AH32: ='Existing Data_DataBank'!BQ33 -> 4318.249197 | AI32: ='Existing Data_DataBank'!BR33 -> 14676.929 | AJ32: ='Existing Data_DataBank'!BS33 -> 7352.552497 | AK32: ='Existing Data_DataBank'!BT33 -> 7324.376503 | AL32: ='Existing Data_DataBank'!BU33 -> 8125.181 | AM32: ='Existing Data_DataBank'!BV33 -> 4039.939174 | AN32: ='Existing Data_DataBank'!BW33 -> 4085.241826 | AO32: ='Existing Data_DataBank'!BX33 -> . | AP32: ='Existing Data_DataBank'!BY33 -> . | AQ32: ='Existing Data_DataBank'!BZ33 -> . | AR32: ='Existing Data_DataBank'!CA33 -> . | AS32: ='Existing Data_DataBank'!CB33 -> . | AT32: ='Existing Data_DataBank'!CC33 -> . | AU32: ='Existing Data_DataBank'!CD33 -> 6070.213 | AV32: ='Existing Data_DataBank'!CE33 -> 3104.156366 | AW32: ='Existing Data_DataBank'!CF33 -> 2966.056634 | AX32: ='Existing Data_DataBank'!CG33 -> 5.756 | AY32: ='Existing Data_DataBank'!CH33 -> 143.7 | AZ32: ='Existing Data_DataBank'!CI33 -> 214.8 | BA32: ='Existing Data_DataBank'!CJ33 -> 13823.31881 | BB32: ='Existing Data_DataBank'!CK33 -> 853.6101906 | BC32: ='Existing Data_DataBank'!CL33 -> 215.2880481 | BD32: ='Existing Data_DataBank'!CM33 -> 0 | BE32: ='Existing Data_DataBank'!CN33 -> 638.3221426 | BF32: ='Existing Data_DataBank'!CO33 -> . | BG32: ='Existing Data_DataBank'!CP33 -> . | BH32: ='Existing Data_DataBank'!CQ33 -> . | BI32: ='Existing Data_DataBank'!CR33 -> . | BJ32: ='Existing Data_DataBank'!CS33 -> . | BP32: 1979 | BQ32: 6551.748 | BU32: 14676.929 | BV32: 4318.249197
A33: 1980 | B33: =IF(B$11=$BL$9,'Manual Data'!AM35,AH33) -> 4218.091976 | C33: =IF(C$11=$BL$9,'Manual Data'!AN35,AI33) -> 15016.402 | D33: =IF(D$11=$BL$9,'Manual Data'!AO35,AJ33) -> 7524.529993 | E33: =IF(E$11=$BL$9,'Manual Data'!AP35,AK33) -> 7491.872007 | F33: =IF(F$11=$BL$9,IF(ISERROR('Manual Data'!AQ35/'Manual Data'!$AN35*$C33),".",'Manual Data'!AQ35/'Manual Data'!$AN35*$C33),IF(ISERROR(AL33/$AI33*$C33),".",AL33/$AI33*$C33)) -> 8304.209 | G33: =IF(G$11="No Data",".",IF(G$11=$BL$9,'Manual Data'!AR35,AM33)) -> 4132.307349 | H33: =IF(H$11="No Data",".",IF(H$11=$BL$9,'Manual Data'!AS35,AN33)) -> 4171.901651 | I33: =IF(I$11=$BL$9,IF(ISERROR('Manual Data'!AT35/'Manual Data'!AQ35*F33),".",'Manual Data'!AT35/'Manual Data'!AQ35*F33),IF(ISERROR(AO33/AL33*F33),".",AO33/AL33*F33)) -> . | J33: =IF(J$11="No Data",".",IF(J$11=$BL$9,'Manual Data'!AU35,AP33)) -> . | K33: =IF(K$11="No Data",".",IF(K$11=$BL$9,'Manual Data'!AV35,AQ33)) -> . | L33: =IF(L$11=$BL$9,IF(ISERROR('Manual Data'!AW35/'Manual Data'!AT35*I33),".",'Manual Data'!AW35/'Manual Data'!AT35*I33),IF(ISERROR(AR33/AO33*I33),".",AR33/AO33*I33)) -> . | M33: =IF(M$11="No Data",".",IF(M$11=$BL$9,'Manual Data'!AX35,AS33)) -> . | N33: =IF(N$11="No Data",".",IF(N$11=$BL$9,'Manual Data'!AY35,AT33)) -> . | O33: =IF(O$11=$BL$9,IF(ISERROR('Manual Data'!AZ35/'Manual Data'!$AN35*$C33),".",'Manual Data'!AZ35/'Manual Data'!$AN35*$C33),IF(ISERROR(AU33/$AI33*$C33),".",AU33/$AI33*$C33)) -> 6218.221 | P33: =IF(P$11="No Data",".",IF(P$11=$BL$9,'Manual Data'!BA35,AV33)) -> 3179.22873 | Q33: =IF(Q$11="No Data",".",IF(Q$11=$BL$9,'Manual Data'!BB35,AW33)) -> 3038.99227 | R33: =IF(R$11=$BL$9,'Manual Data'!BC35,AX33) -> 5.725 | S33: =IF(S$11=$BL$9,'Manual Data'!BD35,AY33) -> 139.7 | T33: =IF(T$11=$BL$9,'Manual Data'!BE35,AZ33) -> 208.4 | U33: =IF(U$11=$BL$9,'Manual Data'!BF35,BA33) -> 14101.75295 | V33: =IF(V$11=$BL$9,'Manual Data'!BG35,BB33) -> 914.6490458 | W33: =IF(W$11=$BL$9,'Manual Data'!BH35,BC33) -> 225.1430113 | X33: =IF(X$11=$BL$9,'Manual Data'!BI35,BD33) -> 0 | Y33: =IF(Y$11=$BL$9,'Manual Data'!BJ35,BE33) -> 689.5060345 | Z33: =IF(Z$11=$BL$9,'Manual Data'!BK35,BF33) -> . | AA33: =IF(AA$11=$BL$9,'Manual Data'!BL35,BG33) -> . | AB33: =IF(AB$11=$BL$9,'Manual Data'!BM35,BH33) -> . | AC33: =IF(AC$11=$BL$9,'Manual Data'!BN35,BI33) -> . | AD33: =IF(AD$11=$BL$9,'Manual Data'!BO35,BJ33) -> . | AF33: ='Existing Data_DataBank'!BP34 -> 1980 | AG33: ='Existing Data_DataBank'!CT34 -> GDP | AH33: ='Existing Data_DataBank'!BQ34 -> 4218.091976 | AI33: ='Existing Data_DataBank'!BR34 -> 15016.402 | AJ33: ='Existing Data_DataBank'!BS34 -> 7524.529993 | AK33: ='Existing Data_DataBank'!BT34 -> 7491.872007 | AL33: ='Existing Data_DataBank'!BU34 -> 8304.209 | AM33: ='Existing Data_DataBank'!BV34 -> 4132.307349 | AN33: ='Existing Data_DataBank'!BW34 -> 4171.901651 | AO33: ='Existing Data_DataBank'!BX34 -> . | AP33: ='Existing Data_DataBank'!BY34 -> . | AQ33: ='Existing Data_DataBank'!BZ34 -> . | AR33: ='Existing Data_DataBank'!CA34 -> . | AS33: ='Existing Data_DataBank'!CB34 -> . | AT33: ='Existing Data_DataBank'!CC34 -> . | AU33: ='Existing Data_DataBank'!CD34 -> 6218.221 | AV33: ='Existing Data_DataBank'!CE34 -> 3179.22873 | AW33: ='Existing Data_DataBank'!CF34 -> 3038.99227 | AX33: ='Existing Data_DataBank'!CG34 -> 5.725 | AY33: ='Existing Data_DataBank'!CH34 -> 139.7 | AZ33: ='Existing Data_DataBank'!CI34 -> 208.4 | BA33: ='Existing Data_DataBank'!CJ34 -> 14101.75295 | BB33: ='Existing Data_DataBank'!CK34 -> 914.6490458 | BC33: ='Existing Data_DataBank'!CL34 -> 225.1430113 | BD33: ='Existing Data_DataBank'!CM34 -> 0 | BE33: ='Existing Data_DataBank'!CN34 -> 689.5060345 | BF33: ='Existing Data_DataBank'!CO34 -> . | BG33: ='Existing Data_DataBank'!CP34 -> . | BH33: ='Existing Data_DataBank'!CQ34 -> . | BI33: ='Existing Data_DataBank'!CR34 -> . | BJ33: ='Existing Data_DataBank'!CS34 -> . | BP33: 1980 | BQ33: 6712.193 | BU33: 15016.402 | BV33: 4218.091976
A34: 1981 | B34: =IF(B$11=$BL$9,'Manual Data'!AM36,AH34) -> 4569.964118 | C34: =IF(C$11=$BL$9,'Manual Data'!AN36,AI34) -> 15367.23 | D34: =IF(D$11=$BL$9,'Manual Data'!AO36,AJ34) -> 7701.801501 | E34: =IF(E$11=$BL$9,'Manual Data'!AP36,AK34) -> 7665.428499 | F34: =IF(F$11=$BL$9,IF(ISERROR('Manual Data'!AQ36/'Manual Data'!$AN36*$C34),".",'Manual Data'!AQ36/'Manual Data'!$AN36*$C34),IF(ISERROR(AL34/$AI34*$C34),".",AL34/$AI34*$C34)) -> 8460.703 | G34: =IF(G$11="No Data",".",IF(G$11=$BL$9,'Manual Data'!AR36,AM34)) -> 4210.734274 | H34: =IF(H$11="No Data",".",IF(H$11=$BL$9,'Manual Data'!AS36,AN34)) -> 4249.968726 | I34: =IF(I$11=$BL$9,IF(ISERROR('Manual Data'!AT36/'Manual Data'!AQ36*F34),".",'Manual Data'!AT36/'Manual Data'!AQ36*F34),IF(ISERROR(AO34/AL34*F34),".",AO34/AL34*F34)) -> . | J34: =IF(J$11="No Data",".",IF(J$11=$BL$9,'Manual Data'!AU36,AP34)) -> . | K34: =IF(K$11="No Data",".",IF(K$11=$BL$9,'Manual Data'!AV36,AQ34)) -> . | L34: =IF(L$11=$BL$9,IF(ISERROR('Manual Data'!AW36/'Manual Data'!AT36*I34),".",'Manual Data'!AW36/'Manual Data'!AT36*I34),IF(ISERROR(AR34/AO34*I34),".",AR34/AO34*I34)) -> . | M34: =IF(M$11="No Data",".",IF(M$11=$BL$9,'Manual Data'!AX36,AS34)) -> . | N34: =IF(N$11="No Data",".",IF(N$11=$BL$9,'Manual Data'!AY36,AT34)) -> . | O34: =IF(O$11=$BL$9,IF(ISERROR('Manual Data'!AZ36/'Manual Data'!$AN36*$C34),".",'Manual Data'!AZ36/'Manual Data'!$AN36*$C34),IF(ISERROR(AU34/$AI34*$C34),".",AU34/$AI34*$C34)) -> 6395.256 | P34: =IF(P$11="No Data",".",IF(P$11=$BL$9,'Manual Data'!BA36,AV34)) -> 3270.811213 | Q34: =IF(Q$11="No Data",".",IF(Q$11=$BL$9,'Manual Data'!BB36,AW34)) -> 3124.444787 | R34: =IF(R$11=$BL$9,'Manual Data'!BC36,AX34) -> 5.687 | S34: =IF(S$11=$BL$9,'Manual Data'!BD36,AY34) -> 135.6 | T34: =IF(T$11=$BL$9,'Manual Data'!BE36,AZ34) -> 201.8 | U34: =IF(U$11=$BL$9,'Manual Data'!BF36,BA34) -> 14387.41542 | V34: =IF(V$11=$BL$9,'Manual Data'!BG36,BB34) -> 979.8145848 | W34: =IF(W$11=$BL$9,'Manual Data'!BH36,BC34) -> 235.4979002 | X34: =IF(X$11=$BL$9,'Manual Data'!BI36,BD34) -> 9.979309316e-05 | Y34: =IF(Y$11=$BL$9,'Manual Data'!BJ36,BE34) -> 744.3165848 | Z34: =IF(Z$11=$BL$9,'Manual Data'!BK36,BF34) -> . | AA34: =IF(AA$11=$BL$9,'Manual Data'!BL36,BG34) -> . | AB34: =IF(AB$11=$BL$9,'Manual Data'!BM36,BH34) -> . | AC34: =IF(AC$11=$BL$9,'Manual Data'!BN36,BI34) -> . | AD34: =IF(AD$11=$BL$9,'Manual Data'!BO36,BJ34) -> . | AF34: ='Existing Data_DataBank'!BP35 -> 1981 | AG34: ='Existing Data_DataBank'!CT35 -> GDP | AH34: ='Existing Data_DataBank'!BQ35 -> 4569.964118 | AI34: ='Existing Data_DataBank'!BR35 -> 15367.23 | AJ34: ='Existing Data_DataBank'!BS35 -> 7701.801501 | AK34: ='Existing Data_DataBank'!BT35 -> 7665.428499 | AL34: ='Existing Data_DataBank'!BU35 -> 8460.703 | AM34: ='Existing Data_DataBank'!BV35 -> 4210.734274 | AN34: ='Existing Data_DataBank'!BW35 -> 4249.968726 | AO34: ='Existing Data_DataBank'!BX35 -> . | AP34: ='Existing Data_DataBank'!BY35 -> . | AQ34: ='Existing Data_DataBank'!BZ35 -> . | AR34: ='Existing Data_DataBank'!CA35 -> . | AS34: ='Existing Data_DataBank'!CB35 -> . | AT34: ='Existing Data_DataBank'!CC35 -> . | AU34: ='Existing Data_DataBank'!CD35 -> 6395.256 | AV34: ='Existing Data_DataBank'!CE35 -> 3270.811213 | AW34: ='Existing Data_DataBank'!CF35 -> 3124.444787 | AX34: ='Existing Data_DataBank'!CG35 -> 5.687 | AY34: ='Existing Data_DataBank'!CH35 -> 135.6 | AZ34: ='Existing Data_DataBank'!CI35 -> 201.8 | BA34: ='Existing Data_DataBank'!CJ35 -> 14387.41542 | BB34: ='Existing Data_DataBank'!CK35 -> 979.8145848 | BC34: ='Existing Data_DataBank'!CL35 -> 235.4979002 | BD34: ='Existing Data_DataBank'!CM35 -> 9.979309316e-05 | BE34: ='Existing Data_DataBank'!CN35 -> 744.3165848 | BF34: ='Existing Data_DataBank'!CO35 -> . | BG34: ='Existing Data_DataBank'!CP35 -> . | BH34: ='Existing Data_DataBank'!CQ35 -> . | BI34: ='Existing Data_DataBank'!CR35 -> . | BJ34: ='Existing Data_DataBank'!CS35 -> . | BP34: 1981 | BQ34: 6906.527 | BU34: 15367.23 | BV34: 4569.964118
A35: 1982 | B35: =IF(B$11=$BL$9,'Manual Data'!AM37,AH35) -> 4742.680183 | C35: =IF(C$11=$BL$9,'Manual Data'!AN37,AI35) -> 15729.431 | D35: =IF(D$11=$BL$9,'Manual Data'!AO37,AJ35) -> 7884.373 | E35: =IF(E$11=$BL$9,'Manual Data'!AP37,AK35) -> 7845.058 | F35: =IF(F$11=$BL$9,IF(ISERROR('Manual Data'!AQ37/'Manual Data'!$AN37*$C35),".",'Manual Data'!AQ37/'Manual Data'!$AN37*$C35),IF(ISERROR(AL35/$AI35*$C35),".",AL35/$AI35*$C35)) -> 8633.029 | G35: =IF(G$11="No Data",".",IF(G$11=$BL$9,'Manual Data'!AR37,AM35)) -> 4296.568 | H35: =IF(H$11="No Data",".",IF(H$11=$BL$9,'Manual Data'!AS37,AN35)) -> 4336.461 | I35: =IF(I$11=$BL$9,IF(ISERROR('Manual Data'!AT37/'Manual Data'!AQ37*F35),".",'Manual Data'!AT37/'Manual Data'!AQ37*F35),IF(ISERROR(AO35/AL35*F35),".",AO35/AL35*F35)) -> . | J35: =IF(J$11="No Data",".",IF(J$11=$BL$9,'Manual Data'!AU37,AP35)) -> . | K35: =IF(K$11="No Data",".",IF(K$11=$BL$9,'Manual Data'!AV37,AQ35)) -> . | L35: =IF(L$11=$BL$9,IF(ISERROR('Manual Data'!AW37/'Manual Data'!AT37*I35),".",'Manual Data'!AW37/'Manual Data'!AT37*I35),IF(ISERROR(AR35/AO35*I35),".",AR35/AO35*I35)) -> . | M35: =IF(M$11="No Data",".",IF(M$11=$BL$9,'Manual Data'!AX37,AS35)) -> . | N35: =IF(N$11="No Data",".",IF(N$11=$BL$9,'Manual Data'!AY37,AT35)) -> . | O35: =IF(O$11=$BL$9,IF(ISERROR('Manual Data'!AZ37/'Manual Data'!$AN37*$C35),".",'Manual Data'!AZ37/'Manual Data'!$AN37*$C35),IF(ISERROR(AU35/$AI35*$C35),".",AU35/$AI35*$C35)) -> 6568.693 | P35: =IF(P$11="No Data",".",IF(P$11=$BL$9,'Manual Data'!BA37,AV35)) -> 3360.766 | Q35: =IF(Q$11="No Data",".",IF(Q$11=$BL$9,'Manual Data'!BB37,AW35)) -> 3207.927 | R35: =IF(R$11=$BL$9,'Manual Data'!BC37,AX35) -> 5.645 | S35: =IF(S$11=$BL$9,'Manual Data'!BD37,AY35) -> 131.5 | T35: =IF(T$11=$BL$9,'Manual Data'!BE37,AZ35) -> 195.3 | U35: =IF(U$11=$BL$9,'Manual Data'!BF37,BA35) -> 14688.77185 | V35: =IF(V$11=$BL$9,'Manual Data'!BG37,BB35) -> 1040.659155 | W35: =IF(W$11=$BL$9,'Manual Data'!BH37,BC35) -> 249.6350372 | X35: =IF(X$11=$BL$9,'Manual Data'!BI37,BD35) -> 0 | Y35: =IF(Y$11=$BL$9,'Manual Data'!BJ37,BE35) -> 791.0241178 | Z35: =IF(Z$11=$BL$9,'Manual Data'!BK37,BF35) -> . | AA35: =IF(AA$11=$BL$9,'Manual Data'!BL37,BG35) -> . | AB35: =IF(AB$11=$BL$9,'Manual Data'!BM37,BH35) -> . | AC35: =IF(AC$11=$BL$9,'Manual Data'!BN37,BI35) -> . | AD35: =IF(AD$11=$BL$9,'Manual Data'!BO37,BJ35) -> . | AF35: ='Existing Data_DataBank'!BP36 -> 1982 | AG35: ='Existing Data_DataBank'!CT36 -> GDP | AH35: ='Existing Data_DataBank'!BQ36 -> 4742.680183 | AI35: ='Existing Data_DataBank'!BR36 -> 15729.431 | AJ35: ='Existing Data_DataBank'!BS36 -> 7884.373 | AK35: ='Existing Data_DataBank'!BT36 -> 7845.058 | AL35: ='Existing Data_DataBank'!BU36 -> 8633.029 | AM35: ='Existing Data_DataBank'!BV36 -> 4296.568 | AN35: ='Existing Data_DataBank'!BW36 -> 4336.461 | AO35: ='Existing Data_DataBank'!BX36 -> . | AP35: ='Existing Data_DataBank'!BY36 -> . | AQ35: ='Existing Data_DataBank'!BZ36 -> . | AR35: ='Existing Data_DataBank'!CA36 -> . | AS35: ='Existing Data_DataBank'!CB36 -> . | AT35: ='Existing Data_DataBank'!CC36 -> . | AU35: ='Existing Data_DataBank'!CD36 -> 6568.693 | AV35: ='Existing Data_DataBank'!CE36 -> 3360.766 | AW35: ='Existing Data_DataBank'!CF36 -> 3207.927 | AX35: ='Existing Data_DataBank'!CG36 -> 5.645 | AY35: ='Existing Data_DataBank'!CH36 -> 131.5 | AZ35: ='Existing Data_DataBank'!CI36 -> 195.3 | BA35: ='Existing Data_DataBank'!CJ36 -> 14688.77185 | BB35: ='Existing Data_DataBank'!CK36 -> 1040.659155 | BC35: ='Existing Data_DataBank'!CL36 -> 249.6350372 | BD35: ='Existing Data_DataBank'!CM36 -> 0 | BE35: ='Existing Data_DataBank'!CN36 -> 791.0241178 | BF35: ='Existing Data_DataBank'!CO36 -> . | BG35: ='Existing Data_DataBank'!CP36 -> . | BH35: ='Existing Data_DataBank'!CQ36 -> . | BI35: ='Existing Data_DataBank'!CR36 -> . | BJ35: ='Existing Data_DataBank'!CS36 -> . | BP35: 1982 | BQ35: 7096.402 | BU35: 15729.431 | BV35: 4742.680183
A36: 1983 | B36: =IF(B$11=$BL$9,'Manual Data'!AM38,AH36) -> 4601.471346 | C36: =IF(C$11=$BL$9,'Manual Data'!AN38,AI36) -> 16100.617 | D36: =IF(D$11=$BL$9,'Manual Data'!AO38,AJ36) -> 8069.542993 | E36: =IF(E$11=$BL$9,'Manual Data'!AP38,AK36) -> 8031.074007 | F36: =IF(F$11=$BL$9,IF(ISERROR('Manual Data'!AQ38/'Manual Data'!$AN38*$C36),".",'Manual Data'!AQ38/'Manual Data'!$AN38*$C36),IF(ISERROR(AL36/$AI36*$C36),".",AL36/$AI36*$C36)) -> 8817.678 | G36: =IF(G$11="No Data",".",IF(G$11=$BL$9,'Manual Data'!AR38,AM36)) -> 4387.453365 | H36: =IF(H$11="No Data",".",IF(H$11=$BL$9,'Manual Data'!AS38,AN36)) -> 4430.224635 | I36: =IF(I$11=$BL$9,IF(ISERROR('Manual Data'!AT38/'Manual Data'!AQ38*F36),".",'Manual Data'!AT38/'Manual Data'!AQ38*F36),IF(ISERROR(AO36/AL36*F36),".",AO36/AL36*F36)) -> . | J36: =IF(J$11="No Data",".",IF(J$11=$BL$9,'Manual Data'!AU38,AP36)) -> . | K36: =IF(K$11="No Data",".",IF(K$11=$BL$9,'Manual Data'!AV38,AQ36)) -> . | L36: =IF(L$11=$BL$9,IF(ISERROR('Manual Data'!AW38/'Manual Data'!AT38*I36),".",'Manual Data'!AW38/'Manual Data'!AT38*I36),IF(ISERROR(AR36/AO36*I36),".",AR36/AO36*I36)) -> . | M36: =IF(M$11="No Data",".",IF(M$11=$BL$9,'Manual Data'!AX38,AS36)) -> . | N36: =IF(N$11="No Data",".",IF(N$11=$BL$9,'Manual Data'!AY38,AT36)) -> . | O36: =IF(O$11=$BL$9,IF(ISERROR('Manual Data'!AZ38/'Manual Data'!$AN38*$C36),".",'Manual Data'!AZ38/'Manual Data'!$AN38*$C36),IF(ISERROR(AU36/$AI36*$C36),".",AU36/$AI36*$C36)) -> 6739.572 | P36: =IF(P$11="No Data",".",IF(P$11=$BL$9,'Manual Data'!BA38,AV36)) -> 3448.820715 | Q36: =IF(Q$11="No Data",".",IF(Q$11=$BL$9,'Manual Data'!BB38,AW36)) -> 3290.751285 | R36: =IF(R$11=$BL$9,'Manual Data'!BC38,AX36) -> 5.597 | S36: =IF(S$11=$BL$9,'Manual Data'!BD38,AY36) -> 127.4 | T36: =IF(T$11=$BL$9,'Manual Data'!BE38,AZ36) -> 188.8 | U36: =IF(U$11=$BL$9,'Manual Data'!BF38,BA36) -> 14995.47065 | V36: =IF(V$11=$BL$9,'Manual Data'!BG38,BB36) -> 1105.146351 | W36: =IF(W$11=$BL$9,'Manual Data'!BH38,BC36) -> 264.621084 | X36: =IF(X$11=$BL$9,'Manual Data'!BI38,BD36) -> 0 | Y36: =IF(Y$11=$BL$9,'Manual Data'!BJ38,BE36) -> 840.5252669 | Z36: =IF(Z$11=$BL$9,'Manual Data'!BK38,BF36) -> . | AA36: =IF(AA$11=$BL$9,'Manual Data'!BL38,BG36) -> . | AB36: =IF(AB$11=$BL$9,'Manual Data'!BM38,BH36) -> . | AC36: =IF(AC$11=$BL$9,'Manual Data'!BN38,BI36) -> . | AD36: =IF(AD$11=$BL$9,'Manual Data'!BO38,BJ36) -> . | AF36: ='Existing Data_DataBank'!BP37 -> 1983 | AG36: ='Existing Data_DataBank'!CT37 -> GDP | AH36: ='Existing Data_DataBank'!BQ37 -> 4601.471346 | AI36: ='Existing Data_DataBank'!BR37 -> 16100.617 | AJ36: ='Existing Data_DataBank'!BS37 -> 8069.542993 | AK36: ='Existing Data_DataBank'!BT37 -> 8031.074007 | AL36: ='Existing Data_DataBank'!BU37 -> 8817.678 | AM36: ='Existing Data_DataBank'!BV37 -> 4387.453365 | AN36: ='Existing Data_DataBank'!BW37 -> 4430.224635 | AO36: ='Existing Data_DataBank'!BX37 -> . | AP36: ='Existing Data_DataBank'!BY37 -> . | AQ36: ='Existing Data_DataBank'!BZ37 -> . | AR36: ='Existing Data_DataBank'!CA37 -> . | AS36: ='Existing Data_DataBank'!CB37 -> . | AT36: ='Existing Data_DataBank'!CC37 -> . | AU36: ='Existing Data_DataBank'!CD37 -> 6739.572 | AV36: ='Existing Data_DataBank'!CE37 -> 3448.820715 | AW36: ='Existing Data_DataBank'!CF37 -> 3290.751285 | AX36: ='Existing Data_DataBank'!CG37 -> 5.597 | AY36: ='Existing Data_DataBank'!CH37 -> 127.4 | AZ36: ='Existing Data_DataBank'!CI37 -> 188.8 | BA36: ='Existing Data_DataBank'!CJ37 -> 14995.47065 | BB36: ='Existing Data_DataBank'!CK37 -> 1105.146351 | BC36: ='Existing Data_DataBank'!CL37 -> 264.621084 | BD36: ='Existing Data_DataBank'!CM37 -> 0 | BE36: ='Existing Data_DataBank'!CN37 -> 840.5252669 | BF36: ='Existing Data_DataBank'!CO37 -> . | BG36: ='Existing Data_DataBank'!CP37 -> . | BH36: ='Existing Data_DataBank'!CQ37 -> . | BI36: ='Existing Data_DataBank'!CR37 -> . | BJ36: ='Existing Data_DataBank'!CS37 -> . | BP36: 1983 | BQ36: 7282.939 | BU36: 16100.617 | BV36: 4601.471346
A37: 1984 | B37: =IF(B$11=$BL$9,'Manual Data'!AM39,AH37) -> 5046.945769 | C37: =IF(C$11=$BL$9,'Manual Data'!AN39,AI37) -> 16477.473 | D37: =IF(D$11=$BL$9,'Manual Data'!AO39,AJ37) -> 8253.663486 | E37: =IF(E$11=$BL$9,'Manual Data'!AP39,AK37) -> 8223.809514 | F37: =IF(F$11=$BL$9,IF(ISERROR('Manual Data'!AQ39/'Manual Data'!$AN39*$C37),".",'Manual Data'!AQ39/'Manual Data'!$AN39*$C37),IF(ISERROR(AL37/$AI37*$C37),".",AL37/$AI37*$C37)) -> 9010.299 | G37: =IF(G$11="No Data",".",IF(G$11=$BL$9,'Manual Data'!AR39,AM37)) -> 4480.295921 | H37: =IF(H$11="No Data",".",IF(H$11=$BL$9,'Manual Data'!AS39,AN37)) -> 4530.003079 | I37: =IF(I$11=$BL$9,IF(ISERROR('Manual Data'!AT39/'Manual Data'!AQ39*F37),".",'Manual Data'!AT39/'Manual Data'!AQ39*F37),IF(ISERROR(AO37/AL37*F37),".",AO37/AL37*F37)) -> . | J37: =IF(J$11="No Data",".",IF(J$11=$BL$9,'Manual Data'!AU39,AP37)) -> . | K37: =IF(K$11="No Data",".",IF(K$11=$BL$9,'Manual Data'!AV39,AQ37)) -> . | L37: =IF(L$11=$BL$9,IF(ISERROR('Manual Data'!AW39/'Manual Data'!AT39*I37),".",'Manual Data'!AW39/'Manual Data'!AT39*I37),IF(ISERROR(AR37/AO37*I37),".",AR37/AO37*I37)) -> . | M37: =IF(M$11="No Data",".",IF(M$11=$BL$9,'Manual Data'!AX39,AS37)) -> . | N37: =IF(N$11="No Data",".",IF(N$11=$BL$9,'Manual Data'!AY39,AT37)) -> . | O37: =IF(O$11=$BL$9,IF(ISERROR('Manual Data'!AZ39/'Manual Data'!$AN39*$C37),".",'Manual Data'!AZ39/'Manual Data'!$AN39*$C37),IF(ISERROR(AU37/$AI37*$C37),".",AU37/$AI37*$C37)) -> 6908.829 | P37: =IF(P$11="No Data",".",IF(P$11=$BL$9,'Manual Data'!BA39,AV37)) -> 3534.490782 | Q37: =IF(Q$11="No Data",".",IF(Q$11=$BL$9,'Manual Data'!BB39,AW37)) -> 3374.338218 | R37: =IF(R$11=$BL$9,'Manual Data'!BC39,AX37) -> 5.546 | S37: =IF(S$11=$BL$9,'Manual Data'!BD39,AY37) -> 123.2 | T37: =IF(T$11=$BL$9,'Manual Data'!BE39,AZ37) -> 182.1 | U37: =IF(U$11=$BL$9,'Manual Data'!BF39,BA37) -> 15304.11215 | V37: =IF(V$11=$BL$9,'Manual Data'!BG39,BB37) -> 1173.360852 | W37: =IF(W$11=$BL$9,'Manual Data'!BH39,BC37) -> 280.5289647 | X37: =IF(X$11=$BL$9,'Manual Data'!BI39,BD37) -> 3.530517657e-05 | Y37: =IF(Y$11=$BL$9,'Manual Data'!BJ39,BE37) -> 892.8318523 | Z37: =IF(Z$11=$BL$9,'Manual Data'!BK39,BF37) -> . | AA37: =IF(AA$11=$BL$9,'Manual Data'!BL39,BG37) -> . | AB37: =IF(AB$11=$BL$9,'Manual Data'!BM39,BH37) -> . | AC37: =IF(AC$11=$BL$9,'Manual Data'!BN39,BI37) -> . | AD37: =IF(AD$11=$BL$9,'Manual Data'!BO39,BJ37) -> . | AF37: ='Existing Data_DataBank'!BP38 -> 1984 | AG37: ='Existing Data_DataBank'!CT38 -> GDP | AH37: ='Existing Data_DataBank'!BQ38 -> 5046.945769 | AI37: ='Existing Data_DataBank'!BR38 -> 16477.473 | AJ37: ='Existing Data_DataBank'!BS38 -> 8253.663486 | AK37: ='Existing Data_DataBank'!BT38 -> 8223.809514 | AL37: ='Existing Data_DataBank'!BU38 -> 9010.299 | AM37: ='Existing Data_DataBank'!BV38 -> 4480.295921 | AN37: ='Existing Data_DataBank'!BW38 -> 4530.003079 | AO37: ='Existing Data_DataBank'!BX38 -> . | AP37: ='Existing Data_DataBank'!BY38 -> . | AQ37: ='Existing Data_DataBank'!BZ38 -> . | AR37: ='Existing Data_DataBank'!CA38 -> . | AS37: ='Existing Data_DataBank'!CB38 -> . | AT37: ='Existing Data_DataBank'!CC38 -> . | AU37: ='Existing Data_DataBank'!CD38 -> 6908.829 | AV37: ='Existing Data_DataBank'!CE38 -> 3534.490782 | AW37: ='Existing Data_DataBank'!CF38 -> 3374.338218 | AX37: ='Existing Data_DataBank'!CG38 -> 5.546 | AY37: ='Existing Data_DataBank'!CH38 -> 123.2 | AZ37: ='Existing Data_DataBank'!CI38 -> 182.1 | BA37: ='Existing Data_DataBank'!CJ38 -> 15304.11215 | BB37: ='Existing Data_DataBank'!CK38 -> 1173.360852 | BC37: ='Existing Data_DataBank'!CL38 -> 280.5289647 | BD37: ='Existing Data_DataBank'!CM38 -> 3.530517657e-05 | BE37: ='Existing Data_DataBank'!CN38 -> 892.8318523 | BF37: ='Existing Data_DataBank'!CO38 -> . | BG37: ='Existing Data_DataBank'!CP38 -> . | BH37: ='Existing Data_DataBank'!CQ38 -> . | BI37: ='Existing Data_DataBank'!CR38 -> . | BJ37: ='Existing Data_DataBank'!CS38 -> . | BP37: 1984 | BQ37: 7467.174 | BU37: 16477.473 | BV37: 5046.945769
A38: 1985 | B38: =IF(B$11=$BL$9,'Manual Data'!AM40,AH38) -> 5357.075804 | C38: =IF(C$11=$BL$9,'Manual Data'!AN40,AI38) -> 16858.31 | D38: =IF(D$11=$BL$9,'Manual Data'!AO40,AJ38) -> 8434.894498 | E38: =IF(E$11=$BL$9,'Manual Data'!AP40,AK38) -> 8423.415502 | F38: =IF(F$11=$BL$9,IF(ISERROR('Manual Data'!AQ40/'Manual Data'!$AN40*$C38),".",'Manual Data'!AQ40/'Manual Data'!$AN40*$C38),IF(ISERROR(AL38/$AI38*$C38),".",AL38/$AI38*$C38)) -> 9208.971 | G38: =IF(G$11="No Data",".",IF(G$11=$BL$9,'Manual Data'!AR40,AM38)) -> 4573.714643 | H38: =IF(H$11="No Data",".",IF(H$11=$BL$9,'Manual Data'!AS40,AN38)) -> 4635.256357 | I38: =IF(I$11=$BL$9,IF(ISERROR('Manual Data'!AT40/'Manual Data'!AQ40*F38),".",'Manual Data'!AT40/'Manual Data'!AQ40*F38),IF(ISERROR(AO38/AL38*F38),".",AO38/AL38*F38)) -> . | J38: =IF(J$11="No Data",".",IF(J$11=$BL$9,'Manual Data'!AU40,AP38)) -> . | K38: =IF(K$11="No Data",".",IF(K$11=$BL$9,'Manual Data'!AV40,AQ38)) -> . | L38: =IF(L$11=$BL$9,IF(ISERROR('Manual Data'!AW40/'Manual Data'!AT40*I38),".",'Manual Data'!AW40/'Manual Data'!AT40*I38),IF(ISERROR(AR38/AO38*I38),".",AR38/AO38*I38)) -> . | M38: =IF(M$11="No Data",".",IF(M$11=$BL$9,'Manual Data'!AX40,AS38)) -> . | N38: =IF(N$11="No Data",".",IF(N$11=$BL$9,'Manual Data'!AY40,AT38)) -> . | O38: =IF(O$11=$BL$9,IF(ISERROR('Manual Data'!AZ40/'Manual Data'!$AN40*$C38),".",'Manual Data'!AZ40/'Manual Data'!$AN40*$C38),IF(ISERROR(AU38/$AI38*$C38),".",AU38/$AI38*$C38)) -> 7076.573 | P38: =IF(P$11="No Data",".",IF(P$11=$BL$9,'Manual Data'!BA40,AV38)) -> 3617.330927 | Q38: =IF(Q$11="No Data",".",IF(Q$11=$BL$9,'Manual Data'!BB40,AW38)) -> 3459.242073 | R38: =IF(R$11=$BL$9,'Manual Data'!BC40,AX38) -> 5.49 | S38: =IF(S$11=$BL$9,'Manual Data'!BD40,AY38) -> 119 | T38: =IF(T$11=$BL$9,'Manual Data'!BE40,AZ38) -> 175.4 | U38: =IF(U$11=$BL$9,'Manual Data'!BF40,BA38) -> 15613.15522 | V38: =IF(V$11=$BL$9,'Manual Data'!BG40,BB38) -> 1245.154777 | W38: =IF(W$11=$BL$9,'Manual Data'!BH40,BC38) -> 297.3459467 | X38: =IF(X$11=$BL$9,'Manual Data'!BI40,BD38) -> 5.334845581e-05 | Y38: =IF(Y$11=$BL$9,'Manual Data'!BJ40,BE38) -> 947.8087766 | Z38: =IF(Z$11=$BL$9,'Manual Data'!BK40,BF38) -> . | AA38: =IF(AA$11=$BL$9,'Manual Data'!BL40,BG38) -> . | AB38: =IF(AB$11=$BL$9,'Manual Data'!BM40,BH38) -> . | AC38: =IF(AC$11=$BL$9,'Manual Data'!BN40,BI38) -> . | AD38: =IF(AD$11=$BL$9,'Manual Data'!BO40,BJ38) -> . | AF38: ='Existing Data_DataBank'!BP39 -> 1985 | AG38: ='Existing Data_DataBank'!CT39 -> GDP | AH38: ='Existing Data_DataBank'!BQ39 -> 5357.075804 | AI38: ='Existing Data_DataBank'!BR39 -> 16858.31 | AJ38: ='Existing Data_DataBank'!BS39 -> 8434.894498 | AK38: ='Existing Data_DataBank'!BT39 -> 8423.415502 | AL38: ='Existing Data_DataBank'!BU39 -> 9208.971 | AM38: ='Existing Data_DataBank'!BV39 -> 4573.714643 | AN38: ='Existing Data_DataBank'!BW39 -> 4635.256357 | AO38: ='Existing Data_DataBank'!BX39 -> . | AP38: ='Existing Data_DataBank'!BY39 -> . | AQ38: ='Existing Data_DataBank'!BZ39 -> . | AR38: ='Existing Data_DataBank'!CA39 -> . | AS38: ='Existing Data_DataBank'!CB39 -> . | AT38: ='Existing Data_DataBank'!CC39 -> . | AU38: ='Existing Data_DataBank'!CD39 -> 7076.573 | AV38: ='Existing Data_DataBank'!CE39 -> 3617.330927 | AW38: ='Existing Data_DataBank'!CF39 -> 3459.242073 | AX38: ='Existing Data_DataBank'!CG39 -> 5.49 | AY38: ='Existing Data_DataBank'!CH39 -> 119 | AZ38: ='Existing Data_DataBank'!CI39 -> 175.4 | BA38: ='Existing Data_DataBank'!CJ39 -> 15613.15522 | BB38: ='Existing Data_DataBank'!CK39 -> 1245.154777 | BC38: ='Existing Data_DataBank'!CL39 -> 297.3459467 | BD38: ='Existing Data_DataBank'!CM39 -> 5.334845581e-05 | BE38: ='Existing Data_DataBank'!CN39 -> 947.8087766 | BF38: ='Existing Data_DataBank'!CO39 -> . | BG38: ='Existing Data_DataBank'!CP39 -> . | BH38: ='Existing Data_DataBank'!CQ39 -> . | BI38: ='Existing Data_DataBank'!CR39 -> . | BJ38: ='Existing Data_DataBank'!CS39 -> . | BP38: 1985 | BQ38: 7649.339 | BU38: 16858.31 | BV38: 5357.075804
A39: 1986 | B39: =IF(B$11=$BL$9,'Manual Data'!AM41,AH39) -> 5601.661165 | C39: =IF(C$11=$BL$9,'Manual Data'!AN41,AI39) -> 17239.673 | D39: =IF(D$11=$BL$9,'Manual Data'!AO41,AJ39) -> 8609.352002 | E39: =IF(E$11=$BL$9,'Manual Data'!AP41,AK39) -> 8630.320998 | F39: =IF(F$11=$BL$9,IF(ISERROR('Manual Data'!AQ41/'Manual Data'!$AN41*$C39),".",'Manual Data'!AQ41/'Manual Data'!$AN41*$C39),IF(ISERROR(AL39/$AI39*$C39),".",AL39/$AI39*$C39)) -> 9380.382 | G39: =IF(G$11="No Data",".",IF(G$11=$BL$9,'Manual Data'!AR41,AM39)) -> 4646.073922 | H39: =IF(H$11="No Data",".",IF(H$11=$BL$9,'Manual Data'!AS41,AN39)) -> 4734.308078 | I39: =IF(I$11=$BL$9,IF(ISERROR('Manual Data'!AT41/'Manual Data'!AQ41*F39),".",'Manual Data'!AT41/'Manual Data'!AQ41*F39),IF(ISERROR(AO39/AL39*F39),".",AO39/AL39*F39)) -> . | J39: =IF(J$11="No Data",".",IF(J$11=$BL$9,'Manual Data'!AU41,AP39)) -> . | K39: =IF(K$11="No Data",".",IF(K$11=$BL$9,'Manual Data'!AV41,AQ39)) -> . | L39: =IF(L$11=$BL$9,IF(ISERROR('Manual Data'!AW41/'Manual Data'!AT41*I39),".",'Manual Data'!AW41/'Manual Data'!AT41*I39),IF(ISERROR(AR39/AO39*I39),".",AR39/AO39*I39)) -> . | M39: =IF(M$11="No Data",".",IF(M$11=$BL$9,'Manual Data'!AX41,AS39)) -> . | N39: =IF(N$11="No Data",".",IF(N$11=$BL$9,'Manual Data'!AY41,AT39)) -> . | O39: =IF(O$11=$BL$9,IF(ISERROR('Manual Data'!AZ41/'Manual Data'!$AN41*$C39),".",'Manual Data'!AZ41/'Manual Data'!$AN41*$C39),IF(ISERROR(AU39/$AI39*$C39),".",AU39/$AI39*$C39)) -> 7266.499 | P39: =IF(P$11="No Data",".",IF(P$11=$BL$9,'Manual Data'!BA41,AV39)) -> 3711.416139 | Q39: =IF(Q$11="No Data",".",IF(Q$11=$BL$9,'Manual Data'!BB41,AW39)) -> 3555.082861 | R39: =IF(R$11=$BL$9,'Manual Data'!BC41,AX39) -> 5.431 | S39: =IF(S$11=$BL$9,'Manual Data'!BD41,AY39) -> 114.9 | T39: =IF(T$11=$BL$9,'Manual Data'!BE41,AZ39) -> 168.5 | U39: =IF(U$11=$BL$9,'Manual Data'!BF41,BA39) -> 15919.11405 | V39: =IF(V$11=$BL$9,'Manual Data'!BG41,BB39) -> 1320.558952 | W39: =IF(W$11=$BL$9,'Manual Data'!BH41,BC39) -> 315.1959885 | X39: =IF(X$11=$BL$9,'Manual Data'!BI41,BD39) -> 1.150455768e-05 | Y39: =IF(Y$11=$BL$9,'Manual Data'!BJ41,BE39) -> 1005.362952 | Z39: =IF(Z$11=$BL$9,'Manual Data'!BK41,BF39) -> . | AA39: =IF(AA$11=$BL$9,'Manual Data'!BL41,BG39) -> . | AB39: =IF(AB$11=$BL$9,'Manual Data'!BM41,BH39) -> . | AC39: =IF(AC$11=$BL$9,'Manual Data'!BN41,BI39) -> . | AD39: =IF(AD$11=$BL$9,'Manual Data'!BO41,BJ39) -> . | AF39: ='Existing Data_DataBank'!BP40 -> 1986 | AG39: ='Existing Data_DataBank'!CT40 -> GDP | AH39: ='Existing Data_DataBank'!BQ40 -> 5601.661165 | AI39: ='Existing Data_DataBank'!BR40 -> 17239.673 | AJ39: ='Existing Data_DataBank'!BS40 -> 8609.352002 | AK39: ='Existing Data_DataBank'!BT40 -> 8630.320998 | AL39: ='Existing Data_DataBank'!BU40 -> 9380.382 | AM39: ='Existing Data_DataBank'!BV40 -> 4646.073922 | AN39: ='Existing Data_DataBank'!BW40 -> 4734.308078 | AO39: ='Existing Data_DataBank'!BX40 -> . | AP39: ='Existing Data_DataBank'!BY40 -> . | AQ39: ='Existing Data_DataBank'!BZ40 -> . | AR39: ='Existing Data_DataBank'!CA40 -> . | AS39: ='Existing Data_DataBank'!CB40 -> . | AT39: ='Existing Data_DataBank'!CC40 -> . | AU39: ='Existing Data_DataBank'!CD40 -> 7266.499 | AV39: ='Existing Data_DataBank'!CE40 -> 3711.416139 | AW39: ='Existing Data_DataBank'!CF40 -> 3555.082861 | AX39: ='Existing Data_DataBank'!CG40 -> 5.431 | AY39: ='Existing Data_DataBank'!CH40 -> 114.9 | AZ39: ='Existing Data_DataBank'!CI40 -> 168.5 | BA39: ='Existing Data_DataBank'!CJ40 -> 15919.11405 | BB39: ='Existing Data_DataBank'!CK40 -> 1320.558952 | BC39: ='Existing Data_DataBank'!CL40 -> 315.1959885 | BD39: ='Existing Data_DataBank'!CM40 -> 1.150455768e-05 | BE39: ='Existing Data_DataBank'!CN40 -> 1005.362952 | BF39: ='Existing Data_DataBank'!CO40 -> . | BG39: ='Existing Data_DataBank'!CP40 -> . | BH39: ='Existing Data_DataBank'!CQ40 -> . | BI39: ='Existing Data_DataBank'!CR40 -> . | BJ39: ='Existing Data_DataBank'!CS40 -> . | BP39: 1986 | BQ39: 7859.291 | BU39: 17239.673 | BV39: 5601.661165
A40: 1987 | B40: =IF(B$11=$BL$9,'Manual Data'!AM42,AH40) -> 5696.643954 | C40: =IF(C$11=$BL$9,'Manual Data'!AN42,AI40) -> 17623.693 | D40: =IF(D$11=$BL$9,'Manual Data'!AO42,AJ40) -> 8779.524007 | E40: =IF(E$11=$BL$9,'Manual Data'!AP42,AK40) -> 8844.168993 | F40: =IF(F$11=$BL$9,IF(ISERROR('Manual Data'!AQ42/'Manual Data'!$AN42*$C40),".",'Manual Data'!AQ42/'Manual Data'!$AN42*$C40),IF(ISERROR(AL40/$AI40*$C40),".",AL40/$AI40*$C40)) -> 9560.597 | G40: =IF(G$11="No Data",".",IF(G$11=$BL$9,'Manual Data'!AR42,AM40)) -> 4719.414929 | H40: =IF(H$11="No Data",".",IF(H$11=$BL$9,'Manual Data'!AS42,AN40)) -> 4841.182071 | I40: =IF(I$11=$BL$9,IF(ISERROR('Manual Data'!AT42/'Manual Data'!AQ42*F40),".",'Manual Data'!AT42/'Manual Data'!AQ42*F40),IF(ISERROR(AO40/AL40*F40),".",AO40/AL40*F40)) -> . | J40: =IF(J$11="No Data",".",IF(J$11=$BL$9,'Manual Data'!AU42,AP40)) -> . | K40: =IF(K$11="No Data",".",IF(K$11=$BL$9,'Manual Data'!AV42,AQ40)) -> . | L40: =IF(L$11=$BL$9,IF(ISERROR('Manual Data'!AW42/'Manual Data'!AT42*I40),".",'Manual Data'!AW42/'Manual Data'!AT42*I40),IF(ISERROR(AR40/AO40*I40),".",AR40/AO40*I40)) -> . | M40: =IF(M$11="No Data",".",IF(M$11=$BL$9,'Manual Data'!AX42,AS40)) -> . | N40: =IF(N$11="No Data",".",IF(N$11=$BL$9,'Manual Data'!AY42,AT40)) -> . | O40: =IF(O$11=$BL$9,IF(ISERROR('Manual Data'!AZ42/'Manual Data'!$AN42*$C40),".",'Manual Data'!AZ42/'Manual Data'!$AN42*$C40),IF(ISERROR(AU40/$AI40*$C40),".",AU40/$AI40*$C40)) -> 7451.195 | P40: =IF(P$11="No Data",".",IF(P$11=$BL$9,'Manual Data'!BA42,AV40)) -> 3801.045137 | Q40: =IF(Q$11="No Data",".",IF(Q$11=$BL$9,'Manual Data'!BB42,AW40)) -> 3650.149863 | R40: =IF(R$11=$BL$9,'Manual Data'!BC42,AX40) -> 5.371 | S40: =IF(S$11=$BL$9,'Manual Data'!BD42,AY40) -> 110.6 | T40: =IF(T$11=$BL$9,'Manual Data'!BE42,AZ40) -> 161.4 | U40: =IF(U$11=$BL$9,'Manual Data'!BF42,BA40) -> 16223.66683 | V40: =IF(V$11=$BL$9,'Manual Data'!BG42,BB40) -> 1400.026172 | W40: =IF(W$11=$BL$9,'Manual Data'!BH42,BC40) -> 334.117041 | X40: =IF(X$11=$BL$9,'Manual Data'!BI42,BD40) -> 0 | Y40: =IF(Y$11=$BL$9,'Manual Data'!BJ42,BE40) -> 1065.909131 | Z40: =IF(Z$11=$BL$9,'Manual Data'!BK42,BF40) -> . | AA40: =IF(AA$11=$BL$9,'Manual Data'!BL42,BG40) -> . | AB40: =IF(AB$11=$BL$9,'Manual Data'!BM42,BH40) -> . | AC40: =IF(AC$11=$BL$9,'Manual Data'!BN42,BI40) -> . | AD40: =IF(AD$11=$BL$9,'Manual Data'!BO42,BJ40) -> . | AF40: ='Existing Data_DataBank'!BP41 -> 1987 | AG40: ='Existing Data_DataBank'!CT41 -> GDP | AH40: ='Existing Data_DataBank'!BQ41 -> 5696.643954 | AI40: ='Existing Data_DataBank'!BR41 -> 17623.693 | AJ40: ='Existing Data_DataBank'!BS41 -> 8779.524007 | AK40: ='Existing Data_DataBank'!BT41 -> 8844.168993 | AL40: ='Existing Data_DataBank'!BU41 -> 9560.597 | AM40: ='Existing Data_DataBank'!BV41 -> 4719.414929 | AN40: ='Existing Data_DataBank'!BW41 -> 4841.182071 | AO40: ='Existing Data_DataBank'!BX41 -> . | AP40: ='Existing Data_DataBank'!BY41 -> . | AQ40: ='Existing Data_DataBank'!BZ41 -> . | AR40: ='Existing Data_DataBank'!CA41 -> . | AS40: ='Existing Data_DataBank'!CB41 -> . | AT40: ='Existing Data_DataBank'!CC41 -> . | AU40: ='Existing Data_DataBank'!CD41 -> 7451.195 | AV40: ='Existing Data_DataBank'!CE41 -> 3801.045137 | AW40: ='Existing Data_DataBank'!CF41 -> 3650.149863 | AX40: ='Existing Data_DataBank'!CG41 -> 5.371 | AY40: ='Existing Data_DataBank'!CH41 -> 110.6 | AZ40: ='Existing Data_DataBank'!CI41 -> 161.4 | BA40: ='Existing Data_DataBank'!CJ41 -> 16223.66683 | BB40: ='Existing Data_DataBank'!CK41 -> 1400.026172 | BC40: ='Existing Data_DataBank'!CL41 -> 334.117041 | BD40: ='Existing Data_DataBank'!CM41 -> 0 | BE40: ='Existing Data_DataBank'!CN41 -> 1065.909131 | BF40: ='Existing Data_DataBank'!CO41 -> . | BG40: ='Existing Data_DataBank'!CP41 -> . | BH40: ='Existing Data_DataBank'!CQ41 -> . | BI40: ='Existing Data_DataBank'!CR41 -> . | BJ40: ='Existing Data_DataBank'!CS41 -> . | BP40: 1987 | BQ40: 8063.096 | BU40: 17623.693 | BV40: 5696.643954
A41: 1988 | B41: =IF(B$11=$BL$9,'Manual Data'!AM43,AH41) -> 6135.103743 | C41: =IF(C$11=$BL$9,'Manual Data'!AN43,AI41) -> 18020.753 | D41: =IF(D$11=$BL$9,'Manual Data'!AO43,AJ41) -> 8957.417006 | E41: =IF(E$11=$BL$9,'Manual Data'!AP43,AK41) -> 9063.335994 | F41: =IF(F$11=$BL$9,IF(ISERROR('Manual Data'!AQ43/'Manual Data'!$AN43*$C41),".",'Manual Data'!AQ43/'Manual Data'!$AN43*$C41),IF(ISERROR(AL41/$AI41*$C41),".",AL41/$AI41*$C41)) -> 9755.208 | G41: =IF(G$11="No Data",".",IF(G$11=$BL$9,'Manual Data'!AR43,AM41)) -> 4800.452467 | H41: =IF(H$11="No Data",".",IF(H$11=$BL$9,'Manual Data'!AS43,AN41)) -> 4954.755533 | I41: =IF(I$11=$BL$9,IF(ISERROR('Manual Data'!AT43/'Manual Data'!AQ43*F41),".",'Manual Data'!AT43/'Manual Data'!AQ43*F41),IF(ISERROR(AO41/AL41*F41),".",AO41/AL41*F41)) -> . | J41: =IF(J$11="No Data",".",IF(J$11=$BL$9,'Manual Data'!AU43,AP41)) -> . | K41: =IF(K$11="No Data",".",IF(K$11=$BL$9,'Manual Data'!AV43,AQ41)) -> . | L41: =IF(L$11=$BL$9,IF(ISERROR('Manual Data'!AW43/'Manual Data'!AT43*I41),".",'Manual Data'!AW43/'Manual Data'!AT43*I41),IF(ISERROR(AR41/AO41*I41),".",AR41/AO41*I41)) -> . | M41: =IF(M$11="No Data",".",IF(M$11=$BL$9,'Manual Data'!AX43,AS41)) -> . | N41: =IF(N$11="No Data",".",IF(N$11=$BL$9,'Manual Data'!AY43,AT41)) -> . | O41: =IF(O$11=$BL$9,IF(ISERROR('Manual Data'!AZ43/'Manual Data'!$AN43*$C41),".",'Manual Data'!AZ43/'Manual Data'!$AN43*$C41),IF(ISERROR(AU41/$AI41*$C41),".",AU41/$AI41*$C41)) -> 7635.144 | P41: =IF(P$11="No Data",".",IF(P$11=$BL$9,'Manual Data'!BA43,AV41)) -> 3891.165568 | Q41: =IF(Q$11="No Data",".",IF(Q$11=$BL$9,'Manual Data'!BB43,AW41)) -> 3743.978432 | R41: =IF(R$11=$BL$9,'Manual Data'!BC43,AX41) -> 5.308 | S41: =IF(S$11=$BL$9,'Manual Data'!BD43,AY41) -> 106.1 | T41: =IF(T$11=$BL$9,'Manual Data'!BE43,AZ41) -> 154.2 | U41: =IF(U$11=$BL$9,'Manual Data'!BF43,BA41) -> 16536.20337 | V41: =IF(V$11=$BL$9,'Manual Data'!BG43,BB41) -> 1484.549632 | W41: =IF(W$11=$BL$9,'Manual Data'!BH43,BC41) -> 354.2029122 | X41: =IF(X$11=$BL$9,'Manual Data'!BI43,BD41) -> 8.776876202e-05 | Y41: =IF(Y$11=$BL$9,'Manual Data'!BJ43,BE41) -> 1130.346632 | Z41: =IF(Z$11=$BL$9,'Manual Data'!BK43,BF41) -> . | AA41: =IF(AA$11=$BL$9,'Manual Data'!BL43,BG41) -> . | AB41: =IF(AB$11=$BL$9,'Manual Data'!BM43,BH41) -> . | AC41: =IF(AC$11=$BL$9,'Manual Data'!BN43,BI41) -> . | AD41: =IF(AD$11=$BL$9,'Manual Data'!BO43,BJ41) -> . | AF41: ='Existing Data_DataBank'!BP42 -> 1988 | AG41: ='Existing Data_DataBank'!CT42 -> GDP | AH41: ='Existing Data_DataBank'!BQ42 -> 6135.103743 | AI41: ='Existing Data_DataBank'!BR42 -> 18020.753 | AJ41: ='Existing Data_DataBank'!BS42 -> 8957.417006 | AK41: ='Existing Data_DataBank'!BT42 -> 9063.335994 | AL41: ='Existing Data_DataBank'!BU42 -> 9755.208 | AM41: ='Existing Data_DataBank'!BV42 -> 4800.452467 | AN41: ='Existing Data_DataBank'!BW42 -> 4954.755533 | AO41: ='Existing Data_DataBank'!BX42 -> . | AP41: ='Existing Data_DataBank'!BY42 -> . | AQ41: ='Existing Data_DataBank'!BZ42 -> . | AR41: ='Existing Data_DataBank'!CA42 -> . | AS41: ='Existing Data_DataBank'!CB42 -> . | AT41: ='Existing Data_DataBank'!CC42 -> . | AU41: ='Existing Data_DataBank'!CD42 -> 7635.144 | AV41: ='Existing Data_DataBank'!CE42 -> 3891.165568 | AW41: ='Existing Data_DataBank'!CF42 -> 3743.978432 | AX41: ='Existing Data_DataBank'!CG42 -> 5.308 | AY41: ='Existing Data_DataBank'!CH42 -> 106.1 | AZ41: ='Existing Data_DataBank'!CI42 -> 154.2 | BA41: ='Existing Data_DataBank'!CJ42 -> 16536.20337 | BB41: ='Existing Data_DataBank'!CK42 -> 1484.549632 | BC41: ='Existing Data_DataBank'!CL42 -> 354.2029122 | BD41: ='Existing Data_DataBank'!CM42 -> 8.776876202e-05 | BE41: ='Existing Data_DataBank'!CN42 -> 1130.346632 | BF41: ='Existing Data_DataBank'!CO42 -> . | BG41: ='Existing Data_DataBank'!CP42 -> . | BH41: ='Existing Data_DataBank'!CQ42 -> . | BI41: ='Existing Data_DataBank'!CR42 -> . | BJ41: ='Existing Data_DataBank'!CS42 -> . | BP41: 1988 | BQ41: 8265.545 | BU41: 18020.753 | BV41: 6135.103743
A42: 1989 | B42: =IF(B$11=$BL$9,'Manual Data'!AM44,AH42) -> 6400.732135 | C42: =IF(C$11=$BL$9,'Manual Data'!AN44,AI42) -> 18445.028 | D42: =IF(D$11=$BL$9,'Manual Data'!AO44,AJ42) -> 9159.415476 | E42: =IF(E$11=$BL$9,'Manual Data'!AP44,AK42) -> 9285.612524 | F42: =IF(F$11=$BL$9,IF(ISERROR('Manual Data'!AQ44/'Manual Data'!$AN44*$C42),".",'Manual Data'!AQ44/'Manual Data'!$AN44*$C42),IF(ISERROR(AL42/$AI42*$C42),".",AL42/$AI42*$C42)) -> 9972.355 | G42: =IF(G$11="No Data",".",IF(G$11=$BL$9,'Manual Data'!AR44,AM42)) -> 4898.261859 | H42: =IF(H$11="No Data",".",IF(H$11=$BL$9,'Manual Data'!AS44,AN42)) -> 5074.093141 | I42: =IF(I$11=$BL$9,IF(ISERROR('Manual Data'!AT44/'Manual Data'!AQ44*F42),".",'Manual Data'!AT44/'Manual Data'!AQ44*F42),IF(ISERROR(AO42/AL42*F42),".",AO42/AL42*F42)) -> . | J42: =IF(J$11="No Data",".",IF(J$11=$BL$9,'Manual Data'!AU44,AP42)) -> . | K42: =IF(K$11="No Data",".",IF(K$11=$BL$9,'Manual Data'!AV44,AQ42)) -> . | L42: =IF(L$11=$BL$9,IF(ISERROR('Manual Data'!AW44/'Manual Data'!AT44*I42),".",'Manual Data'!AW44/'Manual Data'!AT44*I42),IF(ISERROR(AR42/AO42*I42),".",AR42/AO42*I42)) -> . | M42: =IF(M$11="No Data",".",IF(M$11=$BL$9,'Manual Data'!AX44,AS42)) -> . | N42: =IF(N$11="No Data",".",IF(N$11=$BL$9,'Manual Data'!AY44,AT42)) -> . | O42: =IF(O$11=$BL$9,IF(ISERROR('Manual Data'!AZ44/'Manual Data'!$AN44*$C42),".",'Manual Data'!AZ44/'Manual Data'!$AN44*$C42),IF(ISERROR(AU42/$AI42*$C42),".",AU42/$AI42*$C42)) -> 7823.923 | P42: =IF(P$11="No Data",".",IF(P$11=$BL$9,'Manual Data'!BA44,AV42)) -> 3988.582514 | Q42: =IF(Q$11="No Data",".",IF(Q$11=$BL$9,'Manual Data'!BB44,AW42)) -> 3835.340486 | R42: =IF(R$11=$BL$9,'Manual Data'!BC44,AX42) -> 5.242 | S42: =IF(S$11=$BL$9,'Manual Data'!BD44,AY42) -> 101.7 | T42: =IF(T$11=$BL$9,'Manual Data'!BE44,AZ42) -> 147 | U42: =IF(U$11=$BL$9,'Manual Data'!BF44,BA42) -> 16869.63816 | V42: =IF(V$11=$BL$9,'Manual Data'!BG44,BB42) -> 1575.389841 | W42: =IF(W$11=$BL$9,'Manual Data'!BH44,BC42) -> 375.4359622 | X42: =IF(X$11=$BL$9,'Manual Data'!BI44,BD42) -> 3.777738503e-05 | Y42: =IF(Y$11=$BL$9,'Manual Data'!BJ44,BE42) -> 1199.953841 | Z42: =IF(Z$11=$BL$9,'Manual Data'!BK44,BF42) -> . | AA42: =IF(AA$11=$BL$9,'Manual Data'!BL44,BG42) -> . | AB42: =IF(AB$11=$BL$9,'Manual Data'!BM44,BH42) -> . | AC42: =IF(AC$11=$BL$9,'Manual Data'!BN44,BI42) -> . | AD42: =IF(AD$11=$BL$9,'Manual Data'!BO44,BJ42) -> . | AF42: ='Existing Data_DataBank'!BP43 -> 1989 | AG42: ='Existing Data_DataBank'!CT43 -> GDP | AH42: ='Existing Data_DataBank'!BQ43 -> 6400.732135 | AI42: ='Existing Data_DataBank'!BR43 -> 18445.028 | AJ42: ='Existing Data_DataBank'!BS43 -> 9159.415476 | AK42: ='Existing Data_DataBank'!BT43 -> 9285.612524 | AL42: ='Existing Data_DataBank'!BU43 -> 9972.355 | AM42: ='Existing Data_DataBank'!BV43 -> 4898.261859 | AN42: ='Existing Data_DataBank'!BW43 -> 5074.093141 | AO42: ='Existing Data_DataBank'!BX43 -> . | AP42: ='Existing Data_DataBank'!BY43 -> . | AQ42: ='Existing Data_DataBank'!BZ43 -> . | AR42: ='Existing Data_DataBank'!CA43 -> . | AS42: ='Existing Data_DataBank'!CB43 -> . | AT42: ='Existing Data_DataBank'!CC43 -> . | AU42: ='Existing Data_DataBank'!CD43 -> 7823.923 | AV42: ='Existing Data_DataBank'!CE43 -> 3988.582514 | AW42: ='Existing Data_DataBank'!CF43 -> 3835.340486 | AX42: ='Existing Data_DataBank'!CG43 -> 5.242 | AY42: ='Existing Data_DataBank'!CH43 -> 101.7 | AZ42: ='Existing Data_DataBank'!CI43 -> 147 | BA42: ='Existing Data_DataBank'!CJ43 -> 16869.63816 | BB42: ='Existing Data_DataBank'!CK43 -> 1575.389841 | BC42: ='Existing Data_DataBank'!CL43 -> 375.4359622 | BD42: ='Existing Data_DataBank'!CM43 -> 3.777738503e-05 | BE42: ='Existing Data_DataBank'!CN43 -> 1199.953841 | BF42: ='Existing Data_DataBank'!CO43 -> . | BG42: ='Existing Data_DataBank'!CP43 -> . | BH42: ='Existing Data_DataBank'!CQ43 -> . | BI42: ='Existing Data_DataBank'!CR43 -> . | BJ42: ='Existing Data_DataBank'!CS43 -> . | BP42: 1989 | BQ42: 8472.673 | BU42: 18445.028 | BV42: 6400.732135
A43: 1990 | B43: =IF(B$11=$BL$9,'Manual Data'!AM45,AH43) -> 6697.408396 | C43: =IF(C$11=$BL$9,'Manual Data'!AN45,AI43) -> 18905.478 | D43: =IF(D$11=$BL$9,'Manual Data'!AO45,AJ43) -> 9395.936006 | E43: =IF(E$11=$BL$9,'Manual Data'!AP45,AK43) -> 9509.541994 | F43: =IF(F$11=$BL$9,IF(ISERROR('Manual Data'!AQ45/'Manual Data'!$AN45*$C43),".",'Manual Data'!AQ45/'Manual Data'!$AN45*$C43),IF(ISERROR(AL43/$AI43*$C43),".",AL43/$AI43*$C43)) -> 10217.328 | G43: =IF(G$11="No Data",".",IF(G$11=$BL$9,'Manual Data'!AR45,AM43)) -> 5018.631469 | H43: =IF(H$11="No Data",".",IF(H$11=$BL$9,'Manual Data'!AS45,AN43)) -> 5198.696531 | I43: =IF(I$11=$BL$9,IF(ISERROR('Manual Data'!AT45/'Manual Data'!AQ45*F43),".",'Manual Data'!AT45/'Manual Data'!AQ45*F43),IF(ISERROR(AO43/AL43*F43),".",AO43/AL43*F43)) -> 9007.596739 | J43: =IF(J$11="No Data",".",IF(J$11=$BL$9,'Manual Data'!AU45,AP43)) -> 4628.633431 | K43: =IF(K$11="No Data",".",IF(K$11=$BL$9,'Manual Data'!AV45,AQ43)) -> 4378.963308 | L43: =IF(L$11=$BL$9,IF(ISERROR('Manual Data'!AW45/'Manual Data'!AT45*I43),".",'Manual Data'!AW45/'Manual Data'!AT45*I43),IF(ISERROR(AR43/AO43*I43),".",AR43/AO43*I43)) -> . | M43: =IF(M$11="No Data",".",IF(M$11=$BL$9,'Manual Data'!AX45,AS43)) -> . | N43: =IF(N$11="No Data",".",IF(N$11=$BL$9,'Manual Data'!AY45,AT43)) -> . | O43: =IF(O$11=$BL$9,IF(ISERROR('Manual Data'!AZ45/'Manual Data'!$AN45*$C43),".",'Manual Data'!AZ45/'Manual Data'!$AN45*$C43),IF(ISERROR(AU43/$AI43*$C43),".",AU43/$AI43*$C43)) -> 8020.875 | P43: =IF(P$11="No Data",".",IF(P$11=$BL$9,'Manual Data'!BA45,AV43)) -> 4097.588567 | Q43: =IF(Q$11="No Data",".",IF(Q$11=$BL$9,'Manual Data'!BB45,AW43)) -> 3923.286433 | R43: =IF(R$11=$BL$9,'Manual Data'!BC45,AX43) -> 5.172 | S43: =IF(S$11=$BL$9,'Manual Data'!BD45,AY43) -> 97.2 | T43: =IF(T$11=$BL$9,'Manual Data'!BE45,AZ43) -> 139.8 | U43: =IF(U$11=$BL$9,'Manual Data'!BF45,BA43) -> 17231.58698 | V43: =IF(V$11=$BL$9,'Manual Data'!BG45,BB43) -> 1673.891022 | W43: =IF(W$11=$BL$9,'Manual Data'!BH45,BC43) -> 397.9730053 | X43: =IF(X$11=$BL$9,'Manual Data'!BI45,BD43) -> 0 | Y43: =IF(Y$11=$BL$9,'Manual Data'!BJ45,BE43) -> 1275.918017 | Z43: =IF(Z$11=$BL$9,'Manual Data'!BK45,BF43) -> . | AA43: =IF(AA$11=$BL$9,'Manual Data'!BL45,BG43) -> . | AB43: =IF(AB$11=$BL$9,'Manual Data'!BM45,BH43) -> . | AC43: =IF(AC$11=$BL$9,'Manual Data'!BN45,BI43) -> . | AD43: =IF(AD$11=$BL$9,'Manual Data'!BO45,BJ43) -> . | AF43: ='Existing Data_DataBank'!BP44 -> 1990 | AG43: ='Existing Data_DataBank'!CT44 -> GDP | AH43: ='Existing Data_DataBank'!BQ44 -> 6697.408396 | AI43: ='Existing Data_DataBank'!BR44 -> 18905.478 | AJ43: ='Existing Data_DataBank'!BS44 -> 9395.936006 | AK43: ='Existing Data_DataBank'!BT44 -> 9509.541994 | AL43: ='Existing Data_DataBank'!BU44 -> 10217.328 | AM43: ='Existing Data_DataBank'!BV44 -> 5018.631469 | AN43: ='Existing Data_DataBank'!BW44 -> 5198.696531 | AO43: ='Existing Data_DataBank'!BX44 -> 9007.596739 | AP43: ='Existing Data_DataBank'!BY44 -> 4628.633431 | AQ43: ='Existing Data_DataBank'!BZ44 -> 4378.963308 | AR43: ='Existing Data_DataBank'!CA44 -> . | AS43: ='Existing Data_DataBank'!CB44 -> . | AT43: ='Existing Data_DataBank'!CC44 -> . | AU43: ='Existing Data_DataBank'!CD44 -> 8020.875 | AV43: ='Existing Data_DataBank'!CE44 -> 4097.588567 | AW43: ='Existing Data_DataBank'!CF44 -> 3923.286433 | AX43: ='Existing Data_DataBank'!CG44 -> 5.172 | AY43: ='Existing Data_DataBank'!CH44 -> 97.2 | AZ43: ='Existing Data_DataBank'!CI44 -> 139.8 | BA43: ='Existing Data_DataBank'!CJ44 -> 17231.58698 | BB43: ='Existing Data_DataBank'!CK44 -> 1673.891022 | BC43: ='Existing Data_DataBank'!CL44 -> 397.9730053 | BD43: ='Existing Data_DataBank'!CM44 -> 0 | BE43: ='Existing Data_DataBank'!CN44 -> 1275.918017 | BF43: ='Existing Data_DataBank'!CO44 -> . | BG43: ='Existing Data_DataBank'!CP44 -> . | BH43: ='Existing Data_DataBank'!CQ44 -> . | BI43: ='Existing Data_DataBank'!CR44 -> . | BJ43: ='Existing Data_DataBank'!CS44 -> . | BP43: 1990 | BQ43: 8688.15 | BR43: 1209.731261 | BU43: 18905.478 | BV43: 6697.408396
A44: 1991 | B44: =IF(B$11=$BL$9,'Manual Data'!AM46,AH44) -> 7123.909436 | C44: =IF(C$11=$BL$9,'Manual Data'!AN46,AI44) -> 19405.504 | D44: =IF(D$11=$BL$9,'Manual Data'!AO46,AJ44) -> 9672.654003 | E44: =IF(E$11=$BL$9,'Manual Data'!AP46,AK44) -> 9732.849997 | F44: =IF(F$11=$BL$9,IF(ISERROR('Manual Data'!AQ46/'Manual Data'!$AN46*$C44),".",'Manual Data'!AQ46/'Manual Data'!$AN46*$C44),IF(ISERROR(AL44/$AI44*$C44),".",AL44/$AI44*$C44)) -> 10494.429 | G44: =IF(G$11="No Data",".",IF(G$11=$BL$9,'Manual Data'!AR46,AM44)) -> 5185.319466 | H44: =IF(H$11="No Data",".",IF(H$11=$BL$9,'Manual Data'!AS46,AN44)) -> 5309.109534 | I44: =IF(I$11=$BL$9,IF(ISERROR('Manual Data'!AT46/'Manual Data'!AQ46*F44),".",'Manual Data'!AT46/'Manual Data'!AQ46*F44),IF(ISERROR(AO44/AL44*F44),".",AO44/AL44*F44)) -> 9253.882638 | J44: =IF(J$11="No Data",".",IF(J$11=$BL$9,'Manual Data'!AU46,AP44)) -> 4778.168317 | K44: =IF(K$11="No Data",".",IF(K$11=$BL$9,'Manual Data'!AV46,AQ44)) -> 4475.71432 | L44: =IF(L$11=$BL$9,IF(ISERROR('Manual Data'!AW46/'Manual Data'!AT46*I44),".",'Manual Data'!AW46/'Manual Data'!AT46*I44),IF(ISERROR(AR44/AO44*I44),".",AR44/AO44*I44)) -> 9107.393681 | M44: =IF(M$11="No Data",".",IF(M$11=$BL$9,'Manual Data'!AX46,AS44)) -> 4692.686884 | N44: =IF(N$11="No Data",".",IF(N$11=$BL$9,'Manual Data'!AY46,AT44)) -> 4414.706796 | O44: =IF(O$11=$BL$9,IF(ISERROR('Manual Data'!AZ46/'Manual Data'!$AN46*$C44),".",'Manual Data'!AZ46/'Manual Data'!$AN46*$C44),IF(ISERROR(AU44/$AI44*$C44),".",AU44/$AI44*$C44)) -> 8219.726 | P44: =IF(P$11="No Data",".",IF(P$11=$BL$9,'Manual Data'!BA46,AV44)) -> 4197.264567 | Q44: =IF(Q$11="No Data",".",IF(Q$11=$BL$9,'Manual Data'!BB46,AW44)) -> 4022.461433 | R44: =IF(R$11=$BL$9,'Manual Data'!BC46,AX44) -> 5.099 | S44: =IF(S$11=$BL$9,'Manual Data'!BD46,AY44) -> 92.7 | T44: =IF(T$11=$BL$9,'Manual Data'!BE46,AZ44) -> 132.7 | U44: =IF(U$11=$BL$9,'Manual Data'!BF46,BA44) -> 17624.07873 | V44: =IF(V$11=$BL$9,'Manual Data'!BG46,BB44) -> 1781.425267 | W44: =IF(W$11=$BL$9,'Manual Data'!BH46,BC44) -> 421.7430633 | X44: =IF(X$11=$BL$9,'Manual Data'!BI46,BD44) -> 0 | Y44: =IF(Y$11=$BL$9,'Manual Data'!BJ46,BE44) -> 1359.682204 | Z44: =IF(Z$11=$BL$9,'Manual Data'!BK46,BF44) -> 1304.998484 | AA44: =IF(AA$11=$BL$9,'Manual Data'!BL46,BG44) -> 7802.395023 | AB44: =IF(AB$11=$BL$9,'Manual Data'!BM46,BH44) -> 80.96472969 | AC44: =IF(AC$11=$BL$9,'Manual Data'!BN46,BI44) -> 4396.958534 | AD44: =IF(AD$11=$BL$9,'Manual Data'!BO46,BJ44) -> 3324.47176 | AF44: ='Existing Data_DataBank'!BP45 -> 1991 | AG44: ='Existing Data_DataBank'!CT45 -> GDP | AH44: ='Existing Data_DataBank'!BQ45 -> 7123.909436 | AI44: ='Existing Data_DataBank'!BR45 -> 19405.504 | AJ44: ='Existing Data_DataBank'!BS45 -> 9672.654003 | AK44: ='Existing Data_DataBank'!BT45 -> 9732.849997 | AL44: ='Existing Data_DataBank'!BU45 -> 10494.429 | AM44: ='Existing Data_DataBank'!BV45 -> 5185.319466 | AN44: ='Existing Data_DataBank'!BW45 -> 5309.109534 | AO44: ='Existing Data_DataBank'!BX45 -> 9253.882638 | AP44: ='Existing Data_DataBank'!BY45 -> 4778.168317 | AQ44: ='Existing Data_DataBank'!BZ45 -> 4475.71432 | AR44: ='Existing Data_DataBank'!CA45 -> 9107.393681 | AS44: ='Existing Data_DataBank'!CB45 -> 4692.686884 | AT44: ='Existing Data_DataBank'!CC45 -> 4414.706796 | AU44: ='Existing Data_DataBank'!CD45 -> 8219.726 | AV44: ='Existing Data_DataBank'!CE45 -> 4197.264567 | AW44: ='Existing Data_DataBank'!CF45 -> 4022.461433 | AX44: ='Existing Data_DataBank'!CG45 -> 5.099 | AY44: ='Existing Data_DataBank'!CH45 -> 92.7 | AZ44: ='Existing Data_DataBank'!CI45 -> 132.7 | BA44: ='Existing Data_DataBank'!CJ45 -> 17624.07873 | BB44: ='Existing Data_DataBank'!CK45 -> 1781.425267 | BC44: ='Existing Data_DataBank'!CL45 -> 421.7430633 | BD44: ='Existing Data_DataBank'!CM45 -> 0 | BE44: ='Existing Data_DataBank'!CN45 -> 1359.682204 | BF44: ='Existing Data_DataBank'!CO45 -> 1304.998484 | BG44: ='Existing Data_DataBank'!CP45 -> 7802.395023 | BH44: ='Existing Data_DataBank'!CQ45 -> 80.96472969 | BI44: ='Existing Data_DataBank'!CR45 -> 4396.958534 | BJ44: ='Existing Data_DataBank'!CS45 -> 3324.47176 | BP44: 1991 | BQ44: 8911.075 | BR44: 1240.546362 | BS44: 146.488957 | BT44: 9107.393681 | BU44: 19405.504 | BV44: 7123.909436
A45: 1992 | B45: =IF(B$11=$BL$9,'Manual Data'!AM47,AH45) -> 7416.446124 | C45: =IF(C$11=$BL$9,'Manual Data'!AN47,AI45) -> 19938.32 | D45: =IF(D$11=$BL$9,'Manual Data'!AO47,AJ45) -> 9982.341999 | E45: =IF(E$11=$BL$9,'Manual Data'!AP47,AK45) -> 9955.978001 | F45: =IF(F$11=$BL$9,IF(ISERROR('Manual Data'!AQ47/'Manual Data'!$AN47*$C45),".",'Manual Data'!AQ47/'Manual Data'!$AN47*$C45),IF(ISERROR(AL45/$AI45*$C45),".",AL45/$AI45*$C45)) -> 10804.274 | G45: =IF(G$11="No Data",".",IF(G$11=$BL$9,'Manual Data'!AR47,AM45)) -> 5378.321461 | H45: =IF(H$11="No Data",".",IF(H$11=$BL$9,'Manual Data'!AS47,AN45)) -> 5425.952539 | I45: =IF(I$11=$BL$9,IF(ISERROR('Manual Data'!AT47/'Manual Data'!AQ47*F45),".",'Manual Data'!AT47/'Manual Data'!AQ47*F45),IF(ISERROR(AO45/AL45*F45),".",AO45/AL45*F45)) -> 9534.123905 | J45: =IF(J$11="No Data",".",IF(J$11=$BL$9,'Manual Data'!AU47,AP45)) -> 4953.218968 | K45: =IF(K$11="No Data",".",IF(K$11=$BL$9,'Manual Data'!AV47,AQ45)) -> 4580.904936 | L45: =IF(L$11=$BL$9,IF(ISERROR('Manual Data'!AW47/'Manual Data'!AT47*I45),".",'Manual Data'!AW47/'Manual Data'!AT47*I45),IF(ISERROR(AR45/AO45*I45),".",AR45/AO45*I45)) -> 9383.961449 | M45: =IF(M$11="No Data",".",IF(M$11=$BL$9,'Manual Data'!AX47,AS45)) -> 4864.704948 | N45: =IF(N$11="No Data",".",IF(N$11=$BL$9,'Manual Data'!AY47,AT45)) -> 4519.2565 | O45: =IF(O$11=$BL$9,IF(ISERROR('Manual Data'!AZ47/'Manual Data'!$AN47*$C45),".",'Manual Data'!AZ47/'Manual Data'!$AN47*$C45),IF(ISERROR(AU45/$AI45*$C45),".",AU45/$AI45*$C45)) -> 8418.297 | P45: =IF(P$11="No Data",".",IF(P$11=$BL$9,'Manual Data'!BA47,AV45)) -> 4302.984568 | Q45: =IF(Q$11="No Data",".",IF(Q$11=$BL$9,'Manual Data'!BB47,AW45)) -> 4115.312432 | R45: =IF(R$11=$BL$9,'Manual Data'!BC47,AX45) -> 5.02 | S45: =IF(S$11=$BL$9,'Manual Data'!BD47,AY45) -> 88.4 | T45: =IF(T$11=$BL$9,'Manual Data'!BE47,AZ45) -> 125.9 | U45: =IF(U$11=$BL$9,'Manual Data'!BF47,BA45) -> 18027.83018 | V45: =IF(V$11=$BL$9,'Manual Data'!BG47,BB45) -> 1910.489822 | W45: =IF(W$11=$BL$9,'Manual Data'!BH47,BC45) -> 441.9249589 | X45: =IF(X$11=$BL$9,'Manual Data'!BI47,BD45) -> 4.108154448e-05 | Y45: =IF(Y$11=$BL$9,'Manual Data'!BJ47,BE45) -> 1468.564822 | Z45: =IF(Z$11=$BL$9,'Manual Data'!BK47,BF45) -> 1363.20812 | AA45: =IF(AA$11=$BL$9,'Manual Data'!BL47,BG45) -> 8020.753329 | AB45: =IF(AB$11=$BL$9,'Manual Data'!BM47,BH45) -> 83.79877636 | AC45: =IF(AC$11=$BL$9,'Manual Data'!BN47,BI45) -> 4530.295109 | AD45: =IF(AD$11=$BL$9,'Manual Data'!BO47,BJ45) -> 3406.659444 | AF45: ='Existing Data_DataBank'!BP46 -> 1992 | AG45: ='Existing Data_DataBank'!CT46 -> GDP | AH45: ='Existing Data_DataBank'!BQ46 -> 7416.446124 | AI45: ='Existing Data_DataBank'!BR46 -> 19938.32 | AJ45: ='Existing Data_DataBank'!BS46 -> 9982.341999 | AK45: ='Existing Data_DataBank'!BT46 -> 9955.978001 | AL45: ='Existing Data_DataBank'!BU46 -> 10804.274 | AM45: ='Existing Data_DataBank'!BV46 -> 5378.321461 | AN45: ='Existing Data_DataBank'!BW46 -> 5425.952539 | AO45: ='Existing Data_DataBank'!BX46 -> 9534.123905 | AP45: ='Existing Data_DataBank'!BY46 -> 4953.218968 | AQ45: ='Existing Data_DataBank'!BZ46 -> 4580.904936 | AR45: ='Existing Data_DataBank'!CA46 -> 9383.961449 | AS45: ='Existing Data_DataBank'!CB46 -> 4864.704948 | AT45: ='Existing Data_DataBank'!CC46 -> 4519.2565 | AU45: ='Existing Data_DataBank'!CD46 -> 8418.297 | AV45: ='Existing Data_DataBank'!CE46 -> 4302.984568 | AW45: ='Existing Data_DataBank'!CF46 -> 4115.312432 | AX45: ='Existing Data_DataBank'!CG46 -> 5.02 | AY45: ='Existing Data_DataBank'!CH46 -> 88.4 | AZ45: ='Existing Data_DataBank'!CI46 -> 125.9 | BA45: ='Existing Data_DataBank'!CJ46 -> 18027.83018 | BB45: ='Existing Data_DataBank'!CK46 -> 1910.489822 | BC45: ='Existing Data_DataBank'!CL46 -> 441.9249589 | BD45: ='Existing Data_DataBank'!CM46 -> 4.108154448e-05 | BE45: ='Existing Data_DataBank'!CN46 -> 1468.564822 | BF45: ='Existing Data_DataBank'!CO46 -> 1363.20812 | BG45: ='Existing Data_DataBank'!CP46 -> 8020.753329 | BH45: ='Existing Data_DataBank'!CQ46 -> 83.79877636 | BI45: ='Existing Data_DataBank'!CR46 -> 4530.295109 | BJ45: ='Existing Data_DataBank'!CS46 -> 3406.659444 | BP45: 1992 | BQ45: 9134.046 | BR45: 1270.150095 | BS45: 150.162456 | BT45: 9383.961449 | BU45: 19938.32 | BV45: 7416.446124
A46: 1993 | B46: =IF(B$11=$BL$9,'Manual Data'!AM48,AH46) -> 7701.968177 | C46: =IF(C$11=$BL$9,'Manual Data'!AN48,AI46) -> 20489.975 | D46: =IF(D$11=$BL$9,'Manual Data'!AO48,AJ46) -> 10306.64001 | E46: =IF(E$11=$BL$9,'Manual Data'!AP48,AK46) -> 10183.33499 | F46: =IF(F$11=$BL$9,IF(ISERROR('Manual Data'!AQ48/'Manual Data'!$AN48*$C46),".",'Manual Data'!AQ48/'Manual Data'!$AN48*$C46),IF(ISERROR(AL46/$AI46*$C46),".",AL46/$AI46*$C46)) -> 11137.561 | G46: =IF(G$11="No Data",".",IF(G$11=$BL$9,'Manual Data'!AR48,AM46)) -> 5586.500545 | H46: =IF(H$11="No Data",".",IF(H$11=$BL$9,'Manual Data'!AS48,AN46)) -> 5551.060455 | I46: =IF(I$11=$BL$9,IF(ISERROR('Manual Data'!AT48/'Manual Data'!AQ48*F46),".",'Manual Data'!AT48/'Manual Data'!AQ48*F46),IF(ISERROR(AO46/AL46*F46),".",AO46/AL46*F46)) -> 9839.144458 | J46: =IF(J$11="No Data",".",IF(J$11=$BL$9,'Manual Data'!AU48,AP46)) -> 5143.714372 | K46: =IF(K$11="No Data",".",IF(K$11=$BL$9,'Manual Data'!AV48,AQ46)) -> 4695.430086 | L46: =IF(L$11=$BL$9,IF(ISERROR('Manual Data'!AW48/'Manual Data'!AT48*I46),".",'Manual Data'!AW48/'Manual Data'!AT48*I46),IF(ISERROR(AR46/AO46*I46),".",AR46/AO46*I46)) -> 9674.633958 | M46: =IF(M$11="No Data",".",IF(M$11=$BL$9,'Manual Data'!AX48,AS46)) -> 5048.29847 | N46: =IF(N$11="No Data",".",IF(N$11=$BL$9,'Manual Data'!AY48,AT46)) -> 4626.335488 | O46: =IF(O$11=$BL$9,IF(ISERROR('Manual Data'!AZ48/'Manual Data'!$AN48*$C46),".",'Manual Data'!AZ48/'Manual Data'!$AN48*$C46),IF(ISERROR(AU46/$AI46*$C46),".",AU46/$AI46*$C46)) -> 8612.647 | P46: =IF(P$11="No Data",".",IF(P$11=$BL$9,'Manual Data'!BA48,AV46)) -> 4408.19243 | Q46: =IF(Q$11="No Data",".",IF(Q$11=$BL$9,'Manual Data'!BB48,AW46)) -> 4204.45457 | R46: =IF(R$11=$BL$9,'Manual Data'!BC48,AX46) -> 4.934 | S46: =IF(S$11=$BL$9,'Manual Data'!BD48,AY46) -> 84.2 | T46: =IF(T$11=$BL$9,'Manual Data'!BE48,AZ46) -> 119.3 | U46: =IF(U$11=$BL$9,'Manual Data'!BF48,BA46) -> 18441.1824 | V46: =IF(V$11=$BL$9,'Manual Data'!BG48,BB46) -> 2048.7926 | W46: =IF(W$11=$BL$9,'Manual Data'!BH48,BC46) -> 463.0119097 | X46: =IF(X$11=$BL$9,'Manual Data'!BI48,BD46) -> 9.034053067e-05 | Y46: =IF(Y$11=$BL$9,'Manual Data'!BJ48,BE46) -> 1585.7806 | Z46: =IF(Z$11=$BL$9,'Manual Data'!BK48,BF46) -> 1419.07533 | AA46: =IF(AA$11=$BL$9,'Manual Data'!BL48,BG46) -> 8255.55872 | AB46: =IF(AB$11=$BL$9,'Manual Data'!BM48,BH46) -> 86.87821313 | AC46: =IF(AC$11=$BL$9,'Manual Data'!BN48,BI46) -> 4658.819864 | AD46: =IF(AD$11=$BL$9,'Manual Data'!BO48,BJ46) -> 3509.860642 | AF46: ='Existing Data_DataBank'!BP47 -> 1993 | AG46: ='Existing Data_DataBank'!CT47 -> GDP | AH46: ='Existing Data_DataBank'!BQ47 -> 7701.968177 | AI46: ='Existing Data_DataBank'!BR47 -> 20489.975 | AJ46: ='Existing Data_DataBank'!BS47 -> 10306.64001 | AK46: ='Existing Data_DataBank'!BT47 -> 10183.33499 | AL46: ='Existing Data_DataBank'!BU47 -> 11137.561 | AM46: ='Existing Data_DataBank'!BV47 -> 5586.500545 | AN46: ='Existing Data_DataBank'!BW47 -> 5551.060455 | AO46: ='Existing Data_DataBank'!BX47 -> 9839.144458 | AP46: ='Existing Data_DataBank'!BY47 -> 5143.714372 | AQ46: ='Existing Data_DataBank'!BZ47 -> 4695.430086 | AR46: ='Existing Data_DataBank'!CA47 -> 9674.633958 | AS46: ='Existing Data_DataBank'!CB47 -> 5048.29847 | AT46: ='Existing Data_DataBank'!CC47 -> 4626.335488 | AU46: ='Existing Data_DataBank'!CD47 -> 8612.647 | AV46: ='Existing Data_DataBank'!CE47 -> 4408.19243 | AW46: ='Existing Data_DataBank'!CF47 -> 4204.45457 | AX46: ='Existing Data_DataBank'!CG47 -> 4.934 | AY46: ='Existing Data_DataBank'!CH47 -> 84.2 | AZ46: ='Existing Data_DataBank'!CI47 -> 119.3 | BA46: ='Existing Data_DataBank'!CJ47 -> 18441.1824 | BB46: ='Existing Data_DataBank'!CK47 -> 2048.7926 | BC46: ='Existing Data_DataBank'!CL47 -> 463.0119097 | BD46: ='Existing Data_DataBank'!CM47 -> 9.034053067e-05 | BE46: ='Existing Data_DataBank'!CN47 -> 1585.7806 | BF46: ='Existing Data_DataBank'!CO47 -> 1419.07533 | BG46: ='Existing Data_DataBank'!CP47 -> 8255.55872 | BH46: ='Existing Data_DataBank'!CQ47 -> 86.87821313 | BI46: ='Existing Data_DataBank'!CR47 -> 4658.819864 | BJ46: ='Existing Data_DataBank'!CS47 -> 3509.860642 | BP46: 1993 | BQ46: 9352.414 | BR46: 1298.416542 | BS46: 164.5105003 | BT46: 9674.633958 | BU46: 20489.975 | BV46: 7701.968177
A47: 1994 | B47: =IF(B$11=$BL$9,'Manual Data'!AM49,AH47) -> 8334.762091 | C47: =IF(C$11=$BL$9,'Manual Data'!AN49,AI47) -> 21040.904 | D47: =IF(D$11=$BL$9,'Manual Data'!AO49,AJ47) -> 10619.78052 | E47: =IF(E$11=$BL$9,'Manual Data'!AP49,AK47) -> 10421.12348 | F47: =IF(F$11=$BL$9,IF(ISERROR('Manual Data'!AQ49/'Manual Data'!$AN49*$C47),".",'Manual Data'!AQ49/'Manual Data'!$AN49*$C47),IF(ISERROR(AL47/$AI47*$C47),".",AL47/$AI47*$C47)) -> 11481.435 | G47: =IF(G$11="No Data",".",IF(G$11=$BL$9,'Manual Data'!AR49,AM47)) -> 5794.340377 | H47: =IF(H$11="No Data",".",IF(H$11=$BL$9,'Manual Data'!AS49,AN47)) -> 5687.094623 | I47: =IF(I$11=$BL$9,IF(ISERROR('Manual Data'!AT49/'Manual Data'!AQ49*F47),".",'Manual Data'!AT49/'Manual Data'!AQ49*F47),IF(ISERROR(AO47/AL47*F47),".",AO47/AL47*F47)) -> 10156.59205 | J47: =IF(J$11="No Data",".",IF(J$11=$BL$9,'Manual Data'!AU49,AP47)) -> 5335.60246 | K47: =IF(K$11="No Data",".",IF(K$11=$BL$9,'Manual Data'!AV49,AQ47)) -> 4820.989587 | L47: =IF(L$11=$BL$9,IF(ISERROR('Manual Data'!AW49/'Manual Data'!AT49*I47),".",'Manual Data'!AW49/'Manual Data'!AT49*I47),IF(ISERROR(AR47/AO47*I47),".",AR47/AO47*I47)) -> 9979.054816 | M47: =IF(M$11="No Data",".",IF(M$11=$BL$9,'Manual Data'!AX49,AS47)) -> 5232.785398 | N47: =IF(N$11="No Data",".",IF(N$11=$BL$9,'Manual Data'!AY49,AT47)) -> 4746.269418 | O47: =IF(O$11=$BL$9,IF(ISERROR('Manual Data'!AZ49/'Manual Data'!$AN49*$C47),".",'Manual Data'!AZ49/'Manual Data'!$AN49*$C47),IF(ISERROR(AU47/$AI47*$C47),".",AU47/$AI47*$C47)) -> 8797.196 | P47: =IF(P$11="No Data",".",IF(P$11=$BL$9,'Manual Data'!BA49,AV47)) -> 4503.62907 | Q47: =IF(Q$11="No Data",".",IF(Q$11=$BL$9,'Manual Data'!BB49,AW47)) -> 4293.56693 | R47: =IF(R$11=$BL$9,'Manual Data'!BC49,AX47) -> 4.839 | S47: =IF(S$11=$BL$9,'Manual Data'!BD49,AY47) -> 80.3 | T47: =IF(T$11=$BL$9,'Manual Data'!BE49,AZ47) -> 113.1 | U47: =IF(U$11=$BL$9,'Manual Data'!BF49,BA47) -> 18845.70649 | V47: =IF(V$11=$BL$9,'Manual Data'!BG49,BB47) -> 2195.197514 | W47: =IF(W$11=$BL$9,'Manual Data'!BH49,BC47) -> 485.1368927 | X47: =IF(X$11=$BL$9,'Manual Data'!BI49,BD47) -> 0.000107334891 | Y47: =IF(Y$11=$BL$9,'Manual Data'!BJ49,BE47) -> 1710.060514 | Z47: =IF(Z$11=$BL$9,'Manual Data'!BK49,BF47) -> 1483.88544 | AA47: =IF(AA$11=$BL$9,'Manual Data'!BL49,BG47) -> 8495.16909 | AB47: =IF(AB$11=$BL$9,'Manual Data'!BM49,BH47) -> 90.41023844 | AC47: =IF(AC$11=$BL$9,'Manual Data'!BN49,BI47) -> 4801.122804 | AD47: =IF(AD$11=$BL$9,'Manual Data'!BO49,BJ47) -> 3603.636048 | AF47: ='Existing Data_DataBank'!BP48 -> 1994 | AG47: ='Existing Data_DataBank'!CT48 -> GDP | AH47: ='Existing Data_DataBank'!BQ48 -> 8334.762091 | AI47: ='Existing Data_DataBank'!BR48 -> 21040.904 | AJ47: ='Existing Data_DataBank'!BS48 -> 10619.78052 | AK47: ='Existing Data_DataBank'!BT48 -> 10421.12348 | AL47: ='Existing Data_DataBank'!BU48 -> 11481.435 | AM47: ='Existing Data_DataBank'!BV48 -> 5794.340377 | AN47: ='Existing Data_DataBank'!BW48 -> 5687.094623 | AO47: ='Existing Data_DataBank'!BX48 -> 10156.59205 | AP47: ='Existing Data_DataBank'!BY48 -> 5335.60246 | AQ47: ='Existing Data_DataBank'!BZ48 -> 4820.989587 | AR47: ='Existing Data_DataBank'!CA48 -> 9979.054816 | AS47: ='Existing Data_DataBank'!CB48 -> 5232.785398 | AT47: ='Existing Data_DataBank'!CC48 -> 4746.269418 | AU47: ='Existing Data_DataBank'!CD48 -> 8797.196 | AV47: ='Existing Data_DataBank'!CE48 -> 4503.62907 | AW47: ='Existing Data_DataBank'!CF48 -> 4293.56693 | AX47: ='Existing Data_DataBank'!CG48 -> 4.839 | AY47: ='Existing Data_DataBank'!CH48 -> 80.3 | AZ47: ='Existing Data_DataBank'!CI48 -> 113.1 | BA47: ='Existing Data_DataBank'!CJ48 -> 18845.70649 | BB47: ='Existing Data_DataBank'!CK48 -> 2195.197514 | BC47: ='Existing Data_DataBank'!CL48 -> 485.1368927 | BD47: ='Existing Data_DataBank'!CM48 -> 0.000107334891 | BE47: ='Existing Data_DataBank'!CN48 -> 1710.060514 | BF47: ='Existing Data_DataBank'!CO48 -> 1483.88544 | BG47: ='Existing Data_DataBank'!CP48 -> 8495.16909 | BH47: ='Existing Data_DataBank'!CQ48 -> 90.41023844 | BI47: ='Existing Data_DataBank'!CR48 -> 4801.122804 | BJ47: ='Existing Data_DataBank'!CS48 -> 3603.636048 | BP47: 1994 | BQ47: 9559.469 | BR47: 1324.842953 | BS47: 177.5372316 | BT47: 9979.054816 | BU47: 21040.904 | BV47: 8334.762091
A48: 1995 | B48: =IF(B$11=$BL$9,'Manual Data'!AM50,AH48) -> 8623.849303 | C48: =IF(C$11=$BL$9,'Manual Data'!AN50,AI48) -> 21576.071 | D48: =IF(D$11=$BL$9,'Manual Data'!AO50,AJ48) -> 10903.15548 | E48: =IF(E$11=$BL$9,'Manual Data'!AP50,AK48) -> 10672.91552 | F48: =IF(F$11=$BL$9,IF(ISERROR('Manual Data'!AQ50/'Manual Data'!$AN50*$C48),".",'Manual Data'!AQ50/'Manual Data'!$AN50*$C48),IF(ISERROR(AL48/$AI48*$C48),".",AL48/$AI48*$C48)) -> 11825.747 | G48: =IF(G$11="No Data",".",IF(G$11=$BL$9,'Manual Data'!AR50,AM48)) -> 5990.156167 | H48: =IF(H$11="No Data",".",IF(H$11=$BL$9,'Manual Data'!AS50,AN48)) -> 5835.590833 | I48: =IF(I$11=$BL$9,IF(ISERROR('Manual Data'!AT50/'Manual Data'!AQ50*F48),".",'Manual Data'!AT50/'Manual Data'!AQ50*F48),IF(ISERROR(AO48/AL48*F48),".",AO48/AL48*F48)) -> 10476.66612 | J48: =IF(J$11="No Data",".",IF(J$11=$BL$9,'Manual Data'!AU50,AP48)) -> 5518.132026 | K48: =IF(K$11="No Data",".",IF(K$11=$BL$9,'Manual Data'!AV50,AQ48)) -> 4958.534096 | L48: =IF(L$11=$BL$9,IF(ISERROR('Manual Data'!AW50/'Manual Data'!AT50*I48),".",'Manual Data'!AW50/'Manual Data'!AT50*I48),IF(ISERROR(AR48/AO48*I48),".",AR48/AO48*I48)) -> 10298.87709 | M48: =IF(M$11="No Data",".",IF(M$11=$BL$9,'Manual Data'!AX50,AS48)) -> 5414.115238 | N48: =IF(N$11="No Data",".",IF(N$11=$BL$9,'Manual Data'!AY50,AT48)) -> 4884.761857 | O48: =IF(O$11=$BL$9,IF(ISERROR('Manual Data'!AZ50/'Manual Data'!$AN50*$C48),".",'Manual Data'!AZ50/'Manual Data'!$AN50*$C48),IF(ISERROR(AU48/$AI48*$C48),".",AU48/$AI48*$C48)) -> 8967.751 | P48: =IF(P$11="No Data",".",IF(P$11=$BL$9,'Manual Data'!BA50,AV48)) -> 4583.004363 | Q48: =IF(Q$11="No Data",".",IF(Q$11=$BL$9,'Manual Data'!BB50,AW48)) -> 4384.746637 | R48: =IF(R$11=$BL$9,'Manual Data'!BC50,AX48) -> 4.731 | S48: =IF(S$11=$BL$9,'Manual Data'!BD50,AY48) -> 76.5 | T48: =IF(T$11=$BL$9,'Manual Data'!BE50,AZ48) -> 107.1 | U48: =IF(U$11=$BL$9,'Manual Data'!BF50,BA48) -> 19227.94719 | V48: =IF(V$11=$BL$9,'Manual Data'!BG50,BB48) -> 2348.123807 | W48: =IF(W$11=$BL$9,'Manual Data'!BH50,BC48) -> 508.3189582 | X48: =IF(X$11=$BL$9,'Manual Data'!BI50,BD48) -> 4.179555655e-05 | Y48: =IF(Y$11=$BL$9,'Manual Data'!BJ50,BE48) -> 1839.804807 | Z48: =IF(Z$11=$BL$9,'Manual Data'!BK50,BF48) -> 1548.230193 | AA48: =IF(AA$11=$BL$9,'Manual Data'!BL50,BG48) -> 8750.647196 | AB48: =IF(AB$11=$BL$9,'Manual Data'!BM50,BH48) -> 93.30782834 | AC48: =IF(AC$11=$BL$9,'Manual Data'!BN50,BI48) -> 4943.048884 | AD48: =IF(AD$11=$BL$9,'Manual Data'!BO50,BJ48) -> 3714.290484 | AF48: ='Existing Data_DataBank'!BP49 -> 1995 | AG48: ='Existing Data_DataBank'!CT49 -> GDP | AH48: ='Existing Data_DataBank'!BQ49 -> 8623.849303 | AI48: ='Existing Data_DataBank'!BR49 -> 21576.071 | AJ48: ='Existing Data_DataBank'!BS49 -> 10903.15548 | AK48: ='Existing Data_DataBank'!BT49 -> 10672.91552 | AL48: ='Existing Data_DataBank'!BU49 -> 11825.747 | AM48: ='Existing Data_DataBank'!BV49 -> 5990.156167 | AN48: ='Existing Data_DataBank'!BW49 -> 5835.590833 | AO48: ='Existing Data_DataBank'!BX49 -> 10476.66612 | AP48: ='Existing Data_DataBank'!BY49 -> 5518.132026 | AQ48: ='Existing Data_DataBank'!BZ49 -> 4958.534096 | AR48: ='Existing Data_DataBank'!CA49 -> 10298.87709 | AS48: ='Existing Data_DataBank'!CB49 -> 5414.115238 | AT48: ='Existing Data_DataBank'!CC49 -> 4884.761857 | AU48: ='Existing Data_DataBank'!CD49 -> 8967.751 | AV48: ='Existing Data_DataBank'!CE49 -> 4583.004363 | AW48: ='Existing Data_DataBank'!CF49 -> 4384.746637 | AX48: ='Existing Data_DataBank'!CG49 -> 4.731 | AY48: ='Existing Data_DataBank'!CH49 -> 76.5 | AZ48: ='Existing Data_DataBank'!CI49 -> 107.1 | BA48: ='Existing Data_DataBank'!CJ49 -> 19227.94719 | BB48: ='Existing Data_DataBank'!CK49 -> 2348.123807 | BC48: ='Existing Data_DataBank'!CL49 -> 508.3189582 | BD48: ='Existing Data_DataBank'!CM49 -> 4.179555655e-05 | BE48: ='Existing Data_DataBank'!CN49 -> 1839.804807 | BF48: ='Existing Data_DataBank'!CO49 -> 1548.230193 | BG48: ='Existing Data_DataBank'!CP49 -> 8750.647196 | BH48: ='Existing Data_DataBank'!CQ49 -> 93.30782834 | BI48: ='Existing Data_DataBank'!CR49 -> 4943.048884 | BJ48: ='Existing Data_DataBank'!CS49 -> 3714.290484 | BP48: 1995 | BQ48: 9750.324 | BR48: 1349.080879 | BS48: 177.7890269 | BT48: 10298.87709 | BU48: 21576.071 | BV48: 8623.849303
A49: 1996 | B49: =IF(B$11=$BL$9,'Manual Data'!AM51,AH49) -> 9083.352501 | C49: =IF(C$11=$BL$9,'Manual Data'!AN51,AI49) -> 22090.352 | D49: =IF(D$11=$BL$9,'Manual Data'!AO51,AJ49) -> 11149.412 | E49: =IF(E$11=$BL$9,'Manual Data'!AP51,AK49) -> 10940.94 | F49: =IF(F$11=$BL$9,IF(ISERROR('Manual Data'!AQ51/'Manual Data'!$AN51*$C49),".",'Manual Data'!AQ51/'Manual Data'!$AN51*$C49),IF(ISERROR(AL49/$AI49*$C49),".",AL49/$AI49*$C49)) -> 12114.895 | G49: =IF(G$11="No Data",".",IF(G$11=$BL$9,'Manual Data'!AR51,AM49)) -> 6118.984 | H49: =IF(H$11="No Data",".",IF(H$11=$BL$9,'Manual Data'!AS51,AN49)) -> 5995.911 | I49: =IF(I$11=$BL$9,IF(ISERROR('Manual Data'!AT51/'Manual Data'!AQ51*F49),".",'Manual Data'!AT51/'Manual Data'!AQ51*F49),IF(ISERROR(AO49/AL49*F49),".",AO49/AL49*F49)) -> 10725.67964 | J49: =IF(J$11="No Data",".",IF(J$11=$BL$9,'Manual Data'!AU51,AP49)) -> 5635.217233 | K49: =IF(K$11="No Data",".",IF(K$11=$BL$9,'Manual Data'!AV51,AQ49)) -> 5090.46241 | L49: =IF(L$11=$BL$9,IF(ISERROR('Manual Data'!AW51/'Manual Data'!AT51*I49),".",'Manual Data'!AW51/'Manual Data'!AT51*I49),IF(ISERROR(AR49/AO49*I49),".",AR49/AO49*I49)) -> 10543.55761 | M49: =IF(M$11="No Data",".",IF(M$11=$BL$9,'Manual Data'!AX51,AS49)) -> 5531.191126 | N49: =IF(N$11="No Data",".",IF(N$11=$BL$9,'Manual Data'!AY51,AT49)) -> 5012.366482 | O49: =IF(O$11=$BL$9,IF(ISERROR('Manual Data'!AZ51/'Manual Data'!$AN51*$C49),".",'Manual Data'!AZ51/'Manual Data'!$AN51*$C49),IF(ISERROR(AU49/$AI49*$C49),".",AU49/$AI49*$C49)) -> 9165.867 | P49: =IF(P$11="No Data",".",IF(P$11=$BL$9,'Manual Data'!BA51,AV49)) -> 4687.696 | Q49: =IF(Q$11="No Data",".",IF(Q$11=$BL$9,'Manual Data'!BB51,AW49)) -> 4478.171 | R49: =IF(R$11=$BL$9,'Manual Data'!BC51,AX49) -> 4.606 | S49: =IF(S$11=$BL$9,'Manual Data'!BD51,AY49) -> 72.9 | T49: =IF(T$11=$BL$9,'Manual Data'!BE51,AZ49) -> 101.5 | U49: =IF(U$11=$BL$9,'Manual Data'!BF51,BA49) -> 19583.09705 | V49: =IF(V$11=$BL$9,'Manual Data'!BG51,BB49) -> 2507.254952 | W49: =IF(W$11=$BL$9,'Manual Data'!BH51,BC49) -> 532.6439898 | X49: =IF(X$11=$BL$9,'Manual Data'!BI51,BD49) -> 1.019717252e-05 | Y49: =IF(Y$11=$BL$9,'Manual Data'!BJ51,BE49) -> 1974.610952 | Z49: =IF(Z$11=$BL$9,'Manual Data'!BK51,BF49) -> 1603.675116 | AA49: =IF(AA$11=$BL$9,'Manual Data'!BL51,BG49) -> 8939.882592 | AB49: =IF(AB$11=$BL$9,'Manual Data'!BM51,BH49) -> 96.26267965 | AC49: =IF(AC$11=$BL$9,'Manual Data'!BN51,BI49) -> 5047.200914 | AD49: =IF(AD$11=$BL$9,'Manual Data'!BO51,BJ49) -> 3796.418998 | AF49: ='Existing Data_DataBank'!BP50 -> 1996 | AG49: ='Existing Data_DataBank'!CT50 -> GDP | AH49: ='Existing Data_DataBank'!BQ50 -> 9083.352501 | AI49: ='Existing Data_DataBank'!BR50 -> 22090.352 | AJ49: ='Existing Data_DataBank'!BS50 -> 11149.412 | AK49: ='Existing Data_DataBank'!BT50 -> 10940.94 | AL49: ='Existing Data_DataBank'!BU50 -> 12114.895 | AM49: ='Existing Data_DataBank'!BV50 -> 6118.984 | AN49: ='Existing Data_DataBank'!BW50 -> 5995.911 | AO49: ='Existing Data_DataBank'!BX50 -> 10725.67964 | AP49: ='Existing Data_DataBank'!BY50 -> 5635.217233 | AQ49: ='Existing Data_DataBank'!BZ50 -> 5090.46241 | AR49: ='Existing Data_DataBank'!CA50 -> 10543.55761 | AS49: ='Existing Data_DataBank'!CB50 -> 5531.191126 | AT49: ='Existing Data_DataBank'!CC50 -> 5012.366482 | AU49: ='Existing Data_DataBank'!CD50 -> 9165.867 | AV49: ='Existing Data_DataBank'!CE50 -> 4687.696 | AW49: ='Existing Data_DataBank'!CF50 -> 4478.171 | AX49: ='Existing Data_DataBank'!CG50 -> 4.606 | AY49: ='Existing Data_DataBank'!CH50 -> 72.9 | AZ49: ='Existing Data_DataBank'!CI50 -> 101.5 | BA49: ='Existing Data_DataBank'!CJ50 -> 19583.09705 | BB49: ='Existing Data_DataBank'!CK50 -> 2507.254952 | BC49: ='Existing Data_DataBank'!CL50 -> 532.6439898 | BD49: ='Existing Data_DataBank'!CM50 -> 1.019717252e-05 | BE49: ='Existing Data_DataBank'!CN50 -> 1974.610952 | BF49: ='Existing Data_DataBank'!CO50 -> 1603.675116 | BG49: ='Existing Data_DataBank'!CP50 -> 8939.882592 | BH49: ='Existing Data_DataBank'!CQ50 -> 96.26267965 | BI49: ='Existing Data_DataBank'!CR50 -> 5047.200914 | BJ49: ='Existing Data_DataBank'!CS50 -> 3796.418998 | BP49: 1996 | BQ49: 9975.457 | BR49: 1389.215357 | BS49: 182.1220354 | BT49: 10543.55761 | BU49: 22090.352 | BV49: 9083.352501
A50: 1997 | B50: =IF(B$11=$BL$9,'Manual Data'!AM52,AH50) -> 9541.935774 | C50: =IF(C$11=$BL$9,'Manual Data'!AN52,AI50) -> 22584.775 | D50: =IF(D$11=$BL$9,'Manual Data'!AO52,AJ50) -> 11363.58451 | E50: =IF(E$11=$BL$9,'Manual Data'!AP52,AK50) -> 11221.19049 | F50: =IF(F$11=$BL$9,IF(ISERROR('Manual Data'!AQ52/'Manual Data'!$AN52*$C50),".",'Manual Data'!AQ52/'Manual Data'!$AN52*$C50),IF(ISERROR(AL50/$AI50*$C50),".",AL50/$AI50*$C50)) -> 12396.781 | G50: =IF(G$11="No Data",".",IF(G$11=$BL$9,'Manual Data'!AR52,AM50)) -> 6227.549827 | H50: =IF(H$11="No Data",".",IF(H$11=$BL$9,'Manual Data'!AS52,AN50)) -> 6169.231173 | I50: =IF(I$11=$BL$9,IF(ISERROR('Manual Data'!AT52/'Manual Data'!AQ52*F50),".",'Manual Data'!AT52/'Manual Data'!AQ52*F50),IF(ISERROR(AO50/AL50*F50),".",AO50/AL50*F50)) -> 10968.92004 | J50: =IF(J$11="No Data",".",IF(J$11=$BL$9,'Manual Data'!AU52,AP50)) -> 5734.078555 | K50: =IF(K$11="No Data",".",IF(K$11=$BL$9,'Manual Data'!AV52,AQ50)) -> 5234.84149 | L50: =IF(L$11=$BL$9,IF(ISERROR('Manual Data'!AW52/'Manual Data'!AT52*I50),".",'Manual Data'!AW52/'Manual Data'!AT52*I50),IF(ISERROR(AR50/AO50*I50),".",AR50/AO50*I50)) -> 10779.04804 | M50: =IF(M$11="No Data",".",IF(M$11=$BL$9,'Manual Data'!AX52,AS50)) -> 5625.131063 | N50: =IF(N$11="No Data",".",IF(N$11=$BL$9,'Manual Data'!AY52,AT50)) -> 5153.916981 | O50: =IF(O$11=$BL$9,IF(ISERROR('Manual Data'!AZ52/'Manual Data'!$AN52*$C50),".",'Manual Data'!AZ52/'Manual Data'!$AN52*$C50),IF(ISERROR(AU50/$AI50*$C50),".",AU50/$AI50*$C50)) -> 9353.882 | P50: =IF(P$11="No Data",".",IF(P$11=$BL$9,'Manual Data'!BA52,AV50)) -> 4782.404635 | Q50: =IF(Q$11="No Data",".",IF(Q$11=$BL$9,'Manual Data'!BB52,AW50)) -> 4571.477365 | R50: =IF(R$11=$BL$9,'Manual Data'!BC52,AX50) -> 4.464 | S50: =IF(S$11=$BL$9,'Manual Data'!BD52,AY50) -> 69.4 | T50: =IF(T$11=$BL$9,'Manual Data'!BE52,AZ50) -> 96 | U50: =IF(U$11=$BL$9,'Manual Data'!BF52,BA50) -> 19912.09273 | V50: =IF(V$11=$BL$9,'Manual Data'!BG52,BB50) -> 2672.682274 | W50: =IF(W$11=$BL$9,'Manual Data'!BH52,BC50) -> 558.0600571 | X50: =IF(X$11=$BL$9,'Manual Data'!BI52,BD50) -> 0 | Y50: =IF(Y$11=$BL$9,'Manual Data'!BJ52,BE50) -> 2114.622216 | Z50: =IF(Z$11=$BL$9,'Manual Data'!BK52,BF50) -> 1658.787697 | AA50: =IF(AA$11=$BL$9,'Manual Data'!BL52,BG50) -> 9120.260347 | AB50: =IF(AB$11=$BL$9,'Manual Data'!BM52,BH50) -> 98.8438701 | AC50: =IF(AC$11=$BL$9,'Manual Data'!BN52,BI50) -> 5144.300515 | AD50: =IF(AD$11=$BL$9,'Manual Data'!BO52,BJ50) -> 3877.115963 | AF50: ='Existing Data_DataBank'!BP51 -> 1997 | AG50: ='Existing Data_DataBank'!CT51 -> GDP | AH50: ='Existing Data_DataBank'!BQ51 -> 9541.935774 | AI50: ='Existing Data_DataBank'!BR51 -> 22584.775 | AJ50: ='Existing Data_DataBank'!BS51 -> 11363.58451 | AK50: ='Existing Data_DataBank'!BT51 -> 11221.19049 | AL50: ='Existing Data_DataBank'!BU51 -> 12396.781 | AM50: ='Existing Data_DataBank'!BV51 -> 6227.549827 | AN50: ='Existing Data_DataBank'!BW51 -> 6169.231173 | AO50: ='Existing Data_DataBank'!BX51 -> 10968.92004 | AP50: ='Existing Data_DataBank'!BY51 -> 5734.078555 | AQ50: ='Existing Data_DataBank'!BZ51 -> 5234.84149 | AR50: ='Existing Data_DataBank'!CA51 -> 10779.04804 | AS50: ='Existing Data_DataBank'!CB51 -> 5625.131063 | AT50: ='Existing Data_DataBank'!CC51 -> 5153.916981 | AU50: ='Existing Data_DataBank'!CD51 -> 9353.882 | AV50: ='Existing Data_DataBank'!CE51 -> 4782.404635 | AW50: ='Existing Data_DataBank'!CF51 -> 4571.477365 | AX50: ='Existing Data_DataBank'!CG51 -> 4.464 | AY50: ='Existing Data_DataBank'!CH51 -> 69.4 | AZ50: ='Existing Data_DataBank'!CI51 -> 96 | BA50: ='Existing Data_DataBank'!CJ51 -> 19912.09273 | BB50: ='Existing Data_DataBank'!CK51 -> 2672.682274 | BC50: ='Existing Data_DataBank'!CL51 -> 558.0600571 | BD50: ='Existing Data_DataBank'!CM51 -> 0 | BE50: ='Existing Data_DataBank'!CN51 -> 2114.622216 | BF50: ='Existing Data_DataBank'!CO51 -> 1658.787697 | BG50: ='Existing Data_DataBank'!CP51 -> 9120.260347 | BH50: ='Existing Data_DataBank'!CQ51 -> 98.8438701 | BI50: ='Existing Data_DataBank'!CR51 -> 5144.300515 | BJ50: ='Existing Data_DataBank'!CS51 -> 3877.115963 | BP50: 1997 | BQ50: 10187.994 | BR50: 1427.860956 | BS50: 189.8720001 | BT50: 10779.04804 | BU50: 22584.775 | BV50: 9541.935774
A51: 1998 | B51: =IF(B$11=$BL$9,'Manual Data'!AM53,AH51) -> 9829.757721 | C51: =IF(C$11=$BL$9,'Manual Data'!AN53,AI51) -> 23057.883 | D51: =IF(D$11=$BL$9,'Manual Data'!AO53,AJ51) -> 11554.50701 | E51: =IF(E$11=$BL$9,'Manual Data'!AP53,AK51) -> 11503.37599 | F51: =IF(F$11=$BL$9,IF(ISERROR('Manual Data'!AQ53/'Manual Data'!$AN53*$C51),".",'Manual Data'!AQ53/'Manual Data'!$AN53*$C51),IF(ISERROR(AL51/$AI51*$C51),".",AL51/$AI51*$C51)) -> 12672.757 | G51: =IF(G$11="No Data",".",IF(G$11=$BL$9,'Manual Data'!AR53,AM51)) -> 6322.796194 | H51: =IF(H$11="No Data",".",IF(H$11=$BL$9,'Manual Data'!AS53,AN51)) -> 6349.960806 | I51: =IF(I$11=$BL$9,IF(ISERROR('Manual Data'!AT53/'Manual Data'!AQ53*F51),".",'Manual Data'!AT53/'Manual Data'!AQ53*F51),IF(ISERROR(AO51/AL51*F51),".",AO51/AL51*F51)) -> 11207.7866 | J51: =IF(J$11="No Data",".",IF(J$11=$BL$9,'Manual Data'!AU53,AP51)) -> 5820.513249 | K51: =IF(K$11="No Data",".",IF(K$11=$BL$9,'Manual Data'!AV53,AQ51)) -> 5387.273352 | L51: =IF(L$11=$BL$9,IF(ISERROR('Manual Data'!AW53/'Manual Data'!AT53*I51),".",'Manual Data'!AW53/'Manual Data'!AT53*I51),IF(ISERROR(AR51/AO51*I51),".",AR51/AO51*I51)) -> 11015.79721 | M51: =IF(M$11="No Data",".",IF(M$11=$BL$9,'Manual Data'!AX53,AS51)) -> 5710.738367 | N51: =IF(N$11="No Data",".",IF(N$11=$BL$9,'Manual Data'!AY53,AT51)) -> 5305.058842 | O51: =IF(O$11=$BL$9,IF(ISERROR('Manual Data'!AZ53/'Manual Data'!$AN53*$C51),".",'Manual Data'!AZ53/'Manual Data'!$AN53*$C51),IF(ISERROR(AU51/$AI51*$C51),".",AU51/$AI51*$C51)) -> 9528.276 | P51: =IF(P$11="No Data",".",IF(P$11=$BL$9,'Manual Data'!BA53,AV51)) -> 4868.432689 | Q51: =IF(Q$11="No Data",".",IF(Q$11=$BL$9,'Manual Data'!BB53,AW51)) -> 4659.843311 | R51: =IF(R$11=$BL$9,'Manual Data'!BC53,AX51) -> 4.306 | S51: =IF(S$11=$BL$9,'Manual Data'!BD53,AY51) -> 66.1 | T51: =IF(T$11=$BL$9,'Manual Data'!BE53,AZ51) -> 90.8 | U51: =IF(U$11=$BL$9,'Manual Data'!BF53,BA51) -> 20213.46255 | V51: =IF(V$11=$BL$9,'Manual Data'!BG53,BB51) -> 2844.420447 | W51: =IF(W$11=$BL$9,'Manual Data'!BH53,BC51) -> 584.7270919 | X51: =IF(X$11=$BL$9,'Manual Data'!BI53,BD51) -> 0 | Y51: =IF(Y$11=$BL$9,'Manual Data'!BJ53,BE51) -> 2259.693355 | Z51: =IF(Z$11=$BL$9,'Manual Data'!BK53,BF51) -> 1712.075182 | AA51: =IF(AA$11=$BL$9,'Manual Data'!BL53,BG51) -> 9303.722027 | AB51: =IF(AB$11=$BL$9,'Manual Data'!BM53,BH51) -> 101.3453362 | AC51: =IF(AC$11=$BL$9,'Manual Data'!BN53,BI51) -> 5236.359187 | AD51: =IF(AD$11=$BL$9,'Manual Data'!BO53,BJ51) -> 3966.017504 | AF51: ='Existing Data_DataBank'!BP52 -> 1998 | AG51: ='Existing Data_DataBank'!CT52 -> GDP | AH51: ='Existing Data_DataBank'!BQ52 -> 9829.757721 | AI51: ='Existing Data_DataBank'!BR52 -> 23057.883 | AJ51: ='Existing Data_DataBank'!BS52 -> 11554.50701 | AK51: ='Existing Data_DataBank'!BT52 -> 11503.37599 | AL51: ='Existing Data_DataBank'!BU52 -> 12672.757 | AM51: ='Existing Data_DataBank'!BV52 -> 6322.796194 | AN51: ='Existing Data_DataBank'!BW52 -> 6349.960806 | AO51: ='Existing Data_DataBank'!BX52 -> 11207.7866 | AP51: ='Existing Data_DataBank'!BY52 -> 5820.513249 | AQ51: ='Existing Data_DataBank'!BZ52 -> 5387.273352 | AR51: ='Existing Data_DataBank'!CA52 -> 11015.79721 | AS51: ='Existing Data_DataBank'!CB52 -> 5710.738367 | AT51: ='Existing Data_DataBank'!CC52 -> 5305.058842 | AU51: ='Existing Data_DataBank'!CD52 -> 9528.276 | AV51: ='Existing Data_DataBank'!CE52 -> 4868.432689 | AW51: ='Existing Data_DataBank'!CF52 -> 4659.843311 | AX51: ='Existing Data_DataBank'!CG52 -> 4.306 | AY51: ='Existing Data_DataBank'!CH52 -> 66.1 | AZ51: ='Existing Data_DataBank'!CI52 -> 90.8 | BA51: ='Existing Data_DataBank'!CJ52 -> 20213.46255 | BB51: ='Existing Data_DataBank'!CK52 -> 2844.420447 | BC51: ='Existing Data_DataBank'!CL52 -> 584.7270919 | BD51: ='Existing Data_DataBank'!CM52 -> 0 | BE51: ='Existing Data_DataBank'!CN52 -> 2259.693355 | BF51: ='Existing Data_DataBank'!CO52 -> 1712.075182 | BG51: ='Existing Data_DataBank'!CP52 -> 9303.722027 | BH51: ='Existing Data_DataBank'!CQ52 -> 101.3453362 | BI51: ='Existing Data_DataBank'!CR52 -> 5236.359187 | BJ51: ='Existing Data_DataBank'!CS52 -> 3966.017504 | BP51: 1998 | BQ51: 10385.126 | BR51: 1464.9704 | BS51: 191.9893911 | BT51: 11015.79721 | BU51: 23057.883 | BV51: 9829.757721
A52: 1999 | B52: =IF(B$11=$BL$9,'Manual Data'!AM54,AH52) -> 10263.50298 | C52: =IF(C$11=$BL$9,'Manual Data'!AN54,AI52) -> 23509.964 | D52: =IF(D$11=$BL$9,'Manual Data'!AO54,AJ52) -> 11736.51251 | E52: =IF(E$11=$BL$9,'Manual Data'!AP54,AK52) -> 11773.45149 | F52: =IF(F$11=$BL$9,IF(ISERROR('Manual Data'!AQ54/'Manual Data'!$AN54*$C52),".",'Manual Data'!AQ54/'Manual Data'!$AN54*$C52),IF(ISERROR(AL52/$AI52*$C52),".",AL52/$AI52*$C52)) -> 12949.239 | G52: =IF(G$11="No Data",".",IF(G$11=$BL$9,'Manual Data'!AR54,AM52)) -> 6416.891089 | H52: =IF(H$11="No Data",".",IF(H$11=$BL$9,'Manual Data'!AS54,AN52)) -> 6532.347911 | I52: =IF(I$11=$BL$9,IF(ISERROR('Manual Data'!AT54/'Manual Data'!AQ54*F52),".",'Manual Data'!AT54/'Manual Data'!AQ54*F52),IF(ISERROR(AO52/AL52*F52),".",AO52/AL52*F52)) -> 11448.94036 | J52: =IF(J$11="No Data",".",IF(J$11=$BL$9,'Manual Data'!AU54,AP52)) -> 5905.208257 | K52: =IF(K$11="No Data",".",IF(K$11=$BL$9,'Manual Data'!AV54,AQ52)) -> 5543.732103 | L52: =IF(L$11=$BL$9,IF(ISERROR('Manual Data'!AW54/'Manual Data'!AT54*I52),".",'Manual Data'!AW54/'Manual Data'!AT54*I52),IF(ISERROR(AR52/AO52*I52),".",AR52/AO52*I52)) -> 11237.13496 | M52: =IF(M$11="No Data",".",IF(M$11=$BL$9,'Manual Data'!AX54,AS52)) -> 5785.391578 | N52: =IF(N$11="No Data",".",IF(N$11=$BL$9,'Manual Data'!AY54,AT52)) -> 5451.743381 | O52: =IF(O$11=$BL$9,IF(ISERROR('Manual Data'!AZ54/'Manual Data'!$AN54*$C52),".",'Manual Data'!AZ54/'Manual Data'!$AN54*$C52),IF(ISERROR(AU52/$AI52*$C52),".",AU52/$AI52*$C52)) -> 9681.699 | P52: =IF(P$11="No Data",".",IF(P$11=$BL$9,'Manual Data'!BA54,AV52)) -> 4946.931527 | Q52: =IF(Q$11="No Data",".",IF(Q$11=$BL$9,'Manual Data'!BB54,AW52)) -> 4734.767473 | R52: =IF(R$11=$BL$9,'Manual Data'!BC54,AX52) -> 4.135 | S52: =IF(S$11=$BL$9,'Manual Data'!BD54,AY52) -> 63 | T52: =IF(T$11=$BL$9,'Manual Data'!BE54,AZ52) -> 85.8 | U52: =IF(U$11=$BL$9,'Manual Data'!BF54,BA52) -> 20487.28793 | V52: =IF(V$11=$BL$9,'Manual Data'!BG54,BB52) -> 3022.676071 | W52: =IF(W$11=$BL$9,'Manual Data'!BH54,BC52) -> 612.6680145 | X52: =IF(X$11=$BL$9,'Manual Data'!BI54,BD52) -> 0 | Y52: =IF(Y$11=$BL$9,'Manual Data'!BJ54,BE52) -> 2410.008057 | Z52: =IF(Z$11=$BL$9,'Manual Data'!BK54,BF52) -> 1765.803359 | AA52: =IF(AA$11=$BL$9,'Manual Data'!BL54,BG52) -> 9471.331922 | AB52: =IF(AB$11=$BL$9,'Manual Data'!BM54,BH52) -> 104.0558696 | AC52: =IF(AC$11=$BL$9,'Manual Data'!BN54,BI52) -> 5319.435088 | AD52: =IF(AD$11=$BL$9,'Manual Data'!BO54,BJ52) -> 4047.840965 | AF52: ='Existing Data_DataBank'!BP53 -> 1999 | AG52: ='Existing Data_DataBank'!CT53 -> GDP | AH52: ='Existing Data_DataBank'!BQ53 -> 10263.50298 | AI52: ='Existing Data_DataBank'!BR53 -> 23509.964 | AJ52: ='Existing Data_DataBank'!BS53 -> 11736.51251 | AK52: ='Existing Data_DataBank'!BT53 -> 11773.45149 | AL52: ='Existing Data_DataBank'!BU53 -> 12949.239 | AM52: ='Existing Data_DataBank'!BV53 -> 6416.891089 | AN52: ='Existing Data_DataBank'!BW53 -> 6532.347911 | AO52: ='Existing Data_DataBank'!BX53 -> 11448.94036 | AP52: ='Existing Data_DataBank'!BY53 -> 5905.208257 | AQ52: ='Existing Data_DataBank'!BZ53 -> 5543.732103 | AR52: ='Existing Data_DataBank'!CA53 -> 11237.13496 | AS52: ='Existing Data_DataBank'!CB53 -> 5785.391578 | AT52: ='Existing Data_DataBank'!CC53 -> 5451.743381 | AU52: ='Existing Data_DataBank'!CD53 -> 9681.699 | AV52: ='Existing Data_DataBank'!CE53 -> 4946.931527 | AW52: ='Existing Data_DataBank'!CF53 -> 4734.767473 | AX52: ='Existing Data_DataBank'!CG53 -> 4.135 | AY52: ='Existing Data_DataBank'!CH53 -> 63 | AZ52: ='Existing Data_DataBank'!CI53 -> 85.8 | BA52: ='Existing Data_DataBank'!CJ53 -> 20487.28793 | BB52: ='Existing Data_DataBank'!CK53 -> 3022.676071 | BC52: ='Existing Data_DataBank'!CL53 -> 612.6680145 | BD52: ='Existing Data_DataBank'!CM53 -> 0 | BE52: ='Existing Data_DataBank'!CN53 -> 2410.008057 | BF52: ='Existing Data_DataBank'!CO53 -> 1765.803359 | BG52: ='Existing Data_DataBank'!CP53 -> 9471.331922 | BH52: ='Existing Data_DataBank'!CQ53 -> 104.0558696 | BI52: ='Existing Data_DataBank'!CR53 -> 5319.435088 | BJ52: ='Existing Data_DataBank'!CS53 -> 4047.840965 | BP52: 1999 | BQ52: 10560.725 | BR52: 1500.298641 | BS52: 211.8053994 | BT52: 11237.13496 | BU52: 23509.964 | BV52: 10263.50298
A53: 2000 | B53: =IF(B$11=$BL$9,'Manual Data'!AM55,AH53) -> 10899.84017 | C53: =IF(C$11=$BL$9,'Manual Data'!AN55,AI53) -> 23941.11 | D53: =IF(D$11=$BL$9,'Manual Data'!AO55,AJ53) -> 11919.75448 | E53: =IF(E$11=$BL$9,'Manual Data'!AP55,AK53) -> 12021.35552 | F53: =IF(F$11=$BL$9,IF(ISERROR('Manual Data'!AQ55/'Manual Data'!$AN55*$C53),".",'Manual Data'!AQ55/'Manual Data'!$AN55*$C53),IF(ISERROR(AL53/$AI53*$C53),".",AL53/$AI53*$C53)) -> 13232.117 | G53: =IF(G$11="No Data",".",IF(G$11=$BL$9,'Manual Data'!AR55,AM53)) -> 6519.319995 | H53: =IF(H$11="No Data",".",IF(H$11=$BL$9,'Manual Data'!AS55,AN53)) -> 6712.797005 | I53: =IF(I$11=$BL$9,IF(ISERROR('Manual Data'!AT55/'Manual Data'!AQ55*F53),".",'Manual Data'!AT55/'Manual Data'!AQ55*F53),IF(ISERROR(AO53/AL53*F53),".",AO53/AL53*F53)) -> 11654.0544 | J53: =IF(J$11="No Data",".",IF(J$11=$BL$9,'Manual Data'!AU55,AP53)) -> 5978.672836 | K53: =IF(K$11="No Data",".",IF(K$11=$BL$9,'Manual Data'!AV55,AQ53)) -> 5675.38156 | L53: =IF(L$11=$BL$9,IF(ISERROR('Manual Data'!AW55/'Manual Data'!AT55*I53),".",'Manual Data'!AW55/'Manual Data'!AT55*I53),IF(ISERROR(AR53/AO53*I53),".",AR53/AO53*I53)) -> 11441.9506 | M53: =IF(M$11="No Data",".",IF(M$11=$BL$9,'Manual Data'!AX55,AS53)) -> 5858.860235 | N53: =IF(N$11="No Data",".",IF(N$11=$BL$9,'Manual Data'!AY55,AT53)) -> 5583.090364 | O53: =IF(O$11=$BL$9,IF(ISERROR('Manual Data'!AZ55/'Manual Data'!$AN55*$C53),".",'Manual Data'!AZ55/'Manual Data'!$AN55*$C53),IF(ISERROR(AU53/$AI53*$C53),".",AU53/$AI53*$C53)) -> 9807.472 | P53: =IF(P$11="No Data",".",IF(P$11=$BL$9,'Manual Data'!BA55,AV53)) -> 5017.847306 | Q53: =IF(Q$11="No Data",".",IF(Q$11=$BL$9,'Manual Data'!BB55,AW53)) -> 4789.624694 | R53: =IF(R$11=$BL$9,'Manual Data'!BC55,AX53) -> 3.955 | S53: =IF(S$11=$BL$9,'Manual Data'!BD55,AY53) -> 59.9 | T53: =IF(T$11=$BL$9,'Manual Data'!BE55,AZ53) -> 81.1 | U53: =IF(U$11=$BL$9,'Manual Data'!BF55,BA53) -> 20733.71949 | V53: =IF(V$11=$BL$9,'Manual Data'!BG55,BB53) -> 3207.390507 | W53: =IF(W$11=$BL$9,'Manual Data'!BH55,BC53) -> 641.9859013 | X53: =IF(X$11=$BL$9,'Manual Data'!BI55,BD53) -> 9.873810003e-05 | Y53: =IF(Y$11=$BL$9,'Manual Data'!BJ55,BE53) -> 2565.404507 | Z53: =IF(Z$11=$BL$9,'Manual Data'!BK55,BF53) -> 1823.846878 | AA53: =IF(AA$11=$BL$9,'Manual Data'!BL55,BG53) -> 9618.103394 | AB53: =IF(AB$11=$BL$9,'Manual Data'!BM55,BH53) -> 106.7534023 | AC53: =IF(AC$11=$BL$9,'Manual Data'!BN55,BI53) -> 5398.884547 | AD53: =IF(AD$11=$BL$9,'Manual Data'!BO55,BJ53) -> 4112.465445 | AF53: ='Existing Data_DataBank'!BP54 -> 2000 | AG53: ='Existing Data_DataBank'!CT54 -> GDP | AH53: ='Existing Data_DataBank'!BQ54 -> 10899.84017 | AI53: ='Existing Data_DataBank'!BR54 -> 23941.11 | AJ53: ='Existing Data_DataBank'!BS54 -> 11919.75448 | AK53: ='Existing Data_DataBank'!BT54 -> 12021.35552 | AL53: ='Existing Data_DataBank'!BU54 -> 13232.117 | AM53: ='Existing Data_DataBank'!BV54 -> 6519.319995 | AN53: ='Existing Data_DataBank'!BW54 -> 6712.797005 | AO53: ='Existing Data_DataBank'!BX54 -> 11654.0544 | AP53: ='Existing Data_DataBank'!BY54 -> 5978.672836 | AQ53: ='Existing Data_DataBank'!BZ54 -> 5675.38156 | AR53: ='Existing Data_DataBank'!CA54 -> 11441.9506 | AS53: ='Existing Data_DataBank'!CB54 -> 5858.860235 | AT53: ='Existing Data_DataBank'!CC54 -> 5583.090364 | AU53: ='Existing Data_DataBank'!CD54 -> 9807.472 | AV53: ='Existing Data_DataBank'!CE54 -> 5017.847306 | AW53: ='Existing Data_DataBank'!CF54 -> 4789.624694 | AX53: ='Existing Data_DataBank'!CG54 -> 3.955 | AY53: ='Existing Data_DataBank'!CH54 -> 59.9 | AZ53: ='Existing Data_DataBank'!CI54 -> 81.1 | BA53: ='Existing Data_DataBank'!CJ54 -> 20733.71949 | BB53: ='Existing Data_DataBank'!CK54 -> 3207.390507 | BC53: ='Existing Data_DataBank'!CL54 -> 641.9859013 | BD53: ='Existing Data_DataBank'!CM54 -> 9.873810003e-05 | BE53: ='Existing Data_DataBank'!CN54 -> 2565.404507 | BF53: ='Existing Data_DataBank'!CO54 -> 1823.846878 | BG53: ='Existing Data_DataBank'!CP54 -> 9618.103394 | BH53: ='Existing Data_DataBank'!CQ54 -> 106.7534023 | BI53: ='Existing Data_DataBank'!CR54 -> 5398.884547 | BJ53: ='Existing Data_DataBank'!CS54 -> 4112.465445 | BP53: 2000 | BQ53: 10708.993 | BR53: 1578.062605 | BS53: 212.1037961 | BT53: 11441.9506 | BU53: 23941.11 | BV53: 10899.84017
A54: 2001 | B54: =IF(B$11=$BL$9,'Manual Data'!AM56,AH54) -> 11423.02074 | C54: =IF(C$11=$BL$9,'Manual Data'!AN56,AI54) -> 24347.106 | D54: =IF(D$11=$BL$9,'Manual Data'!AO56,AJ54) -> 12103.27752 | E54: =IF(E$11=$BL$9,'Manual Data'!AP56,AK54) -> 12243.82848 | F54: =IF(F$11=$BL$9,IF(ISERROR('Manual Data'!AQ56/'Manual Data'!$AN56*$C54),".",'Manual Data'!AQ56/'Manual Data'!$AN56*$C54),IF(ISERROR(AL54/$AI54*$C54),".",AL54/$AI54*$C54)) -> 13495.634 | G54: =IF(G$11="No Data",".",IF(G$11=$BL$9,'Manual Data'!AR56,AM54)) -> 6637.028092 | H54: =IF(H$11="No Data",".",IF(H$11=$BL$9,'Manual Data'!AS56,AN54)) -> 6858.605908 | I54: =IF(I$11=$BL$9,IF(ISERROR('Manual Data'!AT56/'Manual Data'!AQ56*F54),".",'Manual Data'!AT56/'Manual Data'!AQ56*F54),IF(ISERROR(AO54/AL54*F54),".",AO54/AL54*F54)) -> 11848.89627 | J54: =IF(J$11="No Data",".",IF(J$11=$BL$9,'Manual Data'!AU56,AP54)) -> 6071.486681 | K54: =IF(K$11="No Data",".",IF(K$11=$BL$9,'Manual Data'!AV56,AQ54)) -> 5777.409589 | L54: =IF(L$11=$BL$9,IF(ISERROR('Manual Data'!AW56/'Manual Data'!AT56*I54),".",'Manual Data'!AW56/'Manual Data'!AT56*I54),IF(ISERROR(AR54/AO54*I54),".",AR54/AO54*I54)) -> 11628.15133 | M54: =IF(M$11="No Data",".",IF(M$11=$BL$9,'Manual Data'!AX56,AS54)) -> 5944.289033 | N54: =IF(N$11="No Data",".",IF(N$11=$BL$9,'Manual Data'!AY56,AT54)) -> 5683.862295 | O54: =IF(O$11=$BL$9,IF(ISERROR('Manual Data'!AZ56/'Manual Data'!$AN56*$C54),".",'Manual Data'!AZ56/'Manual Data'!$AN56*$C54),IF(ISERROR(AU54/$AI54*$C54),".",AU54/$AI54*$C54)) -> 9914.209 | P54: =IF(P$11="No Data",".",IF(P$11=$BL$9,'Manual Data'!BA56,AV54)) -> 5063.784544 | Q54: =IF(Q$11="No Data",".",IF(Q$11=$BL$9,'Manual Data'!BB56,AW54)) -> 4850.424456 | R54: =IF(R$11=$BL$9,'Manual Data'!BC56,AX54) -> 3.772 | S54: =IF(S$11=$BL$9,'Manual Data'!BD56,AY54) -> 57 | T54: =IF(T$11=$BL$9,'Manual Data'!BE56,AZ54) -> 76.5 | U54: =IF(U$11=$BL$9,'Manual Data'!BF56,BA54) -> 20951.41513 | V54: =IF(V$11=$BL$9,'Manual Data'!BG56,BB54) -> 3395.690874 | W54: =IF(W$11=$BL$9,'Manual Data'!BH56,BC54) -> 672.510975 | X54: =IF(X$11=$BL$9,'Manual Data'!BI56,BD54) -> 2.498974081e-05 | Y54: =IF(Y$11=$BL$9,'Manual Data'!BJ56,BE54) -> 2723.179874 | Z54: =IF(Z$11=$BL$9,'Manual Data'!BK56,BF54) -> 1877.71396 | AA54: =IF(AA$11=$BL$9,'Manual Data'!BL56,BG54) -> 9750.437146 | AB54: =IF(AB$11=$BL$9,'Manual Data'!BM56,BH54) -> 109.0720622 | AC54: =IF(AC$11=$BL$9,'Manual Data'!BN56,BI54) -> 5465.114907 | AD54: =IF(AD$11=$BL$9,'Manual Data'!BO56,BJ54) -> 4176.250178 | AF54: ='Existing Data_DataBank'!BP55 -> 2001 | AG54: ='Existing Data_DataBank'!CT55 -> GDP | AH54: ='Existing Data_DataBank'!BQ55 -> 11423.02074 | AI54: ='Existing Data_DataBank'!BR55 -> 24347.106 | AJ54: ='Existing Data_DataBank'!BS55 -> 12103.27752 | AK54: ='Existing Data_DataBank'!BT55 -> 12243.82848 | AL54: ='Existing Data_DataBank'!BU55 -> 13495.634 | AM54: ='Existing Data_DataBank'!BV55 -> 6637.028092 | AN54: ='Existing Data_DataBank'!BW55 -> 6858.605908 | AO54: ='Existing Data_DataBank'!BX55 -> 11848.89627 | AP54: ='Existing Data_DataBank'!BY55 -> 6071.486681 | AQ54: ='Existing Data_DataBank'!BZ55 -> 5777.409589 | AR54: ='Existing Data_DataBank'!CA55 -> 11628.15133 | AS54: ='Existing Data_DataBank'!CB55 -> 5944.289033 | AT54: ='Existing Data_DataBank'!CC55 -> 5683.862295 | AU54: ='Existing Data_DataBank'!CD55 -> 9914.209 | AV54: ='Existing Data_DataBank'!CE55 -> 5063.784544 | AW54: ='Existing Data_DataBank'!CF55 -> 4850.424456 | AX54: ='Existing Data_DataBank'!CG55 -> 3.772 | AY54: ='Existing Data_DataBank'!CH55 -> 57 | AZ54: ='Existing Data_DataBank'!CI55 -> 76.5 | BA54: ='Existing Data_DataBank'!CJ55 -> 20951.41513 | BB54: ='Existing Data_DataBank'!CK55 -> 3395.690874 | BC54: ='Existing Data_DataBank'!CL55 -> 672.510975 | BD54: ='Existing Data_DataBank'!CM55 -> 2.498974081e-05 | BE54: ='Existing Data_DataBank'!CN55 -> 2723.179874 | BF54: ='Existing Data_DataBank'!CO55 -> 1877.71396 | BG54: ='Existing Data_DataBank'!CP55 -> 9750.437146 | BH54: ='Existing Data_DataBank'!CQ55 -> 109.0720622 | BI54: ='Existing Data_DataBank'!CR55 -> 5465.114907 | BJ54: ='Existing Data_DataBank'!CS55 -> 4176.250178 | BP54: 2001 | BQ54: 10851.472 | BR54: 1646.73773 | BS54: 220.7449417 | BT54: 11628.15133 | BU54: 24347.106 | BV54: 11423.02074
A55: 2002 | B55: =IF(B$11=$BL$9,'Manual Data'!AM57,AH55) -> 11436.74472 | C55: =IF(C$11=$BL$9,'Manual Data'!AN57,AI55) -> 24725.627 | D55: =IF(D$11=$BL$9,'Manual Data'!AO57,AJ55) -> 12281.80099 | E55: =IF(E$11=$BL$9,'Manual Data'!AP57,AK55) -> 12443.82601 | F55: =IF(F$11=$BL$9,IF(ISERROR('Manual Data'!AQ57/'Manual Data'!$AN57*$C55),".",'Manual Data'!AQ57/'Manual Data'!$AN57*$C55),IF(ISERROR(AL55/$AI55*$C55),".",AL55/$AI55*$C55)) -> 13757.893 | G55: =IF(G$11="No Data",".",IF(G$11=$BL$9,'Manual Data'!AR57,AM55)) -> 6754.840546 | H55: =IF(H$11="No Data",".",IF(H$11=$BL$9,'Manual Data'!AS57,AN55)) -> 7003.052454 | I55: =IF(I$11=$BL$9,IF(ISERROR('Manual Data'!AT57/'Manual Data'!AQ57*F55),".",'Manual Data'!AT57/'Manual Data'!AQ57*F55),IF(ISERROR(AO55/AL55*F55),".",AO55/AL55*F55)) -> 12038.9814 | J55: =IF(J$11="No Data",".",IF(J$11=$BL$9,'Manual Data'!AU57,AP55)) -> 6162.305719 | K55: =IF(K$11="No Data",".",IF(K$11=$BL$9,'Manual Data'!AV57,AQ55)) -> 5876.675676 | L55: =IF(L$11=$BL$9,IF(ISERROR('Manual Data'!AW57/'Manual Data'!AT57*I55),".",'Manual Data'!AW57/'Manual Data'!AT57*I55),IF(ISERROR(AR55/AO55*I55),".",AR55/AO55*I55)) -> 11813.73205 | M55: =IF(M$11="No Data",".",IF(M$11=$BL$9,'Manual Data'!AX57,AS55)) -> 6032.219442 | N55: =IF(N$11="No Data",".",IF(N$11=$BL$9,'Manual Data'!AY57,AT55)) -> 5781.512605 | O55: =IF(O$11=$BL$9,IF(ISERROR('Manual Data'!AZ57/'Manual Data'!$AN57*$C55),".",'Manual Data'!AZ57/'Manual Data'!$AN57*$C55),IF(ISERROR(AU55/$AI55*$C55),".",AU55/$AI55*$C55)) -> 9992.321 | P55: =IF(P$11="No Data",".",IF(P$11=$BL$9,'Manual Data'!BA57,AV55)) -> 5101.887413 | Q55: =IF(Q$11="No Data",".",IF(Q$11=$BL$9,'Manual Data'!BB57,AW55)) -> 4890.433587 | R55: =IF(R$11=$BL$9,'Manual Data'!BC57,AX55) -> 3.593 | S55: =IF(S$11=$BL$9,'Manual Data'!BD57,AY55) -> 54.3 | T55: =IF(T$11=$BL$9,'Manual Data'!BE57,AZ55) -> 72.3 | U55: =IF(U$11=$BL$9,'Manual Data'!BF57,BA55) -> 21204.69772 | V55: =IF(V$11=$BL$9,'Manual Data'!BG57,BB55) -> 3520.929285 | W55: =IF(W$11=$BL$9,'Manual Data'!BH57,BC55) -> 700.0270566 | X55: =IF(X$11=$BL$9,'Manual Data'!BI57,BD55) -> 0 | Y55: =IF(Y$11=$BL$9,'Manual Data'!BJ57,BE55) -> 2820.902228 | Z55: =IF(Z$11=$BL$9,'Manual Data'!BK57,BF55) -> 1920.558415 | AA55: =IF(AA$11=$BL$9,'Manual Data'!BL57,BG55) -> 9893.173181 | AB55: =IF(AB$11=$BL$9,'Manual Data'!BM57,BH55) -> 110.6946665 | AC55: =IF(AC$11=$BL$9,'Manual Data'!BN57,BI55) -> 5533.670181 | AD55: =IF(AD$11=$BL$9,'Manual Data'!BO57,BJ55) -> 4248.808333 | AF55: ='Existing Data_DataBank'!BP56 -> 2002 | AG55: ='Existing Data_DataBank'!CT56 -> GDP | AH55: ='Existing Data_DataBank'!BQ56 -> 11436.74472 | AI55: ='Existing Data_DataBank'!BR56 -> 24725.627 | AJ55: ='Existing Data_DataBank'!BS56 -> 12281.80099 | AK55: ='Existing Data_DataBank'!BT56 -> 12443.82601 | AL55: ='Existing Data_DataBank'!BU56 -> 13757.893 | AM55: ='Existing Data_DataBank'!BV56 -> 6754.840546 | AN55: ='Existing Data_DataBank'!BW56 -> 7003.052454 | AO55: ='Existing Data_DataBank'!BX56 -> 12038.9814 | AP55: ='Existing Data_DataBank'!BY56 -> 6162.305719 | AQ55: ='Existing Data_DataBank'!BZ56 -> 5876.675676 | AR55: ='Existing Data_DataBank'!CA56 -> 11813.73205 | AS55: ='Existing Data_DataBank'!CB56 -> 6032.219442 | AT55: ='Existing Data_DataBank'!CC56 -> 5781.512605 | AU55: ='Existing Data_DataBank'!CD56 -> 9992.321 | AV55: ='Existing Data_DataBank'!CE56 -> 5101.887413 | AW55: ='Existing Data_DataBank'!CF56 -> 4890.433587 | AX55: ='Existing Data_DataBank'!CG56 -> 3.593 | AY55: ='Existing Data_DataBank'!CH56 -> 54.3 | AZ55: ='Existing Data_DataBank'!CI56 -> 72.3 | BA55: ='Existing Data_DataBank'!CJ56 -> 21204.69772 | BB55: ='Existing Data_DataBank'!CK56 -> 3520.929285 | BC55: ='Existing Data_DataBank'!CL56 -> 700.0270566 | BD55: ='Existing Data_DataBank'!CM56 -> 0 | BE55: ='Existing Data_DataBank'!CN56 -> 2820.902228 | BF55: ='Existing Data_DataBank'!CO56 -> 1920.558415 | BG55: ='Existing Data_DataBank'!CP56 -> 9893.173181 | BH55: ='Existing Data_DataBank'!CQ56 -> 110.6946665 | BI55: ='Existing Data_DataBank'!CR56 -> 5533.670181 | BJ55: ='Existing Data_DataBank'!CS56 -> 4248.808333 | BP55: 2002 | BQ55: 10967.734 | BR55: 1718.911605 | BS55: 225.2493481 | BT55: 11813.73205 | BU55: 24725.627 | BV55: 11436.74472
A56: 2003 | B56: =IF(B$11=$BL$9,'Manual Data'!AM58,AH56) -> 11887.92862 | C56: =IF(C$11=$BL$9,'Manual Data'!AN58,AI56) -> 25080.872 | D56: =IF(D$11=$BL$9,'Manual Data'!AO58,AJ56) -> 12455.70303 | E56: =IF(E$11=$BL$9,'Manual Data'!AP58,AK56) -> 12625.16897 | F56: =IF(F$11=$BL$9,IF(ISERROR('Manual Data'!AQ58/'Manual Data'!$AN58*$C56),".",'Manual Data'!AQ58/'Manual Data'!$AN58*$C56),IF(ISERROR(AL56/$AI56*$C56),".",AL56/$AI56*$C56)) -> 14018.091 | G56: =IF(G$11="No Data",".",IF(G$11=$BL$9,'Manual Data'!AR58,AM56)) -> 6871.741808 | H56: =IF(H$11="No Data",".",IF(H$11=$BL$9,'Manual Data'!AS58,AN56)) -> 7146.349192 | I56: =IF(I$11=$BL$9,IF(ISERROR('Manual Data'!AT58/'Manual Data'!AQ58*F56),".",'Manual Data'!AT58/'Manual Data'!AQ58*F56),IF(ISERROR(AO56/AL56*F56),".",AO56/AL56*F56)) -> 12222.7942 | J56: =IF(J$11="No Data",".",IF(J$11=$BL$9,'Manual Data'!AU58,AP56)) -> 6249.162168 | K56: =IF(K$11="No Data",".",IF(K$11=$BL$9,'Manual Data'!AV58,AQ56)) -> 5973.632029 | L56: =IF(L$11=$BL$9,IF(ISERROR('Manual Data'!AW58/'Manual Data'!AT58*I56),".",'Manual Data'!AW58/'Manual Data'!AT58*I56),IF(ISERROR(AR56/AO56*I56),".",AR56/AO56*I56)) -> 11992.15007 | M56: =IF(M$11="No Data",".",IF(M$11=$BL$9,'Manual Data'!AX58,AS56)) -> 6117.67979 | N56: =IF(N$11="No Data",".",IF(N$11=$BL$9,'Manual Data'!AY58,AT56)) -> 5874.470284 | O56: =IF(O$11=$BL$9,IF(ISERROR('Manual Data'!AZ58/'Manual Data'!$AN58*$C56),".",'Manual Data'!AZ58/'Manual Data'!$AN58*$C56),IF(ISERROR(AU56/$AI56*$C56),".",AU56/$AI56*$C56)) -> 10046.223 | P56: =IF(P$11="No Data",".",IF(P$11=$BL$9,'Manual Data'!BA58,AV56)) -> 5133.114363 | Q56: =IF(Q$11="No Data",".",IF(Q$11=$BL$9,'Manual Data'!BB58,AW56)) -> 4913.108637 | R56: =IF(R$11=$BL$9,'Manual Data'!BC58,AX56) -> 3.422 | S56: =IF(S$11=$BL$9,'Manual Data'!BD58,AY56) -> 51.8 | T56: =IF(T$11=$BL$9,'Manual Data'!BE58,AZ56) -> 68.3 | U56: =IF(U$11=$BL$9,'Manual Data'!BF58,BA56) -> 21434.61483 | V56: =IF(V$11=$BL$9,'Manual Data'!BG58,BB56) -> 3646.257171 | W56: =IF(W$11=$BL$9,'Manual Data'!BH58,BC56) -> 728.6690342 | X56: =IF(X$11=$BL$9,'Manual Data'!BI58,BD56) -> 0 | Y56: =IF(Y$11=$BL$9,'Manual Data'!BJ58,BE56) -> 2917.588137 | Z56: =IF(Z$11=$BL$9,'Manual Data'!BK58,BF56) -> 1969.590703 | AA56: =IF(AA$11=$BL$9,'Manual Data'!BL58,BG56) -> 10022.55891 | AB56: =IF(AB$11=$BL$9,'Manual Data'!BM58,BH56) -> 113.5656644 | AC56: =IF(AC$11=$BL$9,'Manual Data'!BN58,BI56) -> 5599.734441 | AD56: =IF(AD$11=$BL$9,'Manual Data'!BO58,BJ56) -> 4309.258809 | AF56: ='Existing Data_DataBank'!BP57 -> 2003 | AG56: ='Existing Data_DataBank'!CT57 -> GDP | AH56: ='Existing Data_DataBank'!BQ57 -> 11887.92862 | AI56: ='Existing Data_DataBank'!BR57 -> 25080.872 | AJ56: ='Existing Data_DataBank'!BS57 -> 12455.70303 | AK56: ='Existing Data_DataBank'!BT57 -> 12625.16897 | AL56: ='Existing Data_DataBank'!BU57 -> 14018.091 | AM56: ='Existing Data_DataBank'!BV57 -> 6871.741808 | AN56: ='Existing Data_DataBank'!BW57 -> 7146.349192 | AO56: ='Existing Data_DataBank'!BX57 -> 12222.7942 | AP56: ='Existing Data_DataBank'!BY57 -> 6249.162168 | AQ56: ='Existing Data_DataBank'!BZ57 -> 5973.632029 | AR56: ='Existing Data_DataBank'!CA57 -> 11992.15007 | AS56: ='Existing Data_DataBank'!CB57 -> 6117.67979 | AT56: ='Existing Data_DataBank'!CC57 -> 5874.470284 | AU56: ='Existing Data_DataBank'!CD57 -> 10046.223 | AV56: ='Existing Data_DataBank'!CE57 -> 5133.114363 | AW56: ='Existing Data_DataBank'!CF57 -> 4913.108637 | AX56: ='Existing Data_DataBank'!CG57 -> 3.422 | AY56: ='Existing Data_DataBank'!CH57 -> 51.8 | AZ56: ='Existing Data_DataBank'!CI57 -> 68.3 | BA56: ='Existing Data_DataBank'!CJ57 -> 21434.61483 | BB56: ='Existing Data_DataBank'!CK57 -> 3646.257171 | BC56: ='Existing Data_DataBank'!CL57 -> 728.6690342 | BD56: ='Existing Data_DataBank'!CM57 -> 0 | BE56: ='Existing Data_DataBank'!CN57 -> 2917.588137 | BF56: ='Existing Data_DataBank'!CO57 -> 1969.590703 | BG56: ='Existing Data_DataBank'!CP57 -> 10022.55891 | BH56: ='Existing Data_DataBank'!CQ57 -> 113.5656644 | BI56: ='Existing Data_DataBank'!CR57 -> 5599.734441 | BJ56: ='Existing Data_DataBank'!CS57 -> 4309.258809 | BP56: 2003 | BQ56: 11062.781 | BR56: 1795.296803 | BS56: 230.6441222 | BT56: 11992.15007 | BU56: 25080.872 | BV56: 11887.92862
A57: 2004 | B57: =IF(B$11=$BL$9,'Manual Data'!AM59,AH57) -> 12444.59315 | C57: =IF(C$11=$BL$9,'Manual Data'!AN59,AI57) -> 25419.344 | D57: =IF(D$11=$BL$9,'Manual Data'!AO59,AJ57) -> 12625.02348 | E57: =IF(E$11=$BL$9,'Manual Data'!AP59,AK57) -> 12794.32052 | F57: =IF(F$11=$BL$9,IF(ISERROR('Manual Data'!AQ59/'Manual Data'!$AN59*$C57),".",'Manual Data'!AQ59/'Manual Data'!$AN59*$C57),IF(ISERROR(AL57/$AI57*$C57),".",AL57/$AI57*$C57)) -> 14273.978 | G57: =IF(G$11="No Data",".",IF(G$11=$BL$9,'Manual Data'!AR59,AM57)) -> 6985.042924 | H57: =IF(H$11="No Data",".",IF(H$11=$BL$9,'Manual Data'!AS59,AN57)) -> 7288.935076 | I57: =IF(I$11=$BL$9,IF(ISERROR('Manual Data'!AT59/'Manual Data'!AQ59*F57),".",'Manual Data'!AT59/'Manual Data'!AQ59*F57),IF(ISERROR(AO57/AL57*F57),".",AO57/AL57*F57)) -> 12397.09234 | J57: =IF(J$11="No Data",".",IF(J$11=$BL$9,'Manual Data'!AU59,AP57)) -> 6329.217248 | K57: =IF(K$11="No Data",".",IF(K$11=$BL$9,'Manual Data'!AV59,AQ57)) -> 6067.875089 | L57: =IF(L$11=$BL$9,IF(ISERROR('Manual Data'!AW59/'Manual Data'!AT59*I57),".",'Manual Data'!AW59/'Manual Data'!AT59*I57),IF(ISERROR(AR57/AO57*I57),".",AR57/AO57*I57)) -> 12173.32483 | M57: =IF(M$11="No Data",".",IF(M$11=$BL$9,'Manual Data'!AX59,AS57)) -> 6199.974628 | N57: =IF(N$11="No Data",".",IF(N$11=$BL$9,'Manual Data'!AY59,AT57)) -> 5973.350198 | O57: =IF(O$11=$BL$9,IF(ISERROR('Manual Data'!AZ59/'Manual Data'!$AN59*$C57),".",'Manual Data'!AZ59/'Manual Data'!$AN59*$C57),IF(ISERROR(AU57/$AI57*$C57),".",AU57/$AI57*$C57)) -> 10084.572 | P57: =IF(P$11="No Data",".",IF(P$11=$BL$9,'Manual Data'!BA59,AV57)) -> 5160.185421 | Q57: =IF(Q$11="No Data",".",IF(Q$11=$BL$9,'Manual Data'!BB59,AW57)) -> 4924.386579 | R57: =IF(R$11=$BL$9,'Manual Data'!BC59,AX57) -> 3.263 | S57: =IF(S$11=$BL$9,'Manual Data'!BD59,AY57) -> 49.4 | T57: =IF(T$11=$BL$9,'Manual Data'!BE59,AZ57) -> 64.6 | U57: =IF(U$11=$BL$9,'Manual Data'!BF59,BA57) -> 21646.85916 | V57: =IF(V$11=$BL$9,'Manual Data'!BG59,BB57) -> 3772.484843 | W57: =IF(W$11=$BL$9,'Manual Data'!BH59,BC57) -> 758.5239684 | X57: =IF(X$11=$BL$9,'Manual Data'!BI59,BD57) -> 3.155954962e-05 | Y57: =IF(Y$11=$BL$9,'Manual Data'!BJ59,BE57) -> 3013.960843 | Z57: =IF(Z$11=$BL$9,'Manual Data'!BK59,BF57) -> 2020.406736 | AA57: =IF(AA$11=$BL$9,'Manual Data'!BL59,BG57) -> 10152.91809 | AB57: =IF(AB$11=$BL$9,'Manual Data'!BM59,BH57) -> 115.890055 | AC57: =IF(AC$11=$BL$9,'Manual Data'!BN59,BI57) -> 5663.51743 | AD57: =IF(AD$11=$BL$9,'Manual Data'!BO59,BJ57) -> 4373.510605 | AF57: ='Existing Data_DataBank'!BP58 -> 2004 | AG57: ='Existing Data_DataBank'!CT58 -> GDP | AH57: ='Existing Data_DataBank'!BQ58 -> 12444.59315 | AI57: ='Existing Data_DataBank'!BR58 -> 25419.344 | AJ57: ='Existing Data_DataBank'!BS58 -> 12625.02348 | AK57: ='Existing Data_DataBank'!BT58 -> 12794.32052 | AL57: ='Existing Data_DataBank'!BU58 -> 14273.978 | AM57: ='Existing Data_DataBank'!BV58 -> 6985.042924 | AN57: ='Existing Data_DataBank'!BW58 -> 7288.935076 | AO57: ='Existing Data_DataBank'!BX58 -> 12397.09234 | AP57: ='Existing Data_DataBank'!BY58 -> 6329.217248 | AQ57: ='Existing Data_DataBank'!BZ58 -> 6067.875089 | AR57: ='Existing Data_DataBank'!CA58 -> 12173.32483 | AS57: ='Existing Data_DataBank'!CB58 -> 6199.974628 | AT57: ='Existing Data_DataBank'!CC58 -> 5973.350198 | AU57: ='Existing Data_DataBank'!CD58 -> 10084.572 | AV57: ='Existing Data_DataBank'!CE58 -> 5160.185421 | AW57: ='Existing Data_DataBank'!CF58 -> 4924.386579 | AX57: ='Existing Data_DataBank'!CG58 -> 3.263 | AY57: ='Existing Data_DataBank'!CH58 -> 49.4 | AZ57: ='Existing Data_DataBank'!CI58 -> 64.6 | BA57: ='Existing Data_DataBank'!CJ58 -> 21646.85916 | BB57: ='Existing Data_DataBank'!CK58 -> 3772.484843 | BC57: ='Existing Data_DataBank'!CL58 -> 758.5239684 | BD57: ='Existing Data_DataBank'!CM58 -> 3.155954962e-05 | BE57: ='Existing Data_DataBank'!CN58 -> 3013.960843 | BF57: ='Existing Data_DataBank'!CO58 -> 2020.406736 | BG57: ='Existing Data_DataBank'!CP58 -> 10152.91809 | BH57: ='Existing Data_DataBank'!CQ58 -> 115.890055 | BI57: ='Existing Data_DataBank'!CR58 -> 5663.51743 | BJ57: ='Existing Data_DataBank'!CS58 -> 4373.510605 | BP57: 2004 | BQ57: 11145.366 | BR57: 1876.885663 | BS57: 223.7675102 | BT57: 12173.32483 | BU57: 25419.344 | BV57: 12444.59315
A58: 2005 | B58: =IF(B$11=$BL$9,'Manual Data'!AM60,AH58) -> 12877.56307 | C58: =IF(C$11=$BL$9,'Manual Data'!AN60,AI58) -> 25744.5 | D58: =IF(D$11=$BL$9,'Manual Data'!AO60,AJ58) -> 12787.936 | E58: =IF(E$11=$BL$9,'Manual Data'!AP60,AK58) -> 12956.564 | F58: =IF(F$11=$BL$9,IF(ISERROR('Manual Data'!AQ60/'Manual Data'!$AN60*$C58),".",'Manual Data'!AQ60/'Manual Data'!$AN60*$C58),IF(ISERROR(AL58/$AI58*$C58),".",AL58/$AI58*$C58)) -> 14527.088 | G58: =IF(G$11="No Data",".",IF(G$11=$BL$9,'Manual Data'!AR60,AM58)) -> 7094.012 | H58: =IF(H$11="No Data",".",IF(H$11=$BL$9,'Manual Data'!AS60,AN58)) -> 7433.076 | I58: =IF(I$11=$BL$9,IF(ISERROR('Manual Data'!AT60/'Manual Data'!AQ60*F58),".",'Manual Data'!AT60/'Manual Data'!AQ60*F58),IF(ISERROR(AO58/AL58*F58),".",AO58/AL58*F58)) -> 12562.29913 | J58: =IF(J$11="No Data",".",IF(J$11=$BL$9,'Manual Data'!AU60,AP58)) -> 6401.281771 | K58: =IF(K$11="No Data",".",IF(K$11=$BL$9,'Manual Data'!AV60,AQ58)) -> 6161.017355 | L58: =IF(L$11=$BL$9,IF(ISERROR('Manual Data'!AW60/'Manual Data'!AT60*I58),".",'Manual Data'!AW60/'Manual Data'!AT60*I58),IF(ISERROR(AR58/AO58*I58),".",AR58/AO58*I58)) -> 12348.48879 | M58: =IF(M$11="No Data",".",IF(M$11=$BL$9,'Manual Data'!AX60,AS58)) -> 6276.584806 | N58: =IF(N$11="No Data",".",IF(N$11=$BL$9,'Manual Data'!AY60,AT58)) -> 6071.903987 | O58: =IF(O$11=$BL$9,IF(ISERROR('Manual Data'!AZ60/'Manual Data'!$AN60*$C58),".",'Manual Data'!AZ60/'Manual Data'!$AN60*$C58),IF(ISERROR(AU58/$AI58*$C58),".",AU58/$AI58*$C58)) -> 10109.254 | P58: =IF(P$11="No Data",".",IF(P$11=$BL$9,'Manual Data'!BA60,AV58)) -> 5182.166 | Q58: =IF(Q$11="No Data",".",IF(Q$11=$BL$9,'Manual Data'!BB60,AW58)) -> 4927.088 | R58: =IF(R$11=$BL$9,'Manual Data'!BC60,AX58) -> 3.118 | S58: =IF(S$11=$BL$9,'Manual Data'!BD60,AY58) -> 47.1 | T58: =IF(T$11=$BL$9,'Manual Data'!BE60,AZ58) -> 61.1 | U58: =IF(U$11=$BL$9,'Manual Data'!BF60,BA58) -> 21844.46569 | V58: =IF(V$11=$BL$9,'Manual Data'!BG60,BB58) -> 3900.034305 | W58: =IF(W$11=$BL$9,'Manual Data'!BH60,BC58) -> 789.5160617 | X58: =IF(X$11=$BL$9,'Manual Data'!BI60,BD58) -> 0 | Y58: =IF(Y$11=$BL$9,'Manual Data'!BJ60,BE58) -> 3110.518243 | Z58: =IF(Z$11=$BL$9,'Manual Data'!BK60,BF58) -> 2070.224071 | AA58: =IF(AA$11=$BL$9,'Manual Data'!BL60,BG58) -> 10278.26472 | AB58: =IF(AB$11=$BL$9,'Manual Data'!BM60,BH58) -> 117.9280659 | AC58: =IF(AC$11=$BL$9,'Manual Data'!BN60,BI58) -> 5723.648255 | AD58: =IF(AD$11=$BL$9,'Manual Data'!BO60,BJ58) -> 4436.688401 | AF58: ='Existing Data_DataBank'!BP59 -> 2005 | AG58: ='Existing Data_DataBank'!CT59 -> GDP | AH58: ='Existing Data_DataBank'!BQ59 -> 12877.56307 | AI58: ='Existing Data_DataBank'!BR59 -> 25744.5 | AJ58: ='Existing Data_DataBank'!BS59 -> 12787.936 | AK58: ='Existing Data_DataBank'!BT59 -> 12956.564 | AL58: ='Existing Data_DataBank'!BU59 -> 14527.088 | AM58: ='Existing Data_DataBank'!BV59 -> 7094.012 | AN58: ='Existing Data_DataBank'!BW59 -> 7433.076 | AO58: ='Existing Data_DataBank'!BX59 -> 12562.29913 | AP58: ='Existing Data_DataBank'!BY59 -> 6401.281771 | AQ58: ='Existing Data_DataBank'!BZ59 -> 6161.017355 | AR58: ='Existing Data_DataBank'!CA59 -> 12348.48879 | AS58: ='Existing Data_DataBank'!CB59 -> 6276.584806 | AT58: ='Existing Data_DataBank'!CC59 -> 6071.903987 | AU58: ='Existing Data_DataBank'!CD59 -> 10109.254 | AV58: ='Existing Data_DataBank'!CE59 -> 5182.166 | AW58: ='Existing Data_DataBank'!CF59 -> 4927.088 | AX58: ='Existing Data_DataBank'!CG59 -> 3.118 | AY58: ='Existing Data_DataBank'!CH59 -> 47.1 | AZ58: ='Existing Data_DataBank'!CI59 -> 61.1 | BA58: ='Existing Data_DataBank'!CJ59 -> 21844.46569 | BB58: ='Existing Data_DataBank'!CK59 -> 3900.034305 | BC58: ='Existing Data_DataBank'!CL59 -> 789.5160617 | BD58: ='Existing Data_DataBank'!CM59 -> 0 | BE58: ='Existing Data_DataBank'!CN59 -> 3110.518243 | BF58: ='Existing Data_DataBank'!CO59 -> 2070.224071 | BG58: ='Existing Data_DataBank'!CP59 -> 10278.26472 | BH58: ='Existing Data_DataBank'!CQ59 -> 117.9280659 | BI58: ='Existing Data_DataBank'!CR59 -> 5723.648255 | BJ58: ='Existing Data_DataBank'!CS59 -> 4436.688401 | BP58: 2005 | BQ58: 11217.412 | BR58: 1964.788874 | BS58: 213.8103339 | BT58: 12348.48879 | BU58: 25744.5 | BV58: 12877.56307
A59: 2006 | B59: =IF(B$11=$BL$9,'Manual Data'!AM61,AH59) -> 13310.84347 | C59: =IF(C$11=$BL$9,'Manual Data'!AN61,AI59) -> 26066.693 | D59: =IF(D$11=$BL$9,'Manual Data'!AO61,AJ59) -> 12953.79598 | E59: =IF(E$11=$BL$9,'Manual Data'!AP61,AK59) -> 13112.89702 | F59: =IF(F$11=$BL$9,IF(ISERROR('Manual Data'!AQ61/'Manual Data'!$AN61*$C59),".",'Manual Data'!AQ61/'Manual Data'!$AN61*$C59),IF(ISERROR(AL59/$AI59*$C59),".",AL59/$AI59*$C59)) -> 14844.769 | G59: =IF(G$11="No Data",".",IF(G$11=$BL$9,'Manual Data'!AR61,AM59)) -> 7244.479668 | H59: =IF(H$11="No Data",".",IF(H$11=$BL$9,'Manual Data'!AS61,AN59)) -> 7600.289332 | I59: =IF(I$11=$BL$9,IF(ISERROR('Manual Data'!AT61/'Manual Data'!AQ61*F59),".",'Manual Data'!AT61/'Manual Data'!AQ61*F59),IF(ISERROR(AO59/AL59*F59),".",AO59/AL59*F59)) -> 12776.89263 | J59: =IF(J$11="No Data",".",IF(J$11=$BL$9,'Manual Data'!AU61,AP59)) -> 6505.904988 | K59: =IF(K$11="No Data",".",IF(K$11=$BL$9,'Manual Data'!AV61,AQ59)) -> 6270.987645 | L59: =IF(L$11=$BL$9,IF(ISERROR('Manual Data'!AW61/'Manual Data'!AT61*I59),".",'Manual Data'!AW61/'Manual Data'!AT61*I59),IF(ISERROR(AR59/AO59*I59),".",AR59/AO59*I59)) -> 12578.97856 | M59: =IF(M$11="No Data",".",IF(M$11=$BL$9,'Manual Data'!AX61,AS59)) -> 6388.863755 | N59: =IF(N$11="No Data",".",IF(N$11=$BL$9,'Manual Data'!AY61,AT59)) -> 6190.114808 | O59: =IF(O$11=$BL$9,IF(ISERROR('Manual Data'!AZ61/'Manual Data'!$AN61*$C59),".",'Manual Data'!AZ61/'Manual Data'!$AN61*$C59),IF(ISERROR(AU59/$AI59*$C59),".",AU59/$AI59*$C59)) -> 10068.994 | P59: =IF(P$11="No Data",".",IF(P$11=$BL$9,'Manual Data'!BA61,AV59)) -> 5167.591189 | Q59: =IF(Q$11="No Data",".",IF(Q$11=$BL$9,'Manual Data'!BB61,AW59)) -> 4901.402811 | R59: =IF(R$11=$BL$9,'Manual Data'!BC61,AX59) -> 2.986 | S59: =IF(S$11=$BL$9,'Manual Data'!BD61,AY59) -> 44.9 | T59: =IF(T$11=$BL$9,'Manual Data'!BE61,AZ59) -> 57.9 | U59: =IF(U$11=$BL$9,'Manual Data'!BF61,BA59) -> 22036.26093 | V59: =IF(V$11=$BL$9,'Manual Data'!BG61,BB59) -> 4030.432072 | W59: =IF(W$11=$BL$9,'Manual Data'!BH61,BC59) -> 821.8200146 | X59: =IF(X$11=$BL$9,'Manual Data'!BI61,BD59) -> 0 | Y59: =IF(Y$11=$BL$9,'Manual Data'!BJ61,BE59) -> 3208.612057 | Z59: =IF(Z$11=$BL$9,'Manual Data'!BK61,BF59) -> 2129.495388 | AA59: =IF(AA$11=$BL$9,'Manual Data'!BL61,BG59) -> 10449.48317 | AB59: =IF(AB$11=$BL$9,'Manual Data'!BM61,BH59) -> 120.6324033 | AC59: =IF(AC$11=$BL$9,'Manual Data'!BN61,BI59) -> 5805.953123 | AD59: =IF(AD$11=$BL$9,'Manual Data'!BO61,BJ59) -> 4522.897648 | AF59: ='Existing Data_DataBank'!BP60 -> 2006 | AG59: ='Existing Data_DataBank'!CT60 -> GDP | AH59: ='Existing Data_DataBank'!BQ60 -> 13310.84347 | AI59: ='Existing Data_DataBank'!BR60 -> 26066.693 | AJ59: ='Existing Data_DataBank'!BS60 -> 12953.79598 | AK59: ='Existing Data_DataBank'!BT60 -> 13112.89702 | AL59: ='Existing Data_DataBank'!BU60 -> 14844.769 | AM59: ='Existing Data_DataBank'!BV60 -> 7244.479668 | AN59: ='Existing Data_DataBank'!BW60 -> 7600.289332 | AO59: ='Existing Data_DataBank'!BX60 -> 12776.89263 | AP59: ='Existing Data_DataBank'!BY60 -> 6505.904988 | AQ59: ='Existing Data_DataBank'!BZ60 -> 6270.987645 | AR59: ='Existing Data_DataBank'!CA60 -> 12578.97856 | AS59: ='Existing Data_DataBank'!CB60 -> 6388.863755 | AT59: ='Existing Data_DataBank'!CC60 -> 6190.114808 | AU59: ='Existing Data_DataBank'!CD60 -> 10068.994 | AV59: ='Existing Data_DataBank'!CE60 -> 5167.591189 | AW59: ='Existing Data_DataBank'!CF60 -> 4901.402811 | AX59: ='Existing Data_DataBank'!CG60 -> 2.986 | AY59: ='Existing Data_DataBank'!CH60 -> 44.9 | AZ59: ='Existing Data_DataBank'!CI60 -> 57.9 | BA59: ='Existing Data_DataBank'!CJ60 -> 22036.26093 | BB59: ='Existing Data_DataBank'!CK60 -> 4030.432072 | BC59: ='Existing Data_DataBank'!CL60 -> 821.8200146 | BD59: ='Existing Data_DataBank'!CM60 -> 0 | BE59: ='Existing Data_DataBank'!CN60 -> 3208.612057 | BF59: ='Existing Data_DataBank'!CO60 -> 2129.495388 | BG59: ='Existing Data_DataBank'!CP60 -> 10449.48317 | BH59: ='Existing Data_DataBank'!CQ60 -> 120.6324033 | BI59: ='Existing Data_DataBank'!CR60 -> 5805.953123 | BJ59: ='Existing Data_DataBank'!CS60 -> 4522.897648 | BP59: 2006 | BQ59: 11221.924 | BR59: 2067.876367 | BS59: 197.9140701 | BT59: 12578.97856 | BU59: 26066.693 | BV59: 13310.84347
A60: 2007 | B60: =IF(B$11=$BL$9,'Manual Data'!AM62,AH60) -> 13764.95091 | C60: =IF(C$11=$BL$9,'Manual Data'!AN62,AI60) -> 26382.581 | D60: =IF(D$11=$BL$9,'Manual Data'!AO62,AJ60) -> 13119.20751 | E60: =IF(E$11=$BL$9,'Manual Data'!AP62,AK60) -> 13263.37349 | F60: =IF(F$11=$BL$9,IF(ISERROR('Manual Data'!AQ62/'Manual Data'!$AN62*$C60),".",'Manual Data'!AQ62/'Manual Data'!$AN62*$C60),IF(ISERROR(AL60/$AI60*$C60),".",AL60/$AI60*$C60)) -> 15142.055 | G60: =IF(G$11="No Data",".",IF(G$11=$BL$9,'Manual Data'!AR62,AM60)) -> 7384.472601 | H60: =IF(H$11="No Data",".",IF(H$11=$BL$9,'Manual Data'!AS62,AN60)) -> 7757.582399 | I60: =IF(I$11=$BL$9,IF(ISERROR('Manual Data'!AT62/'Manual Data'!AQ62*F60),".",'Manual Data'!AT62/'Manual Data'!AQ62*F60),IF(ISERROR(AO60/AL60*F60),".",AO60/AL60*F60)) -> 12969.62435 | J60: =IF(J$11="No Data",".",IF(J$11=$BL$9,'Manual Data'!AU62,AP60)) -> 6599.503366 | K60: =IF(K$11="No Data",".",IF(K$11=$BL$9,'Manual Data'!AV62,AQ60)) -> 6370.120985 | L60: =IF(L$11=$BL$9,IF(ISERROR('Manual Data'!AW62/'Manual Data'!AT62*I60),".",'Manual Data'!AW62/'Manual Data'!AT62*I60),IF(ISERROR(AR60/AO60*I60),".",AR60/AO60*I60)) -> 12790.38415 | M60: =IF(M$11="No Data",".",IF(M$11=$BL$9,'Manual Data'!AX62,AS60)) -> 6491.799473 | N60: =IF(N$11="No Data",".",IF(N$11=$BL$9,'Manual Data'!AY62,AT60)) -> 6298.584673 | O60: =IF(O$11=$BL$9,IF(ISERROR('Manual Data'!AZ62/'Manual Data'!$AN62*$C60),".",'Manual Data'!AZ62/'Manual Data'!$AN62*$C60),IF(ISERROR(AU60/$AI60*$C60),".",AU60/$AI60*$C60)) -> 10039.273 | P60: =IF(P$11="No Data",".",IF(P$11=$BL$9,'Manual Data'!BA62,AV60)) -> 5160.901022 | Q60: =IF(Q$11="No Data",".",IF(Q$11=$BL$9,'Manual Data'!BB62,AW60)) -> 4878.371978 | R60: =IF(R$11=$BL$9,'Manual Data'!BC62,AX60) -> 2.865 | S60: =IF(S$11=$BL$9,'Manual Data'!BD62,AY60) -> 42.8 | T60: =IF(T$11=$BL$9,'Manual Data'!BE62,AZ60) -> 54.9 | U60: =IF(U$11=$BL$9,'Manual Data'!BF62,BA60) -> 22219.14589 | V60: =IF(V$11=$BL$9,'Manual Data'!BG62,BB60) -> 4163.435108 | W60: =IF(W$11=$BL$9,'Manual Data'!BH62,BC60) -> 855.4450221 | X60: =IF(X$11=$BL$9,'Manual Data'!BI62,BD60) -> 0 | Y60: =IF(Y$11=$BL$9,'Manual Data'!BJ62,BE60) -> 3307.990085 | Z60: =IF(Z$11=$BL$9,'Manual Data'!BK62,BF60) -> 2188.306728 | AA60: =IF(AA$11=$BL$9,'Manual Data'!BL62,BG60) -> 10602.07717 | AB60: =IF(AB$11=$BL$9,'Manual Data'!BM62,BH60) -> 123.4272037 | AC60: =IF(AC$11=$BL$9,'Manual Data'!BN62,BI60) -> 5879.355759 | AD60: =IF(AD$11=$BL$9,'Manual Data'!BO62,BJ60) -> 4599.294211 | AF60: ='Existing Data_DataBank'!BP61 -> 2007 | AG60: ='Existing Data_DataBank'!CT61 -> GDP | AH60: ='Existing Data_DataBank'!BQ61 -> 13764.95091 | AI60: ='Existing Data_DataBank'!BR61 -> 26382.581 | AJ60: ='Existing Data_DataBank'!BS61 -> 13119.20751 | AK60: ='Existing Data_DataBank'!BT61 -> 13263.37349 | AL60: ='Existing Data_DataBank'!BU61 -> 15142.055 | AM60: ='Existing Data_DataBank'!BV61 -> 7384.472601 | AN60: ='Existing Data_DataBank'!BW61 -> 7757.582399 | AO60: ='Existing Data_DataBank'!BX61 -> 12969.62435 | AP60: ='Existing Data_DataBank'!BY61 -> 6599.503366 | AQ60: ='Existing Data_DataBank'!BZ61 -> 6370.120985 | AR60: ='Existing Data_DataBank'!CA61 -> 12790.38415 | AS60: ='Existing Data_DataBank'!CB61 -> 6491.799473 | AT60: ='Existing Data_DataBank'!CC61 -> 6298.584673 | AU60: ='Existing Data_DataBank'!CD61 -> 10039.273 | AV60: ='Existing Data_DataBank'!CE61 -> 5160.901022 | AW60: ='Existing Data_DataBank'!CF61 -> 4878.371978 | AX60: ='Existing Data_DataBank'!CG61 -> 2.865 | AY60: ='Existing Data_DataBank'!CH61 -> 42.8 | AZ60: ='Existing Data_DataBank'!CI61 -> 54.9 | BA60: ='Existing Data_DataBank'!CJ61 -> 22219.14589 | BB60: ='Existing Data_DataBank'!CK61 -> 4163.435108 | BC60: ='Existing Data_DataBank'!CL61 -> 855.4450221 | BD60: ='Existing Data_DataBank'!CM61 -> 0 | BE60: ='Existing Data_DataBank'!CN61 -> 3307.990085 | BF60: ='Existing Data_DataBank'!CO61 -> 2188.306728 | BG60: ='Existing Data_DataBank'!CP61 -> 10602.07717 | BH60: ='Existing Data_DataBank'!CQ61 -> 123.4272037 | BI60: ='Existing Data_DataBank'!CR61 -> 5879.355759 | BJ60: ='Existing Data_DataBank'!CS61 -> 4599.294211 | BP60: 2007 | BQ60: 11240.526 | BR60: 2172.430649 | BS60: 179.2402046 | BT60: 12790.38415 | BU60: 26382.581 | BV60: 13764.95091
A61: 2008 | B61: =IF(B$11=$BL$9,'Manual Data'!AM63,AH61) -> 14605.2515 | C61: =IF(C$11=$BL$9,'Manual Data'!AN63,AI61) -> 26666.576 | D61: =IF(D$11=$BL$9,'Manual Data'!AO63,AJ61) -> 13255.03251 | E61: =IF(E$11=$BL$9,'Manual Data'!AP63,AK61) -> 13411.54349 | F61: =IF(F$11=$BL$9,IF(ISERROR('Manual Data'!AQ63/'Manual Data'!$AN63*$C61),".",'Manual Data'!AQ63/'Manual Data'!$AN63*$C61),IF(ISERROR(AL61/$AI61*$C61),".",AL61/$AI61*$C61)) -> 15412.29 | G61: =IF(G$11="No Data",".",IF(G$11=$BL$9,'Manual Data'!AR63,AM61)) -> 7501.759593 | H61: =IF(H$11="No Data",".",IF(H$11=$BL$9,'Manual Data'!AS63,AN61)) -> 7910.530407 | I61: =IF(I$11=$BL$9,IF(ISERROR('Manual Data'!AT63/'Manual Data'!AQ63*F61),".",'Manual Data'!AT63/'Manual Data'!AQ63*F61),IF(ISERROR(AO61/AL61*F61),".",AO61/AL61*F61)) -> 13134.96988 | J61: =IF(J$11="No Data",".",IF(J$11=$BL$9,'Manual Data'!AU63,AP61)) -> 6671.164877 | K61: =IF(K$11="No Data",".",IF(K$11=$BL$9,'Manual Data'!AV63,AQ61)) -> 6463.805003 | L61: =IF(L$11=$BL$9,IF(ISERROR('Manual Data'!AW63/'Manual Data'!AT63*I61),".",'Manual Data'!AW63/'Manual Data'!AT63*I61),IF(ISERROR(AR61/AO61*I61),".",AR61/AO61*I61)) -> 12959.48669 | M61: =IF(M$11="No Data",".",IF(M$11=$BL$9,'Manual Data'!AX63,AS61)) -> 6565.160068 | N61: =IF(N$11="No Data",".",IF(N$11=$BL$9,'Manual Data'!AY63,AT61)) -> 6394.326618 | O61: =IF(O$11=$BL$9,IF(ISERROR('Manual Data'!AZ63/'Manual Data'!$AN63*$C61),".",'Manual Data'!AZ63/'Manual Data'!$AN63*$C61),IF(ISERROR(AU61/$AI61*$C61),".",AU61/$AI61*$C61)) -> 10001.533 | P61: =IF(P$11="No Data",".",IF(P$11=$BL$9,'Manual Data'!BA63,AV61)) -> 5146.570035 | Q61: =IF(Q$11="No Data",".",IF(Q$11=$BL$9,'Manual Data'!BB63,AW61)) -> 4854.962965 | R61: =IF(R$11=$BL$9,'Manual Data'!BC63,AX61) -> 2.751 | S61: =IF(S$11=$BL$9,'Manual Data'!BD63,AY61) -> 40.9 | T61: =IF(T$11=$BL$9,'Manual Data'!BE63,AZ61) -> 52 | U61: =IF(U$11=$BL$9,'Manual Data'!BF63,BA61) -> 22371.92394 | V61: =IF(V$11=$BL$9,'Manual Data'!BG63,BB61) -> 4294.652065 | W61: =IF(W$11=$BL$9,'Manual Data'!BH63,BC61) -> 890.4950134 | X61: =IF(X$11=$BL$9,'Manual Data'!BI63,BD61) -> 0 | Y61: =IF(Y$11=$BL$9,'Manual Data'!BJ63,BE61) -> 3404.157051 | Z61: =IF(Z$11=$BL$9,'Manual Data'!BK63,BF61) -> 2248.859808 | AA61: =IF(AA$11=$BL$9,'Manual Data'!BL63,BG61) -> 10710.62737 | AB61: =IF(AB$11=$BL$9,'Manual Data'!BM63,BH61) -> 126.0958042 | AC61: =IF(AC$11=$BL$9,'Manual Data'!BN63,BI61) -> 5932.464276 | AD61: =IF(AD$11=$BL$9,'Manual Data'!BO63,BJ61) -> 4652.067293 | AF61: ='Existing Data_DataBank'!BP62 -> 2008 | AG61: ='Existing Data_DataBank'!CT62 -> GDP | AH61: ='Existing Data_DataBank'!BQ62 -> 14605.2515 | AI61: ='Existing Data_DataBank'!BR62 -> 26666.576 | AJ61: ='Existing Data_DataBank'!BS62 -> 13255.03251 | AK61: ='Existing Data_DataBank'!BT62 -> 13411.54349 | AL61: ='Existing Data_DataBank'!BU62 -> 15412.29 | AM61: ='Existing Data_DataBank'!BV62 -> 7501.759593 | AN61: ='Existing Data_DataBank'!BW62 -> 7910.530407 | AO61: ='Existing Data_DataBank'!BX62 -> 13134.96988 | AP61: ='Existing Data_DataBank'!BY62 -> 6671.164877 | AQ61: ='Existing Data_DataBank'!BZ62 -> 6463.805003 | AR61: ='Existing Data_DataBank'!CA62 -> 12959.48669 | AS61: ='Existing Data_DataBank'!CB62 -> 6565.160068 | AT61: ='Existing Data_DataBank'!CC62 -> 6394.326618 | AU61: ='Existing Data_DataBank'!CD62 -> 10001.533 | AV61: ='Existing Data_DataBank'!CE62 -> 5146.570035 | AW61: ='Existing Data_DataBank'!CF62 -> 4854.962965 | AX61: ='Existing Data_DataBank'!CG62 -> 2.751 | AY61: ='Existing Data_DataBank'!CH62 -> 40.9 | AZ61: ='Existing Data_DataBank'!CI62 -> 52 | BA61: ='Existing Data_DataBank'!CJ62 -> 22371.92394 | BB61: ='Existing Data_DataBank'!CK62 -> 4294.652065 | BC61: ='Existing Data_DataBank'!CL62 -> 890.4950134 | BD61: ='Existing Data_DataBank'!CM62 -> 0 | BE61: ='Existing Data_DataBank'!CN62 -> 3404.157051 | BF61: ='Existing Data_DataBank'!CO62 -> 2248.859808 | BG61: ='Existing Data_DataBank'!CP62 -> 10710.62737 | BH61: ='Existing Data_DataBank'!CQ62 -> 126.0958042 | BI61: ='Existing Data_DataBank'!CR62 -> 5932.464276 | BJ61: ='Existing Data_DataBank'!CS62 -> 4652.067293 | BP61: 2008 | BQ61: 11254.286 | BR61: 2277.320121 | BS61: 175.4831931 | BT61: 12959.48669 | BU61: 26666.576 | BV61: 14605.2515
A62: 2009 | B62: =IF(B$11=$BL$9,'Manual Data'!AM64,AH62) -> 15267.31904 | C62: =IF(C$11=$BL$9,'Manual Data'!AN64,AI62) -> 26883.535 | D62: =IF(D$11=$BL$9,'Manual Data'!AO64,AJ62) -> 13322.03298 | E62: =IF(E$11=$BL$9,'Manual Data'!AP64,AK62) -> 13561.50202 | F62: =IF(F$11=$BL$9,IF(ISERROR('Manual Data'!AQ64/'Manual Data'!$AN64*$C62),".",'Manual Data'!AQ64/'Manual Data'!$AN64*$C62),IF(ISERROR(AL62/$AI62*$C62),".",AL62/$AI62*$C62)) -> 15650.889 | G62: =IF(G$11="No Data",".",IF(G$11=$BL$9,'Manual Data'!AR64,AM62)) -> 7582.428128 | H62: =IF(H$11="No Data",".",IF(H$11=$BL$9,'Manual Data'!AS64,AN62)) -> 8068.460872 | I62: =IF(I$11=$BL$9,IF(ISERROR('Manual Data'!AT64/'Manual Data'!AQ64*F62),".",'Manual Data'!AT64/'Manual Data'!AQ64*F62),IF(ISERROR(AO62/AL62*F62),".",AO62/AL62*F62)) -> 13326.26295 | J62: =IF(J$11="No Data",".",IF(J$11=$BL$9,'Manual Data'!AU64,AP62)) -> 6724.248852 | K62: =IF(K$11="No Data",".",IF(K$11=$BL$9,'Manual Data'!AV64,AQ62)) -> 6602.014101 | L62: =IF(L$11=$BL$9,IF(ISERROR('Manual Data'!AW64/'Manual Data'!AT64*I62),".",'Manual Data'!AW64/'Manual Data'!AT64*I62),IF(ISERROR(AR62/AO62*I62),".",AR62/AO62*I62)) -> 13117.30716 | M62: =IF(M$11="No Data",".",IF(M$11=$BL$9,'Manual Data'!AX64,AS62)) -> 6600.589917 | N62: =IF(N$11="No Data",".",IF(N$11=$BL$9,'Manual Data'!AY64,AT62)) -> 6516.717239 | O62: =IF(O$11=$BL$9,IF(ISERROR('Manual Data'!AZ64/'Manual Data'!$AN64*$C62),".",'Manual Data'!AZ64/'Manual Data'!$AN64*$C62),IF(ISERROR(AU62/$AI62*$C62),".",AU62/$AI62*$C62)) -> 9928.145 | P62: =IF(P$11="No Data",".",IF(P$11=$BL$9,'Manual Data'!BA64,AV62)) -> 5102.176759 | Q62: =IF(Q$11="No Data",".",IF(Q$11=$BL$9,'Manual Data'!BB64,AW62)) -> 4825.968241 | R62: =IF(R$11=$BL$9,'Manual Data'!BC64,AX62) -> 2.644 | S62: =IF(S$11=$BL$9,'Manual Data'!BD64,AY62) -> 39 | T62: =IF(T$11=$BL$9,'Manual Data'!BE64,AZ62) -> 49.3 | U62: =IF(U$11=$BL$9,'Manual Data'!BF64,BA62) -> 22465.49486 | V62: =IF(V$11=$BL$9,'Manual Data'!BG64,BB62) -> 4418.040142 | W62: =IF(W$11=$BL$9,'Manual Data'!BH64,BC62) -> 926.8790298 | X62: =IF(X$11=$BL$9,'Manual Data'!BI64,BD62) -> 0 | Y62: =IF(Y$11=$BL$9,'Manual Data'!BJ64,BE62) -> 3491.161112 | Z62: =IF(Z$11=$BL$9,'Manual Data'!BK64,BF62) -> 2301.169098 | AA62: =IF(AA$11=$BL$9,'Manual Data'!BL64,BG62) -> 10816.13806 | AB62: =IF(AB$11=$BL$9,'Manual Data'!BM64,BH62) -> 127.8937479 | AC62: =IF(AC$11=$BL$9,'Manual Data'!BN64,BI62) -> 5972.440889 | AD62: =IF(AD$11=$BL$9,'Manual Data'!BO64,BJ62) -> 4715.803421 | AF62: ='Existing Data_DataBank'!BP63 -> 2009 | AG62: ='Existing Data_DataBank'!CT63 -> GDP | AH62: ='Existing Data_DataBank'!BQ63 -> 15267.31904 | AI62: ='Existing Data_DataBank'!BR63 -> 26883.535 | AJ62: ='Existing Data_DataBank'!BS63 -> 13322.03298 | AK62: ='Existing Data_DataBank'!BT63 -> 13561.50202 | AL62: ='Existing Data_DataBank'!BU63 -> 15650.889 | AM62: ='Existing Data_DataBank'!BV63 -> 7582.428128 | AN62: ='Existing Data_DataBank'!BW63 -> 8068.460872 | AO62: ='Existing Data_DataBank'!BX63 -> 13326.26295 | AP62: ='Existing Data_DataBank'!BY63 -> 6724.248852 | AQ62: ='Existing Data_DataBank'!BZ63 -> 6602.014101 | AR62: ='Existing Data_DataBank'!CA63 -> 13117.30716 | AS62: ='Existing Data_DataBank'!CB63 -> 6600.589917 | AT62: ='Existing Data_DataBank'!CC63 -> 6516.717239 | AU62: ='Existing Data_DataBank'!CD63 -> 9928.145 | AV62: ='Existing Data_DataBank'!CE63 -> 5102.176759 | AW62: ='Existing Data_DataBank'!CF63 -> 4825.968241 | AX62: ='Existing Data_DataBank'!CG63 -> 2.644 | AY62: ='Existing Data_DataBank'!CH63 -> 39 | AZ62: ='Existing Data_DataBank'!CI63 -> 49.3 | BA62: ='Existing Data_DataBank'!CJ63 -> 22465.49486 | BB62: ='Existing Data_DataBank'!CK63 -> 4418.040142 | BC62: ='Existing Data_DataBank'!CL63 -> 926.8790298 | BD62: ='Existing Data_DataBank'!CM63 -> 0 | BE62: ='Existing Data_DataBank'!CN63 -> 3491.161112 | BF62: ='Existing Data_DataBank'!CO63 -> 2301.169098 | BG62: ='Existing Data_DataBank'!CP63 -> 10816.13806 | BH62: ='Existing Data_DataBank'!CQ63 -> 127.8937479 | BI62: ='Existing Data_DataBank'!CR63 -> 5972.440889 | BJ62: ='Existing Data_DataBank'!CS63 -> 4715.803421 | BP62: 2009 | BQ62: 11232.646 | BR62: 2324.626046 | BS62: 208.9557976 | BT62: 13117.30716 | BU62: 26883.535 | BV62: 15267.31904
A63: 2010 | B63: =IF(B$11=$BL$9,'Manual Data'!AM65,AH63) -> 16002.65643 | C63: =IF(C$11=$BL$9,'Manual Data'!AN65,AI63) -> 27013.212 | D63: =IF(D$11=$BL$9,'Manual Data'!AO65,AJ63) -> 13296.61246 | E63: =IF(E$11=$BL$9,'Manual Data'!AP65,AK63) -> 13716.59954 | F63: =IF(F$11=$BL$9,IF(ISERROR('Manual Data'!AQ65/'Manual Data'!$AN65*$C63),".",'Manual Data'!AQ65/'Manual Data'!$AN65*$C63),IF(ISERROR(AL63/$AI63*$C63),".",AL63/$AI63*$C63)) -> 15856.479 | G63: =IF(G$11="No Data",".",IF(G$11=$BL$9,'Manual Data'!AR65,AM63)) -> 7618.96541 | H63: =IF(H$11="No Data",".",IF(H$11=$BL$9,'Manual Data'!AS65,AN63)) -> 8237.51359 | I63: =IF(I$11=$BL$9,IF(ISERROR('Manual Data'!AT65/'Manual Data'!AQ65*F63),".",'Manual Data'!AT65/'Manual Data'!AQ65*F63),IF(ISERROR(AO63/AL63*F63),".",AO63/AL63*F63)) -> 13490.37567 | J63: =IF(J$11="No Data",".",IF(J$11=$BL$9,'Manual Data'!AU65,AP63)) -> 6736.308337 | K63: =IF(K$11="No Data",".",IF(K$11=$BL$9,'Manual Data'!AV65,AQ63)) -> 6754.067331 | L63: =IF(L$11=$BL$9,IF(ISERROR('Manual Data'!AW65/'Manual Data'!AT65*I63),".",'Manual Data'!AW65/'Manual Data'!AT65*I63),IF(ISERROR(AR63/AO63*I63),".",AR63/AO63*I63)) -> 13285.05216 | M63: =IF(M$11="No Data",".",IF(M$11=$BL$9,'Manual Data'!AX65,AS63)) -> 6618.69239 | N63: =IF(N$11="No Data",".",IF(N$11=$BL$9,'Manual Data'!AY65,AT63)) -> 6666.359766 | O63: =IF(O$11=$BL$9,IF(ISERROR('Manual Data'!AZ65/'Manual Data'!$AN65*$C63),".",'Manual Data'!AZ65/'Manual Data'!$AN65*$C63),IF(ISERROR(AU63/$AI63*$C63),".",AU63/$AI63*$C63)) -> 9802.827 | P63: =IF(P$11="No Data",".",IF(P$11=$BL$9,'Manual Data'!BA65,AV63)) -> 5013.918928 | Q63: =IF(Q$11="No Data",".",IF(Q$11=$BL$9,'Manual Data'!BB65,AW63)) -> 4788.908072 | R63: =IF(R$11=$BL$9,'Manual Data'!BC65,AX63) -> 2.542 | S63: =IF(S$11=$BL$9,'Manual Data'!BD65,AY63) -> 37.3 | T63: =IF(T$11=$BL$9,'Manual Data'!BE65,AZ63) -> 46.8 | U63: =IF(U$11=$BL$9,'Manual Data'!BF65,BA63) -> 22483.63661 | V63: =IF(V$11=$BL$9,'Manual Data'!BG65,BB63) -> 4529.575388 | W63: =IF(W$11=$BL$9,'Manual Data'!BH65,BC63) -> 964.8020827 | X63: =IF(X$11=$BL$9,'Manual Data'!BI65,BD63) -> 0 | Y63: =IF(Y$11=$BL$9,'Manual Data'!BJ65,BE63) -> 3564.773305 | Z63: =IF(Z$11=$BL$9,'Manual Data'!BK65,BF63) -> 2357.698172 | AA63: =IF(AA$11=$BL$9,'Manual Data'!BL65,BG63) -> 10927.35373 | AB63: =IF(AB$11=$BL$9,'Manual Data'!BM65,BH63) -> 130.1935137 | AC63: =IF(AC$11=$BL$9,'Manual Data'!BN65,BI63) -> 6016.003071 | AD63: =IF(AD$11=$BL$9,'Manual Data'!BO65,BJ63) -> 4781.157146 | AF63: ='Existing Data_DataBank'!BP64 -> 2010 | AG63: ='Existing Data_DataBank'!CT64 -> GDP | AH63: ='Existing Data_DataBank'!BQ64 -> 16002.65643 | AI63: ='Existing Data_DataBank'!BR64 -> 27013.212 | AJ63: ='Existing Data_DataBank'!BS64 -> 13296.61246 | AK63: ='Existing Data_DataBank'!BT64 -> 13716.59954 | AL63: ='Existing Data_DataBank'!BU64 -> 15856.479 | AM63: ='Existing Data_DataBank'!BV64 -> 7618.96541 | AN63: ='Existing Data_DataBank'!BW64 -> 8237.51359 | AO63: ='Existing Data_DataBank'!BX64 -> 13490.37567 | AP63: ='Existing Data_DataBank'!BY64 -> 6736.308337 | AQ63: ='Existing Data_DataBank'!BZ64 -> 6754.067331 | AR63: ='Existing Data_DataBank'!CA64 -> 13285.05216 | AS63: ='Existing Data_DataBank'!CB64 -> 6618.69239 | AT63: ='Existing Data_DataBank'!CC64 -> 6666.359766 | AU63: ='Existing Data_DataBank'!CD64 -> 9802.827 | AV63: ='Existing Data_DataBank'!CE64 -> 5013.918928 | AW63: ='Existing Data_DataBank'!CF64 -> 4788.908072 | AX63: ='Existing Data_DataBank'!CG64 -> 2.542 | AY63: ='Existing Data_DataBank'!CH64 -> 37.3 | AZ63: ='Existing Data_DataBank'!CI64 -> 46.8 | BA63: ='Existing Data_DataBank'!CJ64 -> 22483.63661 | BB63: ='Existing Data_DataBank'!CK64 -> 4529.575388 | BC63: ='Existing Data_DataBank'!CL64 -> 964.8020827 | BD63: ='Existing Data_DataBank'!CM64 -> 0 | BE63: ='Existing Data_DataBank'!CN64 -> 3564.773305 | BF63: ='Existing Data_DataBank'!CO64 -> 2357.698172 | BG63: ='Existing Data_DataBank'!CP64 -> 10927.35373 | BH63: ='Existing Data_DataBank'!CQ64 -> 130.1935137 | BI63: ='Existing Data_DataBank'!CR64 -> 6016.003071 | BJ63: ='Existing Data_DataBank'!CS64 -> 4781.157146 | BP63: 2010 | BQ63: 11156.733 | BR63: 2366.103332 | BS63: 205.3235116 | BT63: 13285.05216 | BU63: 27013.212 | BV63: 16002.65643
A64: 2011 | B64: =IF(B$11=$BL$9,'Manual Data'!AM66,AH64) -> 16550.23985 | C64: =IF(C$11=$BL$9,'Manual Data'!AN66,AI64) -> 27041.437 | D64: =IF(D$11=$BL$9,'Manual Data'!AO66,AJ64) -> 13163.92664 | E64: =IF(E$11=$BL$9,'Manual Data'!AP66,AK64) -> 13877.51036 | F64: =IF(F$11=$BL$9,IF(ISERROR('Manual Data'!AQ66/'Manual Data'!$AN66*$C64),".",'Manual Data'!AQ66/'Manual Data'!$AN66*$C64),IF(ISERROR(AL64/$AI64*$C64),".",AL64/$AI64*$C64)) -> 15966.08512 | G64: =IF(G$11="No Data",".",IF(G$11=$BL$9,'Manual Data'!AR66,AM64)) -> 7530.922434 | H64: =IF(H$11="No Data",".",IF(H$11=$BL$9,'Manual Data'!AS66,AN64)) -> 8435.16269 | I64: =IF(I$11=$BL$9,IF(ISERROR('Manual Data'!AT66/'Manual Data'!AQ66*F64),".",'Manual Data'!AT66/'Manual Data'!AQ66*F64),IF(ISERROR(AO64/AL64*F64),".",AO64/AL64*F64)) -> 13603.90312 | J64: =IF(J$11="No Data",".",IF(J$11=$BL$9,'Manual Data'!AU66,AP64)) -> 6643.402949 | K64: =IF(K$11="No Data",".",IF(K$11=$BL$9,'Manual Data'!AV66,AQ64)) -> 6960.500173 | L64: =IF(L$11=$BL$9,IF(ISERROR('Manual Data'!AW66/'Manual Data'!AT66*I64),".",'Manual Data'!AW66/'Manual Data'!AT66*I64),IF(ISERROR(AR64/AO64*I64),".",AR64/AO64*I64)) -> 13396.71568 | M64: =IF(M$11="No Data",".",IF(M$11=$BL$9,'Manual Data'!AX66,AS64)) -> 6526.877665 | N64: =IF(N$11="No Data",".",IF(N$11=$BL$9,'Manual Data'!AY66,AT64)) -> 6869.838012 | O64: =IF(O$11=$BL$9,IF(ISERROR('Manual Data'!AZ66/'Manual Data'!$AN66*$C64),".",'Manual Data'!AZ66/'Manual Data'!$AN66*$C64),IF(ISERROR(AU64/$AI64*$C64),".",AU64/$AI64*$C64)) -> 9685.315722 | P64: =IF(P$11="No Data",".",IF(P$11=$BL$9,'Manual Data'!BA66,AV64)) -> 4955.281765 | Q64: =IF(Q$11="No Data",".",IF(Q$11=$BL$9,'Manual Data'!BB66,AW64)) -> 4730.033957 | R64: =IF(R$11=$BL$9,'Manual Data'!BC66,AX64) -> 2.444 | S64: =IF(S$11=$BL$9,'Manual Data'!BD66,AY64) -> 35.6 | T64: =IF(T$11=$BL$9,'Manual Data'!BE66,AZ64) -> 44.4 | U64: =IF(U$11=$BL$9,'Manual Data'!BF66,BA64) -> 22415.18796 | V64: =IF(V$11=$BL$9,'Manual Data'!BG66,BB64) -> 4626.249042 | W64: =IF(W$11=$BL$9,'Manual Data'!BH66,BC64) -> 1004.278009 | X64: =IF(X$11=$BL$9,'Manual Data'!BI66,BD64) -> 0 | Y64: =IF(Y$11=$BL$9,'Manual Data'!BJ66,BE64) -> 3621.971033 | Z64: =IF(Z$11=$BL$9,'Manual Data'!BK66,BF64) -> 2403.638651 | AA64: =IF(AA$11=$BL$9,'Manual Data'!BL66,BG64) -> 10993.07677 | AB64: =IF(AB$11=$BL$9,'Manual Data'!BM66,BH64) -> 131.8236859 | AC64: =IF(AC$11=$BL$9,'Manual Data'!BN66,BI64) -> 6037.095842 | AD64: =IF(AD$11=$BL$9,'Manual Data'!BO66,BJ64) -> 4824.157242 | AF64: ='Existing Data_DataBank'!BP65 -> 2011 | AG64: ='Existing Data_DataBank'!CT65 -> GDP | AH64: ='Existing Data_DataBank'!BQ65 -> 16550.23985 | AI64: ='Existing Data_DataBank'!BR65 -> 27041.437 | AJ64: ='Existing Data_DataBank'!BS65 -> 13163.92664 | AK64: ='Existing Data_DataBank'!BT65 -> 13877.51036 | AL64: ='Existing Data_DataBank'!BU65 -> 15966.08512 | AM64: ='Existing Data_DataBank'!BV65 -> 7530.922434 | AN64: ='Existing Data_DataBank'!BW65 -> 8435.16269 | AO64: ='Existing Data_DataBank'!BX65 -> 13603.90312 | AP64: ='Existing Data_DataBank'!BY65 -> 6643.402949 | AQ64: ='Existing Data_DataBank'!BZ65 -> 6960.500173 | AR64: ='Existing Data_DataBank'!CA65 -> 13396.71568 | AS64: ='Existing Data_DataBank'!CB65 -> 6526.877665 | AT64: ='Existing Data_DataBank'!CC65 -> 6869.838012 | AU64: ='Existing Data_DataBank'!CD65 -> 9685.315722 | AV64: ='Existing Data_DataBank'!CE65 -> 4955.281765 | AW64: ='Existing Data_DataBank'!CF65 -> 4730.033957 | AX64: ='Existing Data_DataBank'!CG65 -> 2.444 | AY64: ='Existing Data_DataBank'!CH65 -> 35.6 | AZ64: ='Existing Data_DataBank'!CI65 -> 44.4 | BA64: ='Existing Data_DataBank'!CJ65 -> 22415.18796 | BB64: ='Existing Data_DataBank'!CK65 -> 4626.249042 | BC64: ='Existing Data_DataBank'!CL65 -> 1004.278009 | BD64: ='Existing Data_DataBank'!CM65 -> 0 | BE64: ='Existing Data_DataBank'!CN65 -> 3621.971033 | BF64: ='Existing Data_DataBank'!CO65 -> 2403.638651 | BG64: ='Existing Data_DataBank'!CP65 -> 10993.07677 | BH64: ='Existing Data_DataBank'!CQ65 -> 131.8236859 | BI64: ='Existing Data_DataBank'!CR65 -> 6037.095842 | BJ64: ='Existing Data_DataBank'!CS65 -> 4824.157242 | BP64: 2011 | BQ64: 11075.35188 | BR64: 2362.182002 | BS64: 207.1874448 | BT64: 13396.71568 | BU64: 27041.437 | BV64: 16550.23985
A65: 2012 | B65: =IF(B$11=$BL$9,'Manual Data'!AM67,AH65) -> 17341.53864 | C65: =IF(C$11=$BL$9,'Manual Data'!AN67,AI65) -> 26989.862 | D65: =IF(D$11=$BL$9,'Manual Data'!AO67,AJ65) -> 12944.9487 | E65: =IF(E$11=$BL$9,'Manual Data'!AP67,AK65) -> 14044.9133 | F65: =IF(F$11=$BL$9,IF(ISERROR('Manual Data'!AQ67/'Manual Data'!$AN67*$C65),".",'Manual Data'!AQ67/'Manual Data'!$AN67*$C65),IF(ISERROR(AL65/$AI65*$C65),".",AL65/$AI65*$C65)) -> 16059.82893 | G65: =IF(G$11="No Data",".",IF(G$11=$BL$9,'Manual Data'!AR67,AM65)) -> 7405.375612 | H65: =IF(H$11="No Data",".",IF(H$11=$BL$9,'Manual Data'!AS67,AN65)) -> 8654.453315 | I65: =IF(I$11=$BL$9,IF(ISERROR('Manual Data'!AT67/'Manual Data'!AQ67*F65),".",'Manual Data'!AT67/'Manual Data'!AQ67*F65),IF(ISERROR(AO65/AL65*F65),".",AO65/AL65*F65)) -> 13706.26119 | J65: =IF(J$11="No Data",".",IF(J$11=$BL$9,'Manual Data'!AU67,AP65)) -> 6516.656526 | K65: =IF(K$11="No Data",".",IF(K$11=$BL$9,'Manual Data'!AV67,AQ65)) -> 7189.604668 | L65: =IF(L$11=$BL$9,IF(ISERROR('Manual Data'!AW67/'Manual Data'!AT67*I65),".",'Manual Data'!AW67/'Manual Data'!AT67*I65),IF(ISERROR(AR65/AO65*I65),".",AR65/AO65*I65)) -> 13489.42814 | M65: =IF(M$11="No Data",".",IF(M$11=$BL$9,'Manual Data'!AX67,AS65)) -> 6397.401708 | N65: =IF(N$11="No Data",".",IF(N$11=$BL$9,'Manual Data'!AY67,AT65)) -> 7092.026431 | O65: =IF(O$11=$BL$9,IF(ISERROR('Manual Data'!AZ67/'Manual Data'!$AN67*$C65),".",'Manual Data'!AZ67/'Manual Data'!$AN67*$C65),IF(ISERROR(AU65/$AI65*$C65),".",AU65/$AI65*$C65)) -> 9513.714392 | P65: =IF(P$11="No Data",".",IF(P$11=$BL$9,'Manual Data'!BA67,AV65)) -> 4856.705322 | Q65: =IF(Q$11="No Data",".",IF(Q$11=$BL$9,'Manual Data'!BB67,AW65)) -> 4657.00907 | R65: =IF(R$11=$BL$9,'Manual Data'!BC67,AX65) -> 2.351 | S65: =IF(S$11=$BL$9,'Manual Data'!BD67,AY65) -> 34 | T65: =IF(T$11=$BL$9,'Manual Data'!BE67,AZ65) -> 42.2 | U65: =IF(U$11=$BL$9,'Manual Data'!BF67,BA65) -> 22277.97189 | V65: =IF(V$11=$BL$9,'Manual Data'!BG67,BB65) -> 4711.890108 | W65: =IF(W$11=$BL$9,'Manual Data'!BH67,BC65) -> 1045.369024 | X65: =IF(X$11=$BL$9,'Manual Data'!BI67,BD65) -> 0 | Y65: =IF(Y$11=$BL$9,'Manual Data'!BJ67,BE65) -> 3666.521084 | Z65: =IF(Z$11=$BL$9,'Manual Data'!BK67,BF65) -> 2451.568641 | AA65: =IF(AA$11=$BL$9,'Manual Data'!BL67,BG65) -> 11037.85898 | AB65: =IF(AB$11=$BL$9,'Manual Data'!BM67,BH65) -> 133.6802324 | AC65: =IF(AC$11=$BL$9,'Manual Data'!BN67,BI65) -> 6047.850163 | AD65: =IF(AD$11=$BL$9,'Manual Data'!BO67,BJ65) -> 4856.328589 | AF65: ='Existing Data_DataBank'!BP66 -> 2012 | AG65: ='Existing Data_DataBank'!CT66 -> GDP | AH65: ='Existing Data_DataBank'!BQ66 -> 17341.53864 | AI65: ='Existing Data_DataBank'!BR66 -> 26989.862 | AJ65: ='Existing Data_DataBank'!BS66 -> 12944.9487 | AK65: ='Existing Data_DataBank'!BT66 -> 14044.9133 | AL65: ='Existing Data_DataBank'!BU66 -> 16059.82893 | AM65: ='Existing Data_DataBank'!BV66 -> 7405.375612 | AN65: ='Existing Data_DataBank'!BW66 -> 8654.453315 | AO65: ='Existing Data_DataBank'!BX66 -> 13706.26119 | AP65: ='Existing Data_DataBank'!BY66 -> 6516.656526 | AQ65: ='Existing Data_DataBank'!BZ66 -> 7189.604668 | AR65: ='Existing Data_DataBank'!CA66 -> 13489.42814 | AS65: ='Existing Data_DataBank'!CB66 -> 6397.401708 | AT65: ='Existing Data_DataBank'!CC66 -> 7092.026431 | AU65: ='Existing Data_DataBank'!CD66 -> 9513.714392 | AV65: ='Existing Data_DataBank'!CE66 -> 4856.705322 | AW65: ='Existing Data_DataBank'!CF66 -> 4657.00907 | AX65: ='Existing Data_DataBank'!CG66 -> 2.351 | AY65: ='Existing Data_DataBank'!CH66 -> 34 | AZ65: ='Existing Data_DataBank'!CI66 -> 42.2 | BA65: ='Existing Data_DataBank'!CJ66 -> 22277.97189 | BB65: ='Existing Data_DataBank'!CK66 -> 4711.890108 | BC65: ='Existing Data_DataBank'!CL66 -> 1045.369024 | BD65: ='Existing Data_DataBank'!CM66 -> 0 | BE65: ='Existing Data_DataBank'!CN66 -> 3666.521084 | BF65: ='Existing Data_DataBank'!CO66 -> 2451.568641 | BG65: ='Existing Data_DataBank'!CP66 -> 11037.85898 | BH65: ='Existing Data_DataBank'!CQ66 -> 133.6802324 | BI65: ='Existing Data_DataBank'!CR66 -> 6047.850163 | BJ65: ='Existing Data_DataBank'!CS66 -> 4856.328589 | BP65: 2012 | BQ65: 10930.03307 | BR65: 2353.567733 | BS65: 216.8330544 | BT65: 13489.42814 | BU65: 26989.862 | BV65: 17341.53864
A66: 2013 | B66: =IF(B$11=$BL$9,'Manual Data'!AM68,AH66) -> 18057.54956 | C66: =IF(C$11=$BL$9,'Manual Data'!AN68,AI66) -> 26917.906 | D66: =IF(D$11=$BL$9,'Manual Data'!AO68,AJ66) -> 12695.97901 | E66: =IF(E$11=$BL$9,'Manual Data'!AP68,AK66) -> 14221.92699 | F66: =IF(F$11=$BL$9,IF(ISERROR('Manual Data'!AQ68/'Manual Data'!$AN68*$C66),".",'Manual Data'!AQ68/'Manual Data'!$AN68*$C66),IF(ISERROR(AL66/$AI66*$C66),".",AL66/$AI66*$C66)) -> 16163.23232 | G66: =IF(G$11="No Data",".",IF(G$11=$BL$9,'Manual Data'!AR68,AM66)) -> 7273.386199 | H66: =IF(H$11="No Data",".",IF(H$11=$BL$9,'Manual Data'!AS68,AN66)) -> 8889.846117 | I66: =IF(I$11=$BL$9,IF(ISERROR('Manual Data'!AT68/'Manual Data'!AQ68*F66),".",'Manual Data'!AT68/'Manual Data'!AQ68*F66),IF(ISERROR(AO66/AL66*F66),".",AO66/AL66*F66)) -> 13812.61356 | J66: =IF(J$11="No Data",".",IF(J$11=$BL$9,'Manual Data'!AU68,AP66)) -> 6382.178308 | K66: =IF(K$11="No Data",".",IF(K$11=$BL$9,'Manual Data'!AV68,AQ66)) -> 7430.435251 | L66: =IF(L$11=$BL$9,IF(ISERROR('Manual Data'!AW68/'Manual Data'!AT68*I66),".",'Manual Data'!AW68/'Manual Data'!AT68*I66),IF(ISERROR(AR66/AO66*I66),".",AR66/AO66*I66)) -> 13598.51806 | M66: =IF(M$11="No Data",".",IF(M$11=$BL$9,'Manual Data'!AX68,AS66)) -> 6268.064961 | N66: =IF(N$11="No Data",".",IF(N$11=$BL$9,'Manual Data'!AY68,AT66)) -> 7330.453095 | O66: =IF(O$11=$BL$9,IF(ISERROR('Manual Data'!AZ68/'Manual Data'!$AN68*$C66),".",'Manual Data'!AZ68/'Manual Data'!$AN68*$C66),IF(ISERROR(AU66/$AI66*$C66),".",AU66/$AI66*$C66)) -> 9316.408214 | P66: =IF(P$11="No Data",".",IF(P$11=$BL$9,'Manual Data'!BA68,AV66)) -> 4738.893591 | Q66: =IF(Q$11="No Data",".",IF(Q$11=$BL$9,'Manual Data'!BB68,AW66)) -> 4577.514623 | R66: =IF(R$11=$BL$9,'Manual Data'!BC68,AX66) -> 2.261 | S66: =IF(S$11=$BL$9,'Manual Data'!BD68,AY66) -> 32.5 | T66: =IF(T$11=$BL$9,'Manual Data'!BE68,AZ66) -> 40.1 | U66: =IF(U$11=$BL$9,'Manual Data'!BF68,BA66) -> 22122.48105 | V66: =IF(V$11=$BL$9,'Manual Data'!BG68,BB66) -> 4795.424954 | W66: =IF(W$11=$BL$9,'Manual Data'!BH68,BC66) -> 1088.14199 | X66: =IF(X$11=$BL$9,'Manual Data'!BI68,BD66) -> 1.046066708e-05 | Y66: =IF(Y$11=$BL$9,'Manual Data'!BJ68,BE66) -> 3707.282954 | Z66: =IF(Z$11=$BL$9,'Manual Data'!BK68,BF66) -> 2502.263181 | AA66: =IF(AA$11=$BL$9,'Manual Data'!BL68,BG66) -> 11096.25462 | AB66: =IF(AB$11=$BL$9,'Manual Data'!BM68,BH66) -> 135.4412387 | AC66: =IF(AC$11=$BL$9,'Manual Data'!BN68,BI66) -> 6066.434898 | AD66: =IF(AD$11=$BL$9,'Manual Data'!BO68,BJ66) -> 4894.378479 | AF66: ='Existing Data_DataBank'!BP67 -> 2013 | AG66: ='Existing Data_DataBank'!CT67 -> GDP | AH66: ='Existing Data_DataBank'!BQ67 -> 18057.54956 | AI66: ='Existing Data_DataBank'!BR67 -> 26917.906 | AJ66: ='Existing Data_DataBank'!BS67 -> 12695.97901 | AK66: ='Existing Data_DataBank'!BT67 -> 14221.92699 | AL66: ='Existing Data_DataBank'!BU67 -> 16163.23232 | AM66: ='Existing Data_DataBank'!BV67 -> 7273.386199 | AN66: ='Existing Data_DataBank'!BW67 -> 8889.846117 | AO66: ='Existing Data_DataBank'!BX67 -> 13812.61356 | AP66: ='Existing Data_DataBank'!BY67 -> 6382.178308 | AQ66: ='Existing Data_DataBank'!BZ67 -> 7430.435251 | AR66: ='Existing Data_DataBank'!CA67 -> 13598.51806 | AS66: ='Existing Data_DataBank'!CB67 -> 6268.064961 | AT66: ='Existing Data_DataBank'!CC67 -> 7330.453095 | AU66: ='Existing Data_DataBank'!CD67 -> 9316.408214 | AV66: ='Existing Data_DataBank'!CE67 -> 4738.893591 | AW66: ='Existing Data_DataBank'!CF67 -> 4577.514623 | AX66: ='Existing Data_DataBank'!CG67 -> 2.261 | AY66: ='Existing Data_DataBank'!CH67 -> 32.5 | AZ66: ='Existing Data_DataBank'!CI67 -> 40.1 | BA66: ='Existing Data_DataBank'!CJ67 -> 22122.48105 | BB66: ='Existing Data_DataBank'!CK67 -> 4795.424954 | BC66: ='Existing Data_DataBank'!CL67 -> 1088.14199 | BD66: ='Existing Data_DataBank'!CM67 -> 1.046066708e-05 | BE66: ='Existing Data_DataBank'!CN67 -> 3707.282954 | BF66: ='Existing Data_DataBank'!CO67 -> 2502.263181 | BG66: ='Existing Data_DataBank'!CP67 -> 11096.25462 | BH66: ='Existing Data_DataBank'!CQ67 -> 135.4412387 | BI66: ='Existing Data_DataBank'!CR67 -> 6066.434898 | BJ66: ='Existing Data_DataBank'!CS67 -> 4894.378479 | BP66: 2013 | BQ66: 10754.67368 | BR66: 2350.618757 | BS66: 214.0955036 | BT66: 13598.51806 | BU66: 26917.906 | BV66: 18057.54956
A67: 2014 | B67: =IF(B$11=$BL$9,'Manual Data'!AM69,AH67) -> 19139.01343 | C67: =IF(C$11=$BL$9,'Manual Data'!AN69,AI67) -> 26906.926 | D67: =IF(D$11=$BL$9,'Manual Data'!AO69,AJ67) -> 12494.89337 | E67: =IF(E$11=$BL$9,'Manual Data'!AP69,AK67) -> 14412.03263 | F67: =IF(F$11=$BL$9,IF(ISERROR('Manual Data'!AQ69/'Manual Data'!$AN69*$C67),".",'Manual Data'!AQ69/'Manual Data'!$AN69*$C67),IF(ISERROR(AL67/$AI67*$C67),".",AL67/$AI67*$C67)) -> 16305.13547 | G67: =IF(G$11="No Data",".",IF(G$11=$BL$9,'Manual Data'!AR69,AM67)) -> 7171.224595 | H67: =IF(H$11="No Data",".",IF(H$11=$BL$9,'Manual Data'!AS69,AN67)) -> 9133.910877 | I67: =IF(I$11=$BL$9,IF(ISERROR('Manual Data'!AT69/'Manual Data'!AQ69*F67),".",'Manual Data'!AT69/'Manual Data'!AQ69*F67),IF(ISERROR(AO67/AL67*F67),".",AO67/AL67*F67)) -> 13940.5649 | J67: =IF(J$11="No Data",".",IF(J$11=$BL$9,'Manual Data'!AU69,AP67)) -> 6270.805652 | K67: =IF(K$11="No Data",".",IF(K$11=$BL$9,'Manual Data'!AV69,AQ67)) -> 7669.759253 | L67: =IF(L$11=$BL$9,IF(ISERROR('Manual Data'!AW69/'Manual Data'!AT69*I67),".",'Manual Data'!AW69/'Manual Data'!AT69*I67),IF(ISERROR(AR67/AO67*I67),".",AR67/AO67*I67)) -> 13737.31148 | M67: =IF(M$11="No Data",".",IF(M$11=$BL$9,'Manual Data'!AX69,AS67)) -> 6166.271318 | N67: =IF(N$11="No Data",".",IF(N$11=$BL$9,'Manual Data'!AY69,AT67)) -> 7571.040158 | O67: =IF(O$11=$BL$9,IF(ISERROR('Manual Data'!AZ69/'Manual Data'!$AN69*$C67),".",'Manual Data'!AZ69/'Manual Data'!$AN69*$C67),IF(ISERROR(AU67/$AI67*$C67),".",AU67/$AI67*$C67)) -> 9138.367968 | P67: =IF(P$11="No Data",".",IF(P$11=$BL$9,'Manual Data'!BA69,AV67)) -> 4637.034685 | Q67: =IF(Q$11="No Data",".",IF(Q$11=$BL$9,'Manual Data'!BB69,AW67)) -> 4501.333283 | R67: =IF(R$11=$BL$9,'Manual Data'!BC69,AX67) -> 2.176 | S67: =IF(S$11=$BL$9,'Manual Data'!BD69,AY67) -> 31.1 | T67: =IF(T$11=$BL$9,'Manual Data'!BE69,AZ67) -> 38.1 | U67: =IF(U$11=$BL$9,'Manual Data'!BF69,BA67) -> 22014.70871 | V67: =IF(V$11=$BL$9,'Manual Data'!BG69,BB67) -> 4892.217285 | W67: =IF(W$11=$BL$9,'Manual Data'!BH69,BC67) -> 1132.664066 | X67: =IF(X$11=$BL$9,'Manual Data'!BI69,BD67) -> 0 | Y67: =IF(Y$11=$BL$9,'Manual Data'!BJ69,BE67) -> 3759.553219 | Z67: =IF(Z$11=$BL$9,'Manual Data'!BK69,BF67) -> 2563.519598 | AA67: =IF(AA$11=$BL$9,'Manual Data'!BL69,BG67) -> 11173.79135 | AB67: =IF(AB$11=$BL$9,'Manual Data'!BM69,BH67) -> 137.9226001 | AC67: =IF(AC$11=$BL$9,'Manual Data'!BN69,BI67) -> 6089.750429 | AD67: =IF(AD$11=$BL$9,'Manual Data'!BO69,BJ67) -> 4946.118325 | AF67: ='Existing Data_DataBank'!BP68 -> 2014 | AG67: ='Existing Data_DataBank'!CT68 -> GDP | AH67: ='Existing Data_DataBank'!BQ68 -> 19139.01343 | AI67: ='Existing Data_DataBank'!BR68 -> 26906.926 | AJ67: ='Existing Data_DataBank'!BS68 -> 12494.89337 | AK67: ='Existing Data_DataBank'!BT68 -> 14412.03263 | AL67: ='Existing Data_DataBank'!BU68 -> 16305.13547 | AM67: ='Existing Data_DataBank'!BV68 -> 7171.224595 | AN67: ='Existing Data_DataBank'!BW68 -> 9133.910877 | AO67: ='Existing Data_DataBank'!BX68 -> 13940.5649 | AP67: ='Existing Data_DataBank'!BY68 -> 6270.805652 | AQ67: ='Existing Data_DataBank'!BZ68 -> 7669.759253 | AR67: ='Existing Data_DataBank'!CA68 -> 13737.31148 | AS67: ='Existing Data_DataBank'!CB68 -> 6166.271318 | AT67: ='Existing Data_DataBank'!CC68 -> 7571.040158 | AU67: ='Existing Data_DataBank'!CD68 -> 9138.367968 | AV67: ='Existing Data_DataBank'!CE68 -> 4637.034685 | AW67: ='Existing Data_DataBank'!CF68 -> 4501.333283 | AX67: ='Existing Data_DataBank'!CG68 -> 2.176 | AY67: ='Existing Data_DataBank'!CH68 -> 31.1 | AZ67: ='Existing Data_DataBank'!CI68 -> 38.1 | BA67: ='Existing Data_DataBank'!CJ68 -> 22014.70871 | BB67: ='Existing Data_DataBank'!CK68 -> 4892.217285 | BC67: ='Existing Data_DataBank'!CL68 -> 1132.664066 | BD67: ='Existing Data_DataBank'!CM68 -> 0 | BE67: ='Existing Data_DataBank'!CN68 -> 3759.553219 | BF67: ='Existing Data_DataBank'!CO68 -> 2563.519598 | BG67: ='Existing Data_DataBank'!CP68 -> 11173.79135 | BH67: ='Existing Data_DataBank'!CQ68 -> 137.9226001 | BI67: ='Existing Data_DataBank'!CR68 -> 6089.750429 | BJ67: ='Existing Data_DataBank'!CS68 -> 4946.118325 | BP67: 2014 | BQ67: 10601.79053 | BR67: 2364.570567 | BS67: 203.2534286 | BT67: 13737.31148 | BU67: 26906.926 | BV67: 19139.01343
A68: 2015 | B68: =IF(B$11=$BL$9,'Manual Data'!AM70,AH68) -> 19774.98475 | C68: =IF(C$11=$BL$9,'Manual Data'!AN70,AI68) -> 27015.031 | D68: =IF(D$11=$BL$9,'Manual Data'!AO70,AJ68) -> 12397.96208 | E68: =IF(E$11=$BL$9,'Manual Data'!AP70,AK68) -> 14617.06892 | F68: =IF(F$11=$BL$9,IF(ISERROR('Manual Data'!AQ70/'Manual Data'!$AN70*$C68),".",'Manual Data'!AQ70/'Manual Data'!$AN70*$C68),IF(ISERROR(AL68/$AI68*$C68),".",AL68/$AI68*$C68)) -> 16507.813 | G68: =IF(G$11="No Data",".",IF(G$11=$BL$9,'Manual Data'!AR70,AM68)) -> 7124.282473 | H68: =IF(H$11="No Data",".",IF(H$11=$BL$9,'Manual Data'!AS70,AN68)) -> 9383.530527 | I68: =IF(I$11=$BL$9,IF(ISERROR('Manual Data'!AT70/'Manual Data'!AQ70*F68),".",'Manual Data'!AT70/'Manual Data'!AQ70*F68),IF(ISERROR(AO68/AL68*F68),".",AO68/AL68*F68)) -> 14105.59573 | J68: =IF(J$11="No Data",".",IF(J$11=$BL$9,'Manual Data'!AU70,AP68)) -> 6203.825308 | K68: =IF(K$11="No Data",".",IF(K$11=$BL$9,'Manual Data'!AV70,AQ68)) -> 7901.770422 | L68: =IF(L$11=$BL$9,IF(ISERROR('Manual Data'!AW70/'Manual Data'!AT70*I68),".",'Manual Data'!AW70/'Manual Data'!AT70*I68),IF(ISERROR(AR68/AO68*I68),".",AR68/AO68*I68)) -> 13904.02676 | M68: =IF(M$11="No Data",".",IF(M$11=$BL$9,'Manual Data'!AX70,AS68)) -> 6100.779768 | N68: =IF(N$11="No Data",".",IF(N$11=$BL$9,'Manual Data'!AY70,AT68)) -> 7803.246996 | O68: =IF(O$11=$BL$9,IF(ISERROR('Manual Data'!AZ70/'Manual Data'!$AN70*$C68),".",'Manual Data'!AZ70/'Manual Data'!$AN70*$C68),IF(ISERROR(AU68/$AI68*$C68),".",AU68/$AI68*$C68)) -> 9010.435 | P68: =IF(P$11="No Data",".",IF(P$11=$BL$9,'Manual Data'!BA70,AV68)) -> 4577.701661 | Q68: =IF(Q$11="No Data",".",IF(Q$11=$BL$9,'Manual Data'!BB70,AW68)) -> 4432.733339 | R68: =IF(R$11=$BL$9,'Manual Data'!BC70,AX68) -> 2.098 | S68: =IF(S$11=$BL$9,'Manual Data'!BD70,AY68) -> 29.8 | T68: =IF(T$11=$BL$9,'Manual Data'!BE70,AZ68) -> 36.4 | U68: =IF(U$11=$BL$9,'Manual Data'!BF70,BA68) -> 22001.8517 | V68: =IF(V$11=$BL$9,'Manual Data'!BG70,BB68) -> 5013.179303 | W68: =IF(W$11=$BL$9,'Manual Data'!BH70,BC68) -> 1179.009071 | X68: =IF(X$11=$BL$9,'Manual Data'!BI70,BD68) -> 0 | Y68: =IF(Y$11=$BL$9,'Manual Data'!BJ70,BE68) -> 3834.170231 | Z68: =IF(Z$11=$BL$9,'Manual Data'!BK70,BF68) -> 2624.106859 | AA68: =IF(AA$11=$BL$9,'Manual Data'!BL70,BG68) -> 11279.91964 | AB68: =IF(AB$11=$BL$9,'Manual Data'!BM70,BH68) -> 140.0135453 | AC68: =IF(AC$11=$BL$9,'Manual Data'!BN70,BI68) -> 6130.424385 | AD68: =IF(AD$11=$BL$9,'Manual Data'!BO70,BJ68) -> 5009.481709 | AF68: ='Existing Data_DataBank'!BP69 -> 2015 | AG68: ='Existing Data_DataBank'!CT69 -> GDP | AH68: ='Existing Data_DataBank'!BQ69 -> 19774.98475 | AI68: ='Existing Data_DataBank'!BR69 -> 27015.031 | AJ68: ='Existing Data_DataBank'!BS69 -> 12397.96208 | AK68: ='Existing Data_DataBank'!BT69 -> 14617.06892 | AL68: ='Existing Data_DataBank'!BU69 -> 16507.813 | AM68: ='Existing Data_DataBank'!BV69 -> 7124.282473 | AN68: ='Existing Data_DataBank'!BW69 -> 9383.530527 | AO68: ='Existing Data_DataBank'!BX69 -> 14105.59573 | AP68: ='Existing Data_DataBank'!BY69 -> 6203.825308 | AQ68: ='Existing Data_DataBank'!BZ69 -> 7901.770422 | AR68: ='Existing Data_DataBank'!CA69 -> 13904.02676 | AS68: ='Existing Data_DataBank'!CB69 -> 6100.779768 | AT68: ='Existing Data_DataBank'!CC69 -> 7803.246996 | AU68: ='Existing Data_DataBank'!CD69 -> 9010.435 | AV68: ='Existing Data_DataBank'!CE69 -> 4577.701661 | AW68: ='Existing Data_DataBank'!CF69 -> 4432.733339 | AX68: ='Existing Data_DataBank'!CG69 -> 2.098 | AY68: ='Existing Data_DataBank'!CH69 -> 29.8 | AZ68: ='Existing Data_DataBank'!CI69 -> 36.4 | BA68: ='Existing Data_DataBank'!CJ69 -> 22001.8517 | BB68: ='Existing Data_DataBank'!CK69 -> 5013.179303 | BC68: ='Existing Data_DataBank'!CL69 -> 1179.009071 | BD68: ='Existing Data_DataBank'!CM69 -> 0 | BE68: ='Existing Data_DataBank'!CN69 -> 3834.170231 | BF68: ='Existing Data_DataBank'!CO69 -> 2624.106859 | BG68: ='Existing Data_DataBank'!CP69 -> 11279.91964 | BH68: ='Existing Data_DataBank'!CQ69 -> 140.0135453 | BI68: ='Existing Data_DataBank'!CR69 -> 6130.424385 | BJ68: ='Existing Data_DataBank'!CS69 -> 5009.481709 | BP68: 2015 | BQ68: 10507.218 | BR68: 2402.21727 | BS68: 201.5689658 | BT68: 13904.02676 | BU68: 27015.031 | BV68: 19774.98475
A69: 2016 | B69: =IF(B$11=$BL$9,'Manual Data'!AM71,AH69) -> 19891.39583 | C69: =IF(C$11=$BL$9,'Manual Data'!AN71,AI69) -> 27261.131 | D69: =IF(D$11=$BL$9,'Manual Data'!AO71,AJ69) -> 12422.40839 | E69: =IF(E$11=$BL$9,'Manual Data'!AP71,AK69) -> 14838.72261 | F69: =IF(F$11=$BL$9,IF(ISERROR('Manual Data'!AQ71/'Manual Data'!$AN71*$C69),".",'Manual Data'!AQ71/'Manual Data'!$AN71*$C69),IF(ISERROR(AL69/$AI69*$C69),".",AL69/$AI69*$C69)) -> 16922.87699 | G69: =IF(G$11="No Data",".",IF(G$11=$BL$9,'Manual Data'!AR71,AM69)) -> 7276.219378 | H69: =IF(H$11="No Data",".",IF(H$11=$BL$9,'Manual Data'!AS71,AN69)) -> 9646.657611 | I69: =IF(I$11=$BL$9,IF(ISERROR('Manual Data'!AT71/'Manual Data'!AQ71*F69),".",'Manual Data'!AT71/'Manual Data'!AQ71*F69),IF(ISERROR(AO69/AL69*F69),".",AO69/AL69*F69)) -> 14456.53732 | J69: =IF(J$11="No Data",".",IF(J$11=$BL$9,'Manual Data'!AU71,AP69)) -> 6309.500645 | K69: =IF(K$11="No Data",".",IF(K$11=$BL$9,'Manual Data'!AV71,AQ69)) -> 8147.036675 | L69: =IF(L$11=$BL$9,IF(ISERROR('Manual Data'!AW71/'Manual Data'!AT71*I69),".",'Manual Data'!AW71/'Manual Data'!AT71*I69),IF(ISERROR(AR69/AO69*I69),".",AR69/AO69*I69)) -> 14250.3871 | M69: =IF(M$11="No Data",".",IF(M$11=$BL$9,'Manual Data'!AX71,AS69)) -> 6203.690316 | N69: =IF(N$11="No Data",".",IF(N$11=$BL$9,'Manual Data'!AY71,AT69)) -> 8046.696782 | O69: =IF(O$11=$BL$9,IF(ISERROR('Manual Data'!AZ71/'Manual Data'!$AN71*$C69),".",'Manual Data'!AZ71/'Manual Data'!$AN71*$C69),IF(ISERROR(AU69/$AI69*$C69),".",AU69/$AI69*$C69)) -> 8811.520933 | P69: =IF(P$11="No Data",".",IF(P$11=$BL$9,'Manual Data'!BA71,AV69)) -> 4443.993227 | Q69: =IF(Q$11="No Data",".",IF(Q$11=$BL$9,'Manual Data'!BB71,AW69)) -> 4367.527706 | R69: =IF(R$11=$BL$9,'Manual Data'!BC71,AX69) -> 2.027 | S69: =IF(S$11=$BL$9,'Manual Data'!BD71,AY69) -> 28.7 | T69: =IF(T$11=$BL$9,'Manual Data'!BE71,AZ69) -> 34.8 | U69: =IF(U$11=$BL$9,'Manual Data'!BF71,BA69) -> 22097.32757 | V69: =IF(V$11=$BL$9,'Manual Data'!BG71,BB69) -> 5163.803434 | W69: =IF(W$11=$BL$9,'Manual Data'!BH71,BC69) -> 1227.249103 | X69: =IF(X$11=$BL$9,'Manual Data'!BI71,BD69) -> 0 | Y69: =IF(Y$11=$BL$9,'Manual Data'!BJ71,BE69) -> 3936.554331 | Z69: =IF(Z$11=$BL$9,'Manual Data'!BK71,BF69) -> 2708.143523 | AA69: =IF(AA$11=$BL$9,'Manual Data'!BL71,BG69) -> 11542.24385 | AB69: =IF(AB$11=$BL$9,'Manual Data'!BM71,BH69) -> 143.9289083 | AC69: =IF(AC$11=$BL$9,'Manual Data'!BN71,BI69) -> 6252.357339 | AD69: =IF(AD$11=$BL$9,'Manual Data'!BO71,BJ69) -> 5145.957599 | AF69: ='Existing Data_DataBank'!BP70 -> 2016 | AG69: ='Existing Data_DataBank'!CT70 -> GDP | AH69: ='Existing Data_DataBank'!BQ70 -> 19891.39583 | AI69: ='Existing Data_DataBank'!BR70 -> 27261.131 | AJ69: ='Existing Data_DataBank'!BS70 -> 12422.40839 | AK69: ='Existing Data_DataBank'!BT70 -> 14838.72261 | AL69: ='Existing Data_DataBank'!BU70 -> 16922.87699 | AM69: ='Existing Data_DataBank'!BV70 -> 7276.219378 | AN69: ='Existing Data_DataBank'!BW70 -> 9646.657611 | AO69: ='Existing Data_DataBank'!BX70 -> 14456.53732 | AP69: ='Existing Data_DataBank'!BY70 -> 6309.500645 | AQ69: ='Existing Data_DataBank'!BZ70 -> 8147.036675 | AR69: ='Existing Data_DataBank'!CA70 -> 14250.3871 | AS69: ='Existing Data_DataBank'!CB70 -> 6203.690316 | AT69: ='Existing Data_DataBank'!CC70 -> 8046.696782 | AU69: ='Existing Data_DataBank'!CD70 -> 8811.520933 | AV69: ='Existing Data_DataBank'!CE70 -> 4443.993227 | AW69: ='Existing Data_DataBank'!CF70 -> 4367.527706 | AX69: ='Existing Data_DataBank'!CG70 -> 2.027 | AY69: ='Existing Data_DataBank'!CH70 -> 28.7 | AZ69: ='Existing Data_DataBank'!CI70 -> 34.8 | BA69: ='Existing Data_DataBank'!CJ70 -> 22097.32757 | BB69: ='Existing Data_DataBank'!CK70 -> 5163.803434 | BC69: ='Existing Data_DataBank'!CL70 -> 1227.249103 | BD69: ='Existing Data_DataBank'!CM70 -> 0 | BE69: ='Existing Data_DataBank'!CN70 -> 3936.554331 | BF69: ='Existing Data_DataBank'!CO70 -> 2708.143523 | BG69: ='Existing Data_DataBank'!CP70 -> 11542.24385 | BH69: ='Existing Data_DataBank'!CQ70 -> 143.9289083 | BI69: ='Existing Data_DataBank'!CR70 -> 6252.357339 | BJ69: ='Existing Data_DataBank'!CS70 -> 5145.957599 | BP69: 2016 | BQ69: 10338.25401 | BR69: 2466.339669 | BS69: 206.150222 | BT69: 14250.3871 | BU69: 27261.131 | BV69: 19891.39583
A70: 2017 | B70: =IF(B$11=$BL$9,'Manual Data'!AM72,AH70) -> 21463.95819 | C70: =IF(C$11=$BL$9,'Manual Data'!AN72,AI70) -> 27627.124 | D70: =IF(D$11=$BL$9,'Manual Data'!AO72,AJ70) -> 12552.43271 | E70: =IF(E$11=$BL$9,'Manual Data'!AP72,AK70) -> 15074.69129 | F70: =IF(F$11=$BL$9,IF(ISERROR('Manual Data'!AQ72/'Manual Data'!$AN72*$C70),".",'Manual Data'!AQ72/'Manual Data'!$AN72*$C70),IF(ISERROR(AL70/$AI70*$C70),".",AL70/$AI70*$C70)) -> 17404.75716 | G70: =IF(G$11="No Data",".",IF(G$11=$BL$9,'Manual Data'!AR72,AM70)) -> 7486.948782 | H70: =IF(H$11="No Data",".",IF(H$11=$BL$9,'Manual Data'!AS72,AN70)) -> 9917.808374 | I70: =IF(I$11=$BL$9,IF(ISERROR('Manual Data'!AT72/'Manual Data'!AQ72*F70),".",'Manual Data'!AT72/'Manual Data'!AQ72*F70),IF(ISERROR(AO70/AL70*F70),".",AO70/AL70*F70)) -> 14856.87477 | J70: =IF(J$11="No Data",".",IF(J$11=$BL$9,'Manual Data'!AU72,AP70)) -> 6464.680846 | K70: =IF(K$11="No Data",".",IF(K$11=$BL$9,'Manual Data'!AV72,AQ70)) -> 8392.193921 | L70: =IF(L$11=$BL$9,IF(ISERROR('Manual Data'!AW72/'Manual Data'!AT72*I70),".",'Manual Data'!AW72/'Manual Data'!AT72*I70),IF(ISERROR(AR70/AO70*I70),".",AR70/AO70*I70)) -> 14670.71812 | M70: =IF(M$11="No Data",".",IF(M$11=$BL$9,'Manual Data'!AX72,AS70)) -> 6372.235913 | N70: =IF(N$11="No Data",".",IF(N$11=$BL$9,'Manual Data'!AY72,AT70)) -> 8298.48221 | O70: =IF(O$11=$BL$9,IF(ISERROR('Manual Data'!AZ72/'Manual Data'!$AN72*$C70),".",'Manual Data'!AZ72/'Manual Data'!$AN72*$C70),IF(ISERROR(AU70/$AI70*$C70),".",AU70/$AI70*$C70)) -> 8657.37663 | P70: =IF(P$11="No Data",".",IF(P$11=$BL$9,'Manual Data'!BA72,AV70)) -> 4350.074856 | Q70: =IF(Q$11="No Data",".",IF(Q$11=$BL$9,'Manual Data'!BB72,AW70)) -> 4307.301774 | R70: =IF(R$11=$BL$9,'Manual Data'!BC72,AX70) -> 1.967 | S70: =IF(S$11=$BL$9,'Manual Data'!BD72,AY70) -> 27.6 | T70: =IF(T$11=$BL$9,'Manual Data'!BE72,AZ70) -> 33.4 | U70: =IF(U$11=$BL$9,'Manual Data'!BF72,BA70) -> 22285.1433 | V70: =IF(V$11=$BL$9,'Manual Data'!BG72,BB70) -> 5341.980697 | W70: =IF(W$11=$BL$9,'Manual Data'!BH72,BC70) -> 1277.462927 | X70: =IF(X$11=$BL$9,'Manual Data'!BI72,BD70) -> 7.25444695e-05 | Y70: =IF(Y$11=$BL$9,'Manual Data'!BJ72,BE70) -> 4064.517697 | Z70: =IF(Z$11=$BL$9,'Manual Data'!BK72,BF70) -> 2836.143335 | AA70: =IF(AA$11=$BL$9,'Manual Data'!BL72,BG70) -> 11834.57479 | AB70: =IF(AB$11=$BL$9,'Manual Data'!BM72,BH70) -> 150.5215713 | AC70: =IF(AC$11=$BL$9,'Manual Data'!BN72,BI70) -> 6388.951004 | AD70: =IF(AD$11=$BL$9,'Manual Data'!BO72,BJ70) -> 5295.102213 | AF70: ='Existing Data_DataBank'!BP71 -> 2017 | AG70: ='Existing Data_DataBank'!CT71 -> GDP | AH70: ='Existing Data_DataBank'!BQ71 -> 21463.95819 | AI70: ='Existing Data_DataBank'!BR71 -> 27627.124 | AJ70: ='Existing Data_DataBank'!BS71 -> 12552.43271 | AK70: ='Existing Data_DataBank'!BT71 -> 15074.69129 | AL70: ='Existing Data_DataBank'!BU71 -> 17404.75716 | AM70: ='Existing Data_DataBank'!BV71 -> 7486.948782 | AN70: ='Existing Data_DataBank'!BW71 -> 9917.808374 | AO70: ='Existing Data_DataBank'!BX71 -> 14856.87477 | AP70: ='Existing Data_DataBank'!BY71 -> 6464.680846 | AQ70: ='Existing Data_DataBank'!BZ71 -> 8392.193921 | AR70: ='Existing Data_DataBank'!CA71 -> 14670.71812 | AS70: ='Existing Data_DataBank'!CB71 -> 6372.235913 | AT70: ='Existing Data_DataBank'!CC71 -> 8298.48221 | AU70: ='Existing Data_DataBank'!CD71 -> 8657.37663 | AV70: ='Existing Data_DataBank'!CE71 -> 4350.074856 | AW70: ='Existing Data_DataBank'!CF71 -> 4307.301774 | AX70: ='Existing Data_DataBank'!CG71 -> 1.967 | AY70: ='Existing Data_DataBank'!CH71 -> 27.6 | AZ70: ='Existing Data_DataBank'!CI71 -> 33.4 | BA70: ='Existing Data_DataBank'!CJ71 -> 22285.1433 | BB70: ='Existing Data_DataBank'!CK71 -> 5341.980697 | BC70: ='Existing Data_DataBank'!CL71 -> 1277.462927 | BD70: ='Existing Data_DataBank'!CM71 -> 7.25444695e-05 | BE70: ='Existing Data_DataBank'!CN71 -> 4064.517697 | BF70: ='Existing Data_DataBank'!CO71 -> 2836.143335 | BG70: ='Existing Data_DataBank'!CP71 -> 11834.57479 | BH70: ='Existing Data_DataBank'!CQ71 -> 150.5215713 | BI70: ='Existing Data_DataBank'!CR71 -> 6388.951004 | BJ70: ='Existing Data_DataBank'!CS71 -> 5295.102213 | BP70: 2017 | BQ70: 10222.36684 | BR70: 2547.88239 | BS70: 186.1566439 | BT70: 14670.71812 | BU70: 27627.124 | BV70: 21463.95819
A71: 2018 | B71: =IF(B$11=$BL$9,'Manual Data'!AM73,AH71) -> 22813.99011 | C71: =IF(C$11=$BL$9,'Manual Data'!AN73,AI71) -> 28087.871 | D71: =IF(D$11=$BL$9,'Manual Data'!AO73,AJ71) -> 12770.05412 | E71: =IF(E$11=$BL$9,'Manual Data'!AP73,AK71) -> 15317.81688 | F71: =IF(F$11=$BL$9,IF(ISERROR('Manual Data'!AQ73/'Manual Data'!$AN73*$C71),".",'Manual Data'!AQ73/'Manual Data'!$AN73*$C71),IF(ISERROR(AL71/$AI71*$C71),".",AL71/$AI71*$C71)) -> 17936.37061 | G71: =IF(G$11="No Data",".",IF(G$11=$BL$9,'Manual Data'!AR73,AM71)) -> 7745.578747 | H71: =IF(H$11="No Data",".",IF(H$11=$BL$9,'Manual Data'!AS73,AN71)) -> 10190.79187 | I71: =IF(I$11=$BL$9,IF(ISERROR('Manual Data'!AT73/'Manual Data'!AQ73*F71),".",'Manual Data'!AT73/'Manual Data'!AQ73*F71),IF(ISERROR(AO71/AL71*F71),".",AO71/AL71*F71)) -> 15307.43719 | J71: =IF(J$11="No Data",".",IF(J$11=$BL$9,'Manual Data'!AU73,AP71)) -> 6680.32943 | K71: =IF(K$11="No Data",".",IF(K$11=$BL$9,'Manual Data'!AV73,AQ71)) -> 8627.107758 | L71: =IF(L$11=$BL$9,IF(ISERROR('Manual Data'!AW73/'Manual Data'!AT73*I71),".",'Manual Data'!AW73/'Manual Data'!AT73*I71),IF(ISERROR(AR71/AO71*I71),".",AR71/AO71*I71)) -> 15113.95117 | M71: =IF(M$11="No Data",".",IF(M$11=$BL$9,'Manual Data'!AX73,AS71)) -> 6582.729819 | N71: =IF(N$11="No Data",".",IF(N$11=$BL$9,'Manual Data'!AY73,AT71)) -> 8531.221354 | O71: =IF(O$11=$BL$9,IF(ISERROR('Manual Data'!AZ73/'Manual Data'!$AN73*$C71),".",'Manual Data'!AZ73/'Manual Data'!$AN73*$C71),IF(ISERROR(AU71/$AI71*$C71),".",AU71/$AI71*$C71)) -> 8542.719609 | P71: =IF(P$11="No Data",".",IF(P$11=$BL$9,'Manual Data'!BA73,AV71)) -> 4291.074105 | Q71: =IF(Q$11="No Data",".",IF(Q$11=$BL$9,'Manual Data'!BB73,AW71)) -> 4251.645504 | R71: =IF(R$11=$BL$9,'Manual Data'!BC73,AX71) -> . | S71: =IF(S$11=$BL$9,'Manual Data'!BD73,AY71) -> 26.7 | T71: =IF(T$11=$BL$9,'Manual Data'!BE73,AZ71) -> 32.2 | U71: =IF(U$11=$BL$9,'Manual Data'!BF73,BA71) -> 22543.32526 | V71: =IF(V$11=$BL$9,'Manual Data'!BG73,BB71) -> 5544.545735 | W71: =IF(W$11=$BL$9,'Manual Data'!BH73,BC71) -> 1329.731937 | X71: =IF(X$11=$BL$9,'Manual Data'!BI73,BD71) -> 6.345823221e-05 | Y71: =IF(Y$11=$BL$9,'Manual Data'!BJ73,BE71) -> 4214.813735 | Z71: =IF(Z$11=$BL$9,'Manual Data'!BK73,BF71) -> 2960.3696 | AA71: =IF(AA$11=$BL$9,'Manual Data'!BL73,BG71) -> 12153.58186 | AB71: =IF(AB$11=$BL$9,'Manual Data'!BM73,BH71) -> 155.8248393 | AC71: =IF(AC$11=$BL$9,'Manual Data'!BN73,BI71) -> 6542.073742 | AD71: =IF(AD$11=$BL$9,'Manual Data'!BO73,BJ71) -> 5455.683279 | AF71: ='Existing Data_DataBank'!BP72 -> 2018 | AG71: ='Existing Data_DataBank'!CT72 -> GDP | AH71: ='Existing Data_DataBank'!BQ72 -> 22813.99011 | AI71: ='Existing Data_DataBank'!BR72 -> 28087.871 | AJ71: ='Existing Data_DataBank'!BS72 -> 12770.05412 | AK71: ='Existing Data_DataBank'!BT72 -> 15317.81688 | AL71: ='Existing Data_DataBank'!BU72 -> 17936.37061 | AM71: ='Existing Data_DataBank'!BV72 -> 7745.578747 | AN71: ='Existing Data_DataBank'!BW72 -> 10190.79187 | AO71: ='Existing Data_DataBank'!BX72 -> 15307.43719 | AP71: ='Existing Data_DataBank'!BY72 -> 6680.32943 | AQ71: ='Existing Data_DataBank'!BZ72 -> 8627.107758 | AR71: ='Existing Data_DataBank'!CA72 -> 15113.95117 | AS71: ='Existing Data_DataBank'!CB72 -> 6582.729819 | AT71: ='Existing Data_DataBank'!CC72 -> 8531.221354 | AU71: ='Existing Data_DataBank'!CD72 -> 8542.719609 | AV71: ='Existing Data_DataBank'!CE72 -> 4291.074105 | AW71: ='Existing Data_DataBank'!CF72 -> 4251.645504 | AX71: ='Existing Data_DataBank'!CG72 -> . | AY71: ='Existing Data_DataBank'!CH72 -> 26.7 | AZ71: ='Existing Data_DataBank'!CI72 -> 32.2 | BA71: ='Existing Data_DataBank'!CJ72 -> 22543.32526 | BB71: ='Existing Data_DataBank'!CK72 -> 5544.545735 | BC71: ='Existing Data_DataBank'!CL72 -> 1329.731937 | BD71: ='Existing Data_DataBank'!CM72 -> 6.345823221e-05 | BE71: ='Existing Data_DataBank'!CN72 -> 4214.813735 | BF71: ='Existing Data_DataBank'!CO72 -> 2960.3696 | BG71: ='Existing Data_DataBank'!CP72 -> 12153.58186 | BH71: ='Existing Data_DataBank'!CQ72 -> 155.8248393 | BI71: ='Existing Data_DataBank'!CR72 -> 6542.073742 | BJ71: ='Existing Data_DataBank'!CS72 -> 5455.683279 | BP71: 2018 | BQ71: 10151.50039 | BR71: 2628.933425 | BS71: 193.486015 | BT71: 15113.95117 | BU71: 28087.871 | BV71: 22813.99011
A72: 2019 | B72: =IF(B$11=$BL$9,'Manual Data'!AM74,AH72) -> . | C72: =IF(C$11=$BL$9,'Manual Data'!AN74,AI72) -> . | D72: =IF(D$11=$BL$9,'Manual Data'!AO74,AJ72) -> . | E72: =IF(E$11=$BL$9,'Manual Data'!AP74,AK72) -> . | F72: =IF(F$11=$BL$9,IF(ISERROR('Manual Data'!AQ74/'Manual Data'!$AN74*$C72),".",'Manual Data'!AQ74/'Manual Data'!$AN74*$C72),IF(ISERROR(AL72/$AI72*$C72),".",AL72/$AI72*$C72)) -> . | G72: =IF(G$11="No Data",".",IF(G$11=$BL$9,'Manual Data'!AR74,AM72)) -> . | H72: =IF(H$11="No Data",".",IF(H$11=$BL$9,'Manual Data'!AS74,AN72)) -> . | I72: =IF(I$11=$BL$9,IF(ISERROR('Manual Data'!AT74/'Manual Data'!AQ74*F72),".",'Manual Data'!AT74/'Manual Data'!AQ74*F72),IF(ISERROR(AO72/AL72*F72),".",AO72/AL72*F72)) -> . | J72: =IF(J$11="No Data",".",IF(J$11=$BL$9,'Manual Data'!AU74,AP72)) -> . | K72: =IF(K$11="No Data",".",IF(K$11=$BL$9,'Manual Data'!AV74,AQ72)) -> . | L72: =IF(L$11=$BL$9,IF(ISERROR('Manual Data'!AW74/'Manual Data'!AT74*I72),".",'Manual Data'!AW74/'Manual Data'!AT74*I72),IF(ISERROR(AR72/AO72*I72),".",AR72/AO72*I72)) -> . | M72: =IF(M$11="No Data",".",IF(M$11=$BL$9,'Manual Data'!AX74,AS72)) -> . | N72: =IF(N$11="No Data",".",IF(N$11=$BL$9,'Manual Data'!AY74,AT72)) -> . | O72: =IF(O$11=$BL$9,IF(ISERROR('Manual Data'!AZ74/'Manual Data'!$AN74*$C72),".",'Manual Data'!AZ74/'Manual Data'!$AN74*$C72),IF(ISERROR(AU72/$AI72*$C72),".",AU72/$AI72*$C72)) -> . | P72: =IF(P$11="No Data",".",IF(P$11=$BL$9,'Manual Data'!BA74,AV72)) -> . | Q72: =IF(Q$11="No Data",".",IF(Q$11=$BL$9,'Manual Data'!BB74,AW72)) -> . | R72: =IF(R$11=$BL$9,'Manual Data'!BC74,AX72) -> . | S72: =IF(S$11=$BL$9,'Manual Data'!BD74,AY72) -> . | T72: =IF(T$11=$BL$9,'Manual Data'!BE74,AZ72) -> . | U72: =IF(U$11=$BL$9,'Manual Data'!BF74,BA72) -> . | V72: =IF(V$11=$BL$9,'Manual Data'!BG74,BB72) -> . | W72: =IF(W$11=$BL$9,'Manual Data'!BH74,BC72) -> . | X72: =IF(X$11=$BL$9,'Manual Data'!BI74,BD72) -> . | Y72: =IF(Y$11=$BL$9,'Manual Data'!BJ74,BE72) -> . | Z72: =IF(Z$11=$BL$9,'Manual Data'!BK74,BF72) -> . | AA72: =IF(AA$11=$BL$9,'Manual Data'!BL74,BG72) -> . | AB72: =IF(AB$11=$BL$9,'Manual Data'!BM74,BH72) -> . | AC72: =IF(AC$11=$BL$9,'Manual Data'!BN74,BI72) -> . | AD72: =IF(AD$11=$BL$9,'Manual Data'!BO74,BJ72) -> . | AF72: ='Existing Data_DataBank'!BP73 -> 2019 | AG72: ='Existing Data_DataBank'!CT73 -> . | AH72: ='Existing Data_DataBank'!BQ73 -> . | AI72: ='Existing Data_DataBank'!BR73 -> . | AJ72: ='Existing Data_DataBank'!BS73 -> . | AK72: ='Existing Data_DataBank'!BT73 -> . | AL72: ='Existing Data_DataBank'!BU73 -> . | AM72: ='Existing Data_DataBank'!BV73 -> . | AN72: ='Existing Data_DataBank'!BW73 -> . | AO72: ='Existing Data_DataBank'!BX73 -> . | AP72: ='Existing Data_DataBank'!BY73 -> . | AQ72: ='Existing Data_DataBank'!BZ73 -> . | AR72: ='Existing Data_DataBank'!CA73 -> . | AS72: ='Existing Data_DataBank'!CB73 -> . | AT72: ='Existing Data_DataBank'!CC73 -> . | AU72: ='Existing Data_DataBank'!CD73 -> . | AV72: ='Existing Data_DataBank'!CE73 -> . | AW72: ='Existing Data_DataBank'!CF73 -> . | AX72: ='Existing Data_DataBank'!CG73 -> . | AY72: ='Existing Data_DataBank'!CH73 -> . | AZ72: ='Existing Data_DataBank'!CI73 -> . | BA72: ='Existing Data_DataBank'!CJ73 -> . | BB72: ='Existing Data_DataBank'!CK73 -> . | BC72: ='Existing Data_DataBank'!CL73 -> . | BD72: ='Existing Data_DataBank'!CM73 -> . | BE72: ='Existing Data_DataBank'!CN73 -> . | BF72: ='Existing Data_DataBank'!CO73 -> . | BG72: ='Existing Data_DataBank'!CP73 -> . | BH72: ='Existing Data_DataBank'!CQ73 -> . | BI72: ='Existing Data_DataBank'!CR73 -> . | BJ72: ='Existing Data_DataBank'!CS73 -> . | BP72: 2019
A73: End

Sheet Calculations
A1: ='Main Menu'!$A$1 -> World Bank Group - Jobs Group | CC1: Population Options | CG1: Selected Period | CP1: ='Main Menu'!Q10 -> LF Selected
A2: ='Main Menu'!$A$2 -> JobStructure Tool - Demography | CC2: ='Main Menu'!O11 -> 1,000 people | CG2: ='Main Menu'!$C$22 -> 1998 | CP2: ='Main Menu'!Q11 -> 15-64 | CQ2: ='Main Menu'!R11 -> <15 and 65+
A3: ='Main Menu'!$C$5 -> Nepal | CC3: ='Main Menu'!O12 -> million people | CE3: Select | CG3: ='Main Menu'!$C$23 -> 2018 | CP3: ='Main Menu'!Q12 -> LF Options | CQ3: ='Main Menu'!R12 -> Ages Not covered
A4: Calculations | CC4: ='Main Menu'!$Q$18 -> Number of people in data | CE4: Yes | CG4: WDI - VA source for Selected Period | CP4: ='Main Menu'!Q13 -> 15-64 | CQ4: ='Main Menu'!R13 -> <15 and 65+
A5: =IF(Macro_Overall_Structural_Check=TRUE,"No errors in reported in structural check","Please check errors on Documentation sheet before proceeding") -> No errors in reported in structural check | CC5: ='Main Menu'!$Q$19 -> 1000 | CE5: No | CG5: =concatenaterange(CG6:CH6,", ") -> GDP (1998-2018) | CP5: ='Main Menu'!Q14 -> 15+ | CQ5: ='Main Menu'!R14 -> <15
A6: Currently Selected Data | CD6: Require VA and POP/E | CE6: No | CG6: =IF(COUNT(CG$11:CG$73)=0,"",IF(COUNT(CG$11:CG$73)=1,CG$10&" ("&MIN(CG$11:CG$73)&")",CG$10&" ("&MIN(CG$11:CG$73)&"-"&MAX(CG$11:CG$73)&")")) -> GDP (1998-2018) | CH6: =IF(COUNT(CH$11:CH$73)=0,"",IF(COUNT(CH$11:CH$73)=1,CH$10&" ("&MIN(CH$11:CH$73)&")",CH$10&" ("&MIN(CH$11:CH$73)&"-"&MAX(CH$11:CH$73)&")")) ->  | CQ6: ='Main Menu'!R15 -> 65+ | CT6: Formatted for Line charts
A7: ='Available Data'!A9 -> Description | B7: Total Value Added | C7: Population | D7: =C7&" male" -> Population male | E7: =C7&" female" -> Population female | F7: Working Age Population | G7: =F7&" male" -> Working Age Population male | H7: =F7&" female" -> Working Age Population female | I7: Labor Force | J7: =I7&" male" -> Labor Force male | K7: =I7&" female" -> Labor Force female | L7: Employment | M7: =L7&" male" -> Employment male | N7: =L7&" female" -> Employment female | O7: Unemployment | P7: =O7&" male" -> Unemployment male | Q7: =O7&" female" -> Unemployment female | R7: Outside Labor force | S7: =R7&" male" -> Outside Labor force male | T7: =R7&" female" -> Outside Labor force female | U7: Dependents | V7: =U7&" male" -> Dependents male | W7: =U7&" female" -> Dependents female | X7: Youth Dependents | Y7: =X7&" male" -> Youth Dependents male | Z7: =X7&" female" -> Youth Dependents female | AA7: Old Age Dependents | AB7: =AA7&" male" -> Old Age Dependents male | AC7: =AA7&" female" -> Old Age Dependents female | AD7: Fertility rate, total | AE7: Fertility rate, total | AF7: Fertility rate, total | AG7: Rural population | AH7: Urban population | AI7: Population in largest city | AJ7: Population Cities >1 million | AK7: Population in other urban areas | AL7: Check Data Consistency | AM7: - | AN7: Per Capita Value Added | AO7: =B7&" Growth" -> Total Value Added Growth | AP7: =C7&" Growth" -> Population Growth | AQ7: =AP7&" male" -> Population Growth male | AR7: =AP7&" female" -> Population Growth female | AS7: =F7&" Growth" -> Working Age Population Growth | AT7: =AS7&" male" -> Working Age Population Growth male | AU7: =AS7&" female" -> Working Age Population Growth female | AV7: =I7&" Growth" -> Labor Force Growth | AW7: =AV7&" male" -> Labor Force Growth male | AX7: =AV7&" female" -> Labor Force Growth female | AY7: =L7&" Growth" -> Employment Growth | AZ7: =AY7&" male" -> Employment Growth male | BA7: =AY7&" female" -> Employment Growth female | BB7: =O7&" Growth" -> Unemployment Growth | BC7: =BB7&" male" -> Unemployment Growth male | BD7: =BB7&" female" -> Unemployment Growth female | BE7: =R7&" Growth" -> Outside Labor force Growth | BF7: =BE7&" male" -> Outside Labor force Growth male | BG7: =BE7&" female" -> Outside Labor force Growth female | BH7: =U7&" Growth" -> Dependents Growth | BI7: =BH7&" male" -> Dependents Growth male | BJ7: =BH7&" female" -> Dependents Growth female | BK7: =X7&" Growth" -> Youth Dependents Growth | BL7: =BK7&" male" -> Youth Dependents Growth male | BM7: =BK7&" female" -> Youth Dependents Growth female | BN7: =AA7&" Growth" -> Old Age Dependents Growth | BO7: =BN7&" male" -> Old Age Dependents Growth male | BP7: =BN7&" female" -> Old Age Dependents Growth female | BQ7: Dependents / WAP | BR7: Youth dependents / WAP | BS7: Old-age dependents / WAP | BT7: Labor Force Participation, Male | BU7: Labor Force Participation, Female | BV7: Unemployment, Male | BW7: Unemployment, Female | BX7: Source for Value Added | BY7: Available Data Period | BZ7: Available Data Period incl. Proj | CA7: - | CB7: Plot years | CC7: Max Available VA Data Range | CD7: Max Available POP & E Data Range | CE7: Combined Available Data Range | CG7: =concatenaterange(CG8:CH8,", ") -> Gross Domestic Product (1998-2018) | CJ7: Rounding | CK7: =IF('Main Menu'!$L$12='Main Menu'!$O$11,0,3) -> 0 | CT7: =B7 -> Total Value Added | CU7: Population
A8: ='Available Data'!A10 -> Unit | B8: ='Available Data'!B10 -> million constant 2010 USD | C8: ='Available Data'!C10 -> 1,000 people | D8: ='Available Data'!D10 -> 1,000 people | E8: ='Available Data'!E10 -> 1,000 people | F8: ='Available Data'!F10 -> 1,000 people | G8: ='Available Data'!G10 -> 1,000 people | H8: ='Available Data'!H10 -> 1,000 people | I8: ='Available Data'!I10 -> 1,000 people | J8: ='Available Data'!J10 -> 1,000 people | K8: ='Available Data'!K10 -> 1,000 people | L8: ='Available Data'!L10 -> 1,000 people | M8: ='Available Data'!M10 -> 1,000 people | N8: ='Available Data'!N10 -> 1,000 people | O8: =L8 -> 1,000 people | P8: =M8 -> 1,000 people | Q8: =N8 -> 1,000 people | R8: =F8 -> 1,000 people | S8: =G8 -> 1,000 people | T8: =H8 -> 1,000 people | U8: =F8 -> 1,000 people | V8: =U8 -> 1,000 people | W8: =V8 -> 1,000 people | X8: ='Available Data'!O10 -> 1,000 people | Y8: =IF(Y$9=List_DataSources_Manual,'Available Data'!P10,'Available Data'!AW10) -> 1,000 people | Z8: =IF(Z$9=List_DataSources_Manual,'Available Data'!Q10,'Available Data'!AX10) -> births per woman | AA8: =X8 -> 1,000 people | AB8: =Y8 -> 1,000 people | AC8: =Z8 -> births per woman | AD8: ='Available Data'!R10 -> births per woman | AE8: ='Available Data'!S10 -> per 1,000 live births | AF8: ='Available Data'!T10 -> per 1,000 live births | AG8: ='Available Data'!U10 -> 1,000 people | AH8: ='Available Data'!V10 -> 1,000 people | AI8: ='Available Data'!W10 -> 1,000 people | AJ8: ='Available Data'!X10 -> 1,000 people | AK8: ='Available Data'!Y10 -> 1,000 people | AN8: =Macro_Selected_Currency&" per person" -> constant 2010 USD per person | AO8: % | AP8: % | AQ8: % | AR8: % | AS8: % | AT8: % | AU8: % | AV8: % | AW8: % | AX8: % | AY8: % | AZ8: % | BA8: % | BB8: % | BC8: % | BD8: % | BE8: % | BF8: % | BG8: % | BH8: % | BI8: % | BJ8: % | BK8: % | BL8: % | BM8: % | BN8: % | BO8: % | BP8: % | BQ8: % of WAP | BR8: =BQ8 -> % of WAP | BS8: =BR8 -> % of WAP | BT8: % of male WAP | BU8: % of female WAP | BV8: % of male LF | BW8: % of female LF | BY8: =CD8 -> 1991 | BZ8: =CE8 -> 1960 | CB8: =Macro_FirstYear -> 1998 | CC8: =IF(MIN(CC$11:CC$71)=0,".",MIN(CC$11:CC$71)) -> 1960 | CD8: =IF(MIN(CD$11:CD$71)=0,".",MIN(CD$11:CD$71)) -> 1991 | CE8: =IF(MIN(CE$11:CE$71)=0,".",MIN(CE$11:CE$71)) -> 1960 | CG8: =IF(COUNT(CG$10:CG$73)=0,"",IF(COUNT(CG$10:CG$73)=1,CG$9&" ("&MIN(CG$10:CG$73)&")",CG$9&" ("&MIN(CG$10:CG$73)&"-"&MAX(CG$10:CG$73)&")")) -> Gross Domestic Product (1998-2018) | CH8: =IF(COUNT(CH$10:CH$73)=0,"",IF(COUNT(CH$10:CH$73)=1,CH$9&" ("&MIN(CH$10:CH$73)&")",CH$9&" ("&MIN(CH$10:CH$73)&"-"&MAX(CH$10:CH$73)&")")) ->  | CJ8: Check Population Data Consistency | CN8: =COUNTIF(CJ10:CN10,TRUE)=COLUMNS(CJ10:CN10) -> TRUE | CP8: Projection on? | CT8: million constant 2010 USD | CU8: 1,000 people
A9: ='Available Data'!A11 -> Source | B9: ='Available Data'!B11 -> DataBank | C9: ='Available Data'!C11 -> DataBank | D9: ='Available Data'!D11 -> DataBank | E9: ='Available Data'!E11 -> DataBank | F9: ='Available Data'!F11 -> DataBank | G9: ='Available Data'!G11 -> DataBank | H9: ='Available Data'!H11 -> DataBank | I9: ='Available Data'!I11 -> DataBank | J9: ='Available Data'!J11 -> DataBank | K9: ='Available Data'!K11 -> DataBank | L9: ='Available Data'!L11 -> DataBank | M9: ='Available Data'!M11 -> DataBank | N9: ='Available Data'!N11 -> DataBank | O9: Calculated | P9: =O9 -> Calculated | Q9: =P9 -> Calculated | R9: Calculated | S9: =R9 -> Calculated | T9: =S9 -> Calculated | U9: Calculated | V9: =U9 -> Calculated | W9: =V9 -> Calculated | X9: ='Available Data'!O11 -> DataBank | Y9: ='Available Data'!P11 -> DataBank | Z9: ='Available Data'!Q11 -> DataBank | AA9: Calculated | AB9: =AA9 -> Calculated | AC9: =AB9 -> Calculated | AD9: ='Available Data'!R11 -> DataBank | AE9: ='Available Data'!S11 -> DataBank | AF9: ='Available Data'!T11 -> DataBank | AG9: ='Available Data'!U11 -> DataBank | AH9: ='Available Data'!V11 -> DataBank | AI9: ='Available Data'!W11 -> DataBank | AJ9: ='Available Data'!X11 -> DataBank | AK9: ='Available Data'!Y11 -> DataBank | AN9: =B9 -> DataBank | AO9: =B9 -> DataBank | AP9: DataBank | AQ9: DataBank | AR9: DataBank | AS9: DataBank | AT9: DataBank | AU9: DataBank | AV9: DataBank | AW9: DataBank | AX9: DataBank | AY9: DataBank | AZ9: DataBank | BA9: DataBank | BB9: Calculated | BC9: Calculated | BD9: Calculated | BE9: Calculated | BF9: Calculated | BG9: Calculated | BH9: Calculated | BI9: Calculated | BJ9: Calculated | BK9: DataBank | BL9: DataBank | BM9: DataBank | BN9: Calculated | BO9: Calculated | BP9: Calculated | BQ9: Calculated | BR9: Calculated | BS9: Calculated | BT9: Calculated | BU9: Calculated | BV9: Calculated | BW9: Calculated | BX9: Help? | BY9: =CD9 -> 2018 | BZ9: =CB75 -> 2030 | CC9: =IF(MAX(CC$11:CC$71)=0,".",MAX(CC$11:CC$71)) -> 2018 | CD9: =IF(MAX(CD$11:CD$71)=0,".",MAX(CD$11:CD$71)) -> 2018 | CE9: =IF(MAX(CE$11:CE$71)=0,".",MAX(CE$11:CE$71)) -> 2018 | CG9: Gross Domestic Product | CH9: Gross Value Added | CJ9: male+female | CK9: Pop Sum | CL9: A<P | CM9: L<A | CN9: E<L | CP9: ='Main Menu'!$O$32 -> TRUE | CT9: DataBank | CU9: DataBank
A10: ='Available Data'!A12 -> Year | B10: ='Available Data'!B12 -> VA | C10: ='Available Data'!C12 -> POP | D10: ='Available Data'!D12 -> POP M | E10: ='Available Data'!E12 -> POP F | F10: ='Available Data'!F12 -> WAP 15-64 | G10: ='Available Data'!G12 -> WAP 15-64 M | H10: ='Available Data'!H12 -> WAP 15-64 F | I10: ='Available Data'!I12 -> LF 15-64 | J10: ='Available Data'!J12 -> LF 15-64 M | K10: ='Available Data'!K12 -> LF 15-64 F | L10: ='Available Data'!L12 -> E 15-64 | M10: ='Available Data'!M12 -> E 15-64 M | N10: ='Available Data'!N12 -> E 15-64 F | O10: ="U "&Select_WAP -> U 15-64 | P10: =O10&" M" -> U 15-64 M | Q10: =O10&" F" -> U 15-64 F | R10: ="O "&$CP$2 -> O 15-64 | S10: =R10&" M" -> O 15-64 M | T10: =R10&" F" -> O 15-64 F | U10: ="D "&$CQ$2 -> D <15 and 65+ | V10: =U10&" M" -> D <15 and 65+ M | W10: =U10&" F" -> D <15 and 65+ F | X10: ='Available Data'!O12 -> D <15 | Y10: ='Available Data'!P12 -> D <15 M | Z10: ='Available Data'!Q12 -> D <15 F | AA10: ="D "&$CQ$6 -> D 65+ | AB10: =AA10&" M" -> D 65+ M | AC10: =AA10&" F" -> D 65+ F | AD10: ='Available Data'!R12 -> Fertility Rate | AE10: ='Available Data'!S12 -> Mortality Rate Infant | AF10: ='Available Data'!T12 -> Mortality Rate <age 5 | AG10: ='Available Data'!U12 -> Rural POP | AH10: ='Available Data'!V12 -> Urban POP | AI10: ='Available Data'!W12 -> Largest City POP | AJ10: ='Available Data'!X12 -> Other City >1M POP | AK10: ='Available Data'!Y12 -> Other Urban POP | AL10: =AL7 -> Check Data Consistency | AN10: =AN7 -> Per Capita Value Added | AO10: =B10&" Growth" -> VA Growth | AP10: =C10&" Growth" -> POP Growth | AQ10: =AP10&" M" -> POP Growth M | AR10: =AP10&" F" -> POP Growth F | AS10: =F10&" Growth" -> WAP 15-64 Growth | AT10: =AS10&" M" -> WAP 15-64 Growth M | AU10: =AS10&" F" -> WAP 15-64 Growth F | AV10: =I10&" Growth" -> LF 15-64 Growth | AW10: =AV10&" M" -> LF 15-64 Growth M | AX10: =AV10&" F" -> LF 15-64 Growth F | AY10: =L10&" Growth" -> E 15-64 Growth | AZ10: =AY10&" M" -> E 15-64 Growth M | BA10: =AY10&" F" -> E 15-64 Growth F | BB10: =O10&" Growth" -> U 15-64 Growth | BC10: =BB10&" M" -> U 15-64 Growth M | BD10: =BB10&" F" -> U 15-64 Growth F | BE10: =R10&" Growth" -> O 15-64 Growth | BF10: =BE10&" M" -> O 15-64 Growth M | BG10: =BE10&" F" -> O 15-64 Growth F | BH10: =U10&" Growth" -> D <15 and 65+ Growth | BI10: =BH10&" M" -> D <15 and 65+ Growth M | BJ10: =BH10&" F" -> D <15 and 65+ Growth F | BK10: =X10&" Growth" -> D <15 Growth | BL10: =BK10&" M" -> D <15 Growth M | BM10: =BK10&" F" -> D <15 Growth F | BN10: =AA10&" Growth" -> D 65+ Growth | BO10: =BN10&" M" -> D 65+ Growth M | BP10: =BN10&" F" -> D 65+ Growth F | BQ10: =U10&" by "&$F10 -> D <15 and 65+ by WAP 15-64 | BR10: =X10&" by "&$F10 -> D <15 by WAP 15-64 | BS10: =AA10&" by "&$F10 -> D 65+ by WAP 15-64 | BT10: =J10&" by "&G10 -> LF 15-64 M by WAP 15-64 M | BU10: =K10&" by "&H10 -> LF 15-64 F by WAP 15-64 F | BV10: =P10&" by "&J10 -> U 15-64 M by LF 15-64 M | BW10: =Q10&" by "&K10 -> U 15-64 F by LF 15-64 F | BX10: Source | BY10: =BY7 -> Available Data Period | BZ10: =BZ7 -> Available Data Period incl. Proj | CB10: =CB7 -> Plot years | CC10: Available | CD10: Available | CE10: Available | CG10: GDP | CH10: GVA | CJ10: =COUNTIF(CJ11:CJ71,"<>0")-1=0 -> TRUE | CK10: =COUNTIF(CK11:CK71,"<>0")-1=0 -> TRUE | CL10: =COUNTIF(CL11:CL71,"<>0")-1=0 -> TRUE | CM10: =COUNTIF(CM11:CM71,"<>0")-1=0 -> TRUE | CN10: =COUNTIF(CN11:CN71,"<>0")-1=0 -> TRUE | CT10: VA | CU10: POP
A11: ='Available Data'!$A13 -> 1960 | B11: ='Available Data'!B13 -> 2687.564645 | C11: ='Available Data'!C13 -> 10105.05 | D11: ='Available Data'!D13 -> 5038.372014 | E11: ='Available Data'!E13 -> 5066.677986 | F11: ='Available Data'!F13 -> 5764.39 | G11: ='Available Data'!G13 -> 2830.062199 | H11: ='Available Data'!H13 -> 2934.327801 | I11: ='Available Data'!I13 -> . | J11: ='Available Data'!J13 -> . | K11: ='Available Data'!K13 -> . | L11: ='Available Data'!L13 -> . | M11: ='Available Data'!M13 -> . | N11: ='Available Data'!N13 -> . | O11: =IF(ISERROR(I11-L11),".",I11-L11) -> . | P11: =IF(ISERROR(J11-M11),".",J11-M11) -> . | Q11: =IF(ISERROR(K11-N11),".",K11-N11) -> . | R11: =IF(ISERROR(F11-I11),".",F11-I11) -> . | S11: =IF(ISERROR(G11-J11),".",G11-J11) -> . | T11: =IF(ISERROR(H11-K11),".",H11-K11) -> . | U11: =IF(ISERROR(C11-F11),".",C11-F11) -> 4340.66 | V11: =IF(ISERROR(D11-G11),".",D11-G11) -> 2208.309815 | W11: =IF(ISERROR(E11-H11),".",E11-H11) -> 2132.350185 | X11: ='Available Data'!O13 -> 4083.848 | Y11: ='Available Data'!P13 -> 2091.70293 | Z11: ='Available Data'!Q13 -> 1992.14507 | AA11: =IF(ISERROR(C11-X11-F11),".",C11-X11-F11) -> 256.812 | AB11: =IF(ISERROR(D11-Y11-G11),".",D11-Y11-G11) -> 116.6068846 | AC11: =IF(ISERROR(E11-Z11-H11),".",E11-Z11-H11) -> 140.2051154 | AD11: ='Available Data'!R13 -> 5.959 | AE11: ='Available Data'!S13 -> 216.1 | AF11: ='Available Data'!T13 -> 322.1 | AG11: ='Available Data'!U13 -> 9753.39426 | AH11: ='Available Data'!V13 -> 351.65574 | AI11: ='Available Data'!W13 -> 119.1769119 | AJ11: ='Available Data'!X13 -> 8.81145779e-05 | AK11: ='Available Data'!Y13 -> 232.47874 | AL11: =IF(Calculations!CJ11=0,"",Calculations!CJ11&", ")&IF(Calculations!CK11=0,"",Calculations!CK11&", ")&IF(Calculations!CL11=0,"",Calculations!CL11&", ")&IF(Calculations!CM11=0,"",Calculations!CM11&", ")&IF(Calculations!CN11=0,"",Calculations!CN11&", ") ->  | AN11: =IF(ISERROR(B11/C11),".",B11/C11*$CC$5) -> 265.9625281 | AO11: =IF(ISERROR((B11/B10-1)*100),".",(B11/B10-1)*100) -> . | AP11: =IF(ISERROR((C11/C10-1)*100),".",(C11/C10-1)*100) -> . | AQ11: =IF(ISERROR((D11/D10-1)*100),".",(D11/D10-1)*100) -> . | AR11: =IF(ISERROR((E11/E10-1)*100),".",(E11/E10-1)*100) -> . | AS11: =IF(ISERROR((F11/F10-1)*100),".",(F11/F10-1)*100) -> . | AT11: =IF(ISERROR((G11/G10-1)*100),".",(G11/G10-1)*100) -> . | AU11: =IF(ISERROR((H11/H10-1)*100),".",(H11/H10-1)*100) -> . | AV11: =IF(ISERROR((I11/I10-1)*100),".",(I11/I10-1)*100) -> . | AW11: =IF(ISERROR((J11/J10-1)*100),".",(J11/J10-1)*100) -> . | AX11: =IF(ISERROR((K11/K10-1)*100),".",(K11/K10-1)*100) -> . | AY11: =IF(ISERROR((L11/L10-1)*100),".",(L11/L10-1)*100) -> . | AZ11: =IF(ISERROR((M11/M10-1)*100),".",(M11/M10-1)*100) -> . | BA11: =IF(ISERROR((N11/N10-1)*100),".",(N11/N10-1)*100) -> . | BB11: =IF(ISERROR((O11/O10-1)*100),".",(O11/O10-1)*100) -> . | BC11: =IF(ISERROR((P11/P10-1)*100),".",(P11/P10-1)*100) -> . | BD11: =IF(ISERROR((Q11/Q10-1)*100),".",(Q11/Q10-1)*100) -> . | BE11: =IF(ISERROR((R11/R10-1)*100),".",(R11/R10-1)*100) -> . | BF11: =IF(ISERROR((S11/S10-1)*100),".",(S11/S10-1)*100) -> . | BG11: =IF(ISERROR((T11/T10-1)*100),".",(T11/T10-1)*100) -> . | BH11: =IF(ISERROR((U11/U10-1)*100),".",(U11/U10-1)*100) -> . | BI11: =IF(ISERROR((V11/V10-1)*100),".",(V11/V10-1)*100) -> . | BJ11: =IF(ISERROR((W11/W10-1)*100),".",(W11/W10-1)*100) -> . | BK11: =IF(ISERROR((X11/X10-1)*100),".",(X11/X10-1)*100) -> . | BL11: =IF(ISERROR((Y11/Y10-1)*100),".",(Y11/Y10-1)*100) -> . | BM11: =IF(ISERROR((Z11/Z10-1)*100),".",(Z11/Z10-1)*100) -> . | BN11: =IF(ISERROR((AA11/AA10-1)*100),".",(AA11/AA10-1)*100) -> . | BO11: =IF(ISERROR((AB11/AB10-1)*100),".",(AB11/AB10-1)*100) -> . | BP11: =IF(ISERROR((AC11/AC10-1)*100),".",(AC11/AC10-1)*100) -> . | BQ11: =IF(SUM(BR11:BS11)=0,".",SUM(BR11:BS11)) -> 75.30128947 | BR11: =IF(ISERROR(X11/$F11),".",X11/$F11*100) -> 70.8461433 | BS11: =IF(ISERROR(AA11/$F11),".",AA11/$F11*100) -> 4.455146165 | BT11: =IF(ISERROR(J11/G11),".",J11/G11*100) -> . | BU11: =IF(ISERROR(K11/H11),".",K11/H11*100) -> . | BV11: =IF(ISERROR(P11/J11),".",P11/J11*100) -> . | BW11: =IF(ISERROR(Q11/K11),".",Q11/K11*100) -> . | BX11: =IF($CR$12=$CP$13,$CP$13,'Existing Data_DataBank'!CT14) -> GDP | BY11: =IF(OR($A11<$BY$8,$A11>$BY$9),0,1) -> 0 | BZ11: =BY11 -> 0 | CB11: =IF(A11<CB$8,".",A11) -> . | CC11: =IF($B11=".",".",$A11) -> 1960 | CD11: =IF(ISNUMBER($C11*$F11*$I11*$L11)=FALSE,".",$A11) -> . | CE11: =IF($CE$6=$CE$4,IF(OR(CC11=".",CD11="."),".",$A11),IF(AND(CC11=".",CD11="."),".",$A11)) -> 1960 | CG11: =IF(AND($CC11>=$CG$2,$CC11<=$CG$3),IF($BX11=CG$10,$CC11,"."),".") -> . | CH11: . | CJ11: =IF(OR(IF(ISERROR(C11-D11-E11),0,IF(ROUND(C11-D11-E11,$CK$7)=0,0,CJ$9))<>0,IF(ISERROR(X11-Y11-Z11),0,IF(ROUND(X11-Y11-Z11,$CK$7)=0,0,CJ$9))<>0,IF(ISERROR(F11-G11-H11),0,IF(ROUND(F11-G11-H11,$CK$7)=0,0,CJ$9))<>0,IF(ISERROR(I11-J11-K11),0,IF(ROUND(I11-J11-K11,$CK$7)=0,0,CJ$9))<>0,IF(ISERROR(L11-M11-N11),0,IF(ROUND(L11-M11-N11,$CK$7)=0,0,CJ$9))<>0,IF(ISERROR(O11-P11-Q11),0,IF(ROUND(O11-P11-Q11,$CK$7)=0,0,CJ$9))<>0,IF(ISERROR(R11-S11-T11),0,IF(ROUND(R11-S11-T11,$CK$7)=0,0,CJ$9))<>0,IF(ISERROR(AA11-AB11-AC11),0,IF(ROUND(AA11-AB11-AC11,$CK$7)=0,0,CJ$9))<>0),CJ$9,0) -> 0 | CK11: =IF(ISERROR(C11-X11-F11-AA11),0,IF(ROUND(C11-X11-F11-AA11,$CK$7)=0,0,CK$9)) -> 0 | CL11: =IF(MIN(C11:H11)<0,CL$9,IF(ISERROR(C11-F11+D11-G11+E11-H11),0,IF(ROUND(C11-F11+D11-G11+E11-H11,$CK$7)>0,0,CL$9))) -> 0 | CM11: =IF(MIN(F11:K11)<0,CM$9,IF(ISERROR(F11-I11+G11-J11+H11-K11),0,IF(ROUND(F11-I11+G11-J11+H11-K11,$CK$7)>0,0,CM$9))) -> 0 | CN11: =IF(MIN(I11:Q11)<0,CN$9,IF(ISERROR(I11-L11+J11-M11+K11-N11),0,IF(ROUND(I11-L11+J11-M11+K11-N11,$CK$7)>0,0,CN$9))) -> 0 | CR11: Selected: | CT11: =IF(B11=".",NA(),B11) -> 2687.564645 | CU11: =IF(C11=".",NA(),C11) -> 10105.05
A12: ='Available Data'!$A14 -> 1961 | B12: ='Available Data'!B14 -> 2738.850526 | C12: ='Available Data'!C14 -> 10267.264 | D12: ='Available Data'!D14 -> 5120.962995 | E12: ='Available Data'!E14 -> 5146.301005 | F12: ='Available Data'!F14 -> 5829.235 | G12: ='Available Data'!G14 -> 2863.255115 | H12: ='Available Data'!H14 -> 2965.979885 | I12: ='Available Data'!I14 -> . | J12: ='Available Data'!J14 -> . | K12: ='Available Data'!K14 -> . | L12: ='Available Data'!L14 -> . | M12: ='Available Data'!M14 -> . | N12: ='Available Data'!N14 -> . | O12: =IF(ISERROR(I12-L12),".",I12-L12) -> . | P12: =IF(ISERROR(J12-M12),".",J12-M12) -> . | Q12: =IF(ISERROR(K12-N12),".",K12-N12) -> . | R12: =IF(ISERROR(F12-I12),".",F12-I12) -> . | S12: =IF(ISERROR(G12-J12),".",G12-J12) -> . | T12: =IF(ISERROR(H12-K12),".",H12-K12) -> . | U12: =IF(ISERROR(C12-F12),".",C12-F12) -> 4438.029 | V12: =IF(ISERROR(D12-G12),".",D12-G12) -> 2257.70788 | W12: =IF(ISERROR(E12-H12),".",E12-H12) -> 2180.32112 | X12: ='Available Data'!O14 -> 4170.988 | Y12: ='Available Data'!P14 -> 2136.537832 | Z12: ='Available Data'!Q14 -> 2034.450168 | AA12: =IF(ISERROR(C12-X12-F12),".",C12-X12-F12) -> 267.041 | AB12: =IF(ISERROR(D12-Y12-G12),".",D12-Y12-G12) -> 121.1700472 | AC12: =IF(ISERROR(E12-Z12-H12),".",E12-Z12-H12) -> 145.8709528 | AD12: ='Available Data'!R14 -> 5.96 | AE12: ='Available Data'!S14 -> 213.3 | AF12: ='Available Data'!T14 -> 318.2 | AG12: ='Available Data'!U14 -> 9900.620003 | AH12: ='Available Data'!V14 -> 366.6439974 | AI12: ='Available Data'!W14 -> 121.0839992 | AJ12: ='Available Data'!X14 -> 8.454387571e-07 | AK12: ='Available Data'!Y14 -> 245.5599974 | AL12: =IF(Calculations!CJ12=0,"",Calculations!CJ12&", ")&IF(Calculations!CK12=0,"",Calculations!CK12&", ")&IF(Calculations!CL12=0,"",Calculations!CL12&", ")&IF(Calculations!CM12=0,"",Calculations!CM12&", ")&IF(Calculations!CN12=0,"",Calculations!CN12&", ") ->  | AN12: 266.7556348 | AO12: 1.908265969 | AP12: 1.60527657 | AQ12: 1.639239437 | AR12: 1.571503442 | AS12: 1.124923886 | AT12: 1.172868785 | AU12: 1.078682616 | AV12: . | AW12: . | AX12: . | AY12: . | AZ12: . | BA12: . | BB12: . | BC12: . | BD12: . | BE12: . | BF12: . | BG12: . | BH12: 2.243184216 | BI12: 2.236917329 | BJ12: 2.249674345 | BK12: 2.133771874 | BL12: 2.143464145 | BM12: 2.12359523 | BN12: 3.983069327 | BO12: 3.913287467 | BP12: 4.041106049 | BQ12: =IF(SUM(BR12:BS12)=0,".",SUM(BR12:BS12)) -> 76.13398671 | BR12: 71.55292247 | BS12: 4.581064239 | BT12: . | BU12: . | BV12: . | BW12: . | BX12: =IF($CR$12=$CP$13,$CP$13,'Existing Data_DataBank'!CT15) -> GDP | BY12: 0 | BZ12: =BY12 -> 0 | CB12: . | CC12: 1961 | CD12: . | CE12: 1961 | CG12: . | CH12: . | CJ12: 0 | CK12: 0 | CL12: 0 | CM12: 0 | CN12: 0 | CP12: VA sources: | CQ12: Dates | CR12: =Macro_Data_Value -> DataBank | CT12: 2738.850526 | CU12: 10267.264
A13: ='Available Data'!$A15 -> 1962 | B13: ='Available Data'!B15 -> 2791.171336 | C13: ='Available Data'!C15 -> 10433.145 | D13: ='Available Data'!D15 -> 5204.106002 | E13: ='Available Data'!E15 -> 5229.038998 | F13: ='Available Data'!F15 -> 5884.168 | G13: ='Available Data'!G15 -> 2890.722446 | H13: ='Available Data'!H15 -> 2993.445554 | I13: ='Available Data'!I15 -> . | J13: ='Available Data'!J15 -> . | K13: ='Available Data'!K15 -> . | L13: ='Available Data'!L15 -> . | M13: ='Available Data'!M15 -> . | N13: ='Available Data'!N15 -> . | O13: . | P13: . | Q13: . | R13: . | S13: . | T13: . | U13: 4548.977 | V13: 2313.383557 | W13: 2235.593443 | X13: ='Available Data'!O15 -> 4273.254 | Y13: ='Available Data'!P15 -> 2188.48658 | Z13: ='Available Data'!Q15 -> 2084.76742 | AA13: 275.723 | AB13: 124.8969761 | AC13: 150.8260239 | AD13: ='Available Data'!R15 -> 5.962 | AE13: ='Available Data'!S15 -> 210.2 | AF13: ='Available Data'!T15 -> 313.7 | AG13: ='Available Data'!U15 -> 10056.2998 | AH13: ='Available Data'!V15 -> 376.8451974 | AI13: ='Available Data'!W15 -> 123.7450648 | AJ13: ='Available Data'!X15 -> 0 | AK13: ='Available Data'!Y15 -> 253.1001326 | AL13: =IF(Calculations!CJ13=0,"",Calculations!CJ13&", ")&IF(Calculations!CK13=0,"",Calculations!CK13&", ")&IF(Calculations!CL13=0,"",Calculations!CL13&", ")&IF(Calculations!CM13=0,"",Calculations!CM13&", ")&IF(Calculations!CN13=0,"",Calculations!CN13&", ") ->  | AN13: 267.5292384 | AO13: 1.910320034 | AP13: 1.615630026 | AQ13: 1.623581491 | AR13: 1.60771771 | AS13: 0.9423706541 | AT13: 0.9593043323 | AU13: 0.9260234628 | AV13: . | AW13: . | AX13: . | AY13: . | AZ13: . | BA13: . | BB13: . | BC13: . | BD13: . | BE13: . | BF13: . | BG13: . | BH13: 2.499938599 | BI13: 2.466026604 | BJ13: 2.535054242 | BK13: 2.451841147 | BL13: 2.431445272 | BM13: 2.473260476 | BN13: 3.251186147 | BO13: 3.075783939 | BP13: 3.396886806 | BQ13: 77.30875461 | BR13: 72.62290948 | BS13: 4.685845136 | BT13: . | BU13: . | BV13: . | BW13: . | BX13: =IF($CR$12=$CP$13,$CP$13,'Existing Data_DataBank'!CT16) -> GDP | BY13: 0 | BZ13: 0 | CB13: . | CC13: 1962 | CD13: . | CE13: 1962 | CG13: . | CH13: . | CJ13: 0 | CK13: 0 | CL13: 0 | CM13: 0 | CN13: 0 | CP13: ='Main Menu'!$O$5 -> Manual | CQ13: - | CT13: 2791.171336 | CU13: 10433.145
A14: ='Available Data'!$A16 -> 1963 | B14: ='Available Data'!B16 -> 2844.067149 | C14: ='Available Data'!C16 -> 10604.621 | D14: ='Available Data'!D16 -> 5288.990499 | E14: ='Available Data'!E16 -> 5315.630501 | F14: ='Available Data'!F16 -> 5939.741 | G14: ='Available Data'!G16 -> 2917.940275 | H14: ='Available Data'!H16 -> 3021.800725 | I14: ='Available Data'!I16 -> . | J14: ='Available Data'!J16 -> . | K14: ='Available Data'!K16 -> . | L14: ='Available Data'!L16 -> . | M14: ='Available Data'!M16 -> . | N14: ='Available Data'!N16 -> . | O14: . | P14: . | Q14: . | R14: . | S14: . | T14: . | U14: 4664.88 | V14: 2371.050224 | W14: 2293.829776 | X14: ='Available Data'!O16 -> 4381.549 | Y14: ='Available Data'!P16 -> 2243.051212 | Z14: ='Available Data'!Q16 -> 2138.497788 | AA14: 283.331 | AB14: 127.9990121 | AC14: 155.3319879 | AD14: ='Available Data'!R16 -> 5.964 | AE14: ='Available Data'!S16 -> 206.4 | AF14: ='Available Data'!T16 -> 308.3 | AG14: ='Available Data'!U16 -> 10217.23419 | AH14: ='Available Data'!V16 -> 387.3868051 | AI14: ='Available Data'!W16 -> 126.4639364 | AJ14: ='Available Data'!X16 -> 6.361607301e-05 | AK14: ='Available Data'!Y16 -> 260.9228051 | AL14: =IF(Calculations!CJ14=0,"",Calculations!CJ14&", ")&IF(Calculations!CK14=0,"",Calculations!CK14&", ")&IF(Calculations!CL14=0,"",Calculations!CL14&", ")&IF(Calculations!CM14=0,"",Calculations!CM14&", ")&IF(Calculations!CN14=0,"",Calculations!CN14&", ") ->  | AN14: 268.1913054 | AO14: 1.895111643 | AP14: 1.643569604 | AQ14: 1.631106213 | AR14: 1.655973568 | AS14: 0.9444495806 | AT14: 0.9415580295 | AU14: 0.9472419053 | AV14: . | AW14: . | AX14: . | AY14: . | AZ14: . | BA14: . | BB14: . | BC14: . | BD14: . | BE14: . | BF14: . | BG14: . | BH14: 2.547891537 | BI14: 2.492741288 | BJ14: 2.604960804 | BK14: 2.534251416 | BL14: 2.493258653 | BM14: 2.577283607 | BN14: 2.759291028 | BO14: 2.483675835 | BP14: 2.987524215 | BQ14: 78.53675775 | BR14: 73.7666676 | BS14: 4.770090144 | BT14: . | BU14: . | BV14: . | BW14: . | BX14: =IF($CR$12=$CP$13,$CP$13,'Existing Data_DataBank'!CT17) -> GDP | BY14: 0 | BZ14: 0 | CB14: . | CC14: 1963 | CD14: . | CE14: 1963 | CG14: . | CH14: . | CJ14: 0 | CK14: 0 | CL14: 0 | CM14: 0 | CN14: 0 | CP14: ='Main Menu'!$O$6 -> DataBank | CQ14: ='Existing Data_DataBank'!$A$6 -> Accessed 03 Oct 2019 | CT14: 2844.067149 | CU14: 10604.621
